Workbook

Sheet Saisonstatistiken
B2: Saisonstatistiken 2020/2021
C5: Tabelle nach Turniersiegen (unsortiert)
C7: Rang | H7: Spieler | T7: Gesamt | AA7: Erster | AI7: Zweiter | AQ7: Dritter | AY7: Vierter | BG7: Fünfter | BO7: Sechster | BW7: Siebter
C8: =RANK(T8,$T$8:$Z$14,0) -> 7 | H8: Basti | T8: =AA8+(AI8/3)+(AQ8*0.000001)+(AY8*0.000001)+(BG8*0.000001)+(BO8*0.000001)+(BW8*0.000001) -> 1e-06 | AA8: =COUNTIFS(M60:M80,"Basti") -> 0 | AI8: =COUNTIFS(W60:W80,"Basti") -> 0 | AQ8: =COUNTIFS(AG60:AG80,"Basti") -> 0 | AY8: =COUNTIFS(AQ60:AQ80,"Basti") -> 0 | BG8: =COUNTIFS(BA60:BA80,"Basti") -> 0 | BO8: =COUNTIFS(BK60:BK80,"Basti") -> 0 | BW8: =COUNTIFS(BU60:BU80,"Basti") -> 1
C9: 4 | H9: Christoph | T9: 3.000013 | AA9: =COUNTIFS(M60:M80,"Christoph") -> 1 | AI9: =COUNTIFS(W60:W80,"Christoph") -> 6 | AQ9: =COUNTIFS(AG60:AG80,"Christoph") -> 4 | AY9: =COUNTIFS(AQ60:AQ80,"Christoph") -> 5 | BG9: =COUNTIFS(BA60:BA80,"Christoph") -> 3 | BO9: =COUNTIFS(BK60:BK80,"Christoph") -> 1 | BW9: =COUNTIFS(BU60:BU80,"Christoph") -> 0
C10: 6 | H10: Jule | T10: 1.3e-05 | AA10: =COUNTIFS(M60:M80,"Jule") -> 0 | AI10: =COUNTIFS(W60:W80,"Jule") -> 0 | AQ10: =COUNTIFS(AG60:AG80,"Jule") -> 4 | AY10: =COUNTIFS(AQ60:AQ80,"Jule") -> 5 | BG10: =COUNTIFS(BA60:BA80,"Jule") -> 2 | BO10: =COUNTIFS(BK60:BK80,"Jule") -> 2 | BW10: =COUNTIFS(BU60:BU80,"Jule") -> 0
C11: 3 | H11: Markus | T11: 6.000008 | AA11: =COUNTIFS(M60:M80,"Markus") -> 4 | AI11: =COUNTIFS(W60:W80,"Markus") -> 6 | AQ11: =COUNTIFS(AG60:AG80,"Markus") -> 5 | AY11: =COUNTIFS(AQ60:AQ80,"Markus") -> 1 | BG11: =COUNTIFS(BA60:BA80,"Markus") -> 1 | BO11: =COUNTIFS(BK60:BK80,"Markus") -> 1 | BW11: =COUNTIFS(BU60:BU80,"Markus") -> 0
C12: 2 | H12: Patrick | T12: 6.000011 | AA12: =COUNTIFS(M60:M80,"Patrick") -> 4 | AI12: =COUNTIFS(W60:W80,"Patrick") -> 6 | AQ12: =COUNTIFS(AG60:AG80,"Patrick") -> 4 | AY12: =COUNTIFS(AQ60:AQ80,"Patrick") -> 4 | BG12: =COUNTIFS(BA60:BA80,"Patrick") -> 3 | BO12: =COUNTIFS(BK60:BK80,"Patrick") -> 0 | BW12: =COUNTIFS(BU60:BU80,"Patrick") -> 0
C13: 1 | H13: Ratze | T13: 12.33334133 | AA13: =COUNTIFS(M60:M80,"Ratze") -> 12 | AI13: =COUNTIFS(W60:W80,"Ratze") -> 1 | AQ13: =COUNTIFS(AG60:AG80,"Ratze") -> 3 | AY13: =COUNTIFS(AQ60:AQ80,"Ratze") -> 3 | BG13: =COUNTIFS(BA60:BA80,"Ratze") -> 2 | BO13: =COUNTIFS(BK60:BK80,"Ratze") -> 0 | BW13: =COUNTIFS(BU60:BU80,"Ratze") -> 0
C14: 5 | H14: Schmiddi | T14: 0.6666796667 | AA14: =COUNTIFS(M60:M80,"Schmiddi") -> 0 | AI14: =COUNTIFS(W60:W80,"Schmiddi") -> 2 | AQ14: =COUNTIFS(AG60:AG80,"Schmiddi") -> 1 | AY14: =COUNTIFS(AQ60:AQ80,"Schmiddi") -> 3 | BG14: =COUNTIFS(BA60:BA80,"Schmiddi") -> 5 | BO14: =COUNTIFS(BK60:BK80,"Schmiddi") -> 4 | BW14: =COUNTIFS(BU60:BU80,"Schmiddi") -> 0
C18: Tabelle nach Turniersiegen
C20: Rang | H20: Spieler | T20: Gesamt | AA20: Erster | AI20: Zweiter | AQ20: Dritter | AY20: Vierter | BG20: Fünfter | BO20: Sechster | BW20: Siebter
C21: =INDEX($C$8:$C$14,MATCH(LARGE($T$8:$T$14,ROW(A1)),$T$8:$T$14,0),1) -> 1 | H21: =INDEX($H$8:$H$14,MATCH(LARGE($T$8:$T$14,ROW(A1)),$T$8:$T$14,0),1) -> Ratze | T21: =INDEX($T$8:$T$14,MATCH(LARGE($T$8:$T$14,ROW(A1)),$T$8:$T$14,0),1) -> 12.33334133 | AA21: =INDEX($AA$8:$AA$14,MATCH(LARGE($T$8:$T$14,ROW(A1)),$T$8:$T$14,0),1) -> 12 | AI21: =INDEX($AI$8:$AI$14,MATCH(LARGE($T$8:$T$14,ROW(A1)),$T$8:$T$14,0),1) -> 1 | AQ21: =INDEX($AQ$8:$AQ$14,MATCH(LARGE($T$8:$T$14,ROW(A1)),$T$8:$T$14,0),1) -> 3 | AY21: =INDEX($AY$8:$AY$14,MATCH(LARGE($T$8:$T$14,ROW(A1)),$T$8:$T$14,0),1) -> 3 | BG21: =INDEX($BG$8:$BG$14,MATCH(LARGE($T$8:$T$14,ROW(A1)),$T$8:$T$14,0),1) -> 2 | BO21: =INDEX($BO$8:$BO$14,MATCH(LARGE($T$8:$T$14,ROW(A1)),$T$8:$T$14,0),1) -> 0 | BW21: =INDEX($BW$8:$BW$14,MATCH(LARGE($T$8:$T$14,ROW(A1)),$T$8:$T$14,0),1) -> 0
C22: 2 | H22: Patrick | T22: 6.000011 | AA22: 4 | AI22: 6 | AQ22: 4 | AY22: 4 | BG22: 3 | BO22: 0 | BW22: 0
C23: 3 | H23: Markus | T23: 6.000008 | AA23: 4 | AI23: 6 | AQ23: 5 | AY23: 1 | BG23: 1 | BO23: 1 | BW23: 0
C24: 4 | H24: Christoph | T24: 3.000013 | AA24: 1 | AI24: 6 | AQ24: 4 | AY24: 5 | BG24: 3 | BO24: 1 | BW24: 0
C25: 5 | H25: Schmiddi | T25: 0.6666796667 | AA25: 0 | AI25: 2 | AQ25: 1 | AY25: 3 | BG25: 5 | BO25: 4 | BW25: 0
C26: 6 | H26: Jule | T26: 1.3e-05 | AA26: 0 | AI26: 0 | AQ26: 4 | AY26: 5 | BG26: 2 | BO26: 2 | BW26: 0
C27: 7 | H27: Basti | T27: 1e-06 | AA27: 0 | AI27: 0 | AQ27: 0 | AY27: 0 | BG27: 0 | BO27: 0 | BW27: 1
C31: Tabelle nach Punkten (unsortiert)
C33: Rang | H33: =" Spieler" -> Spieler | T33: Spiele | Z33: Siege | AK33: Unentschieden | AV33: Niederlagen | BG33: Tore | BS33: +/- | BX33: Punkte
C34: =RANK(BX34,$BX$34:$CD$40,0) -> 7 | H34: Basti | T34: =SUM(Beginn_Auswertung:Ende_Auswertung!T91) -> 12 | Z34: =SUM(Beginn_Auswertung:Ende_Auswertung!Z91) -> 0 | AK34: =SUM(Beginn_Auswertung:Ende_Auswertung!AK91) -> 0 | AV34: =SUM(Beginn_Auswertung:Ende_Auswertung!AV91) -> 12 | BG34: =SUM(Beginn_Auswertung:Ende_Auswertung!BG91) -> 6 | BL34: : | BN34: =SUM(Beginn_Auswertung:Ende_Auswertung!BN91) -> 42 | BS34: =SUM(Beginn_Auswertung:Ende_Auswertung!BS91) -> -36 | BX34: =SUM(Beginn_Auswertung:Ende_Auswertung!BX91) -> 0
C35: =RANK(BX35,$BX$34:$CD$40,0) -> 4 | H35: Christoph | T35: =SUM(Beginn_Auswertung:Ende_Auswertung!T92) -> 162 | Z35: =SUM(Beginn_Auswertung:Ende_Auswertung!Z92) -> 62 | AK35: =SUM(Beginn_Auswertung:Ende_Auswertung!AK92) -> 27 | AV35: =SUM(Beginn_Auswertung:Ende_Auswertung!AV92) -> 73 | BG35: =SUM(Beginn_Auswertung:Ende_Auswertung!BG92) -> 317 | BL35: : | BN35: =SUM(Beginn_Auswertung:Ende_Auswertung!BN92) -> 348 | BS35: =SUM(Beginn_Auswertung:Ende_Auswertung!BS92) -> -31 | BX35: =SUM(Beginn_Auswertung:Ende_Auswertung!BX92) -> 213
C36: 5 | H36: Jule | T36: =SUM(Beginn_Auswertung:Ende_Auswertung!T93) -> 122 | Z36: =SUM(Beginn_Auswertung:Ende_Auswertung!Z93) -> 39 | AK36: =SUM(Beginn_Auswertung:Ende_Auswertung!AK93) -> 29 | AV36: =SUM(Beginn_Auswertung:Ende_Auswertung!AV93) -> 54 | BG36: =SUM(Beginn_Auswertung:Ende_Auswertung!BG93) -> 237 | BL36: : | BN36: =SUM(Beginn_Auswertung:Ende_Auswertung!BN93) -> 275 | BS36: =SUM(Beginn_Auswertung:Ende_Auswertung!BS93) -> -38 | BX36: =SUM(Beginn_Auswertung:Ende_Auswertung!BX93) -> 146
C37: 3 | H37: Markus | T37: =SUM(Beginn_Auswertung:Ende_Auswertung!T94) -> 146 | Z37: =SUM(Beginn_Auswertung:Ende_Auswertung!Z94) -> 67 | AK37: =SUM(Beginn_Auswertung:Ende_Auswertung!AK94) -> 33 | AV37: =SUM(Beginn_Auswertung:Ende_Auswertung!AV94) -> 46 | BG37: =SUM(Beginn_Auswertung:Ende_Auswertung!BG94) -> 315 | BL37: : | BN37: =SUM(Beginn_Auswertung:Ende_Auswertung!BN94) -> 279 | BS37: =SUM(Beginn_Auswertung:Ende_Auswertung!BS94) -> 36 | BX37: =SUM(Beginn_Auswertung:Ende_Auswertung!BX94) -> 234
C38: 2 | H38: Patrick | T38: =SUM(Beginn_Auswertung:Ende_Auswertung!T95) -> 168 | Z38: =SUM(Beginn_Auswertung:Ende_Auswertung!Z95) -> 74 | AK38: =SUM(Beginn_Auswertung:Ende_Auswertung!AK95) -> 34 | AV38: =SUM(Beginn_Auswertung:Ende_Auswertung!AV95) -> 60 | BG38: =SUM(Beginn_Auswertung:Ende_Auswertung!BG95) -> 373 | BL38: : | BN38: =SUM(Beginn_Auswertung:Ende_Auswertung!BN95) -> 294 | BS38: =SUM(Beginn_Auswertung:Ende_Auswertung!BS95) -> 79 | BX38: =SUM(Beginn_Auswertung:Ende_Auswertung!BX95) -> 256
C39: 1 | H39: Ratze | T39: =SUM(Beginn_Auswertung:Ende_Auswertung!T96) -> 168 | Z39: =SUM(Beginn_Auswertung:Ende_Auswertung!Z96) -> 93 | AK39: =SUM(Beginn_Auswertung:Ende_Auswertung!AK96) -> 32 | AV39: =SUM(Beginn_Auswertung:Ende_Auswertung!AV96) -> 43 | BG39: =SUM(Beginn_Auswertung:Ende_Auswertung!BG96) -> 419 | BL39: : | BN39: =SUM(Beginn_Auswertung:Ende_Auswertung!BN96) -> 271 | BS39: =SUM(Beginn_Auswertung:Ende_Auswertung!BS96) -> 148 | BX39: =SUM(Beginn_Auswertung:Ende_Auswertung!BX96) -> 311
C40: 6 | H40: Schmiddi | T40: =SUM(Beginn_Auswertung:Ende_Auswertung!T97) -> 126 | Z40: =SUM(Beginn_Auswertung:Ende_Auswertung!Z97) -> 31 | AK40: =SUM(Beginn_Auswertung:Ende_Auswertung!AK97) -> 19 | AV40: =SUM(Beginn_Auswertung:Ende_Auswertung!AV97) -> 77 | BG40: =SUM(Beginn_Auswertung:Ende_Auswertung!BG97) -> 250 | BL40: : | BN40: =SUM(Beginn_Auswertung:Ende_Auswertung!BN97) -> 408 | BS40: =SUM(Beginn_Auswertung:Ende_Auswertung!BS97) -> -158 | BX40: =SUM(Beginn_Auswertung:Ende_Auswertung!BX97) -> 109
C44: Tabelle nach Punkten
C46: Rang | H46: =" Spieler" -> Spieler | T46: Spiele | Z46: Siege | AK46: Unentschieden | AV46: Niederlagen | BG46: Tore | BS46: +/- | BX46: Punkte
C47: =INDEX($C$34:$C$40,MATCH(LARGE($BX$34:$BX$40,ROW(A1)),$BX$34:$BX$40,0),1) -> 1 | H47: =INDEX($H$34:$H$40,MATCH(LARGE($BX$34:$BX$40,ROW(A1)),$BX$34:$BX$40,0),1) -> Ratze | T47: =INDEX($T$34:$T$40,MATCH(LARGE($BX$34:$BX$40,ROW(A1)),$BX$34:$BX$40,0),1) -> 168 | Z47: =INDEX($Z$34:$Z$40,MATCH(LARGE($BX$34:$BX$40,ROW(A1)),$BX$34:$BX$40,0),1) -> 93 | AK47: =INDEX($AK$34:$AK$40,MATCH(LARGE($BX$34:$BX$40,ROW(A1)),$BX$34:$BX$40,0),1) -> 32 | AV47: =INDEX($AV$34:$AV$40,MATCH(LARGE($BX$34:$BX$40,ROW(A1)),$BX$34:$BX$40,0),1) -> 43 | BG47: =INDEX($BG$34:$BG$40,MATCH(LARGE($BX$34:$BX$40,ROW(A1)),$BX$34:$BX$40,0),1) -> 419 | BL47: : | BN47: =INDEX($BN$34:$BN$40,MATCH(LARGE($BX$34:$BX$40,ROW(A1)),$BX$34:$BX$40,0),1) -> 271 | BS47: =INDEX($BS$34:$BS$40,MATCH(LARGE($BX$34:$BX$40,ROW(A1)),$BX$34:$BX$40,0),1) -> 148 | BX47: =INDEX($BX$34:$BX$40,MATCH(LARGE($BX$34:$BX$40,ROW(A1)),$BX$34:$BX$40,0),1) -> 311
C48: 2 | H48: Patrick | T48: 168 | Z48: 74 | AK48: 34 | AV48: 60 | BG48: 373 | BL48: : | BN48: 294 | BS48: 79 | BX48: 256
C49: 3 | H49: Markus | T49: 146 | Z49: 67 | AK49: 33 | AV49: 46 | BG49: 315 | BL49: : | BN49: 279 | BS49: 36 | BX49: 234
C50: 4 | H50: Christoph | T50: 162 | Z50: 62 | AK50: 27 | AV50: 73 | BG50: 317 | BL50: : | BN50: 348 | BS50: -31 | BX50: 213
C51: 5 | H51: Jule | T51: 122 | Z51: 39 | AK51: 29 | AV51: 54 | BG51: 237 | BL51: : | BN51: 275 | BS51: -38 | BX51: 146
C52: 6 | H52: Schmiddi | T52: 126 | Z52: 31 | AK52: 19 | AV52: 77 | BG52: 250 | BL52: : | BN52: 408 | BS52: -158 | BX52: 109
C53: 7 | H53: Basti | T53: 12 | Z53: 0 | AK53: 0 | AV53: 12 | BG53: 6 | BL53: : | BN53: 42 | BS53: -36 | BX53: 0
C57: Turnierübersicht
C59: Datum | M59: Erster | W59: Zweiter | AG59: Dritter | AQ59: Vierter | BA59: Fünfter | BK59: Sechster | BU59: Siebter
C60: 2020-10-21 | M60: =IF(OR(ISBLANK('21.10.'!F78),ISBLANK('21.10.'!F79),ISBLANK('21.10.'!F80),ISBLANK('21.10.'!F81),ISBLANK('21.10.'!F82),ISBLANK('21.10.'!F83),ISBLANK('21.10.'!F84)),"Ergebnis offen",IF('21.10.'!F78=1,'21.10.'!H78,IF('21.10.'!F79=1,'21.10.'!H79,IF('21.10.'!F80=1,'21.10.'!H80,IF('21.10.'!F81=1,'21.10.'!H81,IF('21.10.'!F82=1,'21.10.'!H82,IF('21.10.'!F83=1,'21.10.'!H83,IF('21.10.'!F84=1,'21.10.'!H84,"---")))))))) -> Patrick | W60: =IF(OR(ISBLANK('21.10.'!F78),ISBLANK('21.10.'!F79),ISBLANK('21.10.'!F80),ISBLANK('21.10.'!F81),ISBLANK('21.10.'!F82),ISBLANK('21.10.'!F83),ISBLANK('21.10.'!F84)),"Ergebnis offen",IF('21.10.'!F78=2,'21.10.'!H78,IF('21.10.'!F79=2,'21.10.'!H79,IF('21.10.'!F80=2,'21.10.'!H80,IF('21.10.'!F81=2,'21.10.'!H81,IF('21.10.'!F82=2,'21.10.'!H82,IF('21.10.'!F83=2,'21.10.'!H83,IF('21.10.'!F84=2,'21.10.'!H84,"---")))))))) -> Markus | AG60: =IF(OR(ISBLANK('21.10.'!F78),ISBLANK('21.10.'!F79),ISBLANK('21.10.'!F80),ISBLANK('21.10.'!F81),ISBLANK('21.10.'!F82),ISBLANK('21.10.'!F83),ISBLANK('21.10.'!F84)),"Ergebnis offen",IF('21.10.'!F78=3,'21.10.'!H78,IF('21.10.'!F79=3,'21.10.'!H79,IF('21.10.'!F80=3,'21.10.'!H80,IF('21.10.'!F81=3,'21.10.'!H81,IF('21.10.'!F82=3,'21.10.'!H82,IF('21.10.'!F83=3,'21.10.'!H83,IF('21.10.'!F84=3,'21.10.'!H84,"---")))))))) -> Christoph | AQ60: =IF(OR(ISBLANK('21.10.'!F78),ISBLANK('21.10.'!F79),ISBLANK('21.10.'!F80),ISBLANK('21.10.'!F81),ISBLANK('21.10.'!F82),ISBLANK('21.10.'!F83),ISBLANK('21.10.'!F84)),"Ergebnis offen",IF('21.10.'!F78=4,'21.10.'!H78,IF('21.10.'!F79=4,'21.10.'!H79,IF('21.10.'!F80=4,'21.10.'!H80,IF('21.10.'!F81=4,'21.10.'!H81,IF('21.10.'!F82=4,'21.10.'!H82,IF('21.10.'!F83=4,'21.10.'!H83,IF('21.10.'!F84=4,'21.10.'!H84,"---")))))))) -> Schmiddi | BA60: =IF(OR(ISBLANK('21.10.'!F78),ISBLANK('21.10.'!F79),ISBLANK('21.10.'!F80),ISBLANK('21.10.'!F81),ISBLANK('21.10.'!F82),ISBLANK('21.10.'!F83),ISBLANK('21.10.'!F84)),"Ergebnis offen",IF('21.10.'!F78=5,'21.10.'!H78,IF('21.10.'!F79=5,'21.10.'!H79,IF('21.10.'!F80=5,'21.10.'!H80,IF('21.10.'!F81=5,'21.10.'!H81,IF('21.10.'!F82=5,'21.10.'!H82,IF('21.10.'!F83=5,'21.10.'!H83,IF('21.10.'!F84=5,'21.10.'!H84,"---")))))))) -> Ratze | BK60: =IF(OR(ISBLANK('21.10.'!F78),ISBLANK('21.10.'!F79),ISBLANK('21.10.'!F80),ISBLANK('21.10.'!F81),ISBLANK('21.10.'!F82),ISBLANK('21.10.'!F83),ISBLANK('21.10.'!F84)),"Ergebnis offen",IF('21.10.'!F78=6,'21.10.'!H78,IF('21.10.'!F79=6,'21.10.'!H79,IF('21.10.'!F80=6,'21.10.'!H80,IF('21.10.'!F81=6,'21.10.'!H81,IF('21.10.'!F82=6,'21.10.'!H82,IF('21.10.'!F83=6,'21.10.'!H83,IF('21.10.'!F84=6,'21.10.'!H84,"---")))))))) -> Jule | BU60: =IF(OR(ISBLANK('21.10.'!F78),ISBLANK('21.10.'!F79),ISBLANK('21.10.'!F80),ISBLANK('21.10.'!F81),ISBLANK('21.10.'!F82),ISBLANK('21.10.'!F83),ISBLANK('21.10.'!F84)),"Ergebnis offen",IF('21.10.'!F78=7,'21.10.'!H78,IF('21.10.'!F79=7,'21.10.'!H79,IF('21.10.'!F80=7,'21.10.'!H80,IF('21.10.'!F81=7,'21.10.'!H81,IF('21.10.'!F82=7,'21.10.'!H82,IF('21.10.'!F83=7,'21.10.'!H83,IF('21.10.'!F84=7,'21.10.'!H84,"---")))))))) -> ---
C61: 2020-10-28 | M61: =IF(OR(ISBLANK('28.10.'!F78),ISBLANK('28.10.'!F79),ISBLANK('28.10.'!F80),ISBLANK('28.10.'!F81),ISBLANK('28.10.'!F82),ISBLANK('28.10.'!F83),ISBLANK('28.10.'!F84)),"Ergebnis offen",IF('28.10.'!F78=1,'28.10.'!H78,IF('28.10.'!F79=1,'28.10.'!H79,IF('28.10.'!F80=1,'28.10.'!H80,IF('28.10.'!F81=1,'28.10.'!H81,IF('28.10.'!F82=1,'28.10.'!H82,IF('28.10.'!F83=1,'28.10.'!H83,IF('28.10.'!F84=1,'28.10.'!H84,"---")))))))) -> Ratze | W61: =IF(OR(ISBLANK('28.10.'!F78),ISBLANK('28.10.'!F79),ISBLANK('28.10.'!F80),ISBLANK('28.10.'!F81),ISBLANK('28.10.'!F82),ISBLANK('28.10.'!F83),ISBLANK('28.10.'!F84)),"Ergebnis offen",IF('28.10.'!F78=2,'28.10.'!H78,IF('28.10.'!F79=2,'28.10.'!H79,IF('28.10.'!F80=2,'28.10.'!H80,IF('28.10.'!F81=2,'28.10.'!H81,IF('28.10.'!F82=2,'28.10.'!H82,IF('28.10.'!F83=2,'28.10.'!H83,IF('28.10.'!F84=2,'28.10.'!H84,"---")))))))) -> Schmiddi | AG61: =IF(OR(ISBLANK('28.10.'!F78),ISBLANK('28.10.'!F79),ISBLANK('28.10.'!F80),ISBLANK('28.10.'!F81),ISBLANK('28.10.'!F82),ISBLANK('28.10.'!F83),ISBLANK('28.10.'!F84)),"Ergebnis offen",IF('28.10.'!F78=3,'28.10.'!H78,IF('28.10.'!F79=3,'28.10.'!H79,IF('28.10.'!F80=3,'28.10.'!H80,IF('28.10.'!F81=3,'28.10.'!H81,IF('28.10.'!F82=3,'28.10.'!H82,IF('28.10.'!F83=3,'28.10.'!H83,IF('28.10.'!F84=3,'28.10.'!H84,"---")))))))) -> Markus | AQ61: =IF(OR(ISBLANK('28.10.'!F78),ISBLANK('28.10.'!F79),ISBLANK('28.10.'!F80),ISBLANK('28.10.'!F81),ISBLANK('28.10.'!F82),ISBLANK('28.10.'!F83),ISBLANK('28.10.'!F84)),"Ergebnis offen",IF('28.10.'!F78=4,'28.10.'!H78,IF('28.10.'!F79=4,'28.10.'!H79,IF('28.10.'!F80=4,'28.10.'!H80,IF('28.10.'!F81=4,'28.10.'!H81,IF('28.10.'!F82=4,'28.10.'!H82,IF('28.10.'!F83=4,'28.10.'!H83,IF('28.10.'!F84=4,'28.10.'!H84,"---")))))))) -> Patrick | BA61: =IF(OR(ISBLANK('28.10.'!F78),ISBLANK('28.10.'!F79),ISBLANK('28.10.'!F80),ISBLANK('28.10.'!F81),ISBLANK('28.10.'!F82),ISBLANK('28.10.'!F83),ISBLANK('28.10.'!F84)),"Ergebnis offen",IF('28.10.'!F78=5,'28.10.'!H78,IF('28.10.'!F79=5,'28.10.'!H79,IF('28.10.'!F80=5,'28.10.'!H80,IF('28.10.'!F81=5,'28.10.'!H81,IF('28.10.'!F82=5,'28.10.'!H82,IF('28.10.'!F83=5,'28.10.'!H83,IF('28.10.'!F84=5,'28.10.'!H84,"---")))))))) -> --- | BK61: =IF(OR(ISBLANK('28.10.'!F78),ISBLANK('28.10.'!F79),ISBLANK('28.10.'!F80),ISBLANK('28.10.'!F81),ISBLANK('28.10.'!F82),ISBLANK('28.10.'!F83),ISBLANK('28.10.'!F84)),"Ergebnis offen",IF('28.10.'!F78=6,'28.10.'!H78,IF('28.10.'!F79=6,'28.10.'!H79,IF('28.10.'!F80=6,'28.10.'!H80,IF('28.10.'!F81=6,'28.10.'!H81,IF('28.10.'!F82=6,'28.10.'!H82,IF('28.10.'!F83=6,'28.10.'!H83,IF('28.10.'!F84=6,'28.10.'!H84,"---")))))))) -> --- | BU61: =IF(OR(ISBLANK('28.10.'!F78),ISBLANK('28.10.'!F79),ISBLANK('28.10.'!F80),ISBLANK('28.10.'!F81),ISBLANK('28.10.'!F82),ISBLANK('28.10.'!F83),ISBLANK('28.10.'!F84)),"Ergebnis offen",IF('28.10.'!F78=7,'28.10.'!H78,IF('28.10.'!F79=7,'28.10.'!H79,IF('28.10.'!F80=7,'28.10.'!H80,IF('28.10.'!F81=7,'28.10.'!H81,IF('28.10.'!F82=7,'28.10.'!H82,IF('28.10.'!F83=7,'28.10.'!H83,IF('28.10.'!F84=7,'28.10.'!H84,"---")))))))) -> ---
C62: 2020-11-04 | M62: =IF(OR(ISBLANK('4.11'!F78),ISBLANK('4.11'!F79),ISBLANK('4.11'!F80),ISBLANK('4.11'!F81),ISBLANK('4.11'!F82),ISBLANK('4.11'!F83),ISBLANK('4.11'!F84)),"Ergebnis offen",IF('4.11'!F78=1,'4.11'!H78,IF('4.11'!F79=1,'4.11'!H79,IF('4.11'!F80=1,'4.11'!H80,IF('4.11'!F81=1,'4.11'!H81,IF('4.11'!F82=1,'4.11'!H82,IF('4.11'!F83=1,'4.11'!H83,IF('4.11'!F84=1,'4.11'!H84,"---")))))))) -> Patrick | W62: =IF(OR(ISBLANK('4.11'!F78),ISBLANK('4.11'!F79),ISBLANK('4.11'!F80),ISBLANK('4.11'!F81),ISBLANK('4.11'!F82),ISBLANK('4.11'!F83),ISBLANK('4.11'!F84)),"Ergebnis offen",IF('4.11'!F78=2,'4.11'!H78,IF('4.11'!F79=2,'4.11'!H79,IF('4.11'!F80=2,'4.11'!H80,IF('4.11'!F81=2,'4.11'!H81,IF('4.11'!F82=2,'4.11'!H82,IF('4.11'!F83=2,'4.11'!H83,IF('4.11'!F84=2,'4.11'!H84,"---")))))))) -> Markus | AG62: =IF(OR(ISBLANK('4.11'!F78),ISBLANK('4.11'!F79),ISBLANK('4.11'!F80),ISBLANK('4.11'!F81),ISBLANK('4.11'!F82),ISBLANK('4.11'!F83),ISBLANK('4.11'!F84)),"Ergebnis offen",IF('4.11'!F78=3,'4.11'!H78,IF('4.11'!F79=3,'4.11'!H79,IF('4.11'!F80=3,'4.11'!H80,IF('4.11'!F81=3,'4.11'!H81,IF('4.11'!F82=3,'4.11'!H82,IF('4.11'!F83=3,'4.11'!H83,IF('4.11'!F84=3,'4.11'!H84,"---")))))))) -> Ratze | AQ62: =IF(OR(ISBLANK('4.11'!F78),ISBLANK('4.11'!F79),ISBLANK('4.11'!F80),ISBLANK('4.11'!F81),ISBLANK('4.11'!F82),ISBLANK('4.11'!F83),ISBLANK('4.11'!F84)),"Ergebnis offen",IF('4.11'!F78=4,'4.11'!H78,IF('4.11'!F79=4,'4.11'!H79,IF('4.11'!F80=4,'4.11'!H80,IF('4.11'!F81=4,'4.11'!H81,IF('4.11'!F82=4,'4.11'!H82,IF('4.11'!F83=4,'4.11'!H83,IF('4.11'!F84=4,'4.11'!H84,"---")))))))) -> Christoph | BA62: =IF(OR(ISBLANK('4.11'!F78),ISBLANK('4.11'!F79),ISBLANK('4.11'!F80),ISBLANK('4.11'!F81),ISBLANK('4.11'!F82),ISBLANK('4.11'!F83),ISBLANK('4.11'!F84)),"Ergebnis offen",IF('4.11'!F78=5,'4.11'!H78,IF('4.11'!F79=5,'4.11'!H79,IF('4.11'!F80=5,'4.11'!H80,IF('4.11'!F81=5,'4.11'!H81,IF('4.11'!F82=5,'4.11'!H82,IF('4.11'!F83=5,'4.11'!H83,IF('4.11'!F84=5,'4.11'!H84,"---")))))))) -> Schmiddi | BK62: =IF(OR(ISBLANK('4.11'!F78),ISBLANK('4.11'!F79),ISBLANK('4.11'!F80),ISBLANK('4.11'!F81),ISBLANK('4.11'!F82),ISBLANK('4.11'!F83),ISBLANK('4.11'!F84)),"Ergebnis offen",IF('4.11'!F78=6,'4.11'!H78,IF('4.11'!F79=6,'4.11'!H79,IF('4.11'!F80=6,'4.11'!H80,IF('4.11'!F81=6,'4.11'!H81,IF('4.11'!F82=6,'4.11'!H82,IF('4.11'!F83=6,'4.11'!H83,IF('4.11'!F84=6,'4.11'!H84,"---")))))))) -> Jule | BU62: =IF(OR(ISBLANK('4.11'!F78),ISBLANK('4.11'!F79),ISBLANK('4.11'!F80),ISBLANK('4.11'!F81),ISBLANK('4.11'!F82),ISBLANK('4.11'!F83),ISBLANK('4.11'!F84)),"Ergebnis offen",IF('4.11'!F78=7,'4.11'!H78,IF('4.11'!F79=7,'4.11'!H79,IF('4.11'!F80=7,'4.11'!H80,IF('4.11'!F81=7,'4.11'!H81,IF('4.11'!F82=7,'4.11'!H82,IF('4.11'!F83=7,'4.11'!H83,IF('4.11'!F84=7,'4.11'!H84,"---")))))))) -> ---
C63: 2020-11-26 | M63: =IF(OR(ISBLANK('26.11.'!F78),ISBLANK('26.11.'!F79),ISBLANK('26.11.'!F80),ISBLANK('26.11.'!F81),ISBLANK('26.11.'!F82),ISBLANK('26.11.'!F83),ISBLANK('26.11.'!F84)),"Ergebnis offen",IF('26.11.'!F78=1,'26.11.'!H78,IF('26.11.'!F79=1,'26.11.'!H79,IF('26.11.'!F80=1,'26.11.'!H80,IF('26.11.'!F81=1,'26.11.'!H81,IF('26.11.'!F82=1,'26.11.'!H82,IF('26.11.'!F83=1,'26.11.'!H83,IF('26.11.'!F84=1,'26.11.'!H84,"---")))))))) -> Patrick | W63: =IF(OR(ISBLANK('26.11.'!F78),ISBLANK('26.11.'!F79),ISBLANK('26.11.'!F80),ISBLANK('26.11.'!F81),ISBLANK('26.11.'!F82),ISBLANK('26.11.'!F83),ISBLANK('26.11.'!F84)),"Ergebnis offen",IF('26.11.'!F78=2,'26.11.'!H78,IF('26.11.'!F79=2,'26.11.'!H79,IF('26.11.'!F80=2,'26.11.'!H80,IF('26.11.'!F81=2,'26.11.'!H81,IF('26.11.'!F82=2,'26.11.'!H82,IF('26.11.'!F83=2,'26.11.'!H83,IF('26.11.'!F84=2,'26.11.'!H84,"---")))))))) -> Christoph | AG63: =IF(OR(ISBLANK('26.11.'!F78),ISBLANK('26.11.'!F79),ISBLANK('26.11.'!F80),ISBLANK('26.11.'!F81),ISBLANK('26.11.'!F82),ISBLANK('26.11.'!F83),ISBLANK('26.11.'!F84)),"Ergebnis offen",IF('26.11.'!F78=3,'26.11.'!H78,IF('26.11.'!F79=3,'26.11.'!H79,IF('26.11.'!F80=3,'26.11.'!H80,IF('26.11.'!F81=3,'26.11.'!H81,IF('26.11.'!F82=3,'26.11.'!H82,IF('26.11.'!F83=3,'26.11.'!H83,IF('26.11.'!F84=3,'26.11.'!H84,"---")))))))) -> Markus | AQ63: =IF(OR(ISBLANK('26.11.'!F78),ISBLANK('26.11.'!F79),ISBLANK('26.11.'!F80),ISBLANK('26.11.'!F81),ISBLANK('26.11.'!F82),ISBLANK('26.11.'!F83),ISBLANK('26.11.'!F84)),"Ergebnis offen",IF('26.11.'!F78=4,'26.11.'!H78,IF('26.11.'!F79=4,'26.11.'!H79,IF('26.11.'!F80=4,'26.11.'!H80,IF('26.11.'!F81=4,'26.11.'!H81,IF('26.11.'!F82=4,'26.11.'!H82,IF('26.11.'!F83=4,'26.11.'!H83,IF('26.11.'!F84=4,'26.11.'!H84,"---")))))))) -> Ratze | BA63: =IF(OR(ISBLANK('26.11.'!F78),ISBLANK('26.11.'!F79),ISBLANK('26.11.'!F80),ISBLANK('26.11.'!F81),ISBLANK('26.11.'!F82),ISBLANK('26.11.'!F83),ISBLANK('26.11.'!F84)),"Ergebnis offen",IF('26.11.'!F78=5,'26.11.'!H78,IF('26.11.'!F79=5,'26.11.'!H79,IF('26.11.'!F80=5,'26.11.'!H80,IF('26.11.'!F81=5,'26.11.'!H81,IF('26.11.'!F82=5,'26.11.'!H82,IF('26.11.'!F83=5,'26.11.'!H83,IF('26.11.'!F84=5,'26.11.'!H84,"---")))))))) -> --- | BK63: =IF(OR(ISBLANK('26.11.'!F78),ISBLANK('26.11.'!F79),ISBLANK('26.11.'!F80),ISBLANK('26.11.'!F81),ISBLANK('26.11.'!F82),ISBLANK('26.11.'!F83),ISBLANK('26.11.'!F84)),"Ergebnis offen",IF('26.11.'!F78=6,'26.11.'!H78,IF('26.11.'!F79=6,'26.11.'!H79,IF('26.11.'!F80=6,'26.11.'!H80,IF('26.11.'!F81=6,'26.11.'!H81,IF('26.11.'!F82=6,'26.11.'!H82,IF('26.11.'!F83=6,'26.11.'!H83,IF('26.11.'!F84=6,'26.11.'!H84,"---")))))))) -> --- | BU63: =IF(OR(ISBLANK('26.11.'!F78),ISBLANK('26.11.'!F79),ISBLANK('26.11.'!F80),ISBLANK('26.11.'!F81),ISBLANK('26.11.'!F82),ISBLANK('26.11.'!F83),ISBLANK('26.11.'!F84)),"Ergebnis offen",IF('26.11.'!F78=7,'26.11.'!H78,IF('26.11.'!F79=7,'26.11.'!H79,IF('26.11.'!F80=7,'26.11.'!H80,IF('26.11.'!F81=7,'26.11.'!H81,IF('26.11.'!F82=7,'26.11.'!H82,IF('26.11.'!F83=7,'26.11.'!H83,IF('26.11.'!F84=7,'26.11.'!H84,"---")))))))) -> ---
C64: 2020-12-09 | M64: =IF(OR(ISBLANK('9.12.'!F78),ISBLANK('9.12.'!F79),ISBLANK('9.12.'!F80),ISBLANK('9.12.'!F81),ISBLANK('9.12.'!F82),ISBLANK('9.12.'!F83),ISBLANK('9.12.'!F84)),"Ergebnis offen",IF('9.12.'!F78=1,'9.12.'!H78,IF('9.12.'!F79=1,'9.12.'!H79,IF('9.12.'!F80=1,'9.12.'!H80,IF('9.12.'!F81=1,'9.12.'!H81,IF('9.12.'!F82=1,'9.12.'!H82,IF('9.12.'!F83=1,'9.12.'!H83,IF('9.12.'!F84=1,'9.12.'!H84,"---")))))))) -> Christoph | W64: =IF(OR(ISBLANK('9.12.'!F78),ISBLANK('9.12.'!F79),ISBLANK('9.12.'!F80),ISBLANK('9.12.'!F81),ISBLANK('9.12.'!F82),ISBLANK('9.12.'!F83),ISBLANK('9.12.'!F84)),"Ergebnis offen",IF('9.12.'!F78=2,'9.12.'!H78,IF('9.12.'!F79=2,'9.12.'!H79,IF('9.12.'!F80=2,'9.12.'!H80,IF('9.12.'!F81=2,'9.12.'!H81,IF('9.12.'!F82=2,'9.12.'!H82,IF('9.12.'!F83=2,'9.12.'!H83,IF('9.12.'!F84=2,'9.12.'!H84,"---")))))))) -> Schmiddi | AG64: =IF(OR(ISBLANK('9.12.'!F78),ISBLANK('9.12.'!F79),ISBLANK('9.12.'!F80),ISBLANK('9.12.'!F81),ISBLANK('9.12.'!F82),ISBLANK('9.12.'!F83),ISBLANK('9.12.'!F84)),"Ergebnis offen",IF('9.12.'!F78=3,'9.12.'!H78,IF('9.12.'!F79=3,'9.12.'!H79,IF('9.12.'!F80=3,'9.12.'!H80,IF('9.12.'!F81=3,'9.12.'!H81,IF('9.12.'!F82=3,'9.12.'!H82,IF('9.12.'!F83=3,'9.12.'!H83,IF('9.12.'!F84=3,'9.12.'!H84,"---")))))))) -> Patrick | AQ64: =IF(OR(ISBLANK('9.12.'!F78),ISBLANK('9.12.'!F79),ISBLANK('9.12.'!F80),ISBLANK('9.12.'!F81),ISBLANK('9.12.'!F82),ISBLANK('9.12.'!F83),ISBLANK('9.12.'!F84)),"Ergebnis offen",IF('9.12.'!F78=4,'9.12.'!H78,IF('9.12.'!F79=4,'9.12.'!H79,IF('9.12.'!F80=4,'9.12.'!H80,IF('9.12.'!F81=4,'9.12.'!H81,IF('9.12.'!F82=4,'9.12.'!H82,IF('9.12.'!F83=4,'9.12.'!H83,IF('9.12.'!F84=4,'9.12.'!H84,"---")))))))) -> Jule | BA64: =IF(OR(ISBLANK('9.12.'!F78),ISBLANK('9.12.'!F79),ISBLANK('9.12.'!F80),ISBLANK('9.12.'!F81),ISBLANK('9.12.'!F82),ISBLANK('9.12.'!F83),ISBLANK('9.12.'!F84)),"Ergebnis offen",IF('9.12.'!F78=5,'9.12.'!H78,IF('9.12.'!F79=5,'9.12.'!H79,IF('9.12.'!F80=5,'9.12.'!H80,IF('9.12.'!F81=5,'9.12.'!H81,IF('9.12.'!F82=5,'9.12.'!H82,IF('9.12.'!F83=5,'9.12.'!H83,IF('9.12.'!F84=5,'9.12.'!H84,"---")))))))) -> Ratze | BK64: =IF(OR(ISBLANK('9.12.'!F78),ISBLANK('9.12.'!F79),ISBLANK('9.12.'!F80),ISBLANK('9.12.'!F81),ISBLANK('9.12.'!F82),ISBLANK('9.12.'!F83),ISBLANK('9.12.'!F84)),"Ergebnis offen",IF('9.12.'!F78=6,'9.12.'!H78,IF('9.12.'!F79=6,'9.12.'!H79,IF('9.12.'!F80=6,'9.12.'!H80,IF('9.12.'!F81=6,'9.12.'!H81,IF('9.12.'!F82=6,'9.12.'!H82,IF('9.12.'!F83=6,'9.12.'!H83,IF('9.12.'!F84=6,'9.12.'!H84,"---")))))))) -> --- | BU64: =IF(OR(ISBLANK('9.12.'!F78),ISBLANK('9.12.'!F79),ISBLANK('9.12.'!F80),ISBLANK('9.12.'!F81),ISBLANK('9.12.'!F82),ISBLANK('9.12.'!F83),ISBLANK('9.12.'!F84)),"Ergebnis offen",IF('9.12.'!F78=7,'9.12.'!H78,IF('9.12.'!F79=7,'9.12.'!H79,IF('9.12.'!F80=7,'9.12.'!H80,IF('9.12.'!F81=7,'9.12.'!H81,IF('9.12.'!F82=7,'9.12.'!H82,IF('9.12.'!F83=7,'9.12.'!H83,IF('9.12.'!F84=7,'9.12.'!H84,"---")))))))) -> ---
C65: 2020-12-16 | M65: =IF(OR(ISBLANK('16.12.'!F78),ISBLANK('16.12.'!F79),ISBLANK('16.12.'!F80),ISBLANK('16.12.'!F81),ISBLANK('16.12.'!F82),ISBLANK('16.12.'!F83),ISBLANK('16.12.'!F84)),"Ergebnis offen",IF('16.12.'!F78=1,'16.12.'!H78,IF('16.12.'!F79=1,'16.12.'!H79,IF('16.12.'!F80=1,'16.12.'!H80,IF('16.12.'!F81=1,'16.12.'!H81,IF('16.12.'!F82=1,'16.12.'!H82,IF('16.12.'!F83=1,'16.12.'!H83,IF('16.12.'!F84=1,'16.12.'!H84,"---")))))))) -> Markus | W65: =IF(OR(ISBLANK('16.12.'!F78),ISBLANK('16.12.'!F79),ISBLANK('16.12.'!F80),ISBLANK('16.12.'!F81),ISBLANK('16.12.'!F82),ISBLANK('16.12.'!F83),ISBLANK('16.12.'!F84)),"Ergebnis offen",IF('16.12.'!F78=2,'16.12.'!H78,IF('16.12.'!F79=2,'16.12.'!H79,IF('16.12.'!F80=2,'16.12.'!H80,IF('16.12.'!F81=2,'16.12.'!H81,IF('16.12.'!F82=2,'16.12.'!H82,IF('16.12.'!F83=2,'16.12.'!H83,IF('16.12.'!F84=2,'16.12.'!H84,"---")))))))) -> Patrick | AG65: =IF(OR(ISBLANK('16.12.'!F78),ISBLANK('16.12.'!F79),ISBLANK('16.12.'!F80),ISBLANK('16.12.'!F81),ISBLANK('16.12.'!F82),ISBLANK('16.12.'!F83),ISBLANK('16.12.'!F84)),"Ergebnis offen",IF('16.12.'!F78=3,'16.12.'!H78,IF('16.12.'!F79=3,'16.12.'!H79,IF('16.12.'!F80=3,'16.12.'!H80,IF('16.12.'!F81=3,'16.12.'!H81,IF('16.12.'!F82=3,'16.12.'!H82,IF('16.12.'!F83=3,'16.12.'!H83,IF('16.12.'!F84=3,'16.12.'!H84,"---")))))))) -> Christoph | AQ65: =IF(OR(ISBLANK('16.12.'!F78),ISBLANK('16.12.'!F79),ISBLANK('16.12.'!F80),ISBLANK('16.12.'!F81),ISBLANK('16.12.'!F82),ISBLANK('16.12.'!F83),ISBLANK('16.12.'!F84)),"Ergebnis offen",IF('16.12.'!F78=4,'16.12.'!H78,IF('16.12.'!F79=4,'16.12.'!H79,IF('16.12.'!F80=4,'16.12.'!H80,IF('16.12.'!F81=4,'16.12.'!H81,IF('16.12.'!F82=4,'16.12.'!H82,IF('16.12.'!F83=4,'16.12.'!H83,IF('16.12.'!F84=4,'16.12.'!H84,"---")))))))) -> Ratze | BA65: =IF(OR(ISBLANK('16.12.'!F78),ISBLANK('16.12.'!F79),ISBLANK('16.12.'!F80),ISBLANK('16.12.'!F81),ISBLANK('16.12.'!F82),ISBLANK('16.12.'!F83),ISBLANK('16.12.'!F84)),"Ergebnis offen",IF('16.12.'!F78=5,'16.12.'!H78,IF('16.12.'!F79=5,'16.12.'!H79,IF('16.12.'!F80=5,'16.12.'!H80,IF('16.12.'!F81=5,'16.12.'!H81,IF('16.12.'!F82=5,'16.12.'!H82,IF('16.12.'!F83=5,'16.12.'!H83,IF('16.12.'!F84=5,'16.12.'!H84,"---")))))))) -> Schmiddi | BK65: =IF(OR(ISBLANK('16.12.'!F78),ISBLANK('16.12.'!F79),ISBLANK('16.12.'!F80),ISBLANK('16.12.'!F81),ISBLANK('16.12.'!F82),ISBLANK('16.12.'!F83),ISBLANK('16.12.'!F84)),"Ergebnis offen",IF('16.12.'!F78=6,'16.12.'!H78,IF('16.12.'!F79=6,'16.12.'!H79,IF('16.12.'!F80=6,'16.12.'!H80,IF('16.12.'!F81=6,'16.12.'!H81,IF('16.12.'!F82=6,'16.12.'!H82,IF('16.12.'!F83=6,'16.12.'!H83,IF('16.12.'!F84=6,'16.12.'!H84,"---")))))))) -> --- | BU65: =IF(OR(ISBLANK('16.12.'!F78),ISBLANK('16.12.'!F79),ISBLANK('16.12.'!F80),ISBLANK('16.12.'!F81),ISBLANK('16.12.'!F82),ISBLANK('16.12.'!F83),ISBLANK('16.12.'!F84)),"Ergebnis offen",IF('16.12.'!F78=7,'16.12.'!H78,IF('16.12.'!F79=7,'16.12.'!H79,IF('16.12.'!F80=7,'16.12.'!H80,IF('16.12.'!F81=7,'16.12.'!H81,IF('16.12.'!F82=7,'16.12.'!H82,IF('16.12.'!F83=7,'16.12.'!H83,IF('16.12.'!F84=7,'16.12.'!H84,"---")))))))) -> ---
C66: 2020-12-23 | M66: =IF(OR(ISBLANK('23.12.'!F78),ISBLANK('23.12.'!F79),ISBLANK('23.12.'!F80),ISBLANK('23.12.'!F81),ISBLANK('23.12.'!F82),ISBLANK('23.12.'!F83),ISBLANK('23.12.'!F84)),"Ergebnis offen",IF('23.12.'!F78=1,'23.12.'!H78,IF('23.12.'!F79=1,'23.12.'!H79,IF('23.12.'!F80=1,'23.12.'!H80,IF('23.12.'!F81=1,'23.12.'!H81,IF('23.12.'!F82=1,'23.12.'!H82,IF('23.12.'!F83=1,'23.12.'!H83,IF('23.12.'!F84=1,'23.12.'!H84,"---")))))))) -> Ratze | W66: =IF(OR(ISBLANK('23.12.'!F78),ISBLANK('23.12.'!F79),ISBLANK('23.12.'!F80),ISBLANK('23.12.'!F81),ISBLANK('23.12.'!F82),ISBLANK('23.12.'!F83),ISBLANK('23.12.'!F84)),"Ergebnis offen",IF('23.12.'!F78=2,'23.12.'!H78,IF('23.12.'!F79=2,'23.12.'!H79,IF('23.12.'!F80=2,'23.12.'!H80,IF('23.12.'!F81=2,'23.12.'!H81,IF('23.12.'!F82=2,'23.12.'!H82,IF('23.12.'!F83=2,'23.12.'!H83,IF('23.12.'!F84=2,'23.12.'!H84,"---")))))))) -> Christoph | AG66: =IF(OR(ISBLANK('23.12.'!F78),ISBLANK('23.12.'!F79),ISBLANK('23.12.'!F80),ISBLANK('23.12.'!F81),ISBLANK('23.12.'!F82),ISBLANK('23.12.'!F83),ISBLANK('23.12.'!F84)),"Ergebnis offen",IF('23.12.'!F78=3,'23.12.'!H78,IF('23.12.'!F79=3,'23.12.'!H79,IF('23.12.'!F80=3,'23.12.'!H80,IF('23.12.'!F81=3,'23.12.'!H81,IF('23.12.'!F82=3,'23.12.'!H82,IF('23.12.'!F83=3,'23.12.'!H83,IF('23.12.'!F84=3,'23.12.'!H84,"---")))))))) -> Jule | AQ66: =IF(OR(ISBLANK('23.12.'!F78),ISBLANK('23.12.'!F79),ISBLANK('23.12.'!F80),ISBLANK('23.12.'!F81),ISBLANK('23.12.'!F82),ISBLANK('23.12.'!F83),ISBLANK('23.12.'!F84)),"Ergebnis offen",IF('23.12.'!F78=4,'23.12.'!H78,IF('23.12.'!F79=4,'23.12.'!H79,IF('23.12.'!F80=4,'23.12.'!H80,IF('23.12.'!F81=4,'23.12.'!H81,IF('23.12.'!F82=4,'23.12.'!H82,IF('23.12.'!F83=4,'23.12.'!H83,IF('23.12.'!F84=4,'23.12.'!H84,"---")))))))) -> Patrick | BA66: =IF(OR(ISBLANK('23.12.'!F78),ISBLANK('23.12.'!F79),ISBLANK('23.12.'!F80),ISBLANK('23.12.'!F81),ISBLANK('23.12.'!F82),ISBLANK('23.12.'!F83),ISBLANK('23.12.'!F84)),"Ergebnis offen",IF('23.12.'!F78=5,'23.12.'!H78,IF('23.12.'!F79=5,'23.12.'!H79,IF('23.12.'!F80=5,'23.12.'!H80,IF('23.12.'!F81=5,'23.12.'!H81,IF('23.12.'!F82=5,'23.12.'!H82,IF('23.12.'!F83=5,'23.12.'!H83,IF('23.12.'!F84=5,'23.12.'!H84,"---")))))))) -> Schmiddi | BK66: =IF(OR(ISBLANK('23.12.'!F78),ISBLANK('23.12.'!F79),ISBLANK('23.12.'!F80),ISBLANK('23.12.'!F81),ISBLANK('23.12.'!F82),ISBLANK('23.12.'!F83),ISBLANK('23.12.'!F84)),"Ergebnis offen",IF('23.12.'!F78=6,'23.12.'!H78,IF('23.12.'!F79=6,'23.12.'!H79,IF('23.12.'!F80=6,'23.12.'!H80,IF('23.12.'!F81=6,'23.12.'!H81,IF('23.12.'!F82=6,'23.12.'!H82,IF('23.12.'!F83=6,'23.12.'!H83,IF('23.12.'!F84=6,'23.12.'!H84,"---")))))))) -> Markus | BU66: =IF(OR(ISBLANK('23.12.'!F78),ISBLANK('23.12.'!F79),ISBLANK('23.12.'!F80),ISBLANK('23.12.'!F81),ISBLANK('23.12.'!F82),ISBLANK('23.12.'!F83),ISBLANK('23.12.'!F84)),"Ergebnis offen",IF('23.12.'!F78=7,'23.12.'!H78,IF('23.12.'!F79=7,'23.12.'!H79,IF('23.12.'!F80=7,'23.12.'!H80,IF('23.12.'!F81=7,'23.12.'!H81,IF('23.12.'!F82=7,'23.12.'!H82,IF('23.12.'!F83=7,'23.12.'!H83,IF('23.12.'!F84=7,'23.12.'!H84,"---")))))))) -> Basti
C67: 2021-01-06 | M67: =IF(OR(ISBLANK('6.1.'!F78),ISBLANK('6.1.'!F79),ISBLANK('6.1.'!F80),ISBLANK('6.1.'!F81),ISBLANK('6.1.'!F82),ISBLANK('6.1.'!F83),ISBLANK('6.1.'!F84)),"Ergebnis offen",IF('6.1.'!F78=1,'6.1.'!H78,IF('6.1.'!F79=1,'6.1.'!H79,IF('6.1.'!F80=1,'6.1.'!H80,IF('6.1.'!F81=1,'6.1.'!H81,IF('6.1.'!F82=1,'6.1.'!H82,IF('6.1.'!F83=1,'6.1.'!H83,IF('6.1.'!F84=1,'6.1.'!H84,"---")))))))) -> Ratze | W67: =IF(OR(ISBLANK('6.1.'!F78),ISBLANK('6.1.'!F79),ISBLANK('6.1.'!F80),ISBLANK('6.1.'!F81),ISBLANK('6.1.'!F82),ISBLANK('6.1.'!F83),ISBLANK('6.1.'!F84)),"Ergebnis offen",IF('6.1.'!F78=2,'6.1.'!H78,IF('6.1.'!F79=2,'6.1.'!H79,IF('6.1.'!F80=2,'6.1.'!H80,IF('6.1.'!F81=2,'6.1.'!H81,IF('6.1.'!F82=2,'6.1.'!H82,IF('6.1.'!F83=2,'6.1.'!H83,IF('6.1.'!F84=2,'6.1.'!H84,"---")))))))) -> Christoph | AG67: =IF(OR(ISBLANK('6.1.'!F78),ISBLANK('6.1.'!F79),ISBLANK('6.1.'!F80),ISBLANK('6.1.'!F81),ISBLANK('6.1.'!F82),ISBLANK('6.1.'!F83),ISBLANK('6.1.'!F84)),"Ergebnis offen",IF('6.1.'!F78=3,'6.1.'!H78,IF('6.1.'!F79=3,'6.1.'!H79,IF('6.1.'!F80=3,'6.1.'!H80,IF('6.1.'!F81=3,'6.1.'!H81,IF('6.1.'!F82=3,'6.1.'!H82,IF('6.1.'!F83=3,'6.1.'!H83,IF('6.1.'!F84=3,'6.1.'!H84,"---")))))))) -> Patrick | AQ67: =IF(OR(ISBLANK('6.1.'!F78),ISBLANK('6.1.'!F79),ISBLANK('6.1.'!F80),ISBLANK('6.1.'!F81),ISBLANK('6.1.'!F82),ISBLANK('6.1.'!F83),ISBLANK('6.1.'!F84)),"Ergebnis offen",IF('6.1.'!F78=4,'6.1.'!H78,IF('6.1.'!F79=4,'6.1.'!H79,IF('6.1.'!F80=4,'6.1.'!H80,IF('6.1.'!F81=4,'6.1.'!H81,IF('6.1.'!F82=4,'6.1.'!H82,IF('6.1.'!F83=4,'6.1.'!H83,IF('6.1.'!F84=4,'6.1.'!H84,"---")))))))) -> Schmiddi | BA67: =IF(OR(ISBLANK('6.1.'!F78),ISBLANK('6.1.'!F79),ISBLANK('6.1.'!F80),ISBLANK('6.1.'!F81),ISBLANK('6.1.'!F82),ISBLANK('6.1.'!F83),ISBLANK('6.1.'!F84)),"Ergebnis offen",IF('6.1.'!F78=5,'6.1.'!H78,IF('6.1.'!F79=5,'6.1.'!H79,IF('6.1.'!F80=5,'6.1.'!H80,IF('6.1.'!F81=5,'6.1.'!H81,IF('6.1.'!F82=5,'6.1.'!H82,IF('6.1.'!F83=5,'6.1.'!H83,IF('6.1.'!F84=5,'6.1.'!H84,"---")))))))) -> Markus | BK67: =IF(OR(ISBLANK('6.1.'!F78),ISBLANK('6.1.'!F79),ISBLANK('6.1.'!F80),ISBLANK('6.1.'!F81),ISBLANK('6.1.'!F82),ISBLANK('6.1.'!F83),ISBLANK('6.1.'!F84)),"Ergebnis offen",IF('6.1.'!F78=6,'6.1.'!H78,IF('6.1.'!F79=6,'6.1.'!H79,IF('6.1.'!F80=6,'6.1.'!H80,IF('6.1.'!F81=6,'6.1.'!H81,IF('6.1.'!F82=6,'6.1.'!H82,IF('6.1.'!F83=6,'6.1.'!H83,IF('6.1.'!F84=6,'6.1.'!H84,"---")))))))) -> --- | BU67: =IF(OR(ISBLANK('6.1.'!F78),ISBLANK('6.1.'!F79),ISBLANK('6.1.'!F80),ISBLANK('6.1.'!F81),ISBLANK('6.1.'!F82),ISBLANK('6.1.'!F83),ISBLANK('6.1.'!F84)),"Ergebnis offen",IF('6.1.'!F78=7,'6.1.'!H78,IF('6.1.'!F79=7,'6.1.'!H79,IF('6.1.'!F80=7,'6.1.'!H80,IF('6.1.'!F81=7,'6.1.'!H81,IF('6.1.'!F82=7,'6.1.'!H82,IF('6.1.'!F83=7,'6.1.'!H83,IF('6.1.'!F84=7,'6.1.'!H84,"---")))))))) -> ---
C68: 2021-01-13 | M68: =IF(OR(ISBLANK('13.1'!F78),ISBLANK('13.1'!F79),ISBLANK('13.1'!F80),ISBLANK('13.1'!F81),ISBLANK('13.1'!F82),ISBLANK('13.1'!F83),ISBLANK('13.1'!F84)),"Ergebnis offen",IF('13.1'!F78=1,'13.1'!H78,IF('13.1'!F79=1,'13.1'!H79,IF('13.1'!F80=1,'13.1'!H80,IF('13.1'!F81=1,'13.1'!H81,IF('13.1'!F82=1,'13.1'!H82,IF('13.1'!F83=1,'13.1'!H83,IF('13.1'!F84=1,'13.1'!H84,"---")))))))) -> Markus | W68: =IF(OR(ISBLANK('13.1'!F78),ISBLANK('13.1'!F79),ISBLANK('13.1'!F80),ISBLANK('13.1'!F81),ISBLANK('13.1'!F82),ISBLANK('13.1'!F83),ISBLANK('13.1'!F84)),"Ergebnis offen",IF('13.1'!F78=2,'13.1'!H78,IF('13.1'!F79=2,'13.1'!H79,IF('13.1'!F80=2,'13.1'!H80,IF('13.1'!F81=2,'13.1'!H81,IF('13.1'!F82=2,'13.1'!H82,IF('13.1'!F83=2,'13.1'!H83,IF('13.1'!F84=2,'13.1'!H84,"---")))))))) -> Christoph | AG68: =IF(OR(ISBLANK('13.1'!F78),ISBLANK('13.1'!F79),ISBLANK('13.1'!F80),ISBLANK('13.1'!F81),ISBLANK('13.1'!F82),ISBLANK('13.1'!F83),ISBLANK('13.1'!F84)),"Ergebnis offen",IF('13.1'!F78=3,'13.1'!H78,IF('13.1'!F79=3,'13.1'!H79,IF('13.1'!F80=3,'13.1'!H80,IF('13.1'!F81=3,'13.1'!H81,IF('13.1'!F82=3,'13.1'!H82,IF('13.1'!F83=3,'13.1'!H83,IF('13.1'!F84=3,'13.1'!H84,"---")))))))) -> Jule | AQ68: =IF(OR(ISBLANK('13.1'!F78),ISBLANK('13.1'!F79),ISBLANK('13.1'!F80),ISBLANK('13.1'!F81),ISBLANK('13.1'!F82),ISBLANK('13.1'!F83),ISBLANK('13.1'!F84)),"Ergebnis offen",IF('13.1'!F78=4,'13.1'!H78,IF('13.1'!F79=4,'13.1'!H79,IF('13.1'!F80=4,'13.1'!H80,IF('13.1'!F81=4,'13.1'!H81,IF('13.1'!F82=4,'13.1'!H82,IF('13.1'!F83=4,'13.1'!H83,IF('13.1'!F84=4,'13.1'!H84,"---")))))))) -> Ratze | BA68: =IF(OR(ISBLANK('13.1'!F78),ISBLANK('13.1'!F79),ISBLANK('13.1'!F80),ISBLANK('13.1'!F81),ISBLANK('13.1'!F82),ISBLANK('13.1'!F83),ISBLANK('13.1'!F84)),"Ergebnis offen",IF('13.1'!F78=5,'13.1'!H78,IF('13.1'!F79=5,'13.1'!H79,IF('13.1'!F80=5,'13.1'!H80,IF('13.1'!F81=5,'13.1'!H81,IF('13.1'!F82=5,'13.1'!H82,IF('13.1'!F83=5,'13.1'!H83,IF('13.1'!F84=5,'13.1'!H84,"---")))))))) -> Patrick | BK68: =IF(OR(ISBLANK('13.1'!F78),ISBLANK('13.1'!F79),ISBLANK('13.1'!F80),ISBLANK('13.1'!F81),ISBLANK('13.1'!F82),ISBLANK('13.1'!F83),ISBLANK('13.1'!F84)),"Ergebnis offen",IF('13.1'!F78=6,'13.1'!H78,IF('13.1'!F79=6,'13.1'!H79,IF('13.1'!F80=6,'13.1'!H80,IF('13.1'!F81=6,'13.1'!H81,IF('13.1'!F82=6,'13.1'!H82,IF('13.1'!F83=6,'13.1'!H83,IF('13.1'!F84=6,'13.1'!H84,"---")))))))) -> --- | BU68: =IF(OR(ISBLANK('13.1'!F78),ISBLANK('13.1'!F79),ISBLANK('13.1'!F80),ISBLANK('13.1'!F81),ISBLANK('13.1'!F82),ISBLANK('13.1'!F83),ISBLANK('13.1'!F84)),"Ergebnis offen",IF('13.1'!F78=7,'13.1'!H78,IF('13.1'!F79=7,'13.1'!H79,IF('13.1'!F80=7,'13.1'!H80,IF('13.1'!F81=7,'13.1'!H81,IF('13.1'!F82=7,'13.1'!H82,IF('13.1'!F83=7,'13.1'!H83,IF('13.1'!F84=7,'13.1'!H84,"---")))))))) -> ---
C69: 2021-01-20 | M69: =IF(OR(ISBLANK('20.1.'!F78),ISBLANK('20.1.'!F79),ISBLANK('20.1.'!F80),ISBLANK('20.1.'!F81),ISBLANK('20.1.'!F82),ISBLANK('20.1.'!F83),ISBLANK('20.1.'!F84)),"Ergebnis offen",IF('20.1.'!F78=1,'20.1.'!H78,IF('20.1.'!F79=1,'20.1.'!H79,IF('20.1.'!F80=1,'20.1.'!H80,IF('20.1.'!F81=1,'20.1.'!H81,IF('20.1.'!F82=1,'20.1.'!H82,IF('20.1.'!F83=1,'20.1.'!H83,IF('20.1.'!F84=1,'20.1.'!H84,"---")))))))) -> Markus | W69: =IF(OR(ISBLANK('20.1.'!F78),ISBLANK('20.1.'!F79),ISBLANK('20.1.'!F80),ISBLANK('20.1.'!F81),ISBLANK('20.1.'!F82),ISBLANK('20.1.'!F83),ISBLANK('20.1.'!F84)),"Ergebnis offen",IF('20.1.'!F78=2,'20.1.'!H78,IF('20.1.'!F79=2,'20.1.'!H79,IF('20.1.'!F80=2,'20.1.'!H80,IF('20.1.'!F81=2,'20.1.'!H81,IF('20.1.'!F82=2,'20.1.'!H82,IF('20.1.'!F83=2,'20.1.'!H83,IF('20.1.'!F84=2,'20.1.'!H84,"---")))))))) -> Patrick | AG69: =IF(OR(ISBLANK('20.1.'!F78),ISBLANK('20.1.'!F79),ISBLANK('20.1.'!F80),ISBLANK('20.1.'!F81),ISBLANK('20.1.'!F82),ISBLANK('20.1.'!F83),ISBLANK('20.1.'!F84)),"Ergebnis offen",IF('20.1.'!F78=3,'20.1.'!H78,IF('20.1.'!F79=3,'20.1.'!H79,IF('20.1.'!F80=3,'20.1.'!H80,IF('20.1.'!F81=3,'20.1.'!H81,IF('20.1.'!F82=3,'20.1.'!H82,IF('20.1.'!F83=3,'20.1.'!H83,IF('20.1.'!F84=3,'20.1.'!H84,"---")))))))) -> Ratze | AQ69: =IF(OR(ISBLANK('20.1.'!F78),ISBLANK('20.1.'!F79),ISBLANK('20.1.'!F80),ISBLANK('20.1.'!F81),ISBLANK('20.1.'!F82),ISBLANK('20.1.'!F83),ISBLANK('20.1.'!F84)),"Ergebnis offen",IF('20.1.'!F78=4,'20.1.'!H78,IF('20.1.'!F79=4,'20.1.'!H79,IF('20.1.'!F80=4,'20.1.'!H80,IF('20.1.'!F81=4,'20.1.'!H81,IF('20.1.'!F82=4,'20.1.'!H82,IF('20.1.'!F83=4,'20.1.'!H83,IF('20.1.'!F84=4,'20.1.'!H84,"---")))))))) -> Jule | BA69: =IF(OR(ISBLANK('20.1.'!F78),ISBLANK('20.1.'!F79),ISBLANK('20.1.'!F80),ISBLANK('20.1.'!F81),ISBLANK('20.1.'!F82),ISBLANK('20.1.'!F83),ISBLANK('20.1.'!F84)),"Ergebnis offen",IF('20.1.'!F78=5,'20.1.'!H78,IF('20.1.'!F79=5,'20.1.'!H79,IF('20.1.'!F80=5,'20.1.'!H80,IF('20.1.'!F81=5,'20.1.'!H81,IF('20.1.'!F82=5,'20.1.'!H82,IF('20.1.'!F83=5,'20.1.'!H83,IF('20.1.'!F84=5,'20.1.'!H84,"---")))))))) -> Christoph | BK69: =IF(OR(ISBLANK('20.1.'!F78),ISBLANK('20.1.'!F79),ISBLANK('20.1.'!F80),ISBLANK('20.1.'!F81),ISBLANK('20.1.'!F82),ISBLANK('20.1.'!F83),ISBLANK('20.1.'!F84)),"Ergebnis offen",IF('20.1.'!F78=6,'20.1.'!H78,IF('20.1.'!F79=6,'20.1.'!H79,IF('20.1.'!F80=6,'20.1.'!H80,IF('20.1.'!F81=6,'20.1.'!H81,IF('20.1.'!F82=6,'20.1.'!H82,IF('20.1.'!F83=6,'20.1.'!H83,IF('20.1.'!F84=6,'20.1.'!H84,"---")))))))) -> Schmiddi | BU69: =IF(OR(ISBLANK('20.1.'!F78),ISBLANK('20.1.'!F79),ISBLANK('20.1.'!F80),ISBLANK('20.1.'!F81),ISBLANK('20.1.'!F82),ISBLANK('20.1.'!F83),ISBLANK('20.1.'!F84)),"Ergebnis offen",IF('20.1.'!F78=7,'20.1.'!H78,IF('20.1.'!F79=7,'20.1.'!H79,IF('20.1.'!F80=7,'20.1.'!H80,IF('20.1.'!F81=7,'20.1.'!H81,IF('20.1.'!F82=7,'20.1.'!H82,IF('20.1.'!F83=7,'20.1.'!H83,IF('20.1.'!F84=7,'20.1.'!H84,"---")))))))) -> ---
C70: 2021-01-27 | M70: =IF(OR(ISBLANK('27.1.'!F78),ISBLANK('27.1.'!F79),ISBLANK('27.1.'!F80),ISBLANK('27.1.'!F81),ISBLANK('27.1.'!F82),ISBLANK('27.1.'!F83),ISBLANK('27.1.'!F84)),"Ergebnis offen",IF('27.1.'!F78=1,'27.1.'!H78,IF('27.1.'!F79=1,'27.1.'!H79,IF('27.1.'!F80=1,'27.1.'!H80,IF('27.1.'!F81=1,'27.1.'!H81,IF('27.1.'!F82=1,'27.1.'!H82,IF('27.1.'!F83=1,'27.1.'!H83,IF('27.1.'!F84=1,'27.1.'!H84,"---")))))))) -> Ratze | W70: =IF(OR(ISBLANK('27.1.'!F78),ISBLANK('27.1.'!F79),ISBLANK('27.1.'!F80),ISBLANK('27.1.'!F81),ISBLANK('27.1.'!F82),ISBLANK('27.1.'!F83),ISBLANK('27.1.'!F84)),"Ergebnis offen",IF('27.1.'!F78=2,'27.1.'!H78,IF('27.1.'!F79=2,'27.1.'!H79,IF('27.1.'!F80=2,'27.1.'!H80,IF('27.1.'!F81=2,'27.1.'!H81,IF('27.1.'!F82=2,'27.1.'!H82,IF('27.1.'!F83=2,'27.1.'!H83,IF('27.1.'!F84=2,'27.1.'!H84,"---")))))))) -> Markus | AG70: =IF(OR(ISBLANK('27.1.'!F78),ISBLANK('27.1.'!F79),ISBLANK('27.1.'!F80),ISBLANK('27.1.'!F81),ISBLANK('27.1.'!F82),ISBLANK('27.1.'!F83),ISBLANK('27.1.'!F84)),"Ergebnis offen",IF('27.1.'!F78=3,'27.1.'!H78,IF('27.1.'!F79=3,'27.1.'!H79,IF('27.1.'!F80=3,'27.1.'!H80,IF('27.1.'!F81=3,'27.1.'!H81,IF('27.1.'!F82=3,'27.1.'!H82,IF('27.1.'!F83=3,'27.1.'!H83,IF('27.1.'!F84=3,'27.1.'!H84,"---")))))))) -> Patrick | AQ70: =IF(OR(ISBLANK('27.1.'!F78),ISBLANK('27.1.'!F79),ISBLANK('27.1.'!F80),ISBLANK('27.1.'!F81),ISBLANK('27.1.'!F82),ISBLANK('27.1.'!F83),ISBLANK('27.1.'!F84)),"Ergebnis offen",IF('27.1.'!F78=4,'27.1.'!H78,IF('27.1.'!F79=4,'27.1.'!H79,IF('27.1.'!F80=4,'27.1.'!H80,IF('27.1.'!F81=4,'27.1.'!H81,IF('27.1.'!F82=4,'27.1.'!H82,IF('27.1.'!F83=4,'27.1.'!H83,IF('27.1.'!F84=4,'27.1.'!H84,"---")))))))) -> Christoph | BA70: =IF(OR(ISBLANK('27.1.'!F78),ISBLANK('27.1.'!F79),ISBLANK('27.1.'!F80),ISBLANK('27.1.'!F81),ISBLANK('27.1.'!F82),ISBLANK('27.1.'!F83),ISBLANK('27.1.'!F84)),"Ergebnis offen",IF('27.1.'!F78=5,'27.1.'!H78,IF('27.1.'!F79=5,'27.1.'!H79,IF('27.1.'!F80=5,'27.1.'!H80,IF('27.1.'!F81=5,'27.1.'!H81,IF('27.1.'!F82=5,'27.1.'!H82,IF('27.1.'!F83=5,'27.1.'!H83,IF('27.1.'!F84=5,'27.1.'!H84,"---")))))))) -> --- | BK70: =IF(OR(ISBLANK('27.1.'!F78),ISBLANK('27.1.'!F79),ISBLANK('27.1.'!F80),ISBLANK('27.1.'!F81),ISBLANK('27.1.'!F82),ISBLANK('27.1.'!F83),ISBLANK('27.1.'!F84)),"Ergebnis offen",IF('27.1.'!F78=6,'27.1.'!H78,IF('27.1.'!F79=6,'27.1.'!H79,IF('27.1.'!F80=6,'27.1.'!H80,IF('27.1.'!F81=6,'27.1.'!H81,IF('27.1.'!F82=6,'27.1.'!H82,IF('27.1.'!F83=6,'27.1.'!H83,IF('27.1.'!F84=6,'27.1.'!H84,"---")))))))) -> --- | BU70: =IF(OR(ISBLANK('27.1.'!F78),ISBLANK('27.1.'!F79),ISBLANK('27.1.'!F80),ISBLANK('27.1.'!F81),ISBLANK('27.1.'!F82),ISBLANK('27.1.'!F83),ISBLANK('27.1.'!F84)),"Ergebnis offen",IF('27.1.'!F78=7,'27.1.'!H78,IF('27.1.'!F79=7,'27.1.'!H79,IF('27.1.'!F80=7,'27.1.'!H80,IF('27.1.'!F81=7,'27.1.'!H81,IF('27.1.'!F82=7,'27.1.'!H82,IF('27.1.'!F83=7,'27.1.'!H83,IF('27.1.'!F84=7,'27.1.'!H84,"---")))))))) -> ---
C71: 2021-02-07 | M71: =IF(OR(ISBLANK('7.2.'!F78),ISBLANK('7.2.'!F79),ISBLANK('7.2.'!F80),ISBLANK('7.2.'!F81),ISBLANK('7.2.'!F82),ISBLANK('7.2.'!F83),ISBLANK('7.2.'!F84)),"Ergebnis offen",IF('7.2.'!F78=1,'7.2.'!H78,IF('7.2.'!F79=1,'7.2.'!H79,IF('7.2.'!F80=1,'7.2.'!H80,IF('7.2.'!F81=1,'7.2.'!H81,IF('7.2.'!F82=1,'7.2.'!H82,IF('7.2.'!F83=1,'7.2.'!H83,IF('7.2.'!F84=1,'7.2.'!H84,"---")))))))) -> Patrick | W71: =IF(OR(ISBLANK('7.2.'!F78),ISBLANK('7.2.'!F79),ISBLANK('7.2.'!F80),ISBLANK('7.2.'!F81),ISBLANK('7.2.'!F82),ISBLANK('7.2.'!F83),ISBLANK('7.2.'!F84)),"Ergebnis offen",IF('7.2.'!F78=2,'7.2.'!H78,IF('7.2.'!F79=2,'7.2.'!H79,IF('7.2.'!F80=2,'7.2.'!H80,IF('7.2.'!F81=2,'7.2.'!H81,IF('7.2.'!F82=2,'7.2.'!H82,IF('7.2.'!F83=2,'7.2.'!H83,IF('7.2.'!F84=2,'7.2.'!H84,"---")))))))) -> Markus | AG71: =IF(OR(ISBLANK('7.2.'!F78),ISBLANK('7.2.'!F79),ISBLANK('7.2.'!F80),ISBLANK('7.2.'!F81),ISBLANK('7.2.'!F82),ISBLANK('7.2.'!F83),ISBLANK('7.2.'!F84)),"Ergebnis offen",IF('7.2.'!F78=3,'7.2.'!H78,IF('7.2.'!F79=3,'7.2.'!H79,IF('7.2.'!F80=3,'7.2.'!H80,IF('7.2.'!F81=3,'7.2.'!H81,IF('7.2.'!F82=3,'7.2.'!H82,IF('7.2.'!F83=3,'7.2.'!H83,IF('7.2.'!F84=3,'7.2.'!H84,"---")))))))) -> Ratze | AQ71: =IF(OR(ISBLANK('7.2.'!F78),ISBLANK('7.2.'!F79),ISBLANK('7.2.'!F80),ISBLANK('7.2.'!F81),ISBLANK('7.2.'!F82),ISBLANK('7.2.'!F83),ISBLANK('7.2.'!F84)),"Ergebnis offen",IF('7.2.'!F78=4,'7.2.'!H78,IF('7.2.'!F79=4,'7.2.'!H79,IF('7.2.'!F80=4,'7.2.'!H80,IF('7.2.'!F81=4,'7.2.'!H81,IF('7.2.'!F82=4,'7.2.'!H82,IF('7.2.'!F83=4,'7.2.'!H83,IF('7.2.'!F84=4,'7.2.'!H84,"---")))))))) -> Jule | BA71: =IF(OR(ISBLANK('7.2.'!F78),ISBLANK('7.2.'!F79),ISBLANK('7.2.'!F80),ISBLANK('7.2.'!F81),ISBLANK('7.2.'!F82),ISBLANK('7.2.'!F83),ISBLANK('7.2.'!F84)),"Ergebnis offen",IF('7.2.'!F78=5,'7.2.'!H78,IF('7.2.'!F79=5,'7.2.'!H79,IF('7.2.'!F80=5,'7.2.'!H80,IF('7.2.'!F81=5,'7.2.'!H81,IF('7.2.'!F82=5,'7.2.'!H82,IF('7.2.'!F83=5,'7.2.'!H83,IF('7.2.'!F84=5,'7.2.'!H84,"---")))))))) -> Christoph | BK71: =IF(OR(ISBLANK('7.2.'!F78),ISBLANK('7.2.'!F79),ISBLANK('7.2.'!F80),ISBLANK('7.2.'!F81),ISBLANK('7.2.'!F82),ISBLANK('7.2.'!F83),ISBLANK('7.2.'!F84)),"Ergebnis offen",IF('7.2.'!F78=6,'7.2.'!H78,IF('7.2.'!F79=6,'7.2.'!H79,IF('7.2.'!F80=6,'7.2.'!H80,IF('7.2.'!F81=6,'7.2.'!H81,IF('7.2.'!F82=6,'7.2.'!H82,IF('7.2.'!F83=6,'7.2.'!H83,IF('7.2.'!F84=6,'7.2.'!H84,"---")))))))) -> Schmiddi | BU71: =IF(OR(ISBLANK('7.2.'!F78),ISBLANK('7.2.'!F79),ISBLANK('7.2.'!F80),ISBLANK('7.2.'!F81),ISBLANK('7.2.'!F82),ISBLANK('7.2.'!F83),ISBLANK('7.2.'!F84)),"Ergebnis offen",IF('7.2.'!F78=7,'7.2.'!H78,IF('7.2.'!F79=7,'7.2.'!H79,IF('7.2.'!F80=7,'7.2.'!H80,IF('7.2.'!F81=7,'7.2.'!H81,IF('7.2.'!F82=7,'7.2.'!H82,IF('7.2.'!F83=7,'7.2.'!H83,IF('7.2.'!F84=7,'7.2.'!H84,"---")))))))) -> ---
C72: 2021-03-03 | M72: =IF(OR(ISBLANK('3.3.'!F78),ISBLANK('3.3.'!F79),ISBLANK('3.3.'!F80),ISBLANK('3.3.'!F81),ISBLANK('3.3.'!F82),ISBLANK('3.3.'!F83),ISBLANK('3.3.'!F84)),"Ergebnis offen",IF('3.3.'!F78=1,'3.3.'!H78,IF('3.3.'!F79=1,'3.3.'!H79,IF('3.3.'!F80=1,'3.3.'!H80,IF('3.3.'!F81=1,'3.3.'!H81,IF('3.3.'!F82=1,'3.3.'!H82,IF('3.3.'!F83=1,'3.3.'!H83,IF('3.3.'!F84=1,'3.3.'!H84,"---")))))))) -> Ratze | W72: =IF(OR(ISBLANK('3.3.'!F78),ISBLANK('3.3.'!F79),ISBLANK('3.3.'!F80),ISBLANK('3.3.'!F81),ISBLANK('3.3.'!F82),ISBLANK('3.3.'!F83),ISBLANK('3.3.'!F84)),"Ergebnis offen",IF('3.3.'!F78=2,'3.3.'!H78,IF('3.3.'!F79=2,'3.3.'!H79,IF('3.3.'!F80=2,'3.3.'!H80,IF('3.3.'!F81=2,'3.3.'!H81,IF('3.3.'!F82=2,'3.3.'!H82,IF('3.3.'!F83=2,'3.3.'!H83,IF('3.3.'!F84=2,'3.3.'!H84,"---")))))))) -> Patrick | AG72: =IF(OR(ISBLANK('3.3.'!F78),ISBLANK('3.3.'!F79),ISBLANK('3.3.'!F80),ISBLANK('3.3.'!F81),ISBLANK('3.3.'!F82),ISBLANK('3.3.'!F83),ISBLANK('3.3.'!F84)),"Ergebnis offen",IF('3.3.'!F78=3,'3.3.'!H78,IF('3.3.'!F79=3,'3.3.'!H79,IF('3.3.'!F80=3,'3.3.'!H80,IF('3.3.'!F81=3,'3.3.'!H81,IF('3.3.'!F82=3,'3.3.'!H82,IF('3.3.'!F83=3,'3.3.'!H83,IF('3.3.'!F84=3,'3.3.'!H84,"---")))))))) -> Markus | AQ72: =IF(OR(ISBLANK('3.3.'!F78),ISBLANK('3.3.'!F79),ISBLANK('3.3.'!F80),ISBLANK('3.3.'!F81),ISBLANK('3.3.'!F82),ISBLANK('3.3.'!F83),ISBLANK('3.3.'!F84)),"Ergebnis offen",IF('3.3.'!F78=4,'3.3.'!H78,IF('3.3.'!F79=4,'3.3.'!H79,IF('3.3.'!F80=4,'3.3.'!H80,IF('3.3.'!F81=4,'3.3.'!H81,IF('3.3.'!F82=4,'3.3.'!H82,IF('3.3.'!F83=4,'3.3.'!H83,IF('3.3.'!F84=4,'3.3.'!H84,"---")))))))) -> Jule | BA72: =IF(OR(ISBLANK('3.3.'!F78),ISBLANK('3.3.'!F79),ISBLANK('3.3.'!F80),ISBLANK('3.3.'!F81),ISBLANK('3.3.'!F82),ISBLANK('3.3.'!F83),ISBLANK('3.3.'!F84)),"Ergebnis offen",IF('3.3.'!F78=5,'3.3.'!H78,IF('3.3.'!F79=5,'3.3.'!H79,IF('3.3.'!F80=5,'3.3.'!H80,IF('3.3.'!F81=5,'3.3.'!H81,IF('3.3.'!F82=5,'3.3.'!H82,IF('3.3.'!F83=5,'3.3.'!H83,IF('3.3.'!F84=5,'3.3.'!H84,"---")))))))) -> Schmiddi | BK72: =IF(OR(ISBLANK('3.3.'!F78),ISBLANK('3.3.'!F79),ISBLANK('3.3.'!F80),ISBLANK('3.3.'!F81),ISBLANK('3.3.'!F82),ISBLANK('3.3.'!F83),ISBLANK('3.3.'!F84)),"Ergebnis offen",IF('3.3.'!F78=6,'3.3.'!H78,IF('3.3.'!F79=6,'3.3.'!H79,IF('3.3.'!F80=6,'3.3.'!H80,IF('3.3.'!F81=6,'3.3.'!H81,IF('3.3.'!F82=6,'3.3.'!H82,IF('3.3.'!F83=6,'3.3.'!H83,IF('3.3.'!F84=6,'3.3.'!H84,"---")))))))) -> Christoph | BU72: =IF(OR(ISBLANK('3.3.'!F78),ISBLANK('3.3.'!F79),ISBLANK('3.3.'!F80),ISBLANK('3.3.'!F81),ISBLANK('3.3.'!F82),ISBLANK('3.3.'!F83),ISBLANK('3.3.'!F84)),"Ergebnis offen",IF('3.3.'!F78=7,'3.3.'!H78,IF('3.3.'!F79=7,'3.3.'!H79,IF('3.3.'!F80=7,'3.3.'!H80,IF('3.3.'!F81=7,'3.3.'!H81,IF('3.3.'!F82=7,'3.3.'!H82,IF('3.3.'!F83=7,'3.3.'!H83,IF('3.3.'!F84=7,'3.3.'!H84,"---")))))))) -> ---
C73: 2021-03-11 | M73: =IF(OR(ISBLANK('11.3.'!F78),ISBLANK('11.3.'!F79),ISBLANK('11.3.'!F80),ISBLANK('11.3.'!F81),ISBLANK('11.3.'!F82),ISBLANK('11.3.'!F83),ISBLANK('11.3.'!F84)),"Ergebnis offen",IF('11.3.'!F78=1,'11.3.'!H78,IF('11.3.'!F79=1,'11.3.'!H79,IF('11.3.'!F80=1,'11.3.'!H80,IF('11.3.'!F81=1,'11.3.'!H81,IF('11.3.'!F82=1,'11.3.'!H82,IF('11.3.'!F83=1,'11.3.'!H83,IF('11.3.'!F84=1,'11.3.'!H84,"---")))))))) -> Ratze | W73: =IF(OR(ISBLANK('11.3.'!F78),ISBLANK('11.3.'!F79),ISBLANK('11.3.'!F80),ISBLANK('11.3.'!F81),ISBLANK('11.3.'!F82),ISBLANK('11.3.'!F83),ISBLANK('11.3.'!F84)),"Ergebnis offen",IF('11.3.'!F78=2,'11.3.'!H78,IF('11.3.'!F79=2,'11.3.'!H79,IF('11.3.'!F80=2,'11.3.'!H80,IF('11.3.'!F81=2,'11.3.'!H81,IF('11.3.'!F82=2,'11.3.'!H82,IF('11.3.'!F83=2,'11.3.'!H83,IF('11.3.'!F84=2,'11.3.'!H84,"---")))))))) -> Patrick | AG73: =IF(OR(ISBLANK('11.3.'!F78),ISBLANK('11.3.'!F79),ISBLANK('11.3.'!F80),ISBLANK('11.3.'!F81),ISBLANK('11.3.'!F82),ISBLANK('11.3.'!F83),ISBLANK('11.3.'!F84)),"Ergebnis offen",IF('11.3.'!F78=3,'11.3.'!H78,IF('11.3.'!F79=3,'11.3.'!H79,IF('11.3.'!F80=3,'11.3.'!H80,IF('11.3.'!F81=3,'11.3.'!H81,IF('11.3.'!F82=3,'11.3.'!H82,IF('11.3.'!F83=3,'11.3.'!H83,IF('11.3.'!F84=3,'11.3.'!H84,"---")))))))) -> Schmiddi | AQ73: =IF(OR(ISBLANK('11.3.'!F78),ISBLANK('11.3.'!F79),ISBLANK('11.3.'!F80),ISBLANK('11.3.'!F81),ISBLANK('11.3.'!F82),ISBLANK('11.3.'!F83),ISBLANK('11.3.'!F84)),"Ergebnis offen",IF('11.3.'!F78=4,'11.3.'!H78,IF('11.3.'!F79=4,'11.3.'!H79,IF('11.3.'!F80=4,'11.3.'!H80,IF('11.3.'!F81=4,'11.3.'!H81,IF('11.3.'!F82=4,'11.3.'!H82,IF('11.3.'!F83=4,'11.3.'!H83,IF('11.3.'!F84=4,'11.3.'!H84,"---")))))))) -> Christoph | BA73: =IF(OR(ISBLANK('11.3.'!F78),ISBLANK('11.3.'!F79),ISBLANK('11.3.'!F80),ISBLANK('11.3.'!F81),ISBLANK('11.3.'!F82),ISBLANK('11.3.'!F83),ISBLANK('11.3.'!F84)),"Ergebnis offen",IF('11.3.'!F78=5,'11.3.'!H78,IF('11.3.'!F79=5,'11.3.'!H79,IF('11.3.'!F80=5,'11.3.'!H80,IF('11.3.'!F81=5,'11.3.'!H81,IF('11.3.'!F82=5,'11.3.'!H82,IF('11.3.'!F83=5,'11.3.'!H83,IF('11.3.'!F84=5,'11.3.'!H84,"---")))))))) -> Jule | BK73: =IF(OR(ISBLANK('11.3.'!F78),ISBLANK('11.3.'!F79),ISBLANK('11.3.'!F80),ISBLANK('11.3.'!F81),ISBLANK('11.3.'!F82),ISBLANK('11.3.'!F83),ISBLANK('11.3.'!F84)),"Ergebnis offen",IF('11.3.'!F78=6,'11.3.'!H78,IF('11.3.'!F79=6,'11.3.'!H79,IF('11.3.'!F80=6,'11.3.'!H80,IF('11.3.'!F81=6,'11.3.'!H81,IF('11.3.'!F82=6,'11.3.'!H82,IF('11.3.'!F83=6,'11.3.'!H83,IF('11.3.'!F84=6,'11.3.'!H84,"---")))))))) -> --- | BU73: =IF(OR(ISBLANK('11.3.'!F78),ISBLANK('11.3.'!F79),ISBLANK('11.3.'!F80),ISBLANK('11.3.'!F81),ISBLANK('11.3.'!F82),ISBLANK('11.3.'!F83),ISBLANK('11.3.'!F84)),"Ergebnis offen",IF('11.3.'!F78=7,'11.3.'!H78,IF('11.3.'!F79=7,'11.3.'!H79,IF('11.3.'!F80=7,'11.3.'!H80,IF('11.3.'!F81=7,'11.3.'!H81,IF('11.3.'!F82=7,'11.3.'!H82,IF('11.3.'!F83=7,'11.3.'!H83,IF('11.3.'!F84=7,'11.3.'!H84,"---")))))))) -> ---
C74: 2021-03-25 | M74: =IF(OR(ISBLANK('25.3.'!F78),ISBLANK('25.3.'!F79),ISBLANK('25.3.'!F80),ISBLANK('25.3.'!F81),ISBLANK('25.3.'!F82),ISBLANK('25.3.'!F83),ISBLANK('25.3.'!F84)),"Ergebnis offen",IF('25.3.'!F78=1,'25.3.'!H78,IF('25.3.'!F79=1,'25.3.'!H79,IF('25.3.'!F80=1,'25.3.'!H80,IF('25.3.'!F81=1,'25.3.'!H81,IF('25.3.'!F82=1,'25.3.'!H82,IF('25.3.'!F83=1,'25.3.'!H83,IF('25.3.'!F84=1,'25.3.'!H84,"---")))))))) -> Ratze | W74: =IF(OR(ISBLANK('25.3.'!F78),ISBLANK('25.3.'!F79),ISBLANK('25.3.'!F80),ISBLANK('25.3.'!F81),ISBLANK('25.3.'!F82),ISBLANK('25.3.'!F83),ISBLANK('25.3.'!F84)),"Ergebnis offen",IF('25.3.'!F78=2,'25.3.'!H78,IF('25.3.'!F79=2,'25.3.'!H79,IF('25.3.'!F80=2,'25.3.'!H80,IF('25.3.'!F81=2,'25.3.'!H81,IF('25.3.'!F82=2,'25.3.'!H82,IF('25.3.'!F83=2,'25.3.'!H83,IF('25.3.'!F84=2,'25.3.'!H84,"---")))))))) -> Patrick | AG74: =IF(OR(ISBLANK('25.3.'!F78),ISBLANK('25.3.'!F79),ISBLANK('25.3.'!F80),ISBLANK('25.3.'!F81),ISBLANK('25.3.'!F82),ISBLANK('25.3.'!F83),ISBLANK('25.3.'!F84)),"Ergebnis offen",IF('25.3.'!F78=3,'25.3.'!H78,IF('25.3.'!F79=3,'25.3.'!H79,IF('25.3.'!F80=3,'25.3.'!H80,IF('25.3.'!F81=3,'25.3.'!H81,IF('25.3.'!F82=3,'25.3.'!H82,IF('25.3.'!F83=3,'25.3.'!H83,IF('25.3.'!F84=3,'25.3.'!H84,"---")))))))) -> Markus | AQ74: =IF(OR(ISBLANK('25.3.'!F78),ISBLANK('25.3.'!F79),ISBLANK('25.3.'!F80),ISBLANK('25.3.'!F81),ISBLANK('25.3.'!F82),ISBLANK('25.3.'!F83),ISBLANK('25.3.'!F84)),"Ergebnis offen",IF('25.3.'!F78=4,'25.3.'!H78,IF('25.3.'!F79=4,'25.3.'!H79,IF('25.3.'!F80=4,'25.3.'!H80,IF('25.3.'!F81=4,'25.3.'!H81,IF('25.3.'!F82=4,'25.3.'!H82,IF('25.3.'!F83=4,'25.3.'!H83,IF('25.3.'!F84=4,'25.3.'!H84,"---")))))))) -> Christoph | BA74: =IF(OR(ISBLANK('25.3.'!F78),ISBLANK('25.3.'!F79),ISBLANK('25.3.'!F80),ISBLANK('25.3.'!F81),ISBLANK('25.3.'!F82),ISBLANK('25.3.'!F83),ISBLANK('25.3.'!F84)),"Ergebnis offen",IF('25.3.'!F78=5,'25.3.'!H78,IF('25.3.'!F79=5,'25.3.'!H79,IF('25.3.'!F80=5,'25.3.'!H80,IF('25.3.'!F81=5,'25.3.'!H81,IF('25.3.'!F82=5,'25.3.'!H82,IF('25.3.'!F83=5,'25.3.'!H83,IF('25.3.'!F84=5,'25.3.'!H84,"---")))))))) -> Jule | BK74: =IF(OR(ISBLANK('25.3.'!F78),ISBLANK('25.3.'!F79),ISBLANK('25.3.'!F80),ISBLANK('25.3.'!F81),ISBLANK('25.3.'!F82),ISBLANK('25.3.'!F83),ISBLANK('25.3.'!F84)),"Ergebnis offen",IF('25.3.'!F78=6,'25.3.'!H78,IF('25.3.'!F79=6,'25.3.'!H79,IF('25.3.'!F80=6,'25.3.'!H80,IF('25.3.'!F81=6,'25.3.'!H81,IF('25.3.'!F82=6,'25.3.'!H82,IF('25.3.'!F83=6,'25.3.'!H83,IF('25.3.'!F84=6,'25.3.'!H84,"---")))))))) -> --- | BU74: =IF(OR(ISBLANK('25.3.'!F78),ISBLANK('25.3.'!F79),ISBLANK('25.3.'!F80),ISBLANK('25.3.'!F81),ISBLANK('25.3.'!F82),ISBLANK('25.3.'!F83),ISBLANK('25.3.'!F84)),"Ergebnis offen",IF('25.3.'!F78=7,'25.3.'!H78,IF('25.3.'!F79=7,'25.3.'!H79,IF('25.3.'!F80=7,'25.3.'!H80,IF('25.3.'!F81=7,'25.3.'!H81,IF('25.3.'!F82=7,'25.3.'!H82,IF('25.3.'!F83=7,'25.3.'!H83,IF('25.3.'!F84=7,'25.3.'!H84,"---")))))))) -> ---
C75: 2021-04-15 | M75: =IF(OR(ISBLANK('15.4.'!F78),ISBLANK('15.4.'!F79),ISBLANK('15.4.'!F80),ISBLANK('15.4.'!F81),ISBLANK('15.4.'!F82),ISBLANK('15.4.'!F83),ISBLANK('15.4.'!F84)),"Ergebnis offen",IF('15.4.'!F78=1,'15.4.'!H78,IF('15.4.'!F79=1,'15.4.'!H79,IF('15.4.'!F80=1,'15.4.'!H80,IF('15.4.'!F81=1,'15.4.'!H81,IF('15.4.'!F82=1,'15.4.'!H82,IF('15.4.'!F83=1,'15.4.'!H83,IF('15.4.'!F84=1,'15.4.'!H84,"---")))))))) -> Ratze | W75: =IF(OR(ISBLANK('15.4.'!F78),ISBLANK('15.4.'!F79),ISBLANK('15.4.'!F80),ISBLANK('15.4.'!F81),ISBLANK('15.4.'!F82),ISBLANK('15.4.'!F83),ISBLANK('15.4.'!F84)),"Ergebnis offen",IF('15.4.'!F78=2,'15.4.'!H78,IF('15.4.'!F79=2,'15.4.'!H79,IF('15.4.'!F80=2,'15.4.'!H80,IF('15.4.'!F81=2,'15.4.'!H81,IF('15.4.'!F82=2,'15.4.'!H82,IF('15.4.'!F83=2,'15.4.'!H83,IF('15.4.'!F84=2,'15.4.'!H84,"---")))))))) -> Markus | AG75: =IF(OR(ISBLANK('15.4.'!F78),ISBLANK('15.4.'!F79),ISBLANK('15.4.'!F80),ISBLANK('15.4.'!F81),ISBLANK('15.4.'!F82),ISBLANK('15.4.'!F83),ISBLANK('15.4.'!F84)),"Ergebnis offen",IF('15.4.'!F78=3,'15.4.'!H78,IF('15.4.'!F79=3,'15.4.'!H79,IF('15.4.'!F80=3,'15.4.'!H80,IF('15.4.'!F81=3,'15.4.'!H81,IF('15.4.'!F82=3,'15.4.'!H82,IF('15.4.'!F83=3,'15.4.'!H83,IF('15.4.'!F84=3,'15.4.'!H84,"---")))))))) -> Jule | AQ75: =IF(OR(ISBLANK('15.4.'!F78),ISBLANK('15.4.'!F79),ISBLANK('15.4.'!F80),ISBLANK('15.4.'!F81),ISBLANK('15.4.'!F82),ISBLANK('15.4.'!F83),ISBLANK('15.4.'!F84)),"Ergebnis offen",IF('15.4.'!F78=4,'15.4.'!H78,IF('15.4.'!F79=4,'15.4.'!H79,IF('15.4.'!F80=4,'15.4.'!H80,IF('15.4.'!F81=4,'15.4.'!H81,IF('15.4.'!F82=4,'15.4.'!H82,IF('15.4.'!F83=4,'15.4.'!H83,IF('15.4.'!F84=4,'15.4.'!H84,"---")))))))) -> Patrick | BA75: =IF(OR(ISBLANK('15.4.'!F78),ISBLANK('15.4.'!F79),ISBLANK('15.4.'!F80),ISBLANK('15.4.'!F81),ISBLANK('15.4.'!F82),ISBLANK('15.4.'!F83),ISBLANK('15.4.'!F84)),"Ergebnis offen",IF('15.4.'!F78=5,'15.4.'!H78,IF('15.4.'!F79=5,'15.4.'!H79,IF('15.4.'!F80=5,'15.4.'!H80,IF('15.4.'!F81=5,'15.4.'!H81,IF('15.4.'!F82=5,'15.4.'!H82,IF('15.4.'!F83=5,'15.4.'!H83,IF('15.4.'!F84=5,'15.4.'!H84,"---")))))))) -> Christoph | BK75: =IF(OR(ISBLANK('15.4.'!F78),ISBLANK('15.4.'!F79),ISBLANK('15.4.'!F80),ISBLANK('15.4.'!F81),ISBLANK('15.4.'!F82),ISBLANK('15.4.'!F83),ISBLANK('15.4.'!F84)),"Ergebnis offen",IF('15.4.'!F78=6,'15.4.'!H78,IF('15.4.'!F79=6,'15.4.'!H79,IF('15.4.'!F80=6,'15.4.'!H80,IF('15.4.'!F81=6,'15.4.'!H81,IF('15.4.'!F82=6,'15.4.'!H82,IF('15.4.'!F83=6,'15.4.'!H83,IF('15.4.'!F84=6,'15.4.'!H84,"---")))))))) -> Schmiddi | BU75: =IF(OR(ISBLANK('15.4.'!F78),ISBLANK('15.4.'!F79),ISBLANK('15.4.'!F80),ISBLANK('15.4.'!F81),ISBLANK('15.4.'!F82),ISBLANK('15.4.'!F83),ISBLANK('15.4.'!F84)),"Ergebnis offen",IF('15.4.'!F78=7,'15.4.'!H78,IF('15.4.'!F79=7,'15.4.'!H79,IF('15.4.'!F80=7,'15.4.'!H80,IF('15.4.'!F81=7,'15.4.'!H81,IF('15.4.'!F82=7,'15.4.'!H82,IF('15.4.'!F83=7,'15.4.'!H83,IF('15.4.'!F84=7,'15.4.'!H84,"---")))))))) -> ---
C76: 2021-04-22 | M76: =IF(OR(ISBLANK('22.4.'!F78),ISBLANK('22.4.'!F79),ISBLANK('22.4.'!F80),ISBLANK('22.4.'!F81),ISBLANK('22.4.'!F82),ISBLANK('22.4.'!F83),ISBLANK('22.4.'!F84)),"Ergebnis offen",IF('22.4.'!F78=1,'22.4.'!H78,IF('22.4.'!F79=1,'22.4.'!H79,IF('22.4.'!F80=1,'22.4.'!H80,IF('22.4.'!F81=1,'22.4.'!H81,IF('22.4.'!F82=1,'22.4.'!H82,IF('22.4.'!F83=1,'22.4.'!H83,IF('22.4.'!F84=1,'22.4.'!H84,"---")))))))) -> Ratze | W76: =IF(OR(ISBLANK('22.4.'!F78),ISBLANK('22.4.'!F79),ISBLANK('22.4.'!F80),ISBLANK('22.4.'!F81),ISBLANK('22.4.'!F82),ISBLANK('22.4.'!F83),ISBLANK('22.4.'!F84)),"Ergebnis offen",IF('22.4.'!F78=2,'22.4.'!H78,IF('22.4.'!F79=2,'22.4.'!H79,IF('22.4.'!F80=2,'22.4.'!H80,IF('22.4.'!F81=2,'22.4.'!H81,IF('22.4.'!F82=2,'22.4.'!H82,IF('22.4.'!F83=2,'22.4.'!H83,IF('22.4.'!F84=2,'22.4.'!H84,"---")))))))) -> Christoph | AG76: =IF(OR(ISBLANK('22.4.'!F78),ISBLANK('22.4.'!F79),ISBLANK('22.4.'!F80),ISBLANK('22.4.'!F81),ISBLANK('22.4.'!F82),ISBLANK('22.4.'!F83),ISBLANK('22.4.'!F84)),"Ergebnis offen",IF('22.4.'!F78=3,'22.4.'!H78,IF('22.4.'!F79=3,'22.4.'!H79,IF('22.4.'!F80=3,'22.4.'!H80,IF('22.4.'!F81=3,'22.4.'!H81,IF('22.4.'!F82=3,'22.4.'!H82,IF('22.4.'!F83=3,'22.4.'!H83,IF('22.4.'!F84=3,'22.4.'!H84,"---")))))))) -> Markus | AQ76: =IF(OR(ISBLANK('22.4.'!F78),ISBLANK('22.4.'!F79),ISBLANK('22.4.'!F80),ISBLANK('22.4.'!F81),ISBLANK('22.4.'!F82),ISBLANK('22.4.'!F83),ISBLANK('22.4.'!F84)),"Ergebnis offen",IF('22.4.'!F78=4,'22.4.'!H78,IF('22.4.'!F79=4,'22.4.'!H79,IF('22.4.'!F80=4,'22.4.'!H80,IF('22.4.'!F81=4,'22.4.'!H81,IF('22.4.'!F82=4,'22.4.'!H82,IF('22.4.'!F83=4,'22.4.'!H83,IF('22.4.'!F84=4,'22.4.'!H84,"---")))))))) -> Jule | BA76: =IF(OR(ISBLANK('22.4.'!F78),ISBLANK('22.4.'!F79),ISBLANK('22.4.'!F80),ISBLANK('22.4.'!F81),ISBLANK('22.4.'!F82),ISBLANK('22.4.'!F83),ISBLANK('22.4.'!F84)),"Ergebnis offen",IF('22.4.'!F78=5,'22.4.'!H78,IF('22.4.'!F79=5,'22.4.'!H79,IF('22.4.'!F80=5,'22.4.'!H80,IF('22.4.'!F81=5,'22.4.'!H81,IF('22.4.'!F82=5,'22.4.'!H82,IF('22.4.'!F83=5,'22.4.'!H83,IF('22.4.'!F84=5,'22.4.'!H84,"---")))))))) -> Patrick | BK76: =IF(OR(ISBLANK('22.4.'!F78),ISBLANK('22.4.'!F79),ISBLANK('22.4.'!F80),ISBLANK('22.4.'!F81),ISBLANK('22.4.'!F82),ISBLANK('22.4.'!F83),ISBLANK('22.4.'!F84)),"Ergebnis offen",IF('22.4.'!F78=6,'22.4.'!H78,IF('22.4.'!F79=6,'22.4.'!H79,IF('22.4.'!F80=6,'22.4.'!H80,IF('22.4.'!F81=6,'22.4.'!H81,IF('22.4.'!F82=6,'22.4.'!H82,IF('22.4.'!F83=6,'22.4.'!H83,IF('22.4.'!F84=6,'22.4.'!H84,"---")))))))) -> --- | BU76: =IF(OR(ISBLANK('22.4.'!F78),ISBLANK('22.4.'!F79),ISBLANK('22.4.'!F80),ISBLANK('22.4.'!F81),ISBLANK('22.4.'!F82),ISBLANK('22.4.'!F83),ISBLANK('22.4.'!F84)),"Ergebnis offen",IF('22.4.'!F78=7,'22.4.'!H78,IF('22.4.'!F79=7,'22.4.'!H79,IF('22.4.'!F80=7,'22.4.'!H80,IF('22.4.'!F81=7,'22.4.'!H81,IF('22.4.'!F82=7,'22.4.'!H82,IF('22.4.'!F83=7,'22.4.'!H83,IF('22.4.'!F84=7,'22.4.'!H84,"---")))))))) -> ---
C77: 2021-04-29 | M77: =IF(OR(ISBLANK('29.4.'!F78),ISBLANK('29.4.'!F79),ISBLANK('29.4.'!F80),ISBLANK('29.4.'!F81),ISBLANK('29.4.'!F82),ISBLANK('29.4.'!F83),ISBLANK('29.4.'!F84)),"Ergebnis offen",IF('29.4.'!F78=1,'29.4.'!H78,IF('29.4.'!F79=1,'29.4.'!H79,IF('29.4.'!F80=1,'29.4.'!H80,IF('29.4.'!F81=1,'29.4.'!H81,IF('29.4.'!F82=1,'29.4.'!H82,IF('29.4.'!F83=1,'29.4.'!H83,IF('29.4.'!F84=1,'29.4.'!H84,"---")))))))) -> Markus | W77: =IF(OR(ISBLANK('29.4.'!F78),ISBLANK('29.4.'!F79),ISBLANK('29.4.'!F80),ISBLANK('29.4.'!F81),ISBLANK('29.4.'!F82),ISBLANK('29.4.'!F83),ISBLANK('29.4.'!F84)),"Ergebnis offen",IF('29.4.'!F78=2,'29.4.'!H78,IF('29.4.'!F79=2,'29.4.'!H79,IF('29.4.'!F80=2,'29.4.'!H80,IF('29.4.'!F81=2,'29.4.'!H81,IF('29.4.'!F82=2,'29.4.'!H82,IF('29.4.'!F83=2,'29.4.'!H83,IF('29.4.'!F84=2,'29.4.'!H84,"---")))))))) -> Ratze | AG77: =IF(OR(ISBLANK('29.4.'!F78),ISBLANK('29.4.'!F79),ISBLANK('29.4.'!F80),ISBLANK('29.4.'!F81),ISBLANK('29.4.'!F82),ISBLANK('29.4.'!F83),ISBLANK('29.4.'!F84)),"Ergebnis offen",IF('29.4.'!F78=3,'29.4.'!H78,IF('29.4.'!F79=3,'29.4.'!H79,IF('29.4.'!F80=3,'29.4.'!H80,IF('29.4.'!F81=3,'29.4.'!H81,IF('29.4.'!F82=3,'29.4.'!H82,IF('29.4.'!F83=3,'29.4.'!H83,IF('29.4.'!F84=3,'29.4.'!H84,"---")))))))) -> Christoph | AQ77: =IF(OR(ISBLANK('29.4.'!F78),ISBLANK('29.4.'!F79),ISBLANK('29.4.'!F80),ISBLANK('29.4.'!F81),ISBLANK('29.4.'!F82),ISBLANK('29.4.'!F83),ISBLANK('29.4.'!F84)),"Ergebnis offen",IF('29.4.'!F78=4,'29.4.'!H78,IF('29.4.'!F79=4,'29.4.'!H79,IF('29.4.'!F80=4,'29.4.'!H80,IF('29.4.'!F81=4,'29.4.'!H81,IF('29.4.'!F82=4,'29.4.'!H82,IF('29.4.'!F83=4,'29.4.'!H83,IF('29.4.'!F84=4,'29.4.'!H84,"---")))))))) -> Patrick | BA77: =IF(OR(ISBLANK('29.4.'!F78),ISBLANK('29.4.'!F79),ISBLANK('29.4.'!F80),ISBLANK('29.4.'!F81),ISBLANK('29.4.'!F82),ISBLANK('29.4.'!F83),ISBLANK('29.4.'!F84)),"Ergebnis offen",IF('29.4.'!F78=5,'29.4.'!H78,IF('29.4.'!F79=5,'29.4.'!H79,IF('29.4.'!F80=5,'29.4.'!H80,IF('29.4.'!F81=5,'29.4.'!H81,IF('29.4.'!F82=5,'29.4.'!H82,IF('29.4.'!F83=5,'29.4.'!H83,IF('29.4.'!F84=5,'29.4.'!H84,"---")))))))) -> --- | BK77: =IF(OR(ISBLANK('29.4.'!F78),ISBLANK('29.4.'!F79),ISBLANK('29.4.'!F80),ISBLANK('29.4.'!F81),ISBLANK('29.4.'!F82),ISBLANK('29.4.'!F83),ISBLANK('29.4.'!F84)),"Ergebnis offen",IF('29.4.'!F78=6,'29.4.'!H78,IF('29.4.'!F79=6,'29.4.'!H79,IF('29.4.'!F80=6,'29.4.'!H80,IF('29.4.'!F81=6,'29.4.'!H81,IF('29.4.'!F82=6,'29.4.'!H82,IF('29.4.'!F83=6,'29.4.'!H83,IF('29.4.'!F84=6,'29.4.'!H84,"---")))))))) -> --- | BU77: =IF(OR(ISBLANK('29.4.'!F78),ISBLANK('29.4.'!F79),ISBLANK('29.4.'!F80),ISBLANK('29.4.'!F81),ISBLANK('29.4.'!F82),ISBLANK('29.4.'!F83),ISBLANK('29.4.'!F84)),"Ergebnis offen",IF('29.4.'!F78=7,'29.4.'!H78,IF('29.4.'!F79=7,'29.4.'!H79,IF('29.4.'!F80=7,'29.4.'!H80,IF('29.4.'!F81=7,'29.4.'!H81,IF('29.4.'!F82=7,'29.4.'!H82,IF('29.4.'!F83=7,'29.4.'!H83,IF('29.4.'!F84=7,'29.4.'!H84,"---")))))))) -> ---
C78: 2021-05-06 | M78: =IF(OR(ISBLANK('6.5.'!F78),ISBLANK('6.5.'!F79),ISBLANK('6.5.'!F80),ISBLANK('6.5.'!F81),ISBLANK('6.5.'!F82),ISBLANK('6.5.'!F83),ISBLANK('6.5.'!F84)),"Ergebnis offen",IF('6.5.'!F78=1,'6.5.'!H78,IF('6.5.'!F79=1,'6.5.'!H79,IF('6.5.'!F80=1,'6.5.'!H80,IF('6.5.'!F81=1,'6.5.'!H81,IF('6.5.'!F82=1,'6.5.'!H82,IF('6.5.'!F83=1,'6.5.'!H83,IF('6.5.'!F84=1,'6.5.'!H84,"---")))))))) -> Ratze | W78: =IF(OR(ISBLANK('6.5.'!F78),ISBLANK('6.5.'!F79),ISBLANK('6.5.'!F80),ISBLANK('6.5.'!F81),ISBLANK('6.5.'!F82),ISBLANK('6.5.'!F83),ISBLANK('6.5.'!F84)),"Ergebnis offen",IF('6.5.'!F78=2,'6.5.'!H78,IF('6.5.'!F79=2,'6.5.'!H79,IF('6.5.'!F80=2,'6.5.'!H80,IF('6.5.'!F81=2,'6.5.'!H81,IF('6.5.'!F82=2,'6.5.'!H82,IF('6.5.'!F83=2,'6.5.'!H83,IF('6.5.'!F84=2,'6.5.'!H84,"---")))))))) -> Christoph | AG78: =IF(OR(ISBLANK('6.5.'!F78),ISBLANK('6.5.'!F79),ISBLANK('6.5.'!F80),ISBLANK('6.5.'!F81),ISBLANK('6.5.'!F82),ISBLANK('6.5.'!F83),ISBLANK('6.5.'!F84)),"Ergebnis offen",IF('6.5.'!F78=3,'6.5.'!H78,IF('6.5.'!F79=3,'6.5.'!H79,IF('6.5.'!F80=3,'6.5.'!H80,IF('6.5.'!F81=3,'6.5.'!H81,IF('6.5.'!F82=3,'6.5.'!H82,IF('6.5.'!F83=3,'6.5.'!H83,IF('6.5.'!F84=3,'6.5.'!H84,"---")))))))) -> Jule | AQ78: =IF(OR(ISBLANK('6.5.'!F78),ISBLANK('6.5.'!F79),ISBLANK('6.5.'!F80),ISBLANK('6.5.'!F81),ISBLANK('6.5.'!F82),ISBLANK('6.5.'!F83),ISBLANK('6.5.'!F84)),"Ergebnis offen",IF('6.5.'!F78=4,'6.5.'!H78,IF('6.5.'!F79=4,'6.5.'!H79,IF('6.5.'!F80=4,'6.5.'!H80,IF('6.5.'!F81=4,'6.5.'!H81,IF('6.5.'!F82=4,'6.5.'!H82,IF('6.5.'!F83=4,'6.5.'!H83,IF('6.5.'!F84=4,'6.5.'!H84,"---")))))))) -> Markus | BA78: =IF(OR(ISBLANK('6.5.'!F78),ISBLANK('6.5.'!F79),ISBLANK('6.5.'!F80),ISBLANK('6.5.'!F81),ISBLANK('6.5.'!F82),ISBLANK('6.5.'!F83),ISBLANK('6.5.'!F84)),"Ergebnis offen",IF('6.5.'!F78=5,'6.5.'!H78,IF('6.5.'!F79=5,'6.5.'!H79,IF('6.5.'!F80=5,'6.5.'!H80,IF('6.5.'!F81=5,'6.5.'!H81,IF('6.5.'!F82=5,'6.5.'!H82,IF('6.5.'!F83=5,'6.5.'!H83,IF('6.5.'!F84=5,'6.5.'!H84,"---")))))))) -> Patrick | BK78: =IF(OR(ISBLANK('6.5.'!F78),ISBLANK('6.5.'!F79),ISBLANK('6.5.'!F80),ISBLANK('6.5.'!F81),ISBLANK('6.5.'!F82),ISBLANK('6.5.'!F83),ISBLANK('6.5.'!F84)),"Ergebnis offen",IF('6.5.'!F78=6,'6.5.'!H78,IF('6.5.'!F79=6,'6.5.'!H79,IF('6.5.'!F80=6,'6.5.'!H80,IF('6.5.'!F81=6,'6.5.'!H81,IF('6.5.'!F82=6,'6.5.'!H82,IF('6.5.'!F83=6,'6.5.'!H83,IF('6.5.'!F84=6,'6.5.'!H84,"---")))))))) -> Schmiddi | BU78: =IF(OR(ISBLANK('6.5.'!F78),ISBLANK('6.5.'!F79),ISBLANK('6.5.'!F80),ISBLANK('6.5.'!F81),ISBLANK('6.5.'!F82),ISBLANK('6.5.'!F83),ISBLANK('6.5.'!F84)),"Ergebnis offen",IF('6.5.'!F78=7,'6.5.'!H78,IF('6.5.'!F79=7,'6.5.'!H79,IF('6.5.'!F80=7,'6.5.'!H80,IF('6.5.'!F81=7,'6.5.'!H81,IF('6.5.'!F82=7,'6.5.'!H82,IF('6.5.'!F83=7,'6.5.'!H83,IF('6.5.'!F84=7,'6.5.'!H84,"---")))))))) -> ---
C79: 2021-06-09 | M79: =IF(OR(ISBLANK('9.6.'!F78),ISBLANK('9.6.'!F79),ISBLANK('9.6.'!F80),ISBLANK('9.6.'!F81),ISBLANK('9.6.'!F82),ISBLANK('9.6.'!F83),ISBLANK('9.6.'!F84)),"Ergebnis offen",IF('9.6.'!F78=1,'9.6.'!H78,IF('9.6.'!F79=1,'9.6.'!H79,IF('9.6.'!F80=1,'9.6.'!H80,IF('9.6.'!F81=1,'9.6.'!H81,IF('9.6.'!F82=1,'9.6.'!H82,IF('9.6.'!F83=1,'9.6.'!H83,IF('9.6.'!F84=1,'9.6.'!H84,"---")))))))) -> Ratze | W79: =IF(OR(ISBLANK('9.6.'!F78),ISBLANK('9.6.'!F79),ISBLANK('9.6.'!F80),ISBLANK('9.6.'!F81),ISBLANK('9.6.'!F82),ISBLANK('9.6.'!F83),ISBLANK('9.6.'!F84)),"Ergebnis offen",IF('9.6.'!F78=2,'9.6.'!H78,IF('9.6.'!F79=2,'9.6.'!H79,IF('9.6.'!F80=2,'9.6.'!H80,IF('9.6.'!F81=2,'9.6.'!H81,IF('9.6.'!F82=2,'9.6.'!H82,IF('9.6.'!F83=2,'9.6.'!H83,IF('9.6.'!F84=2,'9.6.'!H84,"---")))))))) -> Patrick | AG79: =IF(OR(ISBLANK('9.6.'!F78),ISBLANK('9.6.'!F79),ISBLANK('9.6.'!F80),ISBLANK('9.6.'!F81),ISBLANK('9.6.'!F82),ISBLANK('9.6.'!F83),ISBLANK('9.6.'!F84)),"Ergebnis offen",IF('9.6.'!F78=3,'9.6.'!H78,IF('9.6.'!F79=3,'9.6.'!H79,IF('9.6.'!F80=3,'9.6.'!H80,IF('9.6.'!F81=3,'9.6.'!H81,IF('9.6.'!F82=3,'9.6.'!H82,IF('9.6.'!F83=3,'9.6.'!H83,IF('9.6.'!F84=3,'9.6.'!H84,"---")))))))) -> Christoph | AQ79: =IF(OR(ISBLANK('9.6.'!F78),ISBLANK('9.6.'!F79),ISBLANK('9.6.'!F80),ISBLANK('9.6.'!F81),ISBLANK('9.6.'!F82),ISBLANK('9.6.'!F83),ISBLANK('9.6.'!F84)),"Ergebnis offen",IF('9.6.'!F78=4,'9.6.'!H78,IF('9.6.'!F79=4,'9.6.'!H79,IF('9.6.'!F80=4,'9.6.'!H80,IF('9.6.'!F81=4,'9.6.'!H81,IF('9.6.'!F82=4,'9.6.'!H82,IF('9.6.'!F83=4,'9.6.'!H83,IF('9.6.'!F84=4,'9.6.'!H84,"---")))))))) -> Schmiddi | BA79: =IF(OR(ISBLANK('9.6.'!F78),ISBLANK('9.6.'!F79),ISBLANK('9.6.'!F80),ISBLANK('9.6.'!F81),ISBLANK('9.6.'!F82),ISBLANK('9.6.'!F83),ISBLANK('9.6.'!F84)),"Ergebnis offen",IF('9.6.'!F78=5,'9.6.'!H78,IF('9.6.'!F79=5,'9.6.'!H79,IF('9.6.'!F80=5,'9.6.'!H80,IF('9.6.'!F81=5,'9.6.'!H81,IF('9.6.'!F82=5,'9.6.'!H82,IF('9.6.'!F83=5,'9.6.'!H83,IF('9.6.'!F84=5,'9.6.'!H84,"---")))))))) -> --- | BK79: =IF(OR(ISBLANK('9.6.'!F78),ISBLANK('9.6.'!F79),ISBLANK('9.6.'!F80),ISBLANK('9.6.'!F81),ISBLANK('9.6.'!F82),ISBLANK('9.6.'!F83),ISBLANK('9.6.'!F84)),"Ergebnis offen",IF('9.6.'!F78=6,'9.6.'!H78,IF('9.6.'!F79=6,'9.6.'!H79,IF('9.6.'!F80=6,'9.6.'!H80,IF('9.6.'!F81=6,'9.6.'!H81,IF('9.6.'!F82=6,'9.6.'!H82,IF('9.6.'!F83=6,'9.6.'!H83,IF('9.6.'!F84=6,'9.6.'!H84,"---")))))))) -> --- | BU79: =IF(OR(ISBLANK('9.6.'!F78),ISBLANK('9.6.'!F79),ISBLANK('9.6.'!F80),ISBLANK('9.6.'!F81),ISBLANK('9.6.'!F82),ISBLANK('9.6.'!F83),ISBLANK('9.6.'!F84)),"Ergebnis offen",IF('9.6.'!F78=7,'9.6.'!H78,IF('9.6.'!F79=7,'9.6.'!H79,IF('9.6.'!F80=7,'9.6.'!H80,IF('9.6.'!F81=7,'9.6.'!H81,IF('9.6.'!F82=7,'9.6.'!H82,IF('9.6.'!F83=7,'9.6.'!H83,IF('9.6.'!F84=7,'9.6.'!H84,"---")))))))) -> ---
C80: 2021-09-28 | M80: =IF(OR(ISBLANK('28.9.'!F78),ISBLANK('28.9.'!F79),ISBLANK('28.9.'!F80),ISBLANK('28.9.'!F81),ISBLANK('28.9.'!F82),ISBLANK('28.9.'!F83),ISBLANK('28.9.'!F84)),"Ergebnis offen",IF('28.9.'!F78=1,'28.9.'!H78,IF('28.9.'!F79=1,'28.9.'!H79,IF('28.9.'!F80=1,'28.9.'!H80,IF('28.9.'!F81=1,'28.9.'!H81,IF('28.9.'!F82=1,'28.9.'!H82,IF('28.9.'!F83=1,'28.9.'!H83,IF('28.9.'!F84=1,'28.9.'!H84,"---")))))))) -> Ratze | W80: =IF(OR(ISBLANK('28.9.'!F78),ISBLANK('28.9.'!F79),ISBLANK('28.9.'!F80),ISBLANK('28.9.'!F81),ISBLANK('28.9.'!F82),ISBLANK('28.9.'!F83),ISBLANK('28.9.'!F84)),"Ergebnis offen",IF('28.9.'!F78=2,'28.9.'!H78,IF('28.9.'!F79=2,'28.9.'!H79,IF('28.9.'!F80=2,'28.9.'!H80,IF('28.9.'!F81=2,'28.9.'!H81,IF('28.9.'!F82=2,'28.9.'!H82,IF('28.9.'!F83=2,'28.9.'!H83,IF('28.9.'!F84=2,'28.9.'!H84,"---")))))))) -> Markus | AG80: =IF(OR(ISBLANK('28.9.'!F78),ISBLANK('28.9.'!F79),ISBLANK('28.9.'!F80),ISBLANK('28.9.'!F81),ISBLANK('28.9.'!F82),ISBLANK('28.9.'!F83),ISBLANK('28.9.'!F84)),"Ergebnis offen",IF('28.9.'!F78=3,'28.9.'!H78,IF('28.9.'!F79=3,'28.9.'!H79,IF('28.9.'!F80=3,'28.9.'!H80,IF('28.9.'!F81=3,'28.9.'!H81,IF('28.9.'!F82=3,'28.9.'!H82,IF('28.9.'!F83=3,'28.9.'!H83,IF('28.9.'!F84=3,'28.9.'!H84,"---")))))))) -> Patrick | AQ80: =IF(OR(ISBLANK('28.9.'!F78),ISBLANK('28.9.'!F79),ISBLANK('28.9.'!F80),ISBLANK('28.9.'!F81),ISBLANK('28.9.'!F82),ISBLANK('28.9.'!F83),ISBLANK('28.9.'!F84)),"Ergebnis offen",IF('28.9.'!F78=4,'28.9.'!H78,IF('28.9.'!F79=4,'28.9.'!H79,IF('28.9.'!F80=4,'28.9.'!H80,IF('28.9.'!F81=4,'28.9.'!H81,IF('28.9.'!F82=4,'28.9.'!H82,IF('28.9.'!F83=4,'28.9.'!H83,IF('28.9.'!F84=4,'28.9.'!H84,"---")))))))) -> Christoph | BA80: =IF(OR(ISBLANK('28.9.'!F78),ISBLANK('28.9.'!F79),ISBLANK('28.9.'!F80),ISBLANK('28.9.'!F81),ISBLANK('28.9.'!F82),ISBLANK('28.9.'!F83),ISBLANK('28.9.'!F84)),"Ergebnis offen",IF('28.9.'!F78=5,'28.9.'!H78,IF('28.9.'!F79=5,'28.9.'!H79,IF('28.9.'!F80=5,'28.9.'!H80,IF('28.9.'!F81=5,'28.9.'!H81,IF('28.9.'!F82=5,'28.9.'!H82,IF('28.9.'!F83=5,'28.9.'!H83,IF('28.9.'!F84=5,'28.9.'!H84,"---")))))))) -> Schmiddi | BK80: =IF(OR(ISBLANK('28.9.'!F78),ISBLANK('28.9.'!F79),ISBLANK('28.9.'!F80),ISBLANK('28.9.'!F81),ISBLANK('28.9.'!F82),ISBLANK('28.9.'!F83),ISBLANK('28.9.'!F84)),"Ergebnis offen",IF('28.9.'!F78=6,'28.9.'!H78,IF('28.9.'!F79=6,'28.9.'!H79,IF('28.9.'!F80=6,'28.9.'!H80,IF('28.9.'!F81=6,'28.9.'!H81,IF('28.9.'!F82=6,'28.9.'!H82,IF('28.9.'!F83=6,'28.9.'!H83,IF('28.9.'!F84=6,'28.9.'!H84,"---")))))))) -> --- | BU80: =IF(OR(ISBLANK('28.9.'!F78),ISBLANK('28.9.'!F79),ISBLANK('28.9.'!F80),ISBLANK('28.9.'!F81),ISBLANK('28.9.'!F82),ISBLANK('28.9.'!F83),ISBLANK('28.9.'!F84)),"Ergebnis offen",IF('28.9.'!F78=7,'28.9.'!H78,IF('28.9.'!F79=7,'28.9.'!H79,IF('28.9.'!F80=7,'28.9.'!H80,IF('28.9.'!F81=7,'28.9.'!H81,IF('28.9.'!F82=7,'28.9.'!H82,IF('28.9.'!F83=7,'28.9.'!H83,IF('28.9.'!F84=7,'28.9.'!H84,"---")))))))) -> ---

Sheet Zuweisung (Formeln) (hidden)
B1: Spielername | C1: Spielernummer | D1: Zuordnung | F1: Hilfsspalte Spielername | G1: Hilfsspalte Spielernummer
B2: ='Zuweisung der Spielernummern'!M7 -> Spielername | C2: Spieler 1 | D2: =INDEX($C$2:$C$8,MATCH(LARGE($G$2:$G$8,ROW(A1)),$G$2:$G$8,0),1) -> Spieler 2 | F2: =RAND() -> 0.8069454027 | G2: 0.7496381275
B3: ='Zuweisung der Spielernummern'!W7 -> Spielername | C3: Spieler 2 | D3: =INDEX($C$2:$C$8,MATCH(LARGE($G$2:$G$8,ROW(A2)),$G$2:$G$8,0),1) -> Spieler 1 | F3: 0.5696496334 | G3: 0.8070142649
B4: ='Zuweisung der Spielernummern'!AG7 -> Spielername | C4: Spieler 3 | D4: Spieler 4 | F4: 0.4408977465 | G4: 0.3813997195
B5: ='Zuweisung der Spielernummern'!AQ7 -> Spielername | C5: Spieler 4 | D5: Spieler 7 | F5: 0.4769059082 | G5: 0.6592144959
B6: ='Zuweisung der Spielernummern'!BA7 -> Spielername | C6: Spieler 5 | D6: Spieler 3 | F6: 0.499875054 | G6: 0.02018767323
B7: ='Zuweisung der Spielernummern'!BK7 -> Spielername | C7: Spieler 6 | D7: Spieler 6 | F7: 0.0643050551 | G7: 0.2596024492
B8: ='Zuweisung der Spielernummern'!BU7 -> Spielername | C8: Spieler 7 | D8: Spieler 5 | F8: 0.3317394199 | G8: 0.4403721346
B10: ='Zuweisung der Spielernummern'!Q14 -> Spielername | C10: Spieler 1 | D10: =INDEX($C$10:$C$15,MATCH(LARGE($G$10:$G$15,ROW(A1)),$G$10:$G$15,0),1) -> Spieler 6 | F10: 0.2743157271 | G10: 0.4298380514
B11: ='Zuweisung der Spielernummern'!AB14 -> Spielername | C11: Spieler 2 | D11: =INDEX($C$10:$C$15,MATCH(LARGE($G$10:$G$15,ROW(A2)),$G$10:$G$15,0),1) -> Spieler 1 | F11: 0.1152352717 | G11: 0.2877115959
B12: ='Zuweisung der Spielernummern'!AM14 -> Spielername | C12: Spieler 3 | D12: Spieler 5 | F12: 0.1567594215 | G12: 0.2600537737
B13: ='Zuweisung der Spielernummern'!AX14 -> Spielername | C13: Spieler 4 | D13: Spieler 2 | F13: 0.2945651288 | G13: 0.06153584758
B14: ='Zuweisung der Spielernummern'!BI14 -> Spielername | C14: Spieler 5 | D14: Spieler 3 | F14: 0.6133876359 | G14: 0.3035803733
B15: ='Zuweisung der Spielernummern'!BT14 -> Spielername | C15: Spieler 6 | D15: Spieler 4 | F15: 0.0172999283 | G15: 0.8317747662
B17: ='Zuweisung der Spielernummern'!M21 -> Spielername | C17: Spieler 1 | D17: =INDEX($C$17:$C$21,MATCH(LARGE($G$17:$G$21,ROW(A1)),$G$17:$G$21,0),1) -> Spieler 2 | F17: 0.6643987746 | G17: 0.2326703943
B18: ='Zuweisung der Spielernummern'!AA21 -> Spielername | C18: Spieler 2 | D18: =INDEX($C$17:$C$21,MATCH(LARGE($G$17:$G$21,ROW(A2)),$G$17:$G$21,0),1) -> Spieler 4 | F18: =RAND() -> 0.3561862271 | G18: 0.8656806038
B19: ='Zuweisung der Spielernummern'!AO21 -> Spielername | C19: Spieler 3 | D19: Spieler 1 | F19: 0.486050018 | G19: 0.1126425302
B20: ='Zuweisung der Spielernummern'!BC21 -> Spielername | C20: Spieler 4 | D20: Spieler 3 | F20: 0.6686684124 | G20: 0.3931387148
B21: ='Zuweisung der Spielernummern'!BQ21 -> Spielername | C21: Spieler 5 | D21: Spieler 5 | F21: 0.1881485277 | G21: 0.02981802965
B23: ='Zuweisung der Spielernummern'!O28 -> Spielername | C23: Spieler 1 | D23: =INDEX($C$23:$C$26,MATCH(LARGE($G$23:$G$26,ROW(A1)),$G$23:$G$26,0),1) -> Spieler 1 | F23: =RAND() -> 0.3559332293 | G23: 0.6850170308
B24: ='Zuweisung der Spielernummern'!AF28 -> Spielername | C24: Spieler 2 | D24: =INDEX($C$23:$C$26,MATCH(LARGE($G$23:$G$26,ROW(A2)),$G$23:$G$26,0),1) -> Spieler 4 | F24: 0.3146873188 | G24: 0.2788033737
B25: ='Zuweisung der Spielernummern'!AW28 -> Spielername | C25: Spieler 3 | D25: =INDEX($C$23:$C$26,MATCH(LARGE($G$23:$G$26,ROW(A3)),$G$23:$G$26,0),1) -> Spieler 3 | F25: 0.7468186031 | G25: 0.2887171781
B26: ='Zuweisung der Spielernummern'!BN28 -> Spielername | C26: Spieler 4 | D26: =INDEX($C$23:$C$26,MATCH(LARGE($G$23:$G$26,ROW(A4)),$G$23:$G$26,0),1) -> Spieler 2 | F26: 0.05005974472 | G26: 0.4427078936

Sheet Beginn_Auswertung (hidden)

Sheet 21.10.
B2: ="Turnier am " & MID(CELL("dateiname",A1),SEARCH("]",CELL("dateiname",A1))+1,31) -> Turnier am 21.10.
C5: Spielerliste
C7: =" Spieler" -> Spieler | Q7: Spieler 1 | AB7: Spieler 2 | AM7: Spieler 3 | AX7: Spieler 4 | BI7: Spieler 5 | BT7: Spieler 6
C8: =" Name" -> Name | Q8: Christoph | AB8: Ratze | AM8: Schmiddi | AX8: Patrick | BI8: Jule | BT8: Markus
C12: Spielplan
C14: 00:12:00 | H14: Spiel | M14: Datum | S14: Uhrzeit | Y14: Austragungsort | AJ14: Paarung | BR14: Ergebnis | CG14: Spiele | CH14: SiegHeim | CI14: Unentschieden | CJ14: SiegGast
C16: Hinrunde | H16: 1 | M16: =MID(CELL("dateiname",A1),SEARCH("]",CELL("dateiname",A1))+1,31) -> 21.10. | S16: 21:00:00 | Y16: Fernseher | AJ16: =$Q$8 -> Christoph | AY16: : | BB16: =$AB$8 -> Ratze | BR16: 2 | BW16: : | BZ16: 0 | CG16: =IF(AND(ISNUMBER(BR16),ISNUMBER(BZ16)),1,0) -> 1 | CH16: =IF(OR(ISBLANK(BR16),ISBLANK(BZ16)),0,IF(BR16>BZ16,1,0)) -> 1 | CI16: =IF(OR(ISBLANK(BR16),ISBLANK(BZ16)),0,IF(BR16=BZ16,1,0)) -> 0 | CJ16: =IF(OR(ISBLANK(BR16),ISBLANK(BZ16)),0,IF(BR16<BZ16,1,0)) -> 0
H17: =H16+1 -> 2 | M17: =$M$16 -> 21.10. | S17: =S16 -> 21:00:00 | Y17: =$Y$16 -> Fernseher | AJ17: =$AM$8 -> Schmiddi | AY17: : | BB17: =$AX$8 -> Patrick | BR17: 2 | BW17: : | BZ17: 6 | CG17: =IF(AND(ISNUMBER(BR17),ISNUMBER(BZ17)),1,0) -> 1 | CH17: =IF(OR(ISBLANK(BR17),ISBLANK(BZ17)),0,IF(BR17>BZ17,1,0)) -> 0 | CI17: =IF(OR(ISBLANK(BR17),ISBLANK(BZ17)),0,IF(BR17=BZ17,1,0)) -> 0 | CJ17: =IF(OR(ISBLANK(BR17),ISBLANK(BZ17)),0,IF(BR17<BZ17,1,0)) -> 1
H18: =H17+1 -> 3 | M18: =$M$16 -> 21.10. | S18: =S16 -> 21:00:00 | Y18: =$Y$16 -> Fernseher | AJ18: =$BI$8 -> Jule | AY18: : | BB18: =$BT$8 -> Markus | BR18: 4 | BW18: : | BZ18: 2 | CG18: 1 | CH18: 1 | CI18: 0 | CJ18: 0
H19: =H18+1 -> 4 | M19: 21.10. | S19: =S16+$C$14 -> 21:12:00 | Y19: Fernseher | AJ19: =$Q$8 -> Christoph | AY19: : | BB19: =$AM$8 -> Schmiddi | BR19: 1 | BW19: : | BZ19: 2 | CG19: 1 | CH19: 0 | CI19: 0 | CJ19: 1
H20: 5 | M20: 21.10. | S20: =S17+$C$14 -> 21:12:00 | Y20: Fernseher | AJ20: =$AB$8 -> Ratze | AY20: : | BB20: =$BI$8 -> Jule | BR20: 1 | BW20: : | BZ20: 1 | CG20: 1 | CH20: 0 | CI20: 1 | CJ20: 0
H21: 6 | M21: 21.10. | S21: =S18+$C$14 -> 21:12:00 | Y21: Fernseher | AJ21: =$AX$8 -> Patrick | AY21: : | BB21: =$BT$8 -> Markus | BR21: 2 | BW21: : | BZ21: 1 | CG21: 1 | CH21: 1 | CI21: 0 | CJ21: 0
H22: =H21+1 -> 7 | M22: 21.10. | S22: =S19+$C$14 -> 21:24:00 | Y22: Fernseher | AJ22: =$BI$8 -> Jule | AY22: : | BB22: =$Q$8 -> Christoph | BR22: 2 | BW22: : | BZ22: 3 | CG22: 1 | CH22: 0 | CI22: 0 | CJ22: 1
H23: 8 | M23: 21.10. | S23: =S20+$C$14 -> 21:24:00 | Y23: Fernseher | AJ23: =$AB$8 -> Ratze | AY23: : | BB23: =$AX$8 -> Patrick | BR23: 1 | BW23: : | BZ23: 3 | CG23: 1 | CH23: 0 | CI23: 0 | CJ23: 1
H24: 9 | M24: 21.10. | S24: 21:24:00 | Y24: Fernseher | AJ24: =$BT$8 -> Markus | AY24: : | BB24: =$AM$8 -> Schmiddi | BR24: 1 | BW24: : | BZ24: 3 | CG24: 1 | CH24: 0 | CI24: 0 | CJ24: 1
H25: =H24+1 -> 10 | M25: 21.10. | S25: =S22+$C$14 -> 21:36:00 | Y25: Fernseher | AJ25: =$Q$8 -> Christoph | AY25: : | BB25: =$AX$8 -> Patrick | BR25: 0 | BW25: : | BZ25: 4 | CG25: 1 | CH25: 0 | CI25: 0 | CJ25: 1
H26: 11 | M26: 21.10. | S26: 21:36:00 | Y26: Fernseher | AJ26: =$BT$8 -> Markus | AY26: : | BB26: =$AB$8 -> Ratze | BR26: 1 | BW26: : | BZ26: 0 | CG26: 1 | CH26: 1 | CI26: 0 | CJ26: 0
H27: =H26+1 -> 12 | M27: 21.10. | S27: =S24+$C$14 -> 21:36:00 | Y27: Fernseher | AJ27: =$AM$8 -> Schmiddi | AY27: : | BB27: =$BI$8 -> Jule | BR27: 2 | BW27: : | BZ27: 1 | CG27: 1 | CH27: 1 | CI27: 0 | CJ27: 0
H28: 13 | M28: 21.10. | S28: 21:48:00 | Y28: Fernseher | AJ28: =$BT$8 -> Markus | AY28: : | BB28: =$Q$8 -> Christoph | BR28: 5 | BW28: : | BZ28: 0 | CG28: 1 | CH28: 1 | CI28: 0 | CJ28: 0
H29: =H28+1 -> 14 | M29: 21.10. | S29: =S26+$C$14 -> 21:48:00 | Y29: Fernseher | AJ29: =$AB$8 -> Ratze | AY29: : | BB29: =$AM$8 -> Schmiddi | BR29: 1 | BW29: : | BZ29: 1 | CG29: 1 | CH29: 0 | CI29: 1 | CJ29: 0
H30: 15 | M30: 21.10. | S30: =S27+$C$14 -> 21:48:00 | Y30: Fernseher | AJ30: =$AX$8 -> Patrick | AY30: : | BB30: =$BI$8 -> Jule | BR30: 2 | BW30: : | BZ30: 2 | CG30: 1 | CH30: 0 | CI30: 1 | CJ30: 0
C32: Rückrunde | H32: =H30+1 -> 16 | M32: =$M$16 -> 21.10. | S32: =S30+$C$14 -> 22:00:00 | Y32: =$Y$16 -> Fernseher | AJ32: =$AB$8 -> Ratze | AY32: : | BB32: =$Q$8 -> Christoph | BR32: 2 | BW32: : | BZ32: 1 | CG32: =IF(AND(ISNUMBER(BR32),ISNUMBER(BZ32)),1,0) -> 1 | CH32: =IF(OR(ISBLANK(BR32),ISBLANK(BZ32)),0,IF(BR32>BZ32,1,0)) -> 1 | CI32: =IF(OR(ISBLANK(BR32),ISBLANK(BZ32)),0,IF(BR32=BZ32,1,0)) -> 0 | CJ32: =IF(OR(ISBLANK(BR32),ISBLANK(BZ32)),0,IF(BR32<BZ32,1,0)) -> 0
H33: =H32+1 -> 17 | M33: 21.10. | S33: =S30+$C$14 -> 22:00:00 | Y33: Fernseher | AJ33: =$AX$8 -> Patrick | AY33: : | BB33: =$AM$8 -> Schmiddi | BR33: 3 | BW33: : | BZ33: 3 | CG33: 1 | CH33: 0 | CI33: 1 | CJ33: 0
H34: =H33+1 -> 18 | M34: 21.10. | S34: =S30+$C$14 -> 22:00:00 | Y34: Fernseher | AJ34: =$BT$8 -> Markus | AY34: : | BB34: =$BI$8 -> Jule | BR34: 3 | BW34: : | BZ34: 2 | CG34: 1 | CH34: 1 | CI34: 0 | CJ34: 0
H35: =H34+1 -> 19 | M35: 21.10. | S35: =S32+$C$14 -> 22:12:00 | Y35: Fernseher | AJ35: =$AM$8 -> Schmiddi | AY35: : | BB35: =$Q$8 -> Christoph | BR35: 0 | BW35: : | BZ35: 5 | CG35: 1 | CH35: 0 | CI35: 0 | CJ35: 1
H36: 20 | M36: 21.10. | S36: =S33+$C$14 -> 22:12:00 | Y36: Fernseher | AJ36: =$BI$8 -> Jule | AY36: : | BB36: =$AB$8 -> Ratze | BR36: 2 | BW36: : | BZ36: 2 | CG36: 1 | CH36: 0 | CI36: 1 | CJ36: 0
H37: 21 | M37: 21.10. | S37: =S34+$C$14 -> 22:12:00 | Y37: Fernseher | AJ37: =$BT$8 -> Markus | AY37: : | BB37: =$AX$8 -> Patrick | BR37: 2 | BW37: : | BZ37: 1 | CG37: 1 | CH37: 1 | CI37: 0 | CJ37: 0
H38: =H37+1 -> 22 | M38: 21.10. | S38: =S35+$C$14 -> 22:24:00 | Y38: Fernseher | AJ38: =$Q$8 -> Christoph | AY38: : | BB38: =$BI$8 -> Jule | BR38: 3 | BW38: : | BZ38: 0 | CG38: 1 | CH38: 1 | CI38: 0 | CJ38: 0
H39: 23 | M39: 21.10. | S39: =S36+$C$14 -> 22:24:00 | Y39: Fernseher | AJ39: =$AX$8 -> Patrick | AY39: : | BB39: =$AB$8 -> Ratze | BR39: 2 | BW39: : | BZ39: 1 | CG39: 1 | CH39: 1 | CI39: 0 | CJ39: 0
H40: 24 | M40: 21.10. | S40: 22:24:00 | Y40: Fernseher | AJ40: =$AM$8 -> Schmiddi | AY40: : | BB40: =$BT$8 -> Markus | BR40: 1 | BW40: : | BZ40: 1 | CG40: 1 | CH40: 0 | CI40: 1 | CJ40: 0
H41: =H40+1 -> 25 | M41: 21.10. | S41: =S38+$C$14 -> 22:36:00 | Y41: Fernseher | AJ41: =$AX$8 -> Patrick | AY41: : | BB41: =$Q$8 -> Christoph | BR41: 3 | BW41: : | BZ41: 1 | CG41: 1 | CH41: 1 | CI41: 0 | CJ41: 0
H42: 26 | M42: 21.10. | S42: 22:36:00 | Y42: Fernseher | AJ42: =$AB$8 -> Ratze | AY42: : | BB42: =$BT$8 -> Markus | BR42: 2 | BW42: : | BZ42: 3 | CG42: 1 | CH42: 0 | CI42: 0 | CJ42: 1
H43: =H42+1 -> 27 | M43: 21.10. | S43: =S40+$C$14 -> 22:36:00 | Y43: Fernseher | AJ43: =$BI$8 -> Jule | AY43: : | BB43: =$AM$8 -> Schmiddi | BR43: 3 | BW43: : | BZ43: 0 | CG43: 1 | CH43: 1 | CI43: 0 | CJ43: 0
H44: 28 | M44: 21.10. | S44: 22:48:00 | Y44: Fernseher | AJ44: =$Q$8 -> Christoph | AY44: : | BB44: =$BT$8 -> Markus | BR44: 1 | BW44: : | BZ44: 2 | CG44: 1 | CH44: 0 | CI44: 0 | CJ44: 1
H45: =H44+1 -> 29 | M45: 21.10. | S45: =S42+$C$14 -> 22:48:00 | Y45: Fernseher | AJ45: =$AM$8 -> Schmiddi | AY45: : | BB45: =$AB$8 -> Ratze | BR45: 1 | BW45: : | BZ45: 4 | CG45: 1 | CH45: 0 | CI45: 0 | CJ45: 1
H46: 30 | M46: 21.10. | S46: =S43+$C$14 -> 22:48:00 | Y46: Fernseher | AJ46: =$BI$8 -> Jule | AY46: : | BB46: =$AX$8 -> Patrick | BR46: 0 | BW46: : | BZ46: 4 | CG46: 1 | CH46: 0 | CI46: 0 | CJ46: 1
C62: Tabelle (unsortiert)
C64: Rang | H64: Spieler | T64: Spiele | Z64: Siege | AK64: Unentschieden | AV64: Niederlagen | BG64: Tore | BS64: +/- | BX64: Punkte | CB64: HS
C65: =IF(T65=0,0,RANK(BX65,$BX$65:$CA$70,0)) -> 3 | H65: =$Q$8 -> Christoph | T65: =CG16+CG19+CG22+CG25+CG28+CG32+CG35+CG38+CG41+CG44 -> 10 | Z65: =CH16+CH19+CJ22+CH25+CJ28+CJ32+CJ35+CH38+CJ41+CH44 -> 4 | AK65: =CI16+CI19+CI22+CI25+CI28+CI32+CI35+CI38+CI41+CI44 -> 0 | AV65: =CJ16+CJ19+CH22+CJ25+CH28+CH32+CH35+CJ38+CH41+CJ44 -> 6 | BG65: =BR16+BR19+BZ22+BR25+BZ28+BZ32+BZ35+BR38+BZ41+BR44 -> 17 | BL65: : | BN65: =BZ16+BZ19+BR22+BZ25+BR28+BR32+BR35+BZ38+BR41+BZ44 -> 20 | BS65: =BG65-BN65 -> -3 | BX65: =(Z65*3)+AK65 -> 12 | CB65: =BX65+ROW()/1000 -> 12.065
C66: 5 | H66: =$AB$8 -> Ratze | T66: =CG16+CG20+CG23+CG26+CG29+CG32+CG36+CG39+CG42+CG45 -> 10 | Z66: =CJ16+CH20+CH23+CJ26+CH29+CH32+CJ36+CJ39+CH42+CJ45 -> 2 | AK66: =CI16+CI20+CI23+CI26+CI29+CI32+CI36+CI39+CI42+CI45 -> 3 | AV66: =CH16+CJ20+CJ23+CH26+CJ29+CJ32+CH36+CH39+CJ42+CH45 -> 5 | BG66: =BZ16+BR20+BR23+BZ26+BR29+BR32+BZ36+BZ39+BR42+BZ45 -> 14 | BL66: : | BN66: =BR16+BZ20+BZ23+BR26+BZ29+BZ32+BR36+BR39+BZ42+BR45 -> 17 | BS66: -3 | BX66: 9 | CB66: 9.066
C67: 3 | H67: =$AM$8 -> Schmiddi | T67: =CG17+CG19+CG24+CG27+CG29+CG33+CG35+CG40+CG43+CG45 -> 10 | Z67: =CH17+CJ19+CJ24+CH27+CJ29+CJ33+CH35+CH40+CJ43+CH45 -> 3 | AK67: =CI17+CI19+CI24+CI27+CI29+CI33+CI35+CI40+CI43+CI45 -> 3 | AV67: =CJ17+CH19+CH24+CJ27+CH29+CH33+CJ35+CJ40+CH43+CJ45 -> 4 | BG67: =BR17+BZ19+BZ24+BR27+BZ29+BZ33+BR35+BR40+BZ43+BR45 -> 15 | BL67: : | BN67: =BZ17+BR19+BR24+BZ27+BR29+BR33+BZ35+BZ40+BR43+BZ45 -> 26 | BS67: -11 | BX67: 12 | CB67: 12.067
C68: 1 | H68: =$AX$8 -> Patrick | T68: =CG17+CG21+CG23+CG25+CG30+CG33+CG37+CG39+CG41+CG46 -> 10 | Z68: =CJ17+CH21+CJ23+CJ25+CH30+CH33+CJ37+CH39+CH41+CJ46 -> 7 | AK68: =CI17+CI21+CI23+CI25+CI30+CI33+CI37+CI39+CI41+CI46 -> 2 | AV68: =CH17+CJ21+CH23+CH25+CJ30+CJ33+CH37+CJ39+CJ41+CH46 -> 1 | BG68: =BZ17+BR21+BZ23+BZ25+BR30+BR33+BZ37+BR39+BR41+BZ46 -> 30 | BL68: : | BN68: =BR17+BZ21+BR23+BR25+BZ30+BZ33+BR37+BZ39+BZ41+BR46 -> 13 | BS68: 17 | BX68: 23 | CB68: 23.068
C69: 5 | H69: =$BI$8 -> Jule | T69: =CG18+CG20+CG22+CG27+CG30+CG34+CG36+CG38+CG43+CG46 -> 10 | Z69: =CH18+CJ20+CH22+CJ27+CJ30+CJ34+CH36+CJ38+CH43+CH46 -> 2 | AK69: =CI18+CI20+CI22+CI27+CI30+CI34+CI36+CI38+CI43+CI46 -> 3 | AV69: =CJ18+CH20+CJ22+CH27+CH30+CH34+CJ36+CH38+CJ43+CJ46 -> 5 | BG69: =BR18+BZ20+BR22+BZ27+BZ30+BZ34+BR36+BZ38+BR43+BR46 -> 17 | BL69: : | BN69: =BZ18+BR20+BZ22+BR27+BR30+BR34+BZ36+BR38+BZ43+BZ46 -> 22 | BS69: -5 | BX69: 9 | CB69: 9.069
C70: 2 | H70: =BT8 -> Markus | T70: =CG18+CG21+CG24+CG26+CG28+CG34+CG37+CG40+CG42+CG44 -> 10 | Z70: =CJ18+CJ21+CH24+CH26+CH28+CH34+CH37+CJ40+CJ42+CJ44 -> 6 | AK70: =CI18+CI21+CI24+CI26+CI28+CI34+CI37+CI40+CI42+CI44 -> 1 | AV70: =CH18+CH21+CJ24+CJ26+CJ28+CJ34+CJ37+CH40+CH42+CH44 -> 3 | BG70: =BZ18+BZ21+BR24+BR26+BR28+BR34+BR37+BZ40+BZ42+BZ44 -> 21 | BL70: : | BN70: =BR18+BR21+BZ24+BZ26+BZ28+BZ34+BZ37+BR40+BR42+BR44 -> 16 | BS70: 5 | BX70: 19 | CB70: 19.07
H71: Spieler 7 | T71: 0 | Z71: 0 | AK71: 0 | AV71: 0 | BG71: 0 | BL71: : | BN71: 0 | BS71: 0 | BX71: 0 | CB71: 0
C75: Tabelle
C77: Rang | H77: Spieler | T77: Spiele | Z77: Siege | AK77: Unentschieden | AV77: Niederlagen | BG77: Tore | BS77: +/- | BX77: Punkte
C78: =INDEX($C$65:$C$70,MATCH(LARGE($CB$65:$CB$70,ROW(A1)),$CB$65:$CB$70,0),1) -> 1 | F78: 1 | H78: =INDEX($H$65:$H$70,MATCH(LARGE($CB$65:$CB$70,ROW(A1)),$CB$65:$CB$70,0),1) -> Patrick | T78: =INDEX($T$65:$T$70,MATCH(LARGE($CB$65:$CB$70,ROW(A1)),$CB$65:$CB$70,0),1) -> 10 | Z78: =INDEX($Z$65:$Z$70,MATCH(LARGE($CB$65:$CB$70,ROW(A1)),$CB$65:$CB$70,0),1) -> 7 | AK78: =INDEX($AK$65:$AK$70,MATCH(LARGE($CB$65:$CB$70,ROW(A1)),$CB$65:$CB$70,0),1) -> 2 | AV78: =INDEX($AV$65:$AV$70,MATCH(LARGE($CB$65:$CB$70,ROW(A1)),$CB$65:$CB$70,0),1) -> 1 | BG78: =INDEX($BG$65:$BG$70,MATCH(LARGE($CB$65:$CB$70,ROW(A1)),$CB$65:$CB$70,0),1) -> 30 | BL78: : | BN78: =INDEX($BN$65:$BN$70,MATCH(LARGE($CB$65:$CB$70,ROW(A1)),$CB$65:$CB$70,0),1) -> 13 | BS78: =INDEX($BS$65:$BS$70,MATCH(LARGE($CB$65:$CB$70,ROW(A1)),$CB$65:$CB$70,0),1) -> 17 | BX78: =INDEX($BX$65:$BX$70,MATCH(LARGE($CB$65:$CB$70,ROW(A1)),$CB$65:$CB$70,0),1) -> 23
C79: =INDEX($C$65:$C$70,MATCH(LARGE($CB$65:$CB$70,ROW(A2)),$CB$65:$CB$70,0),1) -> 2 | F79: 2 | H79: Markus | T79: 10 | Z79: 6 | AK79: 1 | AV79: 3 | BG79: 21 | BL79: : | BN79: 16 | BS79: 5 | BX79: 19
C80: 3 | F80: 4 | H80: Schmiddi | T80: 10 | Z80: 3 | AK80: 3 | AV80: 4 | BG80: 15 | BL80: : | BN80: 26 | BS80: -11 | BX80: 12
C81: 3 | F81: 3 | H81: Christoph | T81: 10 | Z81: 4 | AK81: 0 | AV81: 6 | BG81: 17 | BL81: : | BN81: 20 | BS81: -3 | BX81: 12
C82: 5 | F82: 6 | H82: Jule | T82: 10 | Z82: 2 | AK82: 3 | AV82: 5 | BG82: 17 | BL82: : | BN82: 22 | BS82: -5 | BX82: 9
C83: 5 | F83: 5 | H83: Ratze | T83: 10 | Z83: 2 | AK83: 3 | AV83: 5 | BG83: 14 | BL83: : | BN83: 17 | BS83: -3 | BX83: 9
C84: --- | F84: --- | H84: Spieler 7 | T84: 0 | Z84: 0 | AK84: 0 | AV84: 0 | BG84: 0 | BL84: : | BN84: 0 | BS84: 0 | BX84: 0
C88: Tabelle (nach Alphabet)
C90: Rang | H90: Spieler | T90: Spiele | Z90: Siege | AK90: Unentschieden | AV90: Niederlagen | BG90: Tore | BS90: +/- | BX90: Punkte
C91: =IF($H$78="Basti",$F$78,IF($H$79="Basti",$F$79,IF($H$80="Basti",$F$80,IF($H$81="Basti",$F$81,IF($H$82="Basti",$F$82,IF($H$83="Basti",$F$83,IF($H$84="Basti",$F$84,0))))))) -> 0 | H91: Basti | T91: =IF($H$78="Basti",$T$78,IF($H$79="Basti",$T$79,IF($H$80="Basti",$T$80,IF($H$81="Basti",$T$81,IF($H$82="Basti",$T$82,IF($H$83="Basti",$T$83,IF($H$84="Basti",$T$84,0))))))) -> 0 | Z91: =IF($H$78="Basti",$Z$78,IF($H$79="Basti",$Z$79,IF($H$80="Basti",$Z$80,IF($H$81="Basti",$Z$81,IF($H$82="Basti",$Z$82,IF($H$83="Basti",$Z$83,IF($H$84="Basti",$Z$84,0))))))) -> 0 | AK91: =IF($H$78="Basti",$AK$78,IF($H$79="Basti",$AK$79,IF($H$80="Basti",$AK$80,IF($H$81="Basti",$AK$81,IF($H$82="Basti",$AK$82,IF($H$83="Basti",$AK$83,IF($H$84="Basti",$AK$84,0))))))) -> 0 | AV91: =IF($H$78="Basti",$AV$78,IF($H$79="Basti",$AV$79,IF($H$80="Basti",$AV$80,IF($H$81="Basti",$AV$81,IF($H$82="Basti",$AV$82,IF($H$83="Basti",$AV$83,IF($H$84="Basti",$AV$84,0))))))) -> 0 | BG91: =IF($H$78="Basti",$BG$78,IF($H$79="Basti",$BG$79,IF($H$80="Basti",$BG$80,IF($H$81="Basti",$BG$81,IF($H$82="Basti",$BG$82,IF($H$83="Basti",$BG$83,IF($H$84="Basti",$BG$84,0))))))) -> 0 | BL91: : | BN91: =IF($H$78="Basti",$BN$78,IF($H$79="Basti",$BN$79,IF($H$80="Basti",$BN$80,IF($H$81="Basti",$BN$81,IF($H$82="Basti",$BN$82,IF($H$83="Basti",$BN$83,IF($H$84="Basti",$BN$84,0))))))) -> 0 | BS91: =IF($H$78="Basti",$BS$78,IF($H$79="Basti",$BS$79,IF($H$80="Basti",$BS$80,IF($H$81="Basti",$BS$81,IF($H$82="Basti",$BS$82,IF($H$83="Basti",$BS$83,IF($H$84="Basti",$BS$84,0))))))) -> 0 | BX91: =IF($H$78="Basti",$BX$78,IF($H$79="Basti",$BX$79,IF($H$80="Basti",$BX$80,IF($H$81="Basti",$BX$81,IF($H$82="Basti",$BX$82,IF($H$83="Basti",$BX$83,IF($H$84="Basti",$BX$84,0))))))) -> 0
C92: =IF($H$78="Christoph",$F$78,IF($H$79="Christoph",$F$79,IF($H$80="Christoph",$F$80,IF($H$81="Christoph",$F$81,IF($H$82="Christoph",$F$82,IF($H$83="Christoph",$F$83,IF($H$84="Christoph",$F$84,0))))))) -> 3 | H92: Christoph | T92: =IF($H$78="Christoph",$T$78,IF($H$79="Christoph",$T$79,IF($H$80="Christoph",$T$80,IF($H$81="Christoph",$T$81,IF($H$82="Christoph",$T$82,IF($H$83="Christoph",$T$83,IF($H$84="Christoph",$T$84,0))))))) -> 10 | Z92: =IF($H$78="Christoph",$Z$78,IF($H$79="Christoph",$Z$79,IF($H$80="Christoph",$Z$80,IF($H$81="Christoph",$Z$81,IF($H$82="Christoph",$Z$82,IF($H$83="Christoph",$Z$83,IF($H$84="Christoph",$Z$84,0))))))) -> 4 | AK92: =IF($H$78="Christoph",$AK$78,IF($H$79="Christoph",$AK$79,IF($H$80="Christoph",$AK$80,IF($H$81="Christoph",$AK$81,IF($H$82="Christoph",$AK$82,IF($H$83="Christoph",$AK$83,IF($H$84="Christoph",$AK$84,0))))))) -> 0 | AV92: =IF($H$78="Christoph",$AV$78,IF($H$79="Christoph",$AV$79,IF($H$80="Christoph",$AV$80,IF($H$81="Christoph",$AV$81,IF($H$82="Christoph",$AV$82,IF($H$83="Christoph",$AV$83,IF($H$84="Christoph",$AV$84,0))))))) -> 6 | BG92: =IF($H$78="Christoph",$BG$78,IF($H$79="Christoph",$BG$79,IF($H$80="Christoph",$BG$80,IF($H$81="Christoph",$BG$81,IF($H$82="Christoph",$BG$82,IF($H$83="Christoph",$BG$83,IF($H$84="Christoph",$BG$84,0))))))) -> 17 | BL92: : | BN92: =IF($H$78="Christoph",$BN$78,IF($H$79="Christoph",$BN$79,IF($H$80="Christoph",$BN$80,IF($H$81="Christoph",$BN$81,IF($H$82="Christoph",$BN$82,IF($H$83="Christoph",$BN$83,IF($H$84="Christoph",$BN$84,0))))))) -> 20 | BS92: =IF($H$78="Christoph",$BS$78,IF($H$79="Christoph",$BS$79,IF($H$80="Christoph",$BS$80,IF($H$81="Christoph",$BS$81,IF($H$82="Christoph",$BS$82,IF($H$83="Christoph",$BS$83,IF($H$84="Christoph",$BS$84,0))))))) -> -3 | BX92: =IF($H$78="Christoph",$BX$78,IF($H$79="Christoph",$BX$79,IF($H$80="Christoph",$BX$80,IF($H$81="Christoph",$BX$81,IF($H$82="Christoph",$BX$82,IF($H$83="Christoph",$BX$83,IF($H$84="Christoph",$BX$84,0))))))) -> 12
C93: =IF($H$78="Jule",$F$78,IF($H$79="Jule",$F$79,IF($H$80="Jule",$F$80,IF($H$81="Jule",$F$81,IF($H$82="Jule",$F$82,IF($H$83="Jule",$F$83,IF($H$84="Jule",$F$84,0))))))) -> 6 | H93: Jule | T93: =IF($H$78="Jule",$T$78,IF($H$79="Jule",$T$79,IF($H$80="Jule",$T$80,IF($H$81="Jule",$T$81,IF($H$82="Jule",$T$82,IF($H$83="Jule",$T$83,IF($H$84="Jule",$T$84,0))))))) -> 10 | Z93: =IF($H$78="Jule",$Z$78,IF($H$79="Jule",$Z$79,IF($H$80="Jule",$Z$80,IF($H$81="Jule",$Z$81,IF($H$82="Jule",$Z$82,IF($H$83="Jule",$Z$83,IF($H$84="Jule",$Z$84,0))))))) -> 2 | AK93: =IF($H$78="Jule",$AK$78,IF($H$79="Jule",$AK$79,IF($H$80="Jule",$AK$80,IF($H$81="Jule",$AK$81,IF($H$82="Jule",$AK$82,IF($H$83="Jule",$AK$83,IF($H$84="Jule",$AK$84,0))))))) -> 3 | AV93: =IF($H$78="Jule",$AV$78,IF($H$79="Jule",$AV$79,IF($H$80="Jule",$AV$80,IF($H$81="Jule",$AV$81,IF($H$82="Jule",$AV$82,IF($H$83="Jule",$AV$83,IF($H$84="Jule",$AV$84,0))))))) -> 5 | BG93: =IF($H$78="Jule",$BG$78,IF($H$79="Jule",$BG$79,IF($H$80="Jule",$BG$80,IF($H$81="Jule",$BG$81,IF($H$82="Jule",$BG$82,IF($H$83="Jule",$BG$83,IF($H$84="Jule",$BG$84,0))))))) -> 17 | BL93: : | BN93: =IF($H$78="Jule",$BN$78,IF($H$79="Jule",$BN$79,IF($H$80="Jule",$BN$80,IF($H$81="Jule",$BN$81,IF($H$82="Jule",$BN$82,IF($H$83="Jule",$BN$83,IF($H$84="Jule",$BN$84,0))))))) -> 22 | BS93: =IF($H$78="Jule",$BS$78,IF($H$79="Jule",$BS$79,IF($H$80="Jule",$BS$80,IF($H$81="Jule",$BS$81,IF($H$82="Jule",$BS$82,IF($H$83="Jule",$BS$83,IF($H$84="Jule",$BS$84,0))))))) -> -5 | BX93: =IF($H$78="Jule",$BX$78,IF($H$79="Jule",$BX$79,IF($H$80="Jule",$BX$80,IF($H$81="Jule",$BX$81,IF($H$82="Jule",$BX$82,IF($H$83="Jule",$BX$83,IF($H$84="Jule",$BX$84,0))))))) -> 9
C94: =IF($H$78="Markus",$F$78,IF($H$79="Markus",$F$79,IF($H$80="Markus",$F$80,IF($H$81="Markus",$F$81,IF($H$82="Markus",$F$82,IF($H$83="Markus",$F$83,IF($H$84="Markus",$F$84,0))))))) -> 2 | H94: Markus | T94: =IF($H$78="Markus",$T$78,IF($H$79="Markus",$T$79,IF($H$80="Markus",$T$80,IF($H$81="Markus",$T$81,IF($H$82="Markus",$T$82,IF($H$83="Markus",$T$83,IF($H$84="Markus",$T$84,0))))))) -> 10 | Z94: =IF($H$78="Markus",$Z$78,IF($H$79="Markus",$Z$79,IF($H$80="Markus",$Z$80,IF($H$81="Markus",$Z$81,IF($H$82="Markus",$Z$82,IF($H$83="Markus",$Z$83,IF($H$84="Markus",$Z$84,0))))))) -> 6 | AK94: =IF($H$78="Markus",$AK$78,IF($H$79="Markus",$AK$79,IF($H$80="Markus",$AK$80,IF($H$81="Markus",$AK$81,IF($H$82="Markus",$AK$82,IF($H$83="Markus",$AK$83,IF($H$84="Markus",$AK$84,0))))))) -> 1 | AV94: =IF($H$78="Markus",$AV$78,IF($H$79="Markus",$AV$79,IF($H$80="Markus",$AV$80,IF($H$81="Markus",$AV$81,IF($H$82="Markus",$AV$82,IF($H$83="Markus",$AV$83,IF($H$84="Markus",$AV$84,0))))))) -> 3 | BG94: =IF($H$78="Markus",$BG$78,IF($H$79="Markus",$BG$79,IF($H$80="Markus",$BG$80,IF($H$81="Markus",$BG$81,IF($H$82="Markus",$BG$82,IF($H$83="Markus",$BG$83,IF($H$84="Markus",$BG$84,0))))))) -> 21 | BL94: : | BN94: =IF($H$78="Markus",$BN$78,IF($H$79="Markus",$BN$79,IF($H$80="Markus",$BN$80,IF($H$81="Markus",$BN$81,IF($H$82="Markus",$BN$82,IF($H$83="Markus",$BN$83,IF($H$84="Markus",$BN$84,0))))))) -> 16 | BS94: =IF($H$78="Markus",$BS$78,IF($H$79="Markus",$BS$79,IF($H$80="Markus",$BS$80,IF($H$81="Markus",$BS$81,IF($H$82="Markus",$BS$82,IF($H$83="Markus",$BS$83,IF($H$84="Markus",$BS$84,0))))))) -> 5 | BX94: =IF($H$78="Markus",$BX$78,IF($H$79="Markus",$BX$79,IF($H$80="Markus",$BX$80,IF($H$81="Markus",$BX$81,IF($H$82="Markus",$BX$82,IF($H$83="Markus",$BX$83,IF($H$84="Markus",$BX$84,0))))))) -> 19
C95: =IF($H$78="Patrick",$F$78,IF($H$79="Patrick",$F$79,IF($H$80="Patrick",$F$80,IF($H$81="Patrick",$F$81,IF($H$82="Patrick",$F$82,IF($H$83="Patrick",$F$83,IF($H$84="Patrick",$F$84,0))))))) -> 1 | H95: Patrick | T95: =IF($H$78="Patrick",$T$78,IF($H$79="Patrick",$T$79,IF($H$80="Patrick",$T$80,IF($H$81="Patrick",$T$81,IF($H$82="Patrick",$T$82,IF($H$83="Patrick",$T$83,IF($H$84="Patrick",$T$84,0))))))) -> 10 | Z95: =IF($H$78="Patrick",$Z$78,IF($H$79="Patrick",$Z$79,IF($H$80="Patrick",$Z$80,IF($H$81="Patrick",$Z$81,IF($H$82="Patrick",$Z$82,IF($H$83="Patrick",$Z$83,IF($H$84="Patrick",$Z$84,0))))))) -> 7 | AK95: =IF($H$78="Patrick",$AK$78,IF($H$79="Patrick",$AK$79,IF($H$80="Patrick",$AK$80,IF($H$81="Patrick",$AK$81,IF($H$82="Patrick",$AK$82,IF($H$83="Patrick",$AK$83,IF($H$84="Patrick",$AK$84,0))))))) -> 2 | AV95: =IF($H$78="Patrick",$AV$78,IF($H$79="Patrick",$AV$79,IF($H$80="Patrick",$AV$80,IF($H$81="Patrick",$AV$81,IF($H$82="Patrick",$AV$82,IF($H$83="Patrick",$AV$83,IF($H$84="Patrick",$AV$84,0))))))) -> 1 | BG95: =IF($H$78="Patrick",$BG$78,IF($H$79="Patrick",$BG$79,IF($H$80="Patrick",$BG$80,IF($H$81="Patrick",$BG$81,IF($H$82="Patrick",$BG$82,IF($H$83="Patrick",$BG$83,IF($H$84="Patrick",$BG$84,0))))))) -> 30 | BL95: : | BN95: =IF($H$78="Patrick",$BN$78,IF($H$79="Patrick",$BN$79,IF($H$80="Patrick",$BN$80,IF($H$81="Patrick",$BN$81,IF($H$82="Patrick",$BN$82,IF($H$83="Patrick",$BN$83,IF($H$84="Patrick",$BN$84,0))))))) -> 13 | BS95: =IF($H$78="Patrick",$BS$78,IF($H$79="Patrick",$BS$79,IF($H$80="Patrick",$BS$80,IF($H$81="Patrick",$BS$81,IF($H$82="Patrick",$BS$82,IF($H$83="Patrick",$BS$83,IF($H$84="Patrick",$BS$84,0))))))) -> 17 | BX95: =IF($H$78="Patrick",$BX$78,IF($H$79="Patrick",$BX$79,IF($H$80="Patrick",$BX$80,IF($H$81="Patrick",$BX$81,IF($H$82="Patrick",$BX$82,IF($H$83="Patrick",$BX$83,IF($H$84="Patrick",$BX$84,0))))))) -> 23
C96: =IF($H$78="Ratze",$F$78,IF($H$79="Ratze",$F$79,IF($H$80="Ratze",$F$80,IF($H$81="Ratze",$F$81,IF($H$82="Ratze",$F$82,IF($H$83="Ratze",$F$83,IF($H$84="Ratze",$F$84,0))))))) -> 5 | H96: Ratze | T96: =IF($H$78="Ratze",$T$78,IF($H$79="Ratze",$T$79,IF($H$80="Ratze",$T$80,IF($H$81="Ratze",$T$81,IF($H$82="Ratze",$T$82,IF($H$83="Ratze",$T$83,IF($H$84="Ratze",$T$84,0))))))) -> 10 | Z96: =IF($H$78="Ratze",$Z$78,IF($H$79="Ratze",$Z$79,IF($H$80="Ratze",$Z$80,IF($H$81="Ratze",$Z$81,IF($H$82="Ratze",$Z$82,IF($H$83="Ratze",$Z$83,IF($H$84="Ratze",$Z$84,0))))))) -> 2 | AK96: =IF($H$78="Ratze",$AK$78,IF($H$79="Ratze",$AK$79,IF($H$80="Ratze",$AK$80,IF($H$81="Ratze",$AK$81,IF($H$82="Ratze",$AK$82,IF($H$83="Ratze",$AK$83,IF($H$84="Ratze",$AK$84,0))))))) -> 3 | AV96: =IF($H$78="Ratze",$AV$78,IF($H$79="Ratze",$AV$79,IF($H$80="Ratze",$AV$80,IF($H$81="Ratze",$AV$81,IF($H$82="Ratze",$AV$82,IF($H$83="Ratze",$AV$83,IF($H$84="Ratze",$AV$84,0))))))) -> 5 | BG96: =IF($H$78="Ratze",$BG$78,IF($H$79="Ratze",$BG$79,IF($H$80="Ratze",$BG$80,IF($H$81="Ratze",$BG$81,IF($H$82="Ratze",$BG$82,IF($H$83="Ratze",$BG$83,IF($H$84="Ratze",$BG$84,0))))))) -> 14 | BL96: : | BN96: =IF($H$78="Ratze",$BN$78,IF($H$79="Ratze",$BN$79,IF($H$80="Ratze",$BN$80,IF($H$81="Ratze",$BN$81,IF($H$82="Ratze",$BN$82,IF($H$83="Ratze",$BN$83,IF($H$84="Ratze",$BN$84,0))))))) -> 17 | BS96: =IF($H$78="Ratze",$BS$78,IF($H$79="Ratze",$BS$79,IF($H$80="Ratze",$BS$80,IF($H$81="Ratze",$BS$81,IF($H$82="Ratze",$BS$82,IF($H$83="Ratze",$BS$83,IF($H$84="Ratze",$BS$84,0))))))) -> -3 | BX96: =IF($H$78="Ratze",$BX$78,IF($H$79="Ratze",$BX$79,IF($H$80="Ratze",$BX$80,IF($H$81="Ratze",$BX$81,IF($H$82="Ratze",$BX$82,IF($H$83="Ratze",$BX$83,IF($H$84="Ratze",$BX$84,0))))))) -> 9
C97: =IF($H$78="Schmiddi",$F$78,IF($H$79="Schmiddi",$F$79,IF($H$80="Schmiddi",$F$80,IF($H$81="Schmiddi",$F$81,IF($H$82="Schmiddi",$F$82,IF($H$83="Schmiddi",$F$83,IF($H$84="Schmiddi",$F$84,0))))))) -> 4 | H97: Schmiddi | T97: =IF($H$78="Schmiddi",$T$78,IF($H$79="Schmiddi",$T$79,IF($H$80="Schmiddi",$T$80,IF($H$81="Schmiddi",$T$81,IF($H$82="Schmiddi",$T$82,IF($H$83="Schmiddi",$T$83,IF($H$84="Schmiddi",$T$84,0))))))) -> 10 | Z97: =IF($H$78="Schmiddi",$Z$78,IF($H$79="Schmiddi",$Z$79,IF($H$80="Schmiddi",$Z$80,IF($H$81="Schmiddi",$Z$81,IF($H$82="Schmiddi",$Z$82,IF($H$83="Schmiddi",$Z$83,IF($H$84="Schmiddi",$Z$84,0))))))) -> 3 | AK97: =IF($H$78="Schmiddi",$AK$78,IF($H$79="Schmiddi",$AK$79,IF($H$80="Schmiddi",$AK$80,IF($H$81="Schmiddi",$AK$81,IF($H$82="Schmiddi",$AK$82,IF($H$83="Schmiddi",$AK$83,IF($H$84="Schmiddi",$AK$84,0))))))) -> 3 | AV97: =IF($H$78="Schmiddi",$AV$78,IF($H$79="Schmiddi",$AV$79,IF($H$80="Schmiddi",$AV$80,IF($H$81="Schmiddi",$AV$81,IF($H$82="Schmiddi",$AV$82,IF($H$83="Schmiddi",$AV$83,IF($H$84="Schmiddi",$AV$84,0))))))) -> 4 | BG97: =IF($H$78="Schmiddi",$BG$78,IF($H$79="Schmiddi",$BG$79,IF($H$80="Schmiddi",$BG$80,IF($H$81="Schmiddi",$BG$81,IF($H$82="Schmiddi",$BG$82,IF($H$83="Schmiddi",$BG$83,IF($H$84="Schmiddi",$BG$84,0))))))) -> 15 | BL97: : | BN97: =IF($H$78="Schmiddi",$BN$78,IF($H$79="Schmiddi",$BN$79,IF($H$80="Schmiddi",$BN$80,IF($H$81="Schmiddi",$BN$81,IF($H$82="Schmiddi",$BN$82,IF($H$83="Schmiddi",$BN$83,IF($H$84="Schmiddi",$BN$84,0))))))) -> 26 | BS97: =IF($H$78="Schmiddi",$BS$78,IF($H$79="Schmiddi",$BS$79,IF($H$80="Schmiddi",$BS$80,IF($H$81="Schmiddi",$BS$81,IF($H$82="Schmiddi",$BS$82,IF($H$83="Schmiddi",$BS$83,IF($H$84="Schmiddi",$BS$84,0))))))) -> -11 | BX97: =IF($H$78="Schmiddi",$BX$78,IF($H$79="Schmiddi",$BX$79,IF($H$80="Schmiddi",$BX$80,IF($H$81="Schmiddi",$BX$81,IF($H$82="Schmiddi",$BX$82,IF($H$83="Schmiddi",$BX$83,IF($H$84="Schmiddi",$BX$84,0))))))) -> 12

Sheet 28.10.
B2: ="Turnier am " & MID(CELL("dateiname",A1),SEARCH("]",CELL("dateiname",A1))+1,31) -> Turnier am 28.10.
C5: Spielerliste
C7: =" Spieler" -> Spieler | O7: Spieler 1 | AF7: Spieler 2 | AW7: Spieler 3 | BN7: Spieler 4
C8: =" Name" -> Name | O8: Ratze | AF8: Schmiddi | AW8: Patrick | BN8: Markus
C12: Spielplan
C14: 00:12:00 | H14: Spiel | M14: Datum | S14: Uhrzeit | Y14: Austragungsort | AJ14: Paarung | BR14: Ergebnis | CG14: Spiele | CH14: SiegHeim | CI14: Unentschieden | CJ14: SiegGast
C16: Hinrunde | H16: 1 | M16: =MID(CELL("dateiname",A1),SEARCH("]",CELL("dateiname",A1))+1,31) -> 28.10. | S16: 21:00:00 | Y16: Fernseher | AJ16: =$O$8 -> Ratze | AY16: : | BB16: =$AF$8 -> Schmiddi | BR16: 4 | BW16: : | BZ16: 1 | CG16: =IF(AND(ISNUMBER(BR16),ISNUMBER(BZ16)),1,0) -> 1 | CH16: =IF(OR(ISBLANK(BR16),ISBLANK(BZ16)),0,IF(BR16>BZ16,1,0)) -> 1 | CI16: =IF(OR(ISBLANK(BR16),ISBLANK(BZ16)),0,IF(BR16=BZ16,1,0)) -> 0 | CJ16: =IF(OR(ISBLANK(BR16),ISBLANK(BZ16)),0,IF(BR16<BZ16,1,0)) -> 0
H17: =H16+1 -> 2 | M17: =$M$16 -> 28.10. | S17: =S16 -> 21:00:00 | Y17: Fernseher | AJ17: =$AW$8 -> Patrick | AY17: : | BB17: =$BN$8 -> Markus | BR17: 1 | BW17: : | BZ17: 2 | CG17: =IF(AND(ISNUMBER(BR17),ISNUMBER(BZ17)),1,0) -> 1 | CH17: =IF(OR(ISBLANK(BR17),ISBLANK(BZ17)),0,IF(BR17>BZ17,1,0)) -> 0 | CI17: =IF(OR(ISBLANK(BR17),ISBLANK(BZ17)),0,IF(BR17=BZ17,1,0)) -> 0 | CJ17: =IF(OR(ISBLANK(BR17),ISBLANK(BZ17)),0,IF(BR17<BZ17,1,0)) -> 1
H18: =H17+1 -> 3 | M18: =$M$16 -> 28.10. | S18: =S16+$C$14 -> 21:12:00 | Y18: =$Y$16 -> Fernseher | AJ18: =$O$8 -> Ratze | AY18: : | BB18: =$AW$8 -> Patrick | BR18: 1 | BW18: : | BZ18: 1 | CG18: 1 | CH18: 0 | CI18: 1 | CJ18: 0
H19: =H18+1 -> 4 | M19: 28.10. | S19: =S17+$C$14 -> 21:12:00 | Y19: =$Y$17 -> Fernseher | AJ19: =$AF$8 -> Schmiddi | AY19: : | BB19: =$BN$8 -> Markus | BR19: 4 | BW19: : | BZ19: 3 | CG19: 1 | CH19: 1 | CI19: 0 | CJ19: 0
H20: =H19+1 -> 5 | M20: 28.10. | S20: =S18+$C$14 -> 21:24:00 | Y20: =$Y$16 -> Fernseher | AJ20: =$BN$8 -> Markus | AY20: : | BB20: =$O$8 -> Ratze | BR20: 1 | BW20: : | BZ20: 2 | CG20: 1 | CH20: 0 | CI20: 0 | CJ20: 1
H21: =H20+1 -> 6 | M21: 28.10. | S21: =S19+$C$14 -> 21:24:00 | Y21: =$Y$17 -> Fernseher | AJ21: =$AF$8 -> Schmiddi | AY21: : | BB21: =$AW$8 -> Patrick | BR21: 3 | BW21: : | BZ21: 5 | CG21: 1 | CH21: 0 | CI21: 0 | CJ21: 1
C23: Rückrunde | H23: =H21+1 -> 7 | M23: =$M$16 -> 28.10. | S23: =S20+$C$14 -> 21:36:00 | Y23: =$Y$17 -> Fernseher | AJ23: =$AF$8 -> Schmiddi | AY23: : | BB23: =$O$8 -> Ratze | BR23: 2 | BW23: : | BZ23: 1 | CG23: =IF(AND(ISNUMBER(BR23),ISNUMBER(BZ23)),1,0) -> 1 | CH23: =IF(OR(ISBLANK(BR23),ISBLANK(BZ23)),0,IF(BR23>BZ23,1,0)) -> 1 | CI23: =IF(OR(ISBLANK(BR23),ISBLANK(BZ23)),0,IF(BR23=BZ23,1,0)) -> 0 | CJ23: =IF(OR(ISBLANK(BR23),ISBLANK(BZ23)),0,IF(BR23<BZ23,1,0)) -> 0
H24: =H23+1 -> 8 | M24: 28.10. | S24: =S21+$C$14 -> 21:36:00 | Y24: =$Y$16 -> Fernseher | AJ24: =$BN$8 -> Markus | AY24: : | BB24: =$AW$8 -> Patrick | BR24: 2 | BW24: : | BZ24: 1 | CG24: 1 | CH24: 1 | CI24: 0 | CJ24: 0
H25: =H24+1 -> 9 | M25: 28.10. | S25: =S23+$C$14 -> 21:48:00 | Y25: =$Y$17 -> Fernseher | AJ25: =$AW$8 -> Patrick | AY25: : | BB25: =$O$8 -> Ratze | BR25: 0 | BW25: : | BZ25: 1 | CG25: 1 | CH25: 0 | CI25: 0 | CJ25: 1
H26: =H25+1 -> 10 | M26: 28.10. | S26: =S24+$C$14 -> 21:48:00 | Y26: =$Y$16 -> Fernseher | AJ26: =$BN$8 -> Markus | AY26: : | BB26: =$AF$8 -> Schmiddi | BR26: 2 | BW26: : | BZ26: 3 | CG26: 1 | CH26: 0 | CI26: 0 | CJ26: 1
H27: =H26+1 -> 11 | M27: 28.10. | S27: =S25+$C$14 -> 22:00:00 | Y27: =$Y$17 -> Fernseher | AJ27: =$O$8 -> Ratze | AY27: : | BB27: =$BN$8 -> Markus | BR27: 1 | BW27: : | BZ27: 1 | CG27: 1 | CH27: 0 | CI27: 1 | CJ27: 0
H28: =H27+1 -> 12 | M28: 28.10. | S28: =S26+$C$14 -> 22:00:00 | Y28: =$Y$16 -> Fernseher | AJ28: =$AW$8 -> Patrick | AY28: : | BB28: =$AF$8 -> Schmiddi | BR28: 3 | BW28: : | BZ28: 3 | CG28: 1 | CH28: 0 | CI28: 1 | CJ28: 0
C62: Tabelle (unsortiert)
C64: Rang | H64: Spieler | T64: Spiele | Z64: Siege | AK64: Unentschieden | AV64: Niederlagen | BG64: Tore | BS64: +/- | BX64: Punkte | CB64: HS
C65: =IF(T65=0,0,RANK(BX65,$BX$65:$CA$68,0)) -> 1 | H65: =$O$8 -> Ratze | T65: =CG16+CG18+CG20+CG23+CG25+CG27 -> 6 | Z65: =CH16+CH18+CJ20+CJ23+CJ25+CH27 -> 3 | AK65: =CI16+CI18+CI20+CI23+CI25+CI27 -> 2 | AV65: =CJ16+CJ18+CH20+CH23+CH25+CJ27 -> 1 | BG65: =BR16+BR18+BZ20+BZ23+BZ25+BR27 -> 10 | BL65: : | BN65: =BZ16+BZ18+BR20+BR23+BR25+BZ27 -> 6 | BS65: =BG65-BN65 -> 4 | BX65: =(Z65*3)+AK65 -> 11 | CB65: =BX65+ROW()/1000 -> 11.065
C66: =IF(T66=0,0,RANK(BX66,$BX$65:$CA$68,0)) -> 2 | H66: =$AF$8 -> Schmiddi | T66: =CG16+CG19+CG21+CG23+CG26+CG28 -> 6 | Z66: =CJ16+CH19+CH21+CH23+CJ26+CJ28 -> 3 | AK66: =CI16+CI19+CI21+CI23+CI26+CI28 -> 1 | AV66: =CH16+CJ19+CJ21+CJ23+CH26+CH28 -> 2 | BG66: =BZ16+BR19+BR21+BR23+BZ26+BZ28 -> 16 | BL66: : | BN66: =BR16+BZ19+BZ21+BZ23+BR26+BR28 -> 18 | BS66: =BG66-BN66 -> -2 | BX66: =(Z66*3)+AK66 -> 10 | CB66: =BX66+ROW()/1000 -> 10.066
C67: =IF(T67=0,0,RANK(BX67,$BX$65:$CA$68,0)) -> 4 | H67: =$AW$8 -> Patrick | T67: =CG17+CG18+CG21+CG24+CG25+CG28 -> 6 | Z67: =CH17+CJ18+CJ21+CJ24+CH25+CH28 -> 1 | AK67: =CI17+CI18+CI21+CI24+CI25+CI28 -> 2 | AV67: =CJ17+CH18+CH21+CH24+CJ25+CJ28 -> 3 | BG67: =BR17+BZ18+BZ21+BZ24+BR25+BR28 -> 11 | BL67: : | BN67: =BZ17+BR18+BR21+BR24+BZ25+BZ28 -> 12 | BS67: =BG67-BN67 -> -1 | BX67: =(Z67*3)+AK67 -> 5 | CB67: =BX67+ROW()/1000 -> 5.067
C68: =IF(T68=0,0,RANK(BX68,$BX$65:$CA$68,0)) -> 3 | H68: =$BN$8 -> Markus | T68: =CG17+CG19+CG20+CG24+CG26+CG27 -> 6 | Z68: =CJ17+CJ19+CH20+CH24+CH26+CJ27 -> 2 | AK68: =CI17+CI19+CI20+CI24+CI26+CI27 -> 1 | AV68: =CH17+CH19+CJ20+CJ24+CJ26+CH27 -> 3 | BG68: =BZ17+BZ19+BR20+BR24+BR26+BZ27 -> 11 | BL68: : | BN68: =BR17+BR19+BZ20+BZ24+BZ26+BR27 -> 12 | BS68: =BG68-BN68 -> -1 | BX68: =(Z68*3)+AK68 -> 7 | CB68: =BX68+ROW()/1000 -> 7.068
H69: Spieler 5 | T69: 0 | Z69: 0 | AK69: 0 | AV69: 0 | BG69: 0 | BL69: : | BN69: 0 | BS69: 0 | BX69: 0 | CB69: 0
H70: Spieler 6 | T70: 0 | Z70: 0 | AK70: 0 | AV70: 0 | BG70: 0 | BL70: : | BN70: 0 | BS70: 0 | BX70: 0 | CB70: 0
H71: Spieler 7 | T71: 0 | Z71: 0 | AK71: 0 | AV71: 0 | BG71: 0 | BL71: : | BN71: 0 | BS71: 0 | BX71: 0 | CB71: 0
C75: Tabelle
C77: Rang | H77: Spieler | T77: Spiele | Z77: Siege | AK77: Unentschieden | AV77: Niederlagen | BG77: Tore | BS77: +/- | BX77: Punkte
C78: =INDEX($C$65:$C$68,MATCH(LARGE($CB$65:$CB$68,ROW(A1)),$CB$65:$CB$68,0),1) -> 1 | F78: 1 | H78: =INDEX($H$65:$H$68,MATCH(LARGE($CB$65:$CB$68,ROW(A1)),$CB$65:$CB$68,0),1) -> Ratze | T78: =INDEX($T$65:$T$68,MATCH(LARGE($CB$65:$CB$68,ROW(A1)),$CB$65:$CB$68,0),1) -> 6 | Z78: =INDEX($Z$65:$Z$68,MATCH(LARGE($CB$65:$CB$68,ROW(A1)),$CB$65:$CB$68,0),1) -> 3 | AK78: =INDEX($AK$65:$AK$68,MATCH(LARGE($CB$65:$CB$68,ROW(A1)),$CB$65:$CB$68,0),1) -> 2 | AV78: =INDEX($AV$65:$AV$68,MATCH(LARGE($CB$65:$CB$68,ROW(A1)),$CB$65:$CB$68,0),1) -> 1 | BG78: =INDEX($BG$65:$BG$68,MATCH(LARGE($CB$65:$CB$68,ROW(A1)),$CB$65:$CB$68,0),1) -> 10 | BL78: : | BN78: =INDEX($BN$65:$BN$68,MATCH(LARGE($CB$65:$CB$68,ROW(A1)),$CB$65:$CB$68,0),1) -> 6 | BS78: =INDEX($BS$65:$BS$68,MATCH(LARGE($CB$65:$CB$68,ROW(A1)),$CB$65:$CB$68,0),1) -> 4 | BX78: =INDEX($BX$65:$BX$68,MATCH(LARGE($CB$65:$CB$68,ROW(A1)),$CB$65:$CB$68,0),1) -> 11
C79: =INDEX($C$65:$C$68,MATCH(LARGE($CB$65:$CB$68,ROW(A2)),$CB$65:$CB$68,0),1) -> 2 | F79: 2 | H79: =INDEX($H$65:$H$68,MATCH(LARGE($CB$65:$CB$68,ROW(A2)),$CB$65:$CB$68,0),1) -> Schmiddi | T79: =INDEX($T$65:$T$68,MATCH(LARGE($CB$65:$CB$68,ROW(A2)),$CB$65:$CB$68,0),1) -> 6 | Z79: =INDEX($Z$65:$Z$68,MATCH(LARGE($CB$65:$CB$68,ROW(A2)),$CB$65:$CB$68,0),1) -> 3 | AK79: =INDEX($AK$65:$AK$68,MATCH(LARGE($CB$65:$CB$68,ROW(A2)),$CB$65:$CB$68,0),1) -> 1 | AV79: =INDEX($AV$65:$AV$68,MATCH(LARGE($CB$65:$CB$68,ROW(A2)),$CB$65:$CB$68,0),1) -> 2 | BG79: =INDEX($BG$65:$BG$68,MATCH(LARGE($CB$65:$CB$68,ROW(A2)),$CB$65:$CB$68,0),1) -> 16 | BL79: : | BN79: =INDEX($BN$65:$BN$68,MATCH(LARGE($CB$65:$CB$68,ROW(A2)),$CB$65:$CB$68,0),1) -> 18 | BS79: =INDEX($BS$65:$BS$68,MATCH(LARGE($CB$65:$CB$68,ROW(A2)),$CB$65:$CB$68,0),1) -> -2 | BX79: =INDEX($BX$65:$BX$68,MATCH(LARGE($CB$65:$CB$68,ROW(A2)),$CB$65:$CB$68,0),1) -> 10
C80: =INDEX($C$65:$C$68,MATCH(LARGE($CB$65:$CB$68,ROW(A3)),$CB$65:$CB$68,0),1) -> 3 | F80: 3 | H80: =INDEX($H$65:$H$68,MATCH(LARGE($CB$65:$CB$68,ROW(A3)),$CB$65:$CB$68,0),1) -> Markus | T80: =INDEX($T$65:$T$68,MATCH(LARGE($CB$65:$CB$68,ROW(A3)),$CB$65:$CB$68,0),1) -> 6 | Z80: =INDEX($Z$65:$Z$68,MATCH(LARGE($CB$65:$CB$68,ROW(A3)),$CB$65:$CB$68,0),1) -> 2 | AK80: =INDEX($AK$65:$AK$68,MATCH(LARGE($CB$65:$CB$68,ROW(A3)),$CB$65:$CB$68,0),1) -> 1 | AV80: =INDEX($AV$65:$AV$68,MATCH(LARGE($CB$65:$CB$68,ROW(A3)),$CB$65:$CB$68,0),1) -> 3 | BG80: =INDEX($BG$65:$BG$68,MATCH(LARGE($CB$65:$CB$68,ROW(A3)),$CB$65:$CB$68,0),1) -> 11 | BL80: : | BN80: =INDEX($BN$65:$BN$68,MATCH(LARGE($CB$65:$CB$68,ROW(A3)),$CB$65:$CB$68,0),1) -> 12 | BS80: =INDEX($BS$65:$BS$68,MATCH(LARGE($CB$65:$CB$68,ROW(A3)),$CB$65:$CB$68,0),1) -> -1 | BX80: =INDEX($BX$65:$BX$68,MATCH(LARGE($CB$65:$CB$68,ROW(A3)),$CB$65:$CB$68,0),1) -> 7
C81: =INDEX($C$65:$C$68,MATCH(LARGE($CB$65:$CB$68,ROW(A4)),$CB$65:$CB$68,0),1) -> 4 | F81: 4 | H81: =INDEX($H$65:$H$68,MATCH(LARGE($CB$65:$CB$68,ROW(A4)),$CB$65:$CB$68,0),1) -> Patrick | T81: =INDEX($T$65:$T$68,MATCH(LARGE($CB$65:$CB$68,ROW(A4)),$CB$65:$CB$68,0),1) -> 6 | Z81: =INDEX($Z$65:$Z$68,MATCH(LARGE($CB$65:$CB$68,ROW(A4)),$CB$65:$CB$68,0),1) -> 1 | AK81: =INDEX($AK$65:$AK$68,MATCH(LARGE($CB$65:$CB$68,ROW(A4)),$CB$65:$CB$68,0),1) -> 2 | AV81: =INDEX($AV$65:$AV$68,MATCH(LARGE($CB$65:$CB$68,ROW(A4)),$CB$65:$CB$68,0),1) -> 3 | BG81: =INDEX($BG$65:$BG$68,MATCH(LARGE($CB$65:$CB$68,ROW(A4)),$CB$65:$CB$68,0),1) -> 11 | BL81: : | BN81: =INDEX($BN$65:$BN$68,MATCH(LARGE($CB$65:$CB$68,ROW(A4)),$CB$65:$CB$68,0),1) -> 12 | BS81: =INDEX($BS$65:$BS$68,MATCH(LARGE($CB$65:$CB$68,ROW(A4)),$CB$65:$CB$68,0),1) -> -1 | BX81: =INDEX($BX$65:$BX$68,MATCH(LARGE($CB$65:$CB$68,ROW(A4)),$CB$65:$CB$68,0),1) -> 5
C82: --- | F82: --- | H82: Spieler 5 | T82: 0 | Z82: 0 | AK82: 0 | AV82: 0 | BG82: 0 | BL82: : | BN82: 0 | BS82: 0 | BX82: 0
C83: --- | F83: --- | H83: Spieler 6 | T83: 0 | Z83: 0 | AK83: 0 | AV83: 0 | BG83: 0 | BL83: : | BN83: 0 | BS83: 0 | BX83: 0
C84: --- | F84: --- | H84: Spieler 7 | T84: 0 | Z84: 0 | AK84: 0 | AV84: 0 | BG84: 0 | BL84: : | BN84: 0 | BS84: 0 | BX84: 0
C88: Tabelle (nach Alphabet)
C90: Rang | H90: Spieler | T90: Spiele | Z90: Siege | AK90: Unentschieden | AV90: Niederlagen | BG90: Tore | BS90: +/- | BX90: Punkte
C91: =IF($H$78="Basti",$F$78,IF($H$79="Basti",$F$79,IF($H$80="Basti",$F$80,IF($H$81="Basti",$F$81,IF($H$82="Basti",$F$82,IF($H$83="Basti",$F$83,IF($H$84="Basti",$F$84,0))))))) -> 0 | H91: Basti | T91: =IF($H$78="Basti",$T$78,IF($H$79="Basti",$T$79,IF($H$80="Basti",$T$80,IF($H$81="Basti",$T$81,IF($H$82="Basti",$T$82,IF($H$83="Basti",$T$83,IF($H$84="Basti",$T$84,0))))))) -> 0 | Z91: =IF($H$78="Basti",$Z$78,IF($H$79="Basti",$Z$79,IF($H$80="Basti",$Z$80,IF($H$81="Basti",$Z$81,IF($H$82="Basti",$Z$82,IF($H$83="Basti",$Z$83,IF($H$84="Basti",$Z$84,0))))))) -> 0 | AK91: =IF($H$78="Basti",$AK$78,IF($H$79="Basti",$AK$79,IF($H$80="Basti",$AK$80,IF($H$81="Basti",$AK$81,IF($H$82="Basti",$AK$82,IF($H$83="Basti",$AK$83,IF($H$84="Basti",$AK$84,0))))))) -> 0 | AV91: =IF($H$78="Basti",$AV$78,IF($H$79="Basti",$AV$79,IF($H$80="Basti",$AV$80,IF($H$81="Basti",$AV$81,IF($H$82="Basti",$AV$82,IF($H$83="Basti",$AV$83,IF($H$84="Basti",$AV$84,0))))))) -> 0 | BG91: =IF($H$78="Basti",$BG$78,IF($H$79="Basti",$BG$79,IF($H$80="Basti",$BG$80,IF($H$81="Basti",$BG$81,IF($H$82="Basti",$BG$82,IF($H$83="Basti",$BG$83,IF($H$84="Basti",$BG$84,0))))))) -> 0 | BL91: : | BN91: =IF($H$78="Basti",$BN$78,IF($H$79="Basti",$BN$79,IF($H$80="Basti",$BN$80,IF($H$81="Basti",$BN$81,IF($H$82="Basti",$BN$82,IF($H$83="Basti",$BN$83,IF($H$84="Basti",$BN$84,0))))))) -> 0 | BS91: =IF($H$78="Basti",$BS$78,IF($H$79="Basti",$BS$79,IF($H$80="Basti",$BS$80,IF($H$81="Basti",$BS$81,IF($H$82="Basti",$BS$82,IF($H$83="Basti",$BS$83,IF($H$84="Basti",$BS$84,0))))))) -> 0 | BX91: =IF($H$78="Basti",$BX$78,IF($H$79="Basti",$BX$79,IF($H$80="Basti",$BX$80,IF($H$81="Basti",$BX$81,IF($H$82="Basti",$BX$82,IF($H$83="Basti",$BX$83,IF($H$84="Basti",$BX$84,0))))))) -> 0
C92: =IF($H$78="Christoph",$F$78,IF($H$79="Christoph",$F$79,IF($H$80="Christoph",$F$80,IF($H$81="Christoph",$F$81,IF($H$82="Christoph",$F$82,IF($H$83="Christoph",$F$83,IF($H$84="Christoph",$F$84,0))))))) -> 0 | H92: Christoph | T92: =IF($H$78="Christoph",$T$78,IF($H$79="Christoph",$T$79,IF($H$80="Christoph",$T$80,IF($H$81="Christoph",$T$81,IF($H$82="Christoph",$T$82,IF($H$83="Christoph",$T$83,IF($H$84="Christoph",$T$84,0))))))) -> 0 | Z92: =IF($H$78="Christoph",$Z$78,IF($H$79="Christoph",$Z$79,IF($H$80="Christoph",$Z$80,IF($H$81="Christoph",$Z$81,IF($H$82="Christoph",$Z$82,IF($H$83="Christoph",$Z$83,IF($H$84="Christoph",$Z$84,0))))))) -> 0 | AK92: =IF($H$78="Christoph",$AK$78,IF($H$79="Christoph",$AK$79,IF($H$80="Christoph",$AK$80,IF($H$81="Christoph",$AK$81,IF($H$82="Christoph",$AK$82,IF($H$83="Christoph",$AK$83,IF($H$84="Christoph",$AK$84,0))))))) -> 0 | AV92: =IF($H$78="Christoph",$AV$78,IF($H$79="Christoph",$AV$79,IF($H$80="Christoph",$AV$80,IF($H$81="Christoph",$AV$81,IF($H$82="Christoph",$AV$82,IF($H$83="Christoph",$AV$83,IF($H$84="Christoph",$AV$84,0))))))) -> 0 | BG92: =IF($H$78="Christoph",$BG$78,IF($H$79="Christoph",$BG$79,IF($H$80="Christoph",$BG$80,IF($H$81="Christoph",$BG$81,IF($H$82="Christoph",$BG$82,IF($H$83="Christoph",$BG$83,IF($H$84="Christoph",$BG$84,0))))))) -> 0 | BL92: : | BN92: =IF($H$78="Christoph",$BN$78,IF($H$79="Christoph",$BN$79,IF($H$80="Christoph",$BN$80,IF($H$81="Christoph",$BN$81,IF($H$82="Christoph",$BN$82,IF($H$83="Christoph",$BN$83,IF($H$84="Christoph",$BN$84,0))))))) -> 0 | BS92: =IF($H$78="Christoph",$BS$78,IF($H$79="Christoph",$BS$79,IF($H$80="Christoph",$BS$80,IF($H$81="Christoph",$BS$81,IF($H$82="Christoph",$BS$82,IF($H$83="Christoph",$BS$83,IF($H$84="Christoph",$BS$84,0))))))) -> 0 | BX92: =IF($H$78="Christoph",$BX$78,IF($H$79="Christoph",$BX$79,IF($H$80="Christoph",$BX$80,IF($H$81="Christoph",$BX$81,IF($H$82="Christoph",$BX$82,IF($H$83="Christoph",$BX$83,IF($H$84="Christoph",$BX$84,0))))))) -> 0
C93: =IF($H$78="Jule",$F$78,IF($H$79="Jule",$F$79,IF($H$80="Jule",$F$80,IF($H$81="Jule",$F$81,IF($H$82="Jule",$F$82,IF($H$83="Jule",$F$83,IF($H$84="Jule",$F$84,0))))))) -> 0 | H93: Jule | T93: =IF($H$78="Jule",$T$78,IF($H$79="Jule",$T$79,IF($H$80="Jule",$T$80,IF($H$81="Jule",$T$81,IF($H$82="Jule",$T$82,IF($H$83="Jule",$T$83,IF($H$84="Jule",$T$84,0))))))) -> 0 | Z93: =IF($H$78="Jule",$Z$78,IF($H$79="Jule",$Z$79,IF($H$80="Jule",$Z$80,IF($H$81="Jule",$Z$81,IF($H$82="Jule",$Z$82,IF($H$83="Jule",$Z$83,IF($H$84="Jule",$Z$84,0))))))) -> 0 | AK93: =IF($H$78="Jule",$AK$78,IF($H$79="Jule",$AK$79,IF($H$80="Jule",$AK$80,IF($H$81="Jule",$AK$81,IF($H$82="Jule",$AK$82,IF($H$83="Jule",$AK$83,IF($H$84="Jule",$AK$84,0))))))) -> 0 | AV93: =IF($H$78="Jule",$AV$78,IF($H$79="Jule",$AV$79,IF($H$80="Jule",$AV$80,IF($H$81="Jule",$AV$81,IF($H$82="Jule",$AV$82,IF($H$83="Jule",$AV$83,IF($H$84="Jule",$AV$84,0))))))) -> 0 | BG93: =IF($H$78="Jule",$BG$78,IF($H$79="Jule",$BG$79,IF($H$80="Jule",$BG$80,IF($H$81="Jule",$BG$81,IF($H$82="Jule",$BG$82,IF($H$83="Jule",$BG$83,IF($H$84="Jule",$BG$84,0))))))) -> 0 | BL93: : | BN93: =IF($H$78="Jule",$BN$78,IF($H$79="Jule",$BN$79,IF($H$80="Jule",$BN$80,IF($H$81="Jule",$BN$81,IF($H$82="Jule",$BN$82,IF($H$83="Jule",$BN$83,IF($H$84="Jule",$BN$84,0))))))) -> 0 | BS93: =IF($H$78="Jule",$BS$78,IF($H$79="Jule",$BS$79,IF($H$80="Jule",$BS$80,IF($H$81="Jule",$BS$81,IF($H$82="Jule",$BS$82,IF($H$83="Jule",$BS$83,IF($H$84="Jule",$BS$84,0))))))) -> 0 | BX93: =IF($H$78="Jule",$BX$78,IF($H$79="Jule",$BX$79,IF($H$80="Jule",$BX$80,IF($H$81="Jule",$BX$81,IF($H$82="Jule",$BX$82,IF($H$83="Jule",$BX$83,IF($H$84="Jule",$BX$84,0))))))) -> 0
C94: =IF($H$78="Markus",$F$78,IF($H$79="Markus",$F$79,IF($H$80="Markus",$F$80,IF($H$81="Markus",$F$81,IF($H$82="Markus",$F$82,IF($H$83="Markus",$F$83,IF($H$84="Markus",$F$84,0))))))) -> 3 | H94: Markus | T94: =IF($H$78="Markus",$T$78,IF($H$79="Markus",$T$79,IF($H$80="Markus",$T$80,IF($H$81="Markus",$T$81,IF($H$82="Markus",$T$82,IF($H$83="Markus",$T$83,IF($H$84="Markus",$T$84,0))))))) -> 6 | Z94: =IF($H$78="Markus",$Z$78,IF($H$79="Markus",$Z$79,IF($H$80="Markus",$Z$80,IF($H$81="Markus",$Z$81,IF($H$82="Markus",$Z$82,IF($H$83="Markus",$Z$83,IF($H$84="Markus",$Z$84,0))))))) -> 2 | AK94: =IF($H$78="Markus",$AK$78,IF($H$79="Markus",$AK$79,IF($H$80="Markus",$AK$80,IF($H$81="Markus",$AK$81,IF($H$82="Markus",$AK$82,IF($H$83="Markus",$AK$83,IF($H$84="Markus",$AK$84,0))))))) -> 1 | AV94: =IF($H$78="Markus",$AV$78,IF($H$79="Markus",$AV$79,IF($H$80="Markus",$AV$80,IF($H$81="Markus",$AV$81,IF($H$82="Markus",$AV$82,IF($H$83="Markus",$AV$83,IF($H$84="Markus",$AV$84,0))))))) -> 3 | BG94: =IF($H$78="Markus",$BG$78,IF($H$79="Markus",$BG$79,IF($H$80="Markus",$BG$80,IF($H$81="Markus",$BG$81,IF($H$82="Markus",$BG$82,IF($H$83="Markus",$BG$83,IF($H$84="Markus",$BG$84,0))))))) -> 11 | BL94: : | BN94: =IF($H$78="Markus",$BN$78,IF($H$79="Markus",$BN$79,IF($H$80="Markus",$BN$80,IF($H$81="Markus",$BN$81,IF($H$82="Markus",$BN$82,IF($H$83="Markus",$BN$83,IF($H$84="Markus",$BN$84,0))))))) -> 12 | BS94: =IF($H$78="Markus",$BS$78,IF($H$79="Markus",$BS$79,IF($H$80="Markus",$BS$80,IF($H$81="Markus",$BS$81,IF($H$82="Markus",$BS$82,IF($H$83="Markus",$BS$83,IF($H$84="Markus",$BS$84,0))))))) -> -1 | BX94: =IF($H$78="Markus",$BX$78,IF($H$79="Markus",$BX$79,IF($H$80="Markus",$BX$80,IF($H$81="Markus",$BX$81,IF($H$82="Markus",$BX$82,IF($H$83="Markus",$BX$83,IF($H$84="Markus",$BX$84,0))))))) -> 7
C95: =IF($H$78="Patrick",$F$78,IF($H$79="Patrick",$F$79,IF($H$80="Patrick",$F$80,IF($H$81="Patrick",$F$81,IF($H$82="Patrick",$F$82,IF($H$83="Patrick",$F$83,IF($H$84="Patrick",$F$84,0))))))) -> 4 | H95: Patrick | T95: =IF($H$78="Patrick",$T$78,IF($H$79="Patrick",$T$79,IF($H$80="Patrick",$T$80,IF($H$81="Patrick",$T$81,IF($H$82="Patrick",$T$82,IF($H$83="Patrick",$T$83,IF($H$84="Patrick",$T$84,0))))))) -> 6 | Z95: =IF($H$78="Patrick",$Z$78,IF($H$79="Patrick",$Z$79,IF($H$80="Patrick",$Z$80,IF($H$81="Patrick",$Z$81,IF($H$82="Patrick",$Z$82,IF($H$83="Patrick",$Z$83,IF($H$84="Patrick",$Z$84,0))))))) -> 1 | AK95: =IF($H$78="Patrick",$AK$78,IF($H$79="Patrick",$AK$79,IF($H$80="Patrick",$AK$80,IF($H$81="Patrick",$AK$81,IF($H$82="Patrick",$AK$82,IF($H$83="Patrick",$AK$83,IF($H$84="Patrick",$AK$84,0))))))) -> 2 | AV95: =IF($H$78="Patrick",$AV$78,IF($H$79="Patrick",$AV$79,IF($H$80="Patrick",$AV$80,IF($H$81="Patrick",$AV$81,IF($H$82="Patrick",$AV$82,IF($H$83="Patrick",$AV$83,IF($H$84="Patrick",$AV$84,0))))))) -> 3 | BG95: =IF($H$78="Patrick",$BG$78,IF($H$79="Patrick",$BG$79,IF($H$80="Patrick",$BG$80,IF($H$81="Patrick",$BG$81,IF($H$82="Patrick",$BG$82,IF($H$83="Patrick",$BG$83,IF($H$84="Patrick",$BG$84,0))))))) -> 11 | BL95: : | BN95: =IF($H$78="Patrick",$BN$78,IF($H$79="Patrick",$BN$79,IF($H$80="Patrick",$BN$80,IF($H$81="Patrick",$BN$81,IF($H$82="Patrick",$BN$82,IF($H$83="Patrick",$BN$83,IF($H$84="Patrick",$BN$84,0))))))) -> 12 | BS95: =IF($H$78="Patrick",$BS$78,IF($H$79="Patrick",$BS$79,IF($H$80="Patrick",$BS$80,IF($H$81="Patrick",$BS$81,IF($H$82="Patrick",$BS$82,IF($H$83="Patrick",$BS$83,IF($H$84="Patrick",$BS$84,0))))))) -> -1 | BX95: =IF($H$78="Patrick",$BX$78,IF($H$79="Patrick",$BX$79,IF($H$80="Patrick",$BX$80,IF($H$81="Patrick",$BX$81,IF($H$82="Patrick",$BX$82,IF($H$83="Patrick",$BX$83,IF($H$84="Patrick",$BX$84,0))))))) -> 5
C96: =IF($H$78="Ratze",$F$78,IF($H$79="Ratze",$F$79,IF($H$80="Ratze",$F$80,IF($H$81="Ratze",$F$81,IF($H$82="Ratze",$F$82,IF($H$83="Ratze",$F$83,IF($H$84="Ratze",$F$84,0))))))) -> 1 | H96: Ratze | T96: =IF($H$78="Ratze",$T$78,IF($H$79="Ratze",$T$79,IF($H$80="Ratze",$T$80,IF($H$81="Ratze",$T$81,IF($H$82="Ratze",$T$82,IF($H$83="Ratze",$T$83,IF($H$84="Ratze",$T$84,0))))))) -> 6 | Z96: =IF($H$78="Ratze",$Z$78,IF($H$79="Ratze",$Z$79,IF($H$80="Ratze",$Z$80,IF($H$81="Ratze",$Z$81,IF($H$82="Ratze",$Z$82,IF($H$83="Ratze",$Z$83,IF($H$84="Ratze",$Z$84,0))))))) -> 3 | AK96: =IF($H$78="Ratze",$AK$78,IF($H$79="Ratze",$AK$79,IF($H$80="Ratze",$AK$80,IF($H$81="Ratze",$AK$81,IF($H$82="Ratze",$AK$82,IF($H$83="Ratze",$AK$83,IF($H$84="Ratze",$AK$84,0))))))) -> 2 | AV96: =IF($H$78="Ratze",$AV$78,IF($H$79="Ratze",$AV$79,IF($H$80="Ratze",$AV$80,IF($H$81="Ratze",$AV$81,IF($H$82="Ratze",$AV$82,IF($H$83="Ratze",$AV$83,IF($H$84="Ratze",$AV$84,0))))))) -> 1 | BG96: =IF($H$78="Ratze",$BG$78,IF($H$79="Ratze",$BG$79,IF($H$80="Ratze",$BG$80,IF($H$81="Ratze",$BG$81,IF($H$82="Ratze",$BG$82,IF($H$83="Ratze",$BG$83,IF($H$84="Ratze",$BG$84,0))))))) -> 10 | BL96: : | BN96: =IF($H$78="Ratze",$BN$78,IF($H$79="Ratze",$BN$79,IF($H$80="Ratze",$BN$80,IF($H$81="Ratze",$BN$81,IF($H$82="Ratze",$BN$82,IF($H$83="Ratze",$BN$83,IF($H$84="Ratze",$BN$84,0))))))) -> 6 | BS96: =IF($H$78="Ratze",$BS$78,IF($H$79="Ratze",$BS$79,IF($H$80="Ratze",$BS$80,IF($H$81="Ratze",$BS$81,IF($H$82="Ratze",$BS$82,IF($H$83="Ratze",$BS$83,IF($H$84="Ratze",$BS$84,0))))))) -> 4 | BX96: =IF($H$78="Ratze",$BX$78,IF($H$79="Ratze",$BX$79,IF($H$80="Ratze",$BX$80,IF($H$81="Ratze",$BX$81,IF($H$82="Ratze",$BX$82,IF($H$83="Ratze",$BX$83,IF($H$84="Ratze",$BX$84,0))))))) -> 11
C97: =IF($H$78="Schmiddi",$F$78,IF($H$79="Schmiddi",$F$79,IF($H$80="Schmiddi",$F$80,IF($H$81="Schmiddi",$F$81,IF($H$82="Schmiddi",$F$82,IF($H$83="Schmiddi",$F$83,IF($H$84="Schmiddi",$F$84,0))))))) -> 2 | H97: Schmiddi | T97: =IF($H$78="Schmiddi",$T$78,IF($H$79="Schmiddi",$T$79,IF($H$80="Schmiddi",$T$80,IF($H$81="Schmiddi",$T$81,IF($H$82="Schmiddi",$T$82,IF($H$83="Schmiddi",$T$83,IF($H$84="Schmiddi",$T$84,0))))))) -> 6 | Z97: =IF($H$78="Schmiddi",$Z$78,IF($H$79="Schmiddi",$Z$79,IF($H$80="Schmiddi",$Z$80,IF($H$81="Schmiddi",$Z$81,IF($H$82="Schmiddi",$Z$82,IF($H$83="Schmiddi",$Z$83,IF($H$84="Schmiddi",$Z$84,0))))))) -> 3 | AK97: =IF($H$78="Schmiddi",$AK$78,IF($H$79="Schmiddi",$AK$79,IF($H$80="Schmiddi",$AK$80,IF($H$81="Schmiddi",$AK$81,IF($H$82="Schmiddi",$AK$82,IF($H$83="Schmiddi",$AK$83,IF($H$84="Schmiddi",$AK$84,0))))))) -> 1 | AV97: =IF($H$78="Schmiddi",$AV$78,IF($H$79="Schmiddi",$AV$79,IF($H$80="Schmiddi",$AV$80,IF($H$81="Schmiddi",$AV$81,IF($H$82="Schmiddi",$AV$82,IF($H$83="Schmiddi",$AV$83,IF($H$84="Schmiddi",$AV$84,0))))))) -> 2 | BG97: =IF($H$78="Schmiddi",$BG$78,IF($H$79="Schmiddi",$BG$79,IF($H$80="Schmiddi",$BG$80,IF($H$81="Schmiddi",$BG$81,IF($H$82="Schmiddi",$BG$82,IF($H$83="Schmiddi",$BG$83,IF($H$84="Schmiddi",$BG$84,0))))))) -> 16 | BL97: : | BN97: =IF($H$78="Schmiddi",$BN$78,IF($H$79="Schmiddi",$BN$79,IF($H$80="Schmiddi",$BN$80,IF($H$81="Schmiddi",$BN$81,IF($H$82="Schmiddi",$BN$82,IF($H$83="Schmiddi",$BN$83,IF($H$84="Schmiddi",$BN$84,0))))))) -> 18 | BS97: =IF($H$78="Schmiddi",$BS$78,IF($H$79="Schmiddi",$BS$79,IF($H$80="Schmiddi",$BS$80,IF($H$81="Schmiddi",$BS$81,IF($H$82="Schmiddi",$BS$82,IF($H$83="Schmiddi",$BS$83,IF($H$84="Schmiddi",$BS$84,0))))))) -> -2 | BX97: =IF($H$78="Schmiddi",$BX$78,IF($H$79="Schmiddi",$BX$79,IF($H$80="Schmiddi",$BX$80,IF($H$81="Schmiddi",$BX$81,IF($H$82="Schmiddi",$BX$82,IF($H$83="Schmiddi",$BX$83,IF($H$84="Schmiddi",$BX$84,0))))))) -> 10

Sheet 4.11
B2: ="Turnier am " & MID(CELL("dateiname",A1),SEARCH("]",CELL("dateiname",A1))+1,31) -> Turnier am 4.11
C5: Spielerliste
C7: =" Spieler" -> Spieler | Q7: Spieler 1 | AB7: Spieler 2 | AM7: Spieler 3 | AX7: Spieler 4 | BI7: Spieler 5 | BT7: Spieler 6
C8: =" Name" -> Name | Q8: Jule | AB8: Patrick | AM8: Markus | AX8: Christoph | BI8: Ratze | BT8: Schmiddi
C12: Spielplan
C14: 00:12:00 | H14: Spiel | M14: Datum | S14: Uhrzeit | Y14: Austragungsort | AJ14: Paarung | BR14: Ergebnis | CG14: Spiele | CH14: SiegHeim | CI14: Unentschieden | CJ14: SiegGast
C16: Hinrunde | H16: 1 | M16: =MID(CELL("dateiname",A1),SEARCH("]",CELL("dateiname",A1))+1,31) -> 4.11 | S16: 21:00:00 | Y16: Fernseher | AJ16: =$Q$8 -> Jule | AY16: : | BB16: =$AB$8 -> Patrick | BR16: 0 | BW16: : | BZ16: 3 | CG16: =IF(AND(ISNUMBER(BR16),ISNUMBER(BZ16)),1,0) -> 1 | CH16: =IF(OR(ISBLANK(BR16),ISBLANK(BZ16)),0,IF(BR16>BZ16,1,0)) -> 0 | CI16: =IF(OR(ISBLANK(BR16),ISBLANK(BZ16)),0,IF(BR16=BZ16,1,0)) -> 0 | CJ16: =IF(OR(ISBLANK(BR16),ISBLANK(BZ16)),0,IF(BR16<BZ16,1,0)) -> 1
H17: =H16+1 -> 2 | M17: =$M$16 -> 4.11 | S17: =S16 -> 21:00:00 | Y17: =$Y$16 -> Fernseher | AJ17: =$AM$8 -> Markus | AY17: : | BB17: =$AX$8 -> Christoph | BR17: 3 | BW17: : | BZ17: 2 | CG17: =IF(AND(ISNUMBER(BR17),ISNUMBER(BZ17)),1,0) -> 1 | CH17: =IF(OR(ISBLANK(BR17),ISBLANK(BZ17)),0,IF(BR17>BZ17,1,0)) -> 1 | CI17: =IF(OR(ISBLANK(BR17),ISBLANK(BZ17)),0,IF(BR17=BZ17,1,0)) -> 0 | CJ17: =IF(OR(ISBLANK(BR17),ISBLANK(BZ17)),0,IF(BR17<BZ17,1,0)) -> 0
H18: =H17+1 -> 3 | M18: =$M$16 -> 4.11 | S18: =S16 -> 21:00:00 | Y18: =$Y$16 -> Fernseher | AJ18: =$BI$8 -> Ratze | AY18: : | BB18: =$BT$8 -> Schmiddi | BR18: 4 | BW18: : | BZ18: 0 | CG18: 1 | CH18: 1 | CI18: 0 | CJ18: 0
H19: =H18+1 -> 4 | M19: 4.11 | S19: =S16+$C$14 -> 21:12:00 | Y19: Fernseher | AJ19: =$Q$8 -> Jule | AY19: : | BB19: =$AM$8 -> Markus | BR19: 1 | BW19: : | BZ19: 2 | CG19: 1 | CH19: 0 | CI19: 0 | CJ19: 1
H20: 5 | M20: 4.11 | S20: =S17+$C$14 -> 21:12:00 | Y20: Fernseher | AJ20: =$AB$8 -> Patrick | AY20: : | BB20: =$BI$8 -> Ratze | BR20: 1 | BW20: : | BZ20: 1 | CG20: 1 | CH20: 0 | CI20: 1 | CJ20: 0
H21: 6 | M21: 4.11 | S21: =S18+$C$14 -> 21:12:00 | Y21: Fernseher | AJ21: =$AX$8 -> Christoph | AY21: : | BB21: =$BT$8 -> Schmiddi | BR21: 5 | BW21: : | BZ21: 1 | CG21: 1 | CH21: 1 | CI21: 0 | CJ21: 0
H22: =H21+1 -> 7 | M22: 4.11 | S22: =S19+$C$14 -> 21:24:00 | Y22: Fernseher | AJ22: =$BI$8 -> Ratze | AY22: : | BB22: =$Q$8 -> Jule | BR22: 2 | BW22: : | BZ22: 0 | CG22: 1 | CH22: 1 | CI22: 0 | CJ22: 0
H23: 8 | M23: 4.11 | S23: =S20+$C$14 -> 21:24:00 | Y23: Fernseher | AJ23: =$AB$8 -> Patrick | AY23: : | BB23: =$AX$8 -> Christoph | BR23: 2 | BW23: : | BZ23: 1 | CG23: 1 | CH23: 1 | CI23: 0 | CJ23: 0
H24: 9 | M24: 4.11 | S24: 21:24:00 | Y24: Fernseher | AJ24: =$BT$8 -> Schmiddi | AY24: : | BB24: =$AM$8 -> Markus | BR24: 3 | BW24: : | BZ24: 4 | CG24: 1 | CH24: 0 | CI24: 0 | CJ24: 1
H25: =H24+1 -> 10 | M25: 4.11 | S25: =S22+$C$14 -> 21:36:00 | Y25: Fernseher | AJ25: =$Q$8 -> Jule | AY25: : | BB25: =$AX$8 -> Christoph | BR25: 0 | BW25: : | BZ25: 4 | CG25: 1 | CH25: 0 | CI25: 0 | CJ25: 1
H26: 11 | M26: 4.11 | S26: 21:36:00 | Y26: Fernseher | AJ26: =$BT$8 -> Schmiddi | AY26: : | BB26: =$AB$8 -> Patrick | BR26: 2 | BW26: : | BZ26: 5 | CG26: 1 | CH26: 0 | CI26: 0 | CJ26: 1
H27: =H26+1 -> 12 | M27: 4.11 | S27: =S24+$C$14 -> 21:36:00 | Y27: Fernseher | AJ27: =$AM$8 -> Markus | AY27: : | BB27: =$BI$8 -> Ratze | BR27: 2 | BW27: : | BZ27: 2 | CG27: 1 | CH27: 0 | CI27: 1 | CJ27: 0
H28: 13 | M28: 4.11 | S28: 21:48:00 | Y28: Fernseher | AJ28: =$BT$8 -> Schmiddi | AY28: : | BB28: =$Q$8 -> Jule | BR28: 1 | BW28: : | BZ28: 3 | CG28: 1 | CH28: 0 | CI28: 0 | CJ28: 1
H29: =H28+1 -> 14 | M29: 4.11 | S29: =S26+$C$14 -> 21:48:00 | Y29: Fernseher | AJ29: =$AB$8 -> Patrick | AY29: : | BB29: =$AM$8 -> Markus | BR29: 3 | BW29: : | BZ29: 1 | CG29: 1 | CH29: 1 | CI29: 0 | CJ29: 0
H30: 15 | M30: 4.11 | S30: =S27+$C$14 -> 21:48:00 | Y30: Fernseher | AJ30: =$AX$8 -> Christoph | AY30: : | BB30: =$BI$8 -> Ratze | BR30: 3 | BW30: : | BZ30: 1 | CG30: 1 | CH30: 1 | CI30: 0 | CJ30: 0
C32: Rückrunde | H32: =H30+1 -> 16 | M32: =$M$16 -> 4.11 | S32: =S30+$C$14 -> 22:00:00 | Y32: =$Y$16 -> Fernseher | AJ32: =$AB$8 -> Patrick | AY32: : | BB32: =$Q$8 -> Jule | BR32: 5 | BW32: : | BZ32: 0 | CG32: =IF(AND(ISNUMBER(BR32),ISNUMBER(BZ32)),1,0) -> 1 | CH32: =IF(OR(ISBLANK(BR32),ISBLANK(BZ32)),0,IF(BR32>BZ32,1,0)) -> 1 | CI32: =IF(OR(ISBLANK(BR32),ISBLANK(BZ32)),0,IF(BR32=BZ32,1,0)) -> 0 | CJ32: =IF(OR(ISBLANK(BR32),ISBLANK(BZ32)),0,IF(BR32<BZ32,1,0)) -> 0
H33: =H32+1 -> 17 | M33: 4.11 | S33: =S30+$C$14 -> 22:00:00 | Y33: Fernseher | AJ33: =$AX$8 -> Christoph | AY33: : | BB33: =$AM$8 -> Markus | BR33: 1 | BW33: : | BZ33: 2 | CG33: 1 | CH33: 0 | CI33: 0 | CJ33: 1
H34: =H33+1 -> 18 | M34: 4.11 | S34: =S30+$C$14 -> 22:00:00 | Y34: Fernseher | AJ34: =$BT$8 -> Schmiddi | AY34: : | BB34: =$BI$8 -> Ratze | BR34: 2 | BW34: : | BZ34: 4 | CG34: 1 | CH34: 0 | CI34: 0 | CJ34: 1
H35: =H34+1 -> 19 | M35: 4.11 | S35: =S32+$C$14 -> 22:12:00 | Y35: Fernseher | AJ35: =$AM$8 -> Markus | AY35: : | BB35: =$Q$8 -> Jule | BR35: 2 | BW35: : | BZ35: 1 | CG35: 1 | CH35: 1 | CI35: 0 | CJ35: 0
H36: 20 | M36: 4.11 | S36: =S33+$C$14 -> 22:12:00 | Y36: Fernseher | AJ36: =$BI$8 -> Ratze | AY36: : | BB36: =$AB$8 -> Patrick | BR36: 1 | BW36: : | BZ36: 0 | CG36: 1 | CH36: 1 | CI36: 0 | CJ36: 0
H37: 21 | M37: 4.11 | S37: =S34+$C$14 -> 22:12:00 | Y37: Fernseher | AJ37: =$BT$8 -> Schmiddi | AY37: : | BB37: =$AX$8 -> Christoph | BR37: 3 | BW37: : | BZ37: 4 | CG37: 1 | CH37: 0 | CI37: 0 | CJ37: 1
H38: =H37+1 -> 22 | M38: 4.11 | S38: =S35+$C$14 -> 22:24:00 | Y38: Fernseher | AJ38: =$Q$8 -> Jule | AY38: : | BB38: =$BI$8 -> Ratze | BR38: 0 | BW38: : | BZ38: 4 | CG38: 1 | CH38: 0 | CI38: 0 | CJ38: 1
H39: 23 | M39: 4.11 | S39: =S36+$C$14 -> 22:24:00 | Y39: Fernseher | AJ39: =$AX$8 -> Christoph | AY39: : | BB39: =$AB$8 -> Patrick | BR39: 0 | BW39: : | BZ39: 3 | CG39: 1 | CH39: 0 | CI39: 0 | CJ39: 1
H40: 24 | M40: 4.11 | S40: 22:24:00 | Y40: Fernseher | AJ40: =$AM$8 -> Markus | AY40: : | BB40: =$BT$8 -> Schmiddi | BR40: 2 | BW40: : | BZ40: 2 | CG40: 1 | CH40: 0 | CI40: 1 | CJ40: 0
H41: =H40+1 -> 25 | M41: 4.11 | S41: =S38+$C$14 -> 22:36:00 | Y41: Fernseher | AJ41: =$AX$8 -> Christoph | AY41: : | BB41: =$Q$8 -> Jule | BR41: 4 | BW41: : | BZ41: 2 | CG41: 1 | CH41: 1 | CI41: 0 | CJ41: 0
H42: 26 | M42: 4.11 | S42: 22:36:00 | Y42: Fernseher | AJ42: =$AB$8 -> Patrick | AY42: : | BB42: =$BT$8 -> Schmiddi | BR42: 3 | BW42: : | BZ42: 2 | CG42: 1 | CH42: 1 | CI42: 0 | CJ42: 0
H43: =H42+1 -> 27 | M43: 4.11 | S43: =S40+$C$14 -> 22:36:00 | Y43: Fernseher | AJ43: =$BI$8 -> Ratze | AY43: : | BB43: =$AM$8 -> Markus | BR43: 0 | BW43: : | BZ43: 4 | CG43: 1 | CH43: 0 | CI43: 0 | CJ43: 1
H44: 28 | M44: 4.11 | S44: 22:48:00 | Y44: Fernseher | AJ44: =$Q$8 -> Jule | AY44: : | BB44: =$BT$8 -> Schmiddi | BR44: 3 | BW44: : | BZ44: 4 | CG44: 1 | CH44: 0 | CI44: 0 | CJ44: 1
H45: =H44+1 -> 29 | M45: 4.11 | S45: =S42+$C$14 -> 22:48:00 | Y45: Fernseher | AJ45: =$AM$8 -> Markus | AY45: : | BB45: =$AB$8 -> Patrick | BR45: 1 | BW45: : | BZ45: 1 | CG45: 1 | CH45: 0 | CI45: 1 | CJ45: 0
H46: 30 | M46: 4.11 | S46: =S43+$C$14 -> 22:48:00 | Y46: Fernseher | AJ46: =$BI$8 -> Ratze | AY46: : | BB46: =$AX$8 -> Christoph | BR46: 5 | BW46: : | BZ46: 1 | CG46: 1 | CH46: 1 | CI46: 0 | CJ46: 0
C62: Tabelle (unsortiert)
C64: Rang | H64: Spieler | T64: Spiele | Z64: Siege | AK64: Unentschieden | AV64: Niederlagen | BG64: Tore | BS64: +/- | BX64: Punkte | CB64: HS
C65: =IF(T65=0,0,RANK(BX65,$BX$65:$CA$70,0)) -> 6 | H65: =$Q$8 -> Jule | T65: =CG16+CG19+CG22+CG25+CG28+CG32+CG35+CG38+CG41+CG44 -> 10 | Z65: =CH16+CH19+CJ22+CH25+CJ28+CJ32+CJ35+CH38+CJ41+CH44 -> 1 | AK65: =CI16+CI19+CI22+CI25+CI28+CI32+CI35+CI38+CI41+CI44 -> 0 | AV65: =CJ16+CJ19+CH22+CJ25+CH28+CH32+CH35+CJ38+CH41+CJ44 -> 9 | BG65: =BR16+BR19+BZ22+BR25+BZ28+BZ32+BZ35+BR38+BZ41+BR44 -> 10 | BL65: : | BN65: =BZ16+BZ19+BR22+BZ25+BR28+BR32+BR35+BZ38+BR41+BZ44 -> 31 | BS65: =BG65-BN65 -> -21 | BX65: =(Z65*3)+AK65 -> 3 | CB65: =BX65+ROW()/1000 -> 3.065
C66: 1 | H66: =$AB$8 -> Patrick | T66: =CG16+CG20+CG23+CG26+CG29+CG32+CG36+CG39+CG42+CG45 -> 10 | Z66: =CJ16+CH20+CH23+CJ26+CH29+CH32+CJ36+CJ39+CH42+CJ45 -> 7 | AK66: =CI16+CI20+CI23+CI26+CI29+CI32+CI36+CI39+CI42+CI45 -> 2 | AV66: =CH16+CJ20+CJ23+CH26+CJ29+CJ32+CH36+CH39+CJ42+CH45 -> 1 | BG66: =BZ16+BR20+BR23+BZ26+BR29+BR32+BZ36+BZ39+BR42+BZ45 -> 26 | BL66: : | BN66: =BR16+BZ20+BZ23+BR26+BZ29+BZ32+BR36+BR39+BZ42+BR45 -> 9 | BS66: 17 | BX66: 23 | CB66: 23.066
C67: 2 | H67: =$AM$8 -> Markus | T67: =CG17+CG19+CG24+CG27+CG29+CG33+CG35+CG40+CG43+CG45 -> 10 | Z67: =CH17+CJ19+CJ24+CH27+CJ29+CJ33+CH35+CH40+CJ43+CH45 -> 6 | AK67: =CI17+CI19+CI24+CI27+CI29+CI33+CI35+CI40+CI43+CI45 -> 3 | AV67: =CJ17+CH19+CH24+CJ27+CH29+CH33+CJ35+CJ40+CH43+CJ45 -> 1 | BG67: =BR17+BZ19+BZ24+BR27+BZ29+BZ33+BR35+BR40+BZ43+BR45 -> 23 | BL67: : | BN67: =BZ17+BR19+BR24+BZ27+BR29+BR33+BZ35+BZ40+BR43+BZ45 -> 16 | BS67: 7 | BX67: 21 | CB67: 21.067
C68: 4 | H68: =$AX$8 -> Christoph | T68: =CG17+CG21+CG23+CG25+CG30+CG33+CG37+CG39+CG41+CG46 -> 10 | Z68: =CJ17+CH21+CJ23+CJ25+CH30+CH33+CJ37+CH39+CH41+CJ46 -> 5 | AK68: =CI17+CI21+CI23+CI25+CI30+CI33+CI37+CI39+CI41+CI46 -> 0 | AV68: =CH17+CJ21+CH23+CH25+CJ30+CJ33+CH37+CJ39+CJ41+CH46 -> 5 | BG68: =BZ17+BR21+BZ23+BZ25+BR30+BR33+BZ37+BR39+BR41+BZ46 -> 25 | BL68: : | BN68: =BR17+BZ21+BR23+BR25+BZ30+BZ33+BR37+BZ39+BZ41+BR46 -> 22 | BS68: 3 | BX68: 15 | CB68: 15.068
C69: 3 | H69: =$BI$8 -> Ratze | T69: =CG18+CG20+CG22+CG27+CG30+CG34+CG36+CG38+CG43+CG46 -> 10 | Z69: =CH18+CJ20+CH22+CJ27+CJ30+CJ34+CH36+CJ38+CH43+CH46 -> 6 | AK69: =CI18+CI20+CI22+CI27+CI30+CI34+CI36+CI38+CI43+CI46 -> 2 | AV69: =CJ18+CH20+CJ22+CH27+CH30+CH34+CJ36+CH38+CJ43+CJ46 -> 2 | BG69: =BR18+BZ20+BR22+BZ27+BZ30+BZ34+BR36+BZ38+BR43+BR46 -> 24 | BL69: : | BN69: =BZ18+BR20+BZ22+BR27+BR30+BR34+BZ36+BR38+BZ43+BZ46 -> 13 | BS69: 11 | BX69: 20 | CB69: 20.069
C70: 5 | H70: =BT8 -> Schmiddi | T70: =CG18+CG21+CG24+CG26+CG28+CG34+CG37+CG40+CG42+CG44 -> 10 | Z70: =CJ18+CJ21+CH24+CH26+CH28+CH34+CH37+CJ40+CJ42+CJ44 -> 1 | AK70: =CI18+CI21+CI24+CI26+CI28+CI34+CI37+CI40+CI42+CI44 -> 1 | AV70: =CH18+CH21+CJ24+CJ26+CJ28+CJ34+CJ37+CH40+CH42+CH44 -> 8 | BG70: =BZ18+BZ21+BR24+BR26+BR28+BR34+BR37+BZ40+BZ42+BZ44 -> 20 | BL70: : | BN70: =BR18+BR21+BZ24+BZ26+BZ28+BZ34+BZ37+BR40+BR42+BR44 -> 37 | BS70: -17 | BX70: 4 | CB70: 4.07
H71: Spieler 7 | T71: 0 | Z71: 0 | AK71: 0 | AV71: 0 | BG71: 0 | BL71: : | BN71: 0 | BS71: 0 | BX71: 0 | CB71: 0
C75: Tabelle
C77: Rang | H77: Spieler | T77: Spiele | Z77: Siege | AK77: Unentschieden | AV77: Niederlagen | BG77: Tore | BS77: +/- | BX77: Punkte
C78: =INDEX($C$65:$C$70,MATCH(LARGE($CB$65:$CB$70,ROW(A1)),$CB$65:$CB$70,0),1) -> 1 | F78: 1 | H78: =INDEX($H$65:$H$70,MATCH(LARGE($CB$65:$CB$70,ROW(A1)),$CB$65:$CB$70,0),1) -> Patrick | T78: =INDEX($T$65:$T$70,MATCH(LARGE($CB$65:$CB$70,ROW(A1)),$CB$65:$CB$70,0),1) -> 10 | Z78: =INDEX($Z$65:$Z$70,MATCH(LARGE($CB$65:$CB$70,ROW(A1)),$CB$65:$CB$70,0),1) -> 7 | AK78: =INDEX($AK$65:$AK$70,MATCH(LARGE($CB$65:$CB$70,ROW(A1)),$CB$65:$CB$70,0),1) -> 2 | AV78: =INDEX($AV$65:$AV$70,MATCH(LARGE($CB$65:$CB$70,ROW(A1)),$CB$65:$CB$70,0),1) -> 1 | BG78: =INDEX($BG$65:$BG$70,MATCH(LARGE($CB$65:$CB$70,ROW(A1)),$CB$65:$CB$70,0),1) -> 26 | BL78: : | BN78: =INDEX($BN$65:$BN$70,MATCH(LARGE($CB$65:$CB$70,ROW(A1)),$CB$65:$CB$70,0),1) -> 9 | BS78: =INDEX($BS$65:$BS$70,MATCH(LARGE($CB$65:$CB$70,ROW(A1)),$CB$65:$CB$70,0),1) -> 17 | BX78: =INDEX($BX$65:$BX$70,MATCH(LARGE($CB$65:$CB$70,ROW(A1)),$CB$65:$CB$70,0),1) -> 23
C79: 2 | F79: 2 | H79: Markus | T79: 10 | Z79: 6 | AK79: 3 | AV79: 1 | BG79: 23 | BL79: : | BN79: 16 | BS79: 7 | BX79: 21
C80: 3 | F80: 3 | H80: Ratze | T80: 10 | Z80: 6 | AK80: 2 | AV80: 2 | BG80: 24 | BL80: : | BN80: 13 | BS80: 11 | BX80: 20
C81: 4 | F81: 4 | H81: Christoph | T81: 10 | Z81: 5 | AK81: 0 | AV81: 5 | BG81: 25 | BL81: : | BN81: 22 | BS81: 3 | BX81: 15
C82: 5 | F82: 5 | H82: Schmiddi | T82: 10 | Z82: 1 | AK82: 1 | AV82: 8 | BG82: 20 | BL82: : | BN82: 37 | BS82: -17 | BX82: 4
C83: 6 | F83: 6 | H83: Jule | T83: 10 | Z83: 1 | AK83: 0 | AV83: 9 | BG83: 10 | BL83: : | BN83: 31 | BS83: -21 | BX83: 3
C84: --- | F84: --- | H84: Spieler 7 | T84: 0 | Z84: 0 | AK84: 0 | AV84: 0 | BG84: 0 | BL84: : | BN84: 0 | BS84: 0 | BX84: 0
C88: Tabelle (nach Alphabet)
C90: Rang | H90: Spieler | T90: Spiele | Z90: Siege | AK90: Unentschieden | AV90: Niederlagen | BG90: Tore | BS90: +/- | BX90: Punkte
C91: =IF($H$78="Basti",$F$78,IF($H$79="Basti",$F$79,IF($H$80="Basti",$F$80,IF($H$81="Basti",$F$81,IF($H$82="Basti",$F$82,IF($H$83="Basti",$F$83,IF($H$84="Basti",$F$84,0))))))) -> 0 | H91: Basti | T91: =IF($H$78="Basti",$T$78,IF($H$79="Basti",$T$79,IF($H$80="Basti",$T$80,IF($H$81="Basti",$T$81,IF($H$82="Basti",$T$82,IF($H$83="Basti",$T$83,IF($H$84="Basti",$T$84,0))))))) -> 0 | Z91: =IF($H$78="Basti",$Z$78,IF($H$79="Basti",$Z$79,IF($H$80="Basti",$Z$80,IF($H$81="Basti",$Z$81,IF($H$82="Basti",$Z$82,IF($H$83="Basti",$Z$83,IF($H$84="Basti",$Z$84,0))))))) -> 0 | AK91: =IF($H$78="Basti",$AK$78,IF($H$79="Basti",$AK$79,IF($H$80="Basti",$AK$80,IF($H$81="Basti",$AK$81,IF($H$82="Basti",$AK$82,IF($H$83="Basti",$AK$83,IF($H$84="Basti",$AK$84,0))))))) -> 0 | AV91: =IF($H$78="Basti",$AV$78,IF($H$79="Basti",$AV$79,IF($H$80="Basti",$AV$80,IF($H$81="Basti",$AV$81,IF($H$82="Basti",$AV$82,IF($H$83="Basti",$AV$83,IF($H$84="Basti",$AV$84,0))))))) -> 0 | BG91: =IF($H$78="Basti",$BG$78,IF($H$79="Basti",$BG$79,IF($H$80="Basti",$BG$80,IF($H$81="Basti",$BG$81,IF($H$82="Basti",$BG$82,IF($H$83="Basti",$BG$83,IF($H$84="Basti",$BG$84,0))))))) -> 0 | BL91: : | BN91: =IF($H$78="Basti",$BN$78,IF($H$79="Basti",$BN$79,IF($H$80="Basti",$BN$80,IF($H$81="Basti",$BN$81,IF($H$82="Basti",$BN$82,IF($H$83="Basti",$BN$83,IF($H$84="Basti",$BN$84,0))))))) -> 0 | BS91: =IF($H$78="Basti",$BS$78,IF($H$79="Basti",$BS$79,IF($H$80="Basti",$BS$80,IF($H$81="Basti",$BS$81,IF($H$82="Basti",$BS$82,IF($H$83="Basti",$BS$83,IF($H$84="Basti",$BS$84,0))))))) -> 0 | BX91: =IF($H$78="Basti",$BX$78,IF($H$79="Basti",$BX$79,IF($H$80="Basti",$BX$80,IF($H$81="Basti",$BX$81,IF($H$82="Basti",$BX$82,IF($H$83="Basti",$BX$83,IF($H$84="Basti",$BX$84,0))))))) -> 0
C92: =IF($H$78="Christoph",$F$78,IF($H$79="Christoph",$F$79,IF($H$80="Christoph",$F$80,IF($H$81="Christoph",$F$81,IF($H$82="Christoph",$F$82,IF($H$83="Christoph",$F$83,IF($H$84="Christoph",$F$84,0))))))) -> 4 | H92: Christoph | T92: =IF($H$78="Christoph",$T$78,IF($H$79="Christoph",$T$79,IF($H$80="Christoph",$T$80,IF($H$81="Christoph",$T$81,IF($H$82="Christoph",$T$82,IF($H$83="Christoph",$T$83,IF($H$84="Christoph",$T$84,0))))))) -> 10 | Z92: =IF($H$78="Christoph",$Z$78,IF($H$79="Christoph",$Z$79,IF($H$80="Christoph",$Z$80,IF($H$81="Christoph",$Z$81,IF($H$82="Christoph",$Z$82,IF($H$83="Christoph",$Z$83,IF($H$84="Christoph",$Z$84,0))))))) -> 5 | AK92: =IF($H$78="Christoph",$AK$78,IF($H$79="Christoph",$AK$79,IF($H$80="Christoph",$AK$80,IF($H$81="Christoph",$AK$81,IF($H$82="Christoph",$AK$82,IF($H$83="Christoph",$AK$83,IF($H$84="Christoph",$AK$84,0))))))) -> 0 | AV92: =IF($H$78="Christoph",$AV$78,IF($H$79="Christoph",$AV$79,IF($H$80="Christoph",$AV$80,IF($H$81="Christoph",$AV$81,IF($H$82="Christoph",$AV$82,IF($H$83="Christoph",$AV$83,IF($H$84="Christoph",$AV$84,0))))))) -> 5 | BG92: =IF($H$78="Christoph",$BG$78,IF($H$79="Christoph",$BG$79,IF($H$80="Christoph",$BG$80,IF($H$81="Christoph",$BG$81,IF($H$82="Christoph",$BG$82,IF($H$83="Christoph",$BG$83,IF($H$84="Christoph",$BG$84,0))))))) -> 25 | BL92: : | BN92: =IF($H$78="Christoph",$BN$78,IF($H$79="Christoph",$BN$79,IF($H$80="Christoph",$BN$80,IF($H$81="Christoph",$BN$81,IF($H$82="Christoph",$BN$82,IF($H$83="Christoph",$BN$83,IF($H$84="Christoph",$BN$84,0))))))) -> 22 | BS92: =IF($H$78="Christoph",$BS$78,IF($H$79="Christoph",$BS$79,IF($H$80="Christoph",$BS$80,IF($H$81="Christoph",$BS$81,IF($H$82="Christoph",$BS$82,IF($H$83="Christoph",$BS$83,IF($H$84="Christoph",$BS$84,0))))))) -> 3 | BX92: =IF($H$78="Christoph",$BX$78,IF($H$79="Christoph",$BX$79,IF($H$80="Christoph",$BX$80,IF($H$81="Christoph",$BX$81,IF($H$82="Christoph",$BX$82,IF($H$83="Christoph",$BX$83,IF($H$84="Christoph",$BX$84,0))))))) -> 15
C93: =IF($H$78="Jule",$F$78,IF($H$79="Jule",$F$79,IF($H$80="Jule",$F$80,IF($H$81="Jule",$F$81,IF($H$82="Jule",$F$82,IF($H$83="Jule",$F$83,IF($H$84="Jule",$F$84,0))))))) -> 6 | H93: Jule | T93: =IF($H$78="Jule",$T$78,IF($H$79="Jule",$T$79,IF($H$80="Jule",$T$80,IF($H$81="Jule",$T$81,IF($H$82="Jule",$T$82,IF($H$83="Jule",$T$83,IF($H$84="Jule",$T$84,0))))))) -> 10 | Z93: =IF($H$78="Jule",$Z$78,IF($H$79="Jule",$Z$79,IF($H$80="Jule",$Z$80,IF($H$81="Jule",$Z$81,IF($H$82="Jule",$Z$82,IF($H$83="Jule",$Z$83,IF($H$84="Jule",$Z$84,0))))))) -> 1 | AK93: =IF($H$78="Jule",$AK$78,IF($H$79="Jule",$AK$79,IF($H$80="Jule",$AK$80,IF($H$81="Jule",$AK$81,IF($H$82="Jule",$AK$82,IF($H$83="Jule",$AK$83,IF($H$84="Jule",$AK$84,0))))))) -> 0 | AV93: =IF($H$78="Jule",$AV$78,IF($H$79="Jule",$AV$79,IF($H$80="Jule",$AV$80,IF($H$81="Jule",$AV$81,IF($H$82="Jule",$AV$82,IF($H$83="Jule",$AV$83,IF($H$84="Jule",$AV$84,0))))))) -> 9 | BG93: =IF($H$78="Jule",$BG$78,IF($H$79="Jule",$BG$79,IF($H$80="Jule",$BG$80,IF($H$81="Jule",$BG$81,IF($H$82="Jule",$BG$82,IF($H$83="Jule",$BG$83,IF($H$84="Jule",$BG$84,0))))))) -> 10 | BL93: : | BN93: =IF($H$78="Jule",$BN$78,IF($H$79="Jule",$BN$79,IF($H$80="Jule",$BN$80,IF($H$81="Jule",$BN$81,IF($H$82="Jule",$BN$82,IF($H$83="Jule",$BN$83,IF($H$84="Jule",$BN$84,0))))))) -> 31 | BS93: =IF($H$78="Jule",$BS$78,IF($H$79="Jule",$BS$79,IF($H$80="Jule",$BS$80,IF($H$81="Jule",$BS$81,IF($H$82="Jule",$BS$82,IF($H$83="Jule",$BS$83,IF($H$84="Jule",$BS$84,0))))))) -> -21 | BX93: =IF($H$78="Jule",$BX$78,IF($H$79="Jule",$BX$79,IF($H$80="Jule",$BX$80,IF($H$81="Jule",$BX$81,IF($H$82="Jule",$BX$82,IF($H$83="Jule",$BX$83,IF($H$84="Jule",$BX$84,0))))))) -> 3
C94: =IF($H$78="Markus",$F$78,IF($H$79="Markus",$F$79,IF($H$80="Markus",$F$80,IF($H$81="Markus",$F$81,IF($H$82="Markus",$F$82,IF($H$83="Markus",$F$83,IF($H$84="Markus",$F$84,0))))))) -> 2 | H94: Markus | T94: =IF($H$78="Markus",$T$78,IF($H$79="Markus",$T$79,IF($H$80="Markus",$T$80,IF($H$81="Markus",$T$81,IF($H$82="Markus",$T$82,IF($H$83="Markus",$T$83,IF($H$84="Markus",$T$84,0))))))) -> 10 | Z94: =IF($H$78="Markus",$Z$78,IF($H$79="Markus",$Z$79,IF($H$80="Markus",$Z$80,IF($H$81="Markus",$Z$81,IF($H$82="Markus",$Z$82,IF($H$83="Markus",$Z$83,IF($H$84="Markus",$Z$84,0))))))) -> 6 | AK94: =IF($H$78="Markus",$AK$78,IF($H$79="Markus",$AK$79,IF($H$80="Markus",$AK$80,IF($H$81="Markus",$AK$81,IF($H$82="Markus",$AK$82,IF($H$83="Markus",$AK$83,IF($H$84="Markus",$AK$84,0))))))) -> 3 | AV94: =IF($H$78="Markus",$AV$78,IF($H$79="Markus",$AV$79,IF($H$80="Markus",$AV$80,IF($H$81="Markus",$AV$81,IF($H$82="Markus",$AV$82,IF($H$83="Markus",$AV$83,IF($H$84="Markus",$AV$84,0))))))) -> 1 | BG94: =IF($H$78="Markus",$BG$78,IF($H$79="Markus",$BG$79,IF($H$80="Markus",$BG$80,IF($H$81="Markus",$BG$81,IF($H$82="Markus",$BG$82,IF($H$83="Markus",$BG$83,IF($H$84="Markus",$BG$84,0))))))) -> 23 | BL94: : | BN94: =IF($H$78="Markus",$BN$78,IF($H$79="Markus",$BN$79,IF($H$80="Markus",$BN$80,IF($H$81="Markus",$BN$81,IF($H$82="Markus",$BN$82,IF($H$83="Markus",$BN$83,IF($H$84="Markus",$BN$84,0))))))) -> 16 | BS94: =IF($H$78="Markus",$BS$78,IF($H$79="Markus",$BS$79,IF($H$80="Markus",$BS$80,IF($H$81="Markus",$BS$81,IF($H$82="Markus",$BS$82,IF($H$83="Markus",$BS$83,IF($H$84="Markus",$BS$84,0))))))) -> 7 | BX94: =IF($H$78="Markus",$BX$78,IF($H$79="Markus",$BX$79,IF($H$80="Markus",$BX$80,IF($H$81="Markus",$BX$81,IF($H$82="Markus",$BX$82,IF($H$83="Markus",$BX$83,IF($H$84="Markus",$BX$84,0))))))) -> 21
C95: =IF($H$78="Patrick",$F$78,IF($H$79="Patrick",$F$79,IF($H$80="Patrick",$F$80,IF($H$81="Patrick",$F$81,IF($H$82="Patrick",$F$82,IF($H$83="Patrick",$F$83,IF($H$84="Patrick",$F$84,0))))))) -> 1 | H95: Patrick | T95: =IF($H$78="Patrick",$T$78,IF($H$79="Patrick",$T$79,IF($H$80="Patrick",$T$80,IF($H$81="Patrick",$T$81,IF($H$82="Patrick",$T$82,IF($H$83="Patrick",$T$83,IF($H$84="Patrick",$T$84,0))))))) -> 10 | Z95: =IF($H$78="Patrick",$Z$78,IF($H$79="Patrick",$Z$79,IF($H$80="Patrick",$Z$80,IF($H$81="Patrick",$Z$81,IF($H$82="Patrick",$Z$82,IF($H$83="Patrick",$Z$83,IF($H$84="Patrick",$Z$84,0))))))) -> 7 | AK95: =IF($H$78="Patrick",$AK$78,IF($H$79="Patrick",$AK$79,IF($H$80="Patrick",$AK$80,IF($H$81="Patrick",$AK$81,IF($H$82="Patrick",$AK$82,IF($H$83="Patrick",$AK$83,IF($H$84="Patrick",$AK$84,0))))))) -> 2 | AV95: =IF($H$78="Patrick",$AV$78,IF($H$79="Patrick",$AV$79,IF($H$80="Patrick",$AV$80,IF($H$81="Patrick",$AV$81,IF($H$82="Patrick",$AV$82,IF($H$83="Patrick",$AV$83,IF($H$84="Patrick",$AV$84,0))))))) -> 1 | BG95: =IF($H$78="Patrick",$BG$78,IF($H$79="Patrick",$BG$79,IF($H$80="Patrick",$BG$80,IF($H$81="Patrick",$BG$81,IF($H$82="Patrick",$BG$82,IF($H$83="Patrick",$BG$83,IF($H$84="Patrick",$BG$84,0))))))) -> 26 | BL95: : | BN95: =IF($H$78="Patrick",$BN$78,IF($H$79="Patrick",$BN$79,IF($H$80="Patrick",$BN$80,IF($H$81="Patrick",$BN$81,IF($H$82="Patrick",$BN$82,IF($H$83="Patrick",$BN$83,IF($H$84="Patrick",$BN$84,0))))))) -> 9 | BS95: =IF($H$78="Patrick",$BS$78,IF($H$79="Patrick",$BS$79,IF($H$80="Patrick",$BS$80,IF($H$81="Patrick",$BS$81,IF($H$82="Patrick",$BS$82,IF($H$83="Patrick",$BS$83,IF($H$84="Patrick",$BS$84,0))))))) -> 17 | BX95: =IF($H$78="Patrick",$BX$78,IF($H$79="Patrick",$BX$79,IF($H$80="Patrick",$BX$80,IF($H$81="Patrick",$BX$81,IF($H$82="Patrick",$BX$82,IF($H$83="Patrick",$BX$83,IF($H$84="Patrick",$BX$84,0))))))) -> 23
C96: =IF($H$78="Ratze",$F$78,IF($H$79="Ratze",$F$79,IF($H$80="Ratze",$F$80,IF($H$81="Ratze",$F$81,IF($H$82="Ratze",$F$82,IF($H$83="Ratze",$F$83,IF($H$84="Ratze",$F$84,0))))))) -> 3 | H96: Ratze | T96: =IF($H$78="Ratze",$T$78,IF($H$79="Ratze",$T$79,IF($H$80="Ratze",$T$80,IF($H$81="Ratze",$T$81,IF($H$82="Ratze",$T$82,IF($H$83="Ratze",$T$83,IF($H$84="Ratze",$T$84,0))))))) -> 10 | Z96: =IF($H$78="Ratze",$Z$78,IF($H$79="Ratze",$Z$79,IF($H$80="Ratze",$Z$80,IF($H$81="Ratze",$Z$81,IF($H$82="Ratze",$Z$82,IF($H$83="Ratze",$Z$83,IF($H$84="Ratze",$Z$84,0))))))) -> 6 | AK96: =IF($H$78="Ratze",$AK$78,IF($H$79="Ratze",$AK$79,IF($H$80="Ratze",$AK$80,IF($H$81="Ratze",$AK$81,IF($H$82="Ratze",$AK$82,IF($H$83="Ratze",$AK$83,IF($H$84="Ratze",$AK$84,0))))))) -> 2 | AV96: =IF($H$78="Ratze",$AV$78,IF($H$79="Ratze",$AV$79,IF($H$80="Ratze",$AV$80,IF($H$81="Ratze",$AV$81,IF($H$82="Ratze",$AV$82,IF($H$83="Ratze",$AV$83,IF($H$84="Ratze",$AV$84,0))))))) -> 2 | BG96: =IF($H$78="Ratze",$BG$78,IF($H$79="Ratze",$BG$79,IF($H$80="Ratze",$BG$80,IF($H$81="Ratze",$BG$81,IF($H$82="Ratze",$BG$82,IF($H$83="Ratze",$BG$83,IF($H$84="Ratze",$BG$84,0))))))) -> 24 | BL96: : | BN96: =IF($H$78="Ratze",$BN$78,IF($H$79="Ratze",$BN$79,IF($H$80="Ratze",$BN$80,IF($H$81="Ratze",$BN$81,IF($H$82="Ratze",$BN$82,IF($H$83="Ratze",$BN$83,IF($H$84="Ratze",$BN$84,0))))))) -> 13 | BS96: =IF($H$78="Ratze",$BS$78,IF($H$79="Ratze",$BS$79,IF($H$80="Ratze",$BS$80,IF($H$81="Ratze",$BS$81,IF($H$82="Ratze",$BS$82,IF($H$83="Ratze",$BS$83,IF($H$84="Ratze",$BS$84,0))))))) -> 11 | BX96: =IF($H$78="Ratze",$BX$78,IF($H$79="Ratze",$BX$79,IF($H$80="Ratze",$BX$80,IF($H$81="Ratze",$BX$81,IF($H$82="Ratze",$BX$82,IF($H$83="Ratze",$BX$83,IF($H$84="Ratze",$BX$84,0))))))) -> 20
C97: =IF($H$78="Schmiddi",$F$78,IF($H$79="Schmiddi",$F$79,IF($H$80="Schmiddi",$F$80,IF($H$81="Schmiddi",$F$81,IF($H$82="Schmiddi",$F$82,IF($H$83="Schmiddi",$F$83,IF($H$84="Schmiddi",$F$84,0))))))) -> 5 | H97: Schmiddi | T97: =IF($H$78="Schmiddi",$T$78,IF($H$79="Schmiddi",$T$79,IF($H$80="Schmiddi",$T$80,IF($H$81="Schmiddi",$T$81,IF($H$82="Schmiddi",$T$82,IF($H$83="Schmiddi",$T$83,IF($H$84="Schmiddi",$T$84,0))))))) -> 10 | Z97: =IF($H$78="Schmiddi",$Z$78,IF($H$79="Schmiddi",$Z$79,IF($H$80="Schmiddi",$Z$80,IF($H$81="Schmiddi",$Z$81,IF($H$82="Schmiddi",$Z$82,IF($H$83="Schmiddi",$Z$83,IF($H$84="Schmiddi",$Z$84,0))))))) -> 1 | AK97: =IF($H$78="Schmiddi",$AK$78,IF($H$79="Schmiddi",$AK$79,IF($H$80="Schmiddi",$AK$80,IF($H$81="Schmiddi",$AK$81,IF($H$82="Schmiddi",$AK$82,IF($H$83="Schmiddi",$AK$83,IF($H$84="Schmiddi",$AK$84,0))))))) -> 1 | AV97: =IF($H$78="Schmiddi",$AV$78,IF($H$79="Schmiddi",$AV$79,IF($H$80="Schmiddi",$AV$80,IF($H$81="Schmiddi",$AV$81,IF($H$82="Schmiddi",$AV$82,IF($H$83="Schmiddi",$AV$83,IF($H$84="Schmiddi",$AV$84,0))))))) -> 8 | BG97: =IF($H$78="Schmiddi",$BG$78,IF($H$79="Schmiddi",$BG$79,IF($H$80="Schmiddi",$BG$80,IF($H$81="Schmiddi",$BG$81,IF($H$82="Schmiddi",$BG$82,IF($H$83="Schmiddi",$BG$83,IF($H$84="Schmiddi",$BG$84,0))))))) -> 20 | BL97: : | BN97: =IF($H$78="Schmiddi",$BN$78,IF($H$79="Schmiddi",$BN$79,IF($H$80="Schmiddi",$BN$80,IF($H$81="Schmiddi",$BN$81,IF($H$82="Schmiddi",$BN$82,IF($H$83="Schmiddi",$BN$83,IF($H$84="Schmiddi",$BN$84,0))))))) -> 37 | BS97: =IF($H$78="Schmiddi",$BS$78,IF($H$79="Schmiddi",$BS$79,IF($H$80="Schmiddi",$BS$80,IF($H$81="Schmiddi",$BS$81,IF($H$82="Schmiddi",$BS$82,IF($H$83="Schmiddi",$BS$83,IF($H$84="Schmiddi",$BS$84,0))))))) -> -17 | BX97: =IF($H$78="Schmiddi",$BX$78,IF($H$79="Schmiddi",$BX$79,IF($H$80="Schmiddi",$BX$80,IF($H$81="Schmiddi",$BX$81,IF($H$82="Schmiddi",$BX$82,IF($H$83="Schmiddi",$BX$83,IF($H$84="Schmiddi",$BX$84,0))))))) -> 4

Sheet 26.11.
B2: ="Turnier am " & MID(CELL("dateiname",A1),SEARCH("]",CELL("dateiname",A1))+1,31) -> Turnier am 26.11.
C5: Spielerliste
C7: =" Spieler" -> Spieler | O7: Spieler 1 | AF7: Spieler 2 | AW7: Spieler 3 | BN7: Spieler 4
C8: =" Name" -> Name | O8: Patrick | AF8: Christoph | AW8: Markus | BN8: Ratze
C12: Spielplan
C14: 00:12:00 | H14: Spiel | M14: Datum | S14: Uhrzeit | Y14: Austragungsort | AJ14: Paarung | BR14: Ergebnis | CG14: Spiele | CH14: SiegHeim | CI14: Unentschieden | CJ14: SiegGast
C16: Hinrunde | H16: 1 | M16: =MID(CELL("dateiname",A1),SEARCH("]",CELL("dateiname",A1))+1,31) -> 26.11. | S16: 21:00:00 | Y16: Fernseher | AJ16: =$O$8 -> Patrick | AY16: : | BB16: =$AF$8 -> Christoph | BR16: 4 | BW16: : | BZ16: 0 | CG16: =IF(AND(ISNUMBER(BR16),ISNUMBER(BZ16)),1,0) -> 1 | CH16: =IF(OR(ISBLANK(BR16),ISBLANK(BZ16)),0,IF(BR16>BZ16,1,0)) -> 1 | CI16: =IF(OR(ISBLANK(BR16),ISBLANK(BZ16)),0,IF(BR16=BZ16,1,0)) -> 0 | CJ16: =IF(OR(ISBLANK(BR16),ISBLANK(BZ16)),0,IF(BR16<BZ16,1,0)) -> 0
H17: =H16+1 -> 2 | M17: =$M$16 -> 26.11. | S17: =S16 -> 21:00:00 | Y17: Fernseher | AJ17: =$AW$8 -> Markus | AY17: : | BB17: =$BN$8 -> Ratze | BR17: 2 | BW17: : | BZ17: 2 | CG17: =IF(AND(ISNUMBER(BR17),ISNUMBER(BZ17)),1,0) -> 1 | CH17: =IF(OR(ISBLANK(BR17),ISBLANK(BZ17)),0,IF(BR17>BZ17,1,0)) -> 0 | CI17: =IF(OR(ISBLANK(BR17),ISBLANK(BZ17)),0,IF(BR17=BZ17,1,0)) -> 1 | CJ17: =IF(OR(ISBLANK(BR17),ISBLANK(BZ17)),0,IF(BR17<BZ17,1,0)) -> 0
H18: =H17+1 -> 3 | M18: =$M$16 -> 26.11. | S18: =S16+$C$14 -> 21:12:00 | Y18: =$Y$16 -> Fernseher | AJ18: =$O$8 -> Patrick | AY18: : | BB18: =$AW$8 -> Markus | BR18: 4 | BW18: : | BZ18: 2 | CG18: 1 | CH18: 1 | CI18: 0 | CJ18: 0
H19: =H18+1 -> 4 | M19: 26.11. | S19: =S17+$C$14 -> 21:12:00 | Y19: =$Y$17 -> Fernseher | AJ19: =$AF$8 -> Christoph | AY19: : | BB19: =$BN$8 -> Ratze | BR19: 4 | BW19: : | BZ19: 1 | CG19: 1 | CH19: 1 | CI19: 0 | CJ19: 0
H20: =H19+1 -> 5 | M20: 26.11. | S20: =S18+$C$14 -> 21:24:00 | Y20: =$Y$16 -> Fernseher | AJ20: =$BN$8 -> Ratze | AY20: : | BB20: =$O$8 -> Patrick | BR20: 4 | BW20: : | BZ20: 2 | CG20: 1 | CH20: 1 | CI20: 0 | CJ20: 0
H21: =H20+1 -> 6 | M21: 26.11. | S21: =S19+$C$14 -> 21:24:00 | Y21: =$Y$17 -> Fernseher | AJ21: =$AF$8 -> Christoph | AY21: : | BB21: =$AW$8 -> Markus | BR21: 0 | BW21: : | BZ21: 0 | CG21: 1 | CH21: 0 | CI21: 1 | CJ21: 0
C23: Rückrunde | H23: =H21+1 -> 7 | M23: =$M$16 -> 26.11. | S23: =S20+$C$14 -> 21:36:00 | Y23: =$Y$17 -> Fernseher | AJ23: =$AF$8 -> Christoph | AY23: : | BB23: =$O$8 -> Patrick | BR23: 1 | BW23: : | BZ23: 1 | CG23: =IF(AND(ISNUMBER(BR23),ISNUMBER(BZ23)),1,0) -> 1 | CH23: =IF(OR(ISBLANK(BR23),ISBLANK(BZ23)),0,IF(BR23>BZ23,1,0)) -> 0 | CI23: =IF(OR(ISBLANK(BR23),ISBLANK(BZ23)),0,IF(BR23=BZ23,1,0)) -> 1 | CJ23: =IF(OR(ISBLANK(BR23),ISBLANK(BZ23)),0,IF(BR23<BZ23,1,0)) -> 0
H24: =H23+1 -> 8 | M24: 26.11. | S24: =S21+$C$14 -> 21:36:00 | Y24: =$Y$16 -> Fernseher | AJ24: =$BN$8 -> Ratze | AY24: : | BB24: =$AW$8 -> Markus | BR24: 0 | BW24: : | BZ24: 2 | CG24: 1 | CH24: 0 | CI24: 0 | CJ24: 1
H25: =H24+1 -> 9 | M25: 26.11. | S25: =S23+$C$14 -> 21:48:00 | Y25: =$Y$17 -> Fernseher | AJ25: =$AW$8 -> Markus | AY25: : | BB25: =$O$8 -> Patrick | BR25: 1 | BW25: : | BZ25: 5 | CG25: 1 | CH25: 0 | CI25: 0 | CJ25: 1
H26: =H25+1 -> 10 | M26: 26.11. | S26: =S24+$C$14 -> 21:48:00 | Y26: =$Y$16 -> Fernseher | AJ26: =$BN$8 -> Ratze | AY26: : | BB26: =$AF$8 -> Christoph | BR26: 1 | BW26: : | BZ26: 6 | CG26: 1 | CH26: 0 | CI26: 0 | CJ26: 1
H27: =H26+1 -> 11 | M27: 26.11. | S27: =S25+$C$14 -> 22:00:00 | Y27: =$Y$17 -> Fernseher | AJ27: =$O$8 -> Patrick | AY27: : | BB27: =$BN$8 -> Ratze | BR27: 5 | BW27: : | BZ27: 2 | CG27: 1 | CH27: 1 | CI27: 0 | CJ27: 0
H28: =H27+1 -> 12 | M28: 26.11. | S28: =S26+$C$14 -> 22:00:00 | Y28: =$Y$16 -> Fernseher | AJ28: =$AW$8 -> Markus | AY28: : | BB28: =$AF$8 -> Christoph | BR28: 3 | BW28: : | BZ28: 2 | CG28: 1 | CH28: 1 | CI28: 0 | CJ28: 0
C62: Tabelle (unsortiert)
C64: Rang | H64: Spieler | T64: Spiele | Z64: Siege | AK64: Unentschieden | AV64: Niederlagen | BG64: Tore | BS64: +/- | BX64: Punkte | CB64: HS
C65: =IF(T65=0,0,RANK(BX65,$BX$65:$CA$68,0)) -> 1 | H65: =$O$8 -> Patrick | T65: =CG16+CG18+CG20+CG23+CG25+CG27 -> 6 | Z65: =CH16+CH18+CJ20+CJ23+CJ25+CH27 -> 4 | AK65: =CI16+CI18+CI20+CI23+CI25+CI27 -> 1 | AV65: =CJ16+CJ18+CH20+CH23+CH25+CJ27 -> 1 | BG65: =BR16+BR18+BZ20+BZ23+BZ25+BR27 -> 21 | BL65: : | BN65: =BZ16+BZ18+BR20+BR23+BR25+BZ27 -> 10 | BS65: =BG65-BN65 -> 11 | BX65: =(Z65*3)+AK65 -> 13 | CB65: =BX65+ROW()/1000 -> 13.065
C66: =IF(T66=0,0,RANK(BX66,$BX$65:$CA$68,0)) -> 2 | H66: =$AF$8 -> Christoph | T66: =CG16+CG19+CG21+CG23+CG26+CG28 -> 6 | Z66: =CJ16+CH19+CH21+CH23+CJ26+CJ28 -> 2 | AK66: =CI16+CI19+CI21+CI23+CI26+CI28 -> 2 | AV66: =CH16+CJ19+CJ21+CJ23+CH26+CH28 -> 2 | BG66: =BZ16+BR19+BR21+BR23+BZ26+BZ28 -> 13 | BL66: : | BN66: =BR16+BZ19+BZ21+BZ23+BR26+BR28 -> 10 | BS66: =BG66-BN66 -> 3 | BX66: =(Z66*3)+AK66 -> 8 | CB66: =BX66+ROW()/1000 -> 8.066
C67: =IF(T67=0,0,RANK(BX67,$BX$65:$CA$68,0)) -> 2 | H67: =$AW$8 -> Markus | T67: =CG17+CG18+CG21+CG24+CG25+CG28 -> 6 | Z67: =CH17+CJ18+CJ21+CJ24+CH25+CH28 -> 2 | AK67: =CI17+CI18+CI21+CI24+CI25+CI28 -> 2 | AV67: =CJ17+CH18+CH21+CH24+CJ25+CJ28 -> 2 | BG67: =BR17+BZ18+BZ21+BZ24+BR25+BR28 -> 10 | BL67: : | BN67: =BZ17+BR18+BR21+BR24+BZ25+BZ28 -> 13 | BS67: =BG67-BN67 -> -3 | BX67: =(Z67*3)+AK67 -> 8 | CB67: =BX67+ROW()/1000 -> 8.067
C68: =IF(T68=0,0,RANK(BX68,$BX$65:$CA$68,0)) -> 4 | H68: =$BN$8 -> Ratze | T68: =CG17+CG19+CG20+CG24+CG26+CG27 -> 6 | Z68: =CJ17+CJ19+CH20+CH24+CH26+CJ27 -> 1 | AK68: =CI17+CI19+CI20+CI24+CI26+CI27 -> 1 | AV68: =CH17+CH19+CJ20+CJ24+CJ26+CH27 -> 4 | BG68: =BZ17+BZ19+BR20+BR24+BR26+BZ27 -> 10 | BL68: : | BN68: =BR17+BR19+BZ20+BZ24+BZ26+BR27 -> 21 | BS68: =BG68-BN68 -> -11 | BX68: =(Z68*3)+AK68 -> 4 | CB68: =BX68+ROW()/1000 -> 4.068
H69: Spieler 5 | T69: 0 | Z69: 0 | AK69: 0 | AV69: 0 | BG69: 0 | BL69: : | BN69: 0 | BS69: 0 | BX69: 0 | CB69: 0
H70: Spieler 6 | T70: 0 | Z70: 0 | AK70: 0 | AV70: 0 | BG70: 0 | BL70: : | BN70: 0 | BS70: 0 | BX70: 0 | CB70: 0
H71: Spieler 7 | T71: 0 | Z71: 0 | AK71: 0 | AV71: 0 | BG71: 0 | BL71: : | BN71: 0 | BS71: 0 | BX71: 0 | CB71: 0
C75: Tabelle
C77: Rang | H77: Spieler | T77: Spiele | Z77: Siege | AK77: Unentschieden | AV77: Niederlagen | BG77: Tore | BS77: +/- | BX77: Punkte
C78: =INDEX($C$65:$C$68,MATCH(LARGE($CB$65:$CB$68,ROW(A1)),$CB$65:$CB$68,0),1) -> 1 | F78: 1 | H78: =INDEX($H$65:$H$68,MATCH(LARGE($CB$65:$CB$68,ROW(A1)),$CB$65:$CB$68,0),1) -> Patrick | T78: =INDEX($T$65:$T$68,MATCH(LARGE($CB$65:$CB$68,ROW(A1)),$CB$65:$CB$68,0),1) -> 6 | Z78: =INDEX($Z$65:$Z$68,MATCH(LARGE($CB$65:$CB$68,ROW(A1)),$CB$65:$CB$68,0),1) -> 4 | AK78: =INDEX($AK$65:$AK$68,MATCH(LARGE($CB$65:$CB$68,ROW(A1)),$CB$65:$CB$68,0),1) -> 1 | AV78: =INDEX($AV$65:$AV$68,MATCH(LARGE($CB$65:$CB$68,ROW(A1)),$CB$65:$CB$68,0),1) -> 1 | BG78: =INDEX($BG$65:$BG$68,MATCH(LARGE($CB$65:$CB$68,ROW(A1)),$CB$65:$CB$68,0),1) -> 21 | BL78: : | BN78: =INDEX($BN$65:$BN$68,MATCH(LARGE($CB$65:$CB$68,ROW(A1)),$CB$65:$CB$68,0),1) -> 10 | BS78: =INDEX($BS$65:$BS$68,MATCH(LARGE($CB$65:$CB$68,ROW(A1)),$CB$65:$CB$68,0),1) -> 11 | BX78: =INDEX($BX$65:$BX$68,MATCH(LARGE($CB$65:$CB$68,ROW(A1)),$CB$65:$CB$68,0),1) -> 13
C79: =INDEX($C$65:$C$68,MATCH(LARGE($CB$65:$CB$68,ROW(A2)),$CB$65:$CB$68,0),1) -> 2 | F79: 3 | H79: =INDEX($H$65:$H$68,MATCH(LARGE($CB$65:$CB$68,ROW(A2)),$CB$65:$CB$68,0),1) -> Markus | T79: =INDEX($T$65:$T$68,MATCH(LARGE($CB$65:$CB$68,ROW(A2)),$CB$65:$CB$68,0),1) -> 6 | Z79: =INDEX($Z$65:$Z$68,MATCH(LARGE($CB$65:$CB$68,ROW(A2)),$CB$65:$CB$68,0),1) -> 2 | AK79: =INDEX($AK$65:$AK$68,MATCH(LARGE($CB$65:$CB$68,ROW(A2)),$CB$65:$CB$68,0),1) -> 2 | AV79: =INDEX($AV$65:$AV$68,MATCH(LARGE($CB$65:$CB$68,ROW(A2)),$CB$65:$CB$68,0),1) -> 2 | BG79: =INDEX($BG$65:$BG$68,MATCH(LARGE($CB$65:$CB$68,ROW(A2)),$CB$65:$CB$68,0),1) -> 10 | BL79: : | BN79: =INDEX($BN$65:$BN$68,MATCH(LARGE($CB$65:$CB$68,ROW(A2)),$CB$65:$CB$68,0),1) -> 13 | BS79: =INDEX($BS$65:$BS$68,MATCH(LARGE($CB$65:$CB$68,ROW(A2)),$CB$65:$CB$68,0),1) -> -3 | BX79: =INDEX($BX$65:$BX$68,MATCH(LARGE($CB$65:$CB$68,ROW(A2)),$CB$65:$CB$68,0),1) -> 8
C80: =INDEX($C$65:$C$68,MATCH(LARGE($CB$65:$CB$68,ROW(A3)),$CB$65:$CB$68,0),1) -> 2 | F80: 2 | H80: =INDEX($H$65:$H$68,MATCH(LARGE($CB$65:$CB$68,ROW(A3)),$CB$65:$CB$68,0),1) -> Christoph | T80: =INDEX($T$65:$T$68,MATCH(LARGE($CB$65:$CB$68,ROW(A3)),$CB$65:$CB$68,0),1) -> 6 | Z80: =INDEX($Z$65:$Z$68,MATCH(LARGE($CB$65:$CB$68,ROW(A3)),$CB$65:$CB$68,0),1) -> 2 | AK80: =INDEX($AK$65:$AK$68,MATCH(LARGE($CB$65:$CB$68,ROW(A3)),$CB$65:$CB$68,0),1) -> 2 | AV80: =INDEX($AV$65:$AV$68,MATCH(LARGE($CB$65:$CB$68,ROW(A3)),$CB$65:$CB$68,0),1) -> 2 | BG80: =INDEX($BG$65:$BG$68,MATCH(LARGE($CB$65:$CB$68,ROW(A3)),$CB$65:$CB$68,0),1) -> 13 | BL80: : | BN80: =INDEX($BN$65:$BN$68,MATCH(LARGE($CB$65:$CB$68,ROW(A3)),$CB$65:$CB$68,0),1) -> 10 | BS80: =INDEX($BS$65:$BS$68,MATCH(LARGE($CB$65:$CB$68,ROW(A3)),$CB$65:$CB$68,0),1) -> 3 | BX80: =INDEX($BX$65:$BX$68,MATCH(LARGE($CB$65:$CB$68,ROW(A3)),$CB$65:$CB$68,0),1) -> 8
C81: =INDEX($C$65:$C$68,MATCH(LARGE($CB$65:$CB$68,ROW(A4)),$CB$65:$CB$68,0),1) -> 4 | F81: 4 | H81: =INDEX($H$65:$H$68,MATCH(LARGE($CB$65:$CB$68,ROW(A4)),$CB$65:$CB$68,0),1) -> Ratze | T81: =INDEX($T$65:$T$68,MATCH(LARGE($CB$65:$CB$68,ROW(A4)),$CB$65:$CB$68,0),1) -> 6 | Z81: =INDEX($Z$65:$Z$68,MATCH(LARGE($CB$65:$CB$68,ROW(A4)),$CB$65:$CB$68,0),1) -> 1 | AK81: =INDEX($AK$65:$AK$68,MATCH(LARGE($CB$65:$CB$68,ROW(A4)),$CB$65:$CB$68,0),1) -> 1 | AV81: =INDEX($AV$65:$AV$68,MATCH(LARGE($CB$65:$CB$68,ROW(A4)),$CB$65:$CB$68,0),1) -> 4 | BG81: =INDEX($BG$65:$BG$68,MATCH(LARGE($CB$65:$CB$68,ROW(A4)),$CB$65:$CB$68,0),1) -> 10 | BL81: : | BN81: =INDEX($BN$65:$BN$68,MATCH(LARGE($CB$65:$CB$68,ROW(A4)),$CB$65:$CB$68,0),1) -> 21 | BS81: =INDEX($BS$65:$BS$68,MATCH(LARGE($CB$65:$CB$68,ROW(A4)),$CB$65:$CB$68,0),1) -> -11 | BX81: =INDEX($BX$65:$BX$68,MATCH(LARGE($CB$65:$CB$68,ROW(A4)),$CB$65:$CB$68,0),1) -> 4
C82: --- | F82: --- | H82: Spieler 5 | T82: 0 | Z82: 0 | AK82: 0 | AV82: 0 | BG82: 0 | BL82: : | BN82: 0 | BS82: 0 | BX82: 0
C83: --- | F83: --- | H83: Spieler 6 | T83: 0 | Z83: 0 | AK83: 0 | AV83: 0 | BG83: 0 | BL83: : | BN83: 0 | BS83: 0 | BX83: 0
C84: --- | F84: --- | H84: Spieler 7 | T84: 0 | Z84: 0 | AK84: 0 | AV84: 0 | BG84: 0 | BL84: : | BN84: 0 | BS84: 0 | BX84: 0
C88: Tabelle (nach Alphabet)
C90: Rang | H90: Spieler | T90: Spiele | Z90: Siege | AK90: Unentschieden | AV90: Niederlagen | BG90: Tore | BS90: +/- | BX90: Punkte
C91: =IF($H$78="Basti",$F$78,IF($H$79="Basti",$F$79,IF($H$80="Basti",$F$80,IF($H$81="Basti",$F$81,IF($H$82="Basti",$F$82,IF($H$83="Basti",$F$83,IF($H$84="Basti",$F$84,0))))))) -> 0 | H91: Basti | T91: =IF($H$78="Basti",$T$78,IF($H$79="Basti",$T$79,IF($H$80="Basti",$T$80,IF($H$81="Basti",$T$81,IF($H$82="Basti",$T$82,IF($H$83="Basti",$T$83,IF($H$84="Basti",$T$84,0))))))) -> 0 | Z91: =IF($H$78="Basti",$Z$78,IF($H$79="Basti",$Z$79,IF($H$80="Basti",$Z$80,IF($H$81="Basti",$Z$81,IF($H$82="Basti",$Z$82,IF($H$83="Basti",$Z$83,IF($H$84="Basti",$Z$84,0))))))) -> 0 | AK91: =IF($H$78="Basti",$AK$78,IF($H$79="Basti",$AK$79,IF($H$80="Basti",$AK$80,IF($H$81="Basti",$AK$81,IF($H$82="Basti",$AK$82,IF($H$83="Basti",$AK$83,IF($H$84="Basti",$AK$84,0))))))) -> 0 | AV91: =IF($H$78="Basti",$AV$78,IF($H$79="Basti",$AV$79,IF($H$80="Basti",$AV$80,IF($H$81="Basti",$AV$81,IF($H$82="Basti",$AV$82,IF($H$83="Basti",$AV$83,IF($H$84="Basti",$AV$84,0))))))) -> 0 | BG91: =IF($H$78="Basti",$BG$78,IF($H$79="Basti",$BG$79,IF($H$80="Basti",$BG$80,IF($H$81="Basti",$BG$81,IF($H$82="Basti",$BG$82,IF($H$83="Basti",$BG$83,IF($H$84="Basti",$BG$84,0))))))) -> 0 | BL91: : | BN91: =IF($H$78="Basti",$BN$78,IF($H$79="Basti",$BN$79,IF($H$80="Basti",$BN$80,IF($H$81="Basti",$BN$81,IF($H$82="Basti",$BN$82,IF($H$83="Basti",$BN$83,IF($H$84="Basti",$BN$84,0))))))) -> 0 | BS91: =IF($H$78="Basti",$BS$78,IF($H$79="Basti",$BS$79,IF($H$80="Basti",$BS$80,IF($H$81="Basti",$BS$81,IF($H$82="Basti",$BS$82,IF($H$83="Basti",$BS$83,IF($H$84="Basti",$BS$84,0))))))) -> 0 | BX91: =IF($H$78="Basti",$BX$78,IF($H$79="Basti",$BX$79,IF($H$80="Basti",$BX$80,IF($H$81="Basti",$BX$81,IF($H$82="Basti",$BX$82,IF($H$83="Basti",$BX$83,IF($H$84="Basti",$BX$84,0))))))) -> 0
C92: =IF($H$78="Christoph",$F$78,IF($H$79="Christoph",$F$79,IF($H$80="Christoph",$F$80,IF($H$81="Christoph",$F$81,IF($H$82="Christoph",$F$82,IF($H$83="Christoph",$F$83,IF($H$84="Christoph",$F$84,0))))))) -> 2 | H92: Christoph | T92: =IF($H$78="Christoph",$T$78,IF($H$79="Christoph",$T$79,IF($H$80="Christoph",$T$80,IF($H$81="Christoph",$T$81,IF($H$82="Christoph",$T$82,IF($H$83="Christoph",$T$83,IF($H$84="Christoph",$T$84,0))))))) -> 6 | Z92: =IF($H$78="Christoph",$Z$78,IF($H$79="Christoph",$Z$79,IF($H$80="Christoph",$Z$80,IF($H$81="Christoph",$Z$81,IF($H$82="Christoph",$Z$82,IF($H$83="Christoph",$Z$83,IF($H$84="Christoph",$Z$84,0))))))) -> 2 | AK92: =IF($H$78="Christoph",$AK$78,IF($H$79="Christoph",$AK$79,IF($H$80="Christoph",$AK$80,IF($H$81="Christoph",$AK$81,IF($H$82="Christoph",$AK$82,IF($H$83="Christoph",$AK$83,IF($H$84="Christoph",$AK$84,0))))))) -> 2 | AV92: =IF($H$78="Christoph",$AV$78,IF($H$79="Christoph",$AV$79,IF($H$80="Christoph",$AV$80,IF($H$81="Christoph",$AV$81,IF($H$82="Christoph",$AV$82,IF($H$83="Christoph",$AV$83,IF($H$84="Christoph",$AV$84,0))))))) -> 2 | BG92: =IF($H$78="Christoph",$BG$78,IF($H$79="Christoph",$BG$79,IF($H$80="Christoph",$BG$80,IF($H$81="Christoph",$BG$81,IF($H$82="Christoph",$BG$82,IF($H$83="Christoph",$BG$83,IF($H$84="Christoph",$BG$84,0))))))) -> 13 | BL92: : | BN92: =IF($H$78="Christoph",$BN$78,IF($H$79="Christoph",$BN$79,IF($H$80="Christoph",$BN$80,IF($H$81="Christoph",$BN$81,IF($H$82="Christoph",$BN$82,IF($H$83="Christoph",$BN$83,IF($H$84="Christoph",$BN$84,0))))))) -> 10 | BS92: =IF($H$78="Christoph",$BS$78,IF($H$79="Christoph",$BS$79,IF($H$80="Christoph",$BS$80,IF($H$81="Christoph",$BS$81,IF($H$82="Christoph",$BS$82,IF($H$83="Christoph",$BS$83,IF($H$84="Christoph",$BS$84,0))))))) -> 3 | BX92: =IF($H$78="Christoph",$BX$78,IF($H$79="Christoph",$BX$79,IF($H$80="Christoph",$BX$80,IF($H$81="Christoph",$BX$81,IF($H$82="Christoph",$BX$82,IF($H$83="Christoph",$BX$83,IF($H$84="Christoph",$BX$84,0))))))) -> 8
C93: =IF($H$78="Jule",$F$78,IF($H$79="Jule",$F$79,IF($H$80="Jule",$F$80,IF($H$81="Jule",$F$81,IF($H$82="Jule",$F$82,IF($H$83="Jule",$F$83,IF($H$84="Jule",$F$84,0))))))) -> 0 | H93: Jule | T93: =IF($H$78="Jule",$T$78,IF($H$79="Jule",$T$79,IF($H$80="Jule",$T$80,IF($H$81="Jule",$T$81,IF($H$82="Jule",$T$82,IF($H$83="Jule",$T$83,IF($H$84="Jule",$T$84,0))))))) -> 0 | Z93: =IF($H$78="Jule",$Z$78,IF($H$79="Jule",$Z$79,IF($H$80="Jule",$Z$80,IF($H$81="Jule",$Z$81,IF($H$82="Jule",$Z$82,IF($H$83="Jule",$Z$83,IF($H$84="Jule",$Z$84,0))))))) -> 0 | AK93: =IF($H$78="Jule",$AK$78,IF($H$79="Jule",$AK$79,IF($H$80="Jule",$AK$80,IF($H$81="Jule",$AK$81,IF($H$82="Jule",$AK$82,IF($H$83="Jule",$AK$83,IF($H$84="Jule",$AK$84,0))))))) -> 0 | AV93: =IF($H$78="Jule",$AV$78,IF($H$79="Jule",$AV$79,IF($H$80="Jule",$AV$80,IF($H$81="Jule",$AV$81,IF($H$82="Jule",$AV$82,IF($H$83="Jule",$AV$83,IF($H$84="Jule",$AV$84,0))))))) -> 0 | BG93: =IF($H$78="Jule",$BG$78,IF($H$79="Jule",$BG$79,IF($H$80="Jule",$BG$80,IF($H$81="Jule",$BG$81,IF($H$82="Jule",$BG$82,IF($H$83="Jule",$BG$83,IF($H$84="Jule",$BG$84,0))))))) -> 0 | BL93: : | BN93: =IF($H$78="Jule",$BN$78,IF($H$79="Jule",$BN$79,IF($H$80="Jule",$BN$80,IF($H$81="Jule",$BN$81,IF($H$82="Jule",$BN$82,IF($H$83="Jule",$BN$83,IF($H$84="Jule",$BN$84,0))))))) -> 0 | BS93: =IF($H$78="Jule",$BS$78,IF($H$79="Jule",$BS$79,IF($H$80="Jule",$BS$80,IF($H$81="Jule",$BS$81,IF($H$82="Jule",$BS$82,IF($H$83="Jule",$BS$83,IF($H$84="Jule",$BS$84,0))))))) -> 0 | BX93: =IF($H$78="Jule",$BX$78,IF($H$79="Jule",$BX$79,IF($H$80="Jule",$BX$80,IF($H$81="Jule",$BX$81,IF($H$82="Jule",$BX$82,IF($H$83="Jule",$BX$83,IF($H$84="Jule",$BX$84,0))))))) -> 0
C94: =IF($H$78="Markus",$F$78,IF($H$79="Markus",$F$79,IF($H$80="Markus",$F$80,IF($H$81="Markus",$F$81,IF($H$82="Markus",$F$82,IF($H$83="Markus",$F$83,IF($H$84="Markus",$F$84,0))))))) -> 3 | H94: Markus | T94: =IF($H$78="Markus",$T$78,IF($H$79="Markus",$T$79,IF($H$80="Markus",$T$80,IF($H$81="Markus",$T$81,IF($H$82="Markus",$T$82,IF($H$83="Markus",$T$83,IF($H$84="Markus",$T$84,0))))))) -> 6 | Z94: =IF($H$78="Markus",$Z$78,IF($H$79="Markus",$Z$79,IF($H$80="Markus",$Z$80,IF($H$81="Markus",$Z$81,IF($H$82="Markus",$Z$82,IF($H$83="Markus",$Z$83,IF($H$84="Markus",$Z$84,0))))))) -> 2 | AK94: =IF($H$78="Markus",$AK$78,IF($H$79="Markus",$AK$79,IF($H$80="Markus",$AK$80,IF($H$81="Markus",$AK$81,IF($H$82="Markus",$AK$82,IF($H$83="Markus",$AK$83,IF($H$84="Markus",$AK$84,0))))))) -> 2 | AV94: =IF($H$78="Markus",$AV$78,IF($H$79="Markus",$AV$79,IF($H$80="Markus",$AV$80,IF($H$81="Markus",$AV$81,IF($H$82="Markus",$AV$82,IF($H$83="Markus",$AV$83,IF($H$84="Markus",$AV$84,0))))))) -> 2 | BG94: =IF($H$78="Markus",$BG$78,IF($H$79="Markus",$BG$79,IF($H$80="Markus",$BG$80,IF($H$81="Markus",$BG$81,IF($H$82="Markus",$BG$82,IF($H$83="Markus",$BG$83,IF($H$84="Markus",$BG$84,0))))))) -> 10 | BL94: : | BN94: =IF($H$78="Markus",$BN$78,IF($H$79="Markus",$BN$79,IF($H$80="Markus",$BN$80,IF($H$81="Markus",$BN$81,IF($H$82="Markus",$BN$82,IF($H$83="Markus",$BN$83,IF($H$84="Markus",$BN$84,0))))))) -> 13 | BS94: =IF($H$78="Markus",$BS$78,IF($H$79="Markus",$BS$79,IF($H$80="Markus",$BS$80,IF($H$81="Markus",$BS$81,IF($H$82="Markus",$BS$82,IF($H$83="Markus",$BS$83,IF($H$84="Markus",$BS$84,0))))))) -> -3 | BX94: =IF($H$78="Markus",$BX$78,IF($H$79="Markus",$BX$79,IF($H$80="Markus",$BX$80,IF($H$81="Markus",$BX$81,IF($H$82="Markus",$BX$82,IF($H$83="Markus",$BX$83,IF($H$84="Markus",$BX$84,0))))))) -> 8
C95: =IF($H$78="Patrick",$F$78,IF($H$79="Patrick",$F$79,IF($H$80="Patrick",$F$80,IF($H$81="Patrick",$F$81,IF($H$82="Patrick",$F$82,IF($H$83="Patrick",$F$83,IF($H$84="Patrick",$F$84,0))))))) -> 1 | H95: Patrick | T95: =IF($H$78="Patrick",$T$78,IF($H$79="Patrick",$T$79,IF($H$80="Patrick",$T$80,IF($H$81="Patrick",$T$81,IF($H$82="Patrick",$T$82,IF($H$83="Patrick",$T$83,IF($H$84="Patrick",$T$84,0))))))) -> 6 | Z95: =IF($H$78="Patrick",$Z$78,IF($H$79="Patrick",$Z$79,IF($H$80="Patrick",$Z$80,IF($H$81="Patrick",$Z$81,IF($H$82="Patrick",$Z$82,IF($H$83="Patrick",$Z$83,IF($H$84="Patrick",$Z$84,0))))))) -> 4 | AK95: =IF($H$78="Patrick",$AK$78,IF($H$79="Patrick",$AK$79,IF($H$80="Patrick",$AK$80,IF($H$81="Patrick",$AK$81,IF($H$82="Patrick",$AK$82,IF($H$83="Patrick",$AK$83,IF($H$84="Patrick",$AK$84,0))))))) -> 1 | AV95: =IF($H$78="Patrick",$AV$78,IF($H$79="Patrick",$AV$79,IF($H$80="Patrick",$AV$80,IF($H$81="Patrick",$AV$81,IF($H$82="Patrick",$AV$82,IF($H$83="Patrick",$AV$83,IF($H$84="Patrick",$AV$84,0))))))) -> 1 | BG95: =IF($H$78="Patrick",$BG$78,IF($H$79="Patrick",$BG$79,IF($H$80="Patrick",$BG$80,IF($H$81="Patrick",$BG$81,IF($H$82="Patrick",$BG$82,IF($H$83="Patrick",$BG$83,IF($H$84="Patrick",$BG$84,0))))))) -> 21 | BL95: : | BN95: =IF($H$78="Patrick",$BN$78,IF($H$79="Patrick",$BN$79,IF($H$80="Patrick",$BN$80,IF($H$81="Patrick",$BN$81,IF($H$82="Patrick",$BN$82,IF($H$83="Patrick",$BN$83,IF($H$84="Patrick",$BN$84,0))))))) -> 10 | BS95: =IF($H$78="Patrick",$BS$78,IF($H$79="Patrick",$BS$79,IF($H$80="Patrick",$BS$80,IF($H$81="Patrick",$BS$81,IF($H$82="Patrick",$BS$82,IF($H$83="Patrick",$BS$83,IF($H$84="Patrick",$BS$84,0))))))) -> 11 | BX95: =IF($H$78="Patrick",$BX$78,IF($H$79="Patrick",$BX$79,IF($H$80="Patrick",$BX$80,IF($H$81="Patrick",$BX$81,IF($H$82="Patrick",$BX$82,IF($H$83="Patrick",$BX$83,IF($H$84="Patrick",$BX$84,0))))))) -> 13
C96: =IF($H$78="Ratze",$F$78,IF($H$79="Ratze",$F$79,IF($H$80="Ratze",$F$80,IF($H$81="Ratze",$F$81,IF($H$82="Ratze",$F$82,IF($H$83="Ratze",$F$83,IF($H$84="Ratze",$F$84,0))))))) -> 4 | H96: Ratze | T96: =IF($H$78="Ratze",$T$78,IF($H$79="Ratze",$T$79,IF($H$80="Ratze",$T$80,IF($H$81="Ratze",$T$81,IF($H$82="Ratze",$T$82,IF($H$83="Ratze",$T$83,IF($H$84="Ratze",$T$84,0))))))) -> 6 | Z96: =IF($H$78="Ratze",$Z$78,IF($H$79="Ratze",$Z$79,IF($H$80="Ratze",$Z$80,IF($H$81="Ratze",$Z$81,IF($H$82="Ratze",$Z$82,IF($H$83="Ratze",$Z$83,IF($H$84="Ratze",$Z$84,0))))))) -> 1 | AK96: =IF($H$78="Ratze",$AK$78,IF($H$79="Ratze",$AK$79,IF($H$80="Ratze",$AK$80,IF($H$81="Ratze",$AK$81,IF($H$82="Ratze",$AK$82,IF($H$83="Ratze",$AK$83,IF($H$84="Ratze",$AK$84,0))))))) -> 1 | AV96: =IF($H$78="Ratze",$AV$78,IF($H$79="Ratze",$AV$79,IF($H$80="Ratze",$AV$80,IF($H$81="Ratze",$AV$81,IF($H$82="Ratze",$AV$82,IF($H$83="Ratze",$AV$83,IF($H$84="Ratze",$AV$84,0))))))) -> 4 | BG96: =IF($H$78="Ratze",$BG$78,IF($H$79="Ratze",$BG$79,IF($H$80="Ratze",$BG$80,IF($H$81="Ratze",$BG$81,IF($H$82="Ratze",$BG$82,IF($H$83="Ratze",$BG$83,IF($H$84="Ratze",$BG$84,0))))))) -> 10 | BL96: : | BN96: =IF($H$78="Ratze",$BN$78,IF($H$79="Ratze",$BN$79,IF($H$80="Ratze",$BN$80,IF($H$81="Ratze",$BN$81,IF($H$82="Ratze",$BN$82,IF($H$83="Ratze",$BN$83,IF($H$84="Ratze",$BN$84,0))))))) -> 21 | BS96: =IF($H$78="Ratze",$BS$78,IF($H$79="Ratze",$BS$79,IF($H$80="Ratze",$BS$80,IF($H$81="Ratze",$BS$81,IF($H$82="Ratze",$BS$82,IF($H$83="Ratze",$BS$83,IF($H$84="Ratze",$BS$84,0))))))) -> -11 | BX96: =IF($H$78="Ratze",$BX$78,IF($H$79="Ratze",$BX$79,IF($H$80="Ratze",$BX$80,IF($H$81="Ratze",$BX$81,IF($H$82="Ratze",$BX$82,IF($H$83="Ratze",$BX$83,IF($H$84="Ratze",$BX$84,0))))))) -> 4
C97: =IF($H$78="Schmiddi",$F$78,IF($H$79="Schmiddi",$F$79,IF($H$80="Schmiddi",$F$80,IF($H$81="Schmiddi",$F$81,IF($H$82="Schmiddi",$F$82,IF($H$83="Schmiddi",$F$83,IF($H$84="Schmiddi",$F$84,0))))))) -> 0 | H97: Schmiddi | T97: =IF($H$78="Schmiddi",$T$78,IF($H$79="Schmiddi",$T$79,IF($H$80="Schmiddi",$T$80,IF($H$81="Schmiddi",$T$81,IF($H$82="Schmiddi",$T$82,IF($H$83="Schmiddi",$T$83,IF($H$84="Schmiddi",$T$84,0))))))) -> 0 | Z97: =IF($H$78="Schmiddi",$Z$78,IF($H$79="Schmiddi",$Z$79,IF($H$80="Schmiddi",$Z$80,IF($H$81="Schmiddi",$Z$81,IF($H$82="Schmiddi",$Z$82,IF($H$83="Schmiddi",$Z$83,IF($H$84="Schmiddi",$Z$84,0))))))) -> 0 | AK97: =IF($H$78="Schmiddi",$AK$78,IF($H$79="Schmiddi",$AK$79,IF($H$80="Schmiddi",$AK$80,IF($H$81="Schmiddi",$AK$81,IF($H$82="Schmiddi",$AK$82,IF($H$83="Schmiddi",$AK$83,IF($H$84="Schmiddi",$AK$84,0))))))) -> 0 | AV97: =IF($H$78="Schmiddi",$AV$78,IF($H$79="Schmiddi",$AV$79,IF($H$80="Schmiddi",$AV$80,IF($H$81="Schmiddi",$AV$81,IF($H$82="Schmiddi",$AV$82,IF($H$83="Schmiddi",$AV$83,IF($H$84="Schmiddi",$AV$84,0))))))) -> 0 | BG97: =IF($H$78="Schmiddi",$BG$78,IF($H$79="Schmiddi",$BG$79,IF($H$80="Schmiddi",$BG$80,IF($H$81="Schmiddi",$BG$81,IF($H$82="Schmiddi",$BG$82,IF($H$83="Schmiddi",$BG$83,IF($H$84="Schmiddi",$BG$84,0))))))) -> 0 | BL97: : | BN97: =IF($H$78="Schmiddi",$BN$78,IF($H$79="Schmiddi",$BN$79,IF($H$80="Schmiddi",$BN$80,IF($H$81="Schmiddi",$BN$81,IF($H$82="Schmiddi",$BN$82,IF($H$83="Schmiddi",$BN$83,IF($H$84="Schmiddi",$BN$84,0))))))) -> 0 | BS97: =IF($H$78="Schmiddi",$BS$78,IF($H$79="Schmiddi",$BS$79,IF($H$80="Schmiddi",$BS$80,IF($H$81="Schmiddi",$BS$81,IF($H$82="Schmiddi",$BS$82,IF($H$83="Schmiddi",$BS$83,IF($H$84="Schmiddi",$BS$84,0))))))) -> 0 | BX97: =IF($H$78="Schmiddi",$BX$78,IF($H$79="Schmiddi",$BX$79,IF($H$80="Schmiddi",$BX$80,IF($H$81="Schmiddi",$BX$81,IF($H$82="Schmiddi",$BX$82,IF($H$83="Schmiddi",$BX$83,IF($H$84="Schmiddi",$BX$84,0))))))) -> 0

Sheet 9.12.
B2: ="Turnier am " & MID(CELL("dateiname",A1),SEARCH("]",CELL("dateiname",A1))+1,31) -> Turnier am 9.12.
C5: Spielerliste
C7: =" Spieler" -> Spieler | M7: Spieler 1 | AA7: Spieler 2 | AO7: Spieler 3 | BC7: Spieler 4 | BQ7: Spieler 5
C8: =" Name" -> Name | M8: Schmiddi | AA8: Ratze | AO8: Jule | BC8: Christoph | BQ8: Patrick
C12: Spielplan
C14: 00:12:00 | H14: Spiel | M14: Datum | S14: Uhrzeit | Y14: Austragungsort | AJ14: Paarung | BR14: Ergebnis | CG14: Spiele | CH14: SiegHeim | CI14: Unentschieden | CJ14: SiegGast
C16: Hinrunde | H16: 1 | M16: =MID(CELL("dateiname",A1),SEARCH("]",CELL("dateiname",A1))+1,31) -> 9.12. | S16: 21:00:00 | Y16: Fernseher | AJ16: =$M$8 -> Schmiddi | AY16: : | BB16: =$AA$8 -> Ratze | BR16: 1 | BW16: : | BZ16: 0 | CG16: =IF(AND(ISNUMBER(BR16),ISNUMBER(BZ16)),1,0) -> 1 | CH16: =IF(OR(ISBLANK(BR16),ISBLANK(BZ16)),0,IF(BR16>BZ16,1,0)) -> 1 | CI16: =IF(OR(ISBLANK(BR16),ISBLANK(BZ16)),0,IF(BR16=BZ16,1,0)) -> 0 | CJ16: =IF(OR(ISBLANK(BR16),ISBLANK(BZ16)),0,IF(BR16<BZ16,1,0)) -> 0
H17: =H16+1 -> 2 | M17: =$M$16 -> 9.12. | S17: =S16 -> 21:00:00 | Y17: Fernseher | AJ17: =$AO$8 -> Jule | AY17: : | BB17: =$BC$8 -> Christoph | BR17: 2 | BW17: : | BZ17: 4 | CG17: =IF(AND(ISNUMBER(BR17),ISNUMBER(BZ17)),1,0) -> 1 | CH17: =IF(OR(ISBLANK(BR17),ISBLANK(BZ17)),0,IF(BR17>BZ17,1,0)) -> 0 | CI17: =IF(OR(ISBLANK(BR17),ISBLANK(BZ17)),0,IF(BR17=BZ17,1,0)) -> 0 | CJ17: =IF(OR(ISBLANK(BR17),ISBLANK(BZ17)),0,IF(BR17<BZ17,1,0)) -> 1
H18: =H17+1 -> 3 | M18: =$M$16 -> 9.12. | S18: =S16+$C$14 -> 21:12:00 | Y18: =$Y$16 -> Fernseher | AJ18: =$BQ$8 -> Patrick | AY18: : | BB18: =$M$8 -> Schmiddi | BR18: 2 | BW18: : | BZ18: 2 | CG18: 1 | CH18: 0 | CI18: 1 | CJ18: 0
H19: =H18+1 -> 4 | M19: 9.12. | S19: 21:12:00 | Y19: =$Y$17 -> Fernseher | AJ19: =$AA$8 -> Ratze | AY19: : | BB19: =$AO$8 -> Jule | BR19: 1 | BW19: : | BZ19: 1 | CG19: 1 | CH19: 0 | CI19: 1 | CJ19: 0
H20: 5 | M20: 9.12. | S20: 21:24:00 | Y20: =$Y$16 -> Fernseher | AJ20: =$BC$8 -> Christoph | AY20: : | BB20: =$BQ$8 -> Patrick | BR20: 1 | BW20: : | BZ20: 0 | CG20: 1 | CH20: 1 | CI20: 0 | CJ20: 0
H21: 6 | M21: 9.12. | S21: 21:24:00 | Y21: =$Y$17 -> Fernseher | AJ21: =$M$8 -> Schmiddi | AY21: : | BB21: =$AO$8 -> Jule | BR21: 3 | BW21: : | BZ21: 3 | CG21: 1 | CH21: 0 | CI21: 1 | CJ21: 0
H22: 7 | M22: 9.12. | S22: 21:36:00 | Y22: =$Y$16 -> Fernseher | AJ22: =$AA$8 -> Ratze | AY22: : | BB22: =$BC$8 -> Christoph | BR22: 1 | BW22: : | BZ22: 1 | CG22: 1 | CH22: 0 | CI22: 1 | CJ22: 0
H23: 8 | M23: 9.12. | S23: 21:36:00 | Y23: =$Y$17 -> Fernseher | AJ23: =$AO$8 -> Jule | AY23: : | BB23: =$BQ$8 -> Patrick | BR23: 3 | BW23: : | BZ23: 2 | CG23: 1 | CH23: 1 | CI23: 0 | CJ23: 0
H24: 9 | M24: 9.12. | S24: 21:48:00 | Y24: =$Y$16 -> Fernseher | AJ24: =$BC$8 -> Christoph | AY24: : | BB24: =$M$8 -> Schmiddi | BR24: 1 | BW24: : | BZ24: 2 | CG24: 1 | CH24: 0 | CI24: 0 | CJ24: 1
H25: 10 | M25: 9.12. | S25: 21:48:00 | Y25: =$Y$17 -> Fernseher | AJ25: =$BQ$8 -> Patrick | AY25: : | BB25: =$AA$8 -> Ratze | BR25: 4 | BW25: : | BZ25: 0 | CG25: 1 | CH25: 1 | CI25: 0 | CJ25: 0
C27: Rückrunde | H27: =H25+1 -> 11 | M27: =$M$16 -> 9.12. | S27: =S24+$C$14 -> 22:00:00 | Y27: =$Y$17 -> Fernseher | AJ27: =$AA$8 -> Ratze | AY27: : | BB27: =$M$8 -> Schmiddi | BR27: 5 | BW27: : | BZ27: 0 | CG27: =IF(AND(ISNUMBER(BR27),ISNUMBER(BZ27)),1,0) -> 1 | CH27: =IF(OR(ISBLANK(BR27),ISBLANK(BZ27)),0,IF(BR27>BZ27,1,0)) -> 1 | CI27: =IF(OR(ISBLANK(BR27),ISBLANK(BZ27)),0,IF(BR27=BZ27,1,0)) -> 0 | CJ27: =IF(OR(ISBLANK(BR27),ISBLANK(BZ27)),0,IF(BR27<BZ27,1,0)) -> 0
H28: =H27+1 -> 12 | M28: 9.12. | S28: =S25+$C$14 -> 22:00:00 | Y28: =$Y$16 -> Fernseher | AJ28: =$BC$8 -> Christoph | AY28: : | BB28: =$AO$8 -> Jule | BR28: 2 | BW28: : | BZ28: 2 | CG28: 1 | CH28: 0 | CI28: 1 | CJ28: 0
H29: =H28+1 -> 13 | M29: 9.12. | S29: =S27+$C$14 -> 22:12:00 | Y29: =$Y$17 -> Fernseher | AJ29: =$M$8 -> Schmiddi | AY29: : | BB29: =$BQ$8 -> Patrick | BR29: 2 | BW29: : | BZ29: 0 | CG29: 1 | CH29: 1 | CI29: 0 | CJ29: 0
H30: 14 | M30: 9.12. | S30: 22:12:00 | Y30: =$Y$16 -> Fernseher | AJ30: =$AO$8 -> Jule | AY30: : | BB30: =$AA$8 -> Ratze | BR30: 3 | BW30: : | BZ30: 4 | CG30: 1 | CH30: 0 | CI30: 0 | CJ30: 1
H31: 15 | M31: 9.12. | S31: 22:24:00 | Y31: =$Y$17 -> Fernseher | AJ31: =$BQ$8 -> Patrick | AY31: : | BB31: =$BC$8 -> Christoph | BR31: 1 | BW31: : | BZ31: 1 | CG31: 1 | CH31: 0 | CI31: 1 | CJ31: 0
H32: 16 | M32: 9.12. | S32: 22:24:00 | Y32: =$Y$16 -> Fernseher | AJ32: =$AO$8 -> Jule | AY32: : | BB32: =$M$8 -> Schmiddi | BR32: 4 | BW32: : | BZ32: 1 | CG32: 1 | CH32: 1 | CI32: 0 | CJ32: 0
H33: 17 | M33: 9.12. | S33: 22:36:00 | Y33: =$Y$17 -> Fernseher | AJ33: =$BC$8 -> Christoph | AY33: : | BB33: =$AA$8 -> Ratze | BR33: 2 | BW33: : | BZ33: 1 | CG33: 1 | CH33: 1 | CI33: 0 | CJ33: 0
H34: 18 | M34: 9.12. | S34: 22:36:00 | Y34: =$Y$16 -> Fernseher | AJ34: =$BQ$8 -> Patrick | AY34: : | BB34: =$AO$8 -> Jule | BR34: 2 | BW34: : | BZ34: 1 | CG34: 1 | CH34: 1 | CI34: 0 | CJ34: 0
H35: 19 | M35: 9.12. | S35: 22:48:00 | Y35: =$Y$17 -> Fernseher | AJ35: =$M$8 -> Schmiddi | AY35: : | BB35: =$BC$8 -> Christoph | BR35: 2 | BW35: : | BZ35: 4 | CG35: 1 | CH35: 0 | CI35: 0 | CJ35: 1
H36: 20 | M36: 9.12. | S36: 22:48:00 | Y36: =$Y$16 -> Fernseher | AJ36: =$AA$8 -> Ratze | AY36: : | BB36: =$BQ$8 -> Patrick | BR36: 2 | BW36: : | BZ36: 2 | CG36: 1 | CH36: 0 | CI36: 1 | CJ36: 0
C62: Tabelle (unsortiert)
C64: Rang | H64: Spieler | T64: Spiele | Z64: Siege | AK64: Unentschieden | AV64: Niederlagen | BG64: Tore | BS64: +/- | BX64: Punkte | CB64: HS
C65: =IF(T65=0,0,RANK(BX65,$BX$65:$CA$69,0)) -> 2 | H65: =$M$8 -> Schmiddi | T65: =CG16+CG18+CG21+CG24+CG27+CG29+CG32+CG35 -> 8 | Z65: =CH16+CJ18+CH21+CJ24+CJ27+CH29+CJ32+CH35 -> 3 | AK65: =CI16+CI18+CI21+CI24+CI27+CI29+CI32+CI35 -> 2 | AV65: =CJ16+CH18+CJ21+CH24+CH27+CJ29+CH32+CJ35 -> 3 | BG65: =BR16+BZ18+BR21+BZ24+BZ27+BR29+BZ32+BR35 -> 13 | BL65: : | BN65: =BZ16+BR18+BZ21+BR24+BR27+BZ29+BR32+BZ35 -> 19 | BS65: =BG65-BN65 -> -6 | BX65: =(Z65*3)+AK65 -> 11 | CB65: =BX65+ROW()/1000 -> 11.065
C66: =IF(T66=0,0,RANK(BX66,$BX$65:$CA$69,0)) -> 3 | H66: =$AA$8 -> Ratze | T66: =CG16+CG19+CG22+CG25+CG27+CG30+CG33+CG36 -> 8 | Z66: =CJ16+CH19+CH22+CJ25+CH27+CJ30+CJ33+CH36 -> 2 | AK66: =CI16+CI19+CI22+CI25+CI27+CI30+CI33+CI36 -> 3 | AV66: =CH16+CJ19+CJ22+CH25+CJ27+CH30+CH33+CJ36 -> 3 | BG66: =BZ16+BR19+BR22+BZ25+BR27+BZ30+BZ33+BR36 -> 14 | BK66: : | BL66: : | BN66: =BR16+BZ19+BZ22+BR25+BZ27+BR30+BR33+BZ36 -> 14 | BS66: =BG66-BN66 -> 0 | BX66: =(Z66*3)+AK66 -> 9 | CB66: =BX66+ROW()/1000 -> 9.066
C67: =IF(T67=0,0,RANK(BX67,$BX$65:$CA$69,0)) -> 3 | H67: =$AO$8 -> Jule | T67: =CG17+CG19+CG21+CG23+CG28+CG30+CG32+CG34 -> 8 | Z67: =CH17+CJ19+CJ21+CH23+CJ28+CH30+CH32+CJ34 -> 2 | AK67: =CI17+CI19+CI21+CI23+CI28+CI30+CI32+CI34 -> 3 | AV67: =CJ17+CH19+CH21+CJ23+CH28+CJ30+CJ32+CH34 -> 3 | BG67: =BR17+BZ19+BZ21+BR23+BZ28+BR30+BR32+BZ34 -> 19 | BK67: : | BL67: : | BN67: =BZ17+BR19+BR21+BZ23+BR28+BZ30+BZ32+BR34 -> 19 | BS67: =BG67-BN67 -> 0 | BX67: =(Z67*3)+AK67 -> 9 | CB67: =BX67+ROW()/1000 -> 9.067
C68: =IF(T68=0,0,RANK(BX68,$BX$65:$CA$69,0)) -> 1 | H68: =$BC$8 -> Christoph | T68: =CG17+CG20+CG22+CG24+CG28+CG31+CG33+CG35 -> 8 | Z68: =CJ17+CH20+CJ22+CH24+CH28+CJ31+CH33+CJ35 -> 4 | AK68: =CI17+CI20+CI22+CI24+CI28+CI31+CI33+CI35 -> 3 | AV68: =CH17+CJ20+CH22+CJ24+CJ28+CH31+CJ33+CH35 -> 1 | BG68: =BZ17+BR20+BZ22+BR24+BR28+BZ31+BR33+BZ35 -> 16 | BK68: : | BL68: : | BN68: =BR17+BZ20+BR22+BZ24+BZ28+BR31+BZ33+BR35 -> 11 | BS68: =BG68-BN68 -> 5 | BX68: =(Z68*3)+AK68 -> 15 | CB68: =BX68+ROW()/1000 -> 15.068
C69: =IF(T69=0,0,RANK(BX69,$BX$65:$CA$69,0)) -> 3 | H69: =$BQ$8 -> Patrick | T69: =CG18+CG20+CG23+CG25+CG29+CG31+CG34+CG36 -> 8 | Z69: =CH18+CJ20+CJ23+CH25+CJ29+CH31+CH34+CJ36 -> 2 | AK69: =CI18+CI20+CI23+CI25+CI29+CI31+CI34+CI36 -> 3 | AV69: =CJ18+CH20+CH23+CJ25+CH29+CJ31+CJ34+CH36 -> 3 | BG69: =BR18+BZ20+BZ23+BR25+BZ29+BR31+BR34+BZ36 -> 13 | BK69: : | BL69: : | BN69: =BZ18+BR20+BR23+BZ25+BR29+BZ31+BZ34+BR36 -> 12 | BS69: =BG69-BN69 -> 1 | BX69: =(Z69*3)+AK69 -> 9 | CB69: =BX69+ROW()/1000 -> 9.069
H70: Spieler 6 | T70: 0 | Z70: 0 | AK70: 0 | AV70: 0 | BG70: 0 | BL70: : | BN70: 0 | BS70: 0 | BX70: 0 | CB70: 0
H71: Spieler 7 | T71: 0 | Z71: 0 | AK71: 0 | AV71: 0 | BG71: 0 | BL71: : | BN71: 0 | BS71: 0 | BX71: 0 | CB71: 0
C75: Tabelle
C77: Rang | H77: Spieler | T77: Spiele | Z77: Siege | AK77: Unentschieden | AV77: Niederlagen | BG77: Tore | BS77: +/- | BX77: Punkte
C78: =INDEX($C$65:$C$69,MATCH(LARGE($CB$65:$CB$69,ROW(A1)),$CB$65:$CB$69,0),1) -> 1 | F78: 1 | H78: =INDEX($H$65:$H$69,MATCH(LARGE($CB$65:$CB$69,ROW(A1)),$CB$65:$CB$69,0),1) -> Christoph | T78: =INDEX($T$65:$T$69,MATCH(LARGE($CB$65:$CB$69,ROW(A1)),$CB$65:$CB$69,0),1) -> 8 | Z78: =INDEX($Z$65:$Z$69,MATCH(LARGE($CB$65:$CB$69,ROW(A1)),$CB$65:$CB$69,0),1) -> 4 | AK78: =INDEX($AK$65:$AK$69,MATCH(LARGE($CB$65:$CB$69,ROW(A1)),$CB$65:$CB$69,0),1) -> 3 | AV78: =INDEX($AV$65:$AV$69,MATCH(LARGE($CB$65:$CB$69,ROW(A1)),$CB$65:$CB$69,0),1) -> 1 | BG78: =INDEX($BG$65:$BG$69,MATCH(LARGE($CB$65:$CB$69,ROW(A1)),$CB$65:$CB$69,0),1) -> 16 | BL78: : | BN78: =INDEX($BN$65:$BN$69,MATCH(LARGE($CB$65:$CB$69,ROW(A1)),$CB$65:$CB$69,0),1) -> 11 | BS78: =INDEX($BS$65:$BS$69,MATCH(LARGE($CB$65:$CB$69,ROW(A1)),$CB$65:$CB$69,0),1) -> 5 | BX78: =INDEX($BX$65:$BX$69,MATCH(LARGE($CB$65:$CB$69,ROW(A1)),$CB$65:$CB$69,0),1) -> 15
C79: =INDEX($C$65:$C$69,MATCH(LARGE($CB$65:$CB$69,ROW(A2)),$CB$65:$CB$69,0),1) -> 2 | F79: 2 | H79: =INDEX($H$65:$H$69,MATCH(LARGE($CB$65:$CB$69,ROW(A2)),$CB$65:$CB$69,0),1) -> Schmiddi | T79: =INDEX($T$65:$T$69,MATCH(LARGE($CB$65:$CB$69,ROW(A2)),$CB$65:$CB$69,0),1) -> 8 | Z79: =INDEX($Z$65:$Z$69,MATCH(LARGE($CB$65:$CB$69,ROW(A2)),$CB$65:$CB$69,0),1) -> 3 | AK79: =INDEX($AK$65:$AK$69,MATCH(LARGE($CB$65:$CB$69,ROW(A2)),$CB$65:$CB$69,0),1) -> 2 | AV79: =INDEX($AV$65:$AV$69,MATCH(LARGE($CB$65:$CB$69,ROW(A2)),$CB$65:$CB$69,0),1) -> 3 | BG79: =INDEX($BG$65:$BG$69,MATCH(LARGE($CB$65:$CB$69,ROW(A2)),$CB$65:$CB$69,0),1) -> 13 | BL79: : | BN79: =INDEX($BN$65:$BN$69,MATCH(LARGE($CB$65:$CB$69,ROW(A2)),$CB$65:$CB$69,0),1) -> 19 | BS79: =INDEX($BS$65:$BS$69,MATCH(LARGE($CB$65:$CB$69,ROW(A2)),$CB$65:$CB$69,0),1) -> -6 | BX79: =INDEX($BX$65:$BX$69,MATCH(LARGE($CB$65:$CB$69,ROW(A2)),$CB$65:$CB$69,0),1) -> 11
C80: =INDEX($C$65:$C$69,MATCH(LARGE($CB$65:$CB$69,ROW(A3)),$CB$65:$CB$69,0),1) -> 3 | F80: 3 | H80: =INDEX($H$65:$H$69,MATCH(LARGE($CB$65:$CB$69,ROW(A3)),$CB$65:$CB$69,0),1) -> Patrick | T80: =INDEX($T$65:$T$69,MATCH(LARGE($CB$65:$CB$69,ROW(A3)),$CB$65:$CB$69,0),1) -> 8 | Z80: =INDEX($Z$65:$Z$69,MATCH(LARGE($CB$65:$CB$69,ROW(A3)),$CB$65:$CB$69,0),1) -> 2 | AK80: =INDEX($AK$65:$AK$69,MATCH(LARGE($CB$65:$CB$69,ROW(A3)),$CB$65:$CB$69,0),1) -> 3 | AV80: =INDEX($AV$65:$AV$69,MATCH(LARGE($CB$65:$CB$69,ROW(A3)),$CB$65:$CB$69,0),1) -> 3 | BG80: =INDEX($BG$65:$BG$69,MATCH(LARGE($CB$65:$CB$69,ROW(A3)),$CB$65:$CB$69,0),1) -> 13 | BL80: : | BN80: =INDEX($BN$65:$BN$69,MATCH(LARGE($CB$65:$CB$69,ROW(A3)),$CB$65:$CB$69,0),1) -> 12 | BS80: =INDEX($BS$65:$BS$69,MATCH(LARGE($CB$65:$CB$69,ROW(A3)),$CB$65:$CB$69,0),1) -> 1 | BX80: =INDEX($BX$65:$BX$69,MATCH(LARGE($CB$65:$CB$69,ROW(A3)),$CB$65:$CB$69,0),1) -> 9
C81: =INDEX($C$65:$C$69,MATCH(LARGE($CB$65:$CB$69,ROW(A4)),$CB$65:$CB$69,0),1) -> 3 | F81: 4 | H81: =INDEX($H$65:$H$69,MATCH(LARGE($CB$65:$CB$69,ROW(A4)),$CB$65:$CB$69,0),1) -> Jule | T81: =INDEX($T$65:$T$69,MATCH(LARGE($CB$65:$CB$69,ROW(A4)),$CB$65:$CB$69,0),1) -> 8 | Z81: =INDEX($Z$65:$Z$69,MATCH(LARGE($CB$65:$CB$69,ROW(A4)),$CB$65:$CB$69,0),1) -> 2 | AK81: =INDEX($AK$65:$AK$69,MATCH(LARGE($CB$65:$CB$69,ROW(A4)),$CB$65:$CB$69,0),1) -> 3 | AV81: =INDEX($AV$65:$AV$69,MATCH(LARGE($CB$65:$CB$69,ROW(A4)),$CB$65:$CB$69,0),1) -> 3 | BG81: =INDEX($BG$65:$BG$69,MATCH(LARGE($CB$65:$CB$69,ROW(A4)),$CB$65:$CB$69,0),1) -> 19 | BL81: : | BN81: =INDEX($BN$65:$BN$69,MATCH(LARGE($CB$65:$CB$69,ROW(A4)),$CB$65:$CB$69,0),1) -> 19 | BS81: =INDEX($BS$65:$BS$69,MATCH(LARGE($CB$65:$CB$69,ROW(A4)),$CB$65:$CB$69,0),1) -> 0 | BX81: =INDEX($BX$65:$BX$69,MATCH(LARGE($CB$65:$CB$69,ROW(A4)),$CB$65:$CB$69,0),1) -> 9
C82: =INDEX($C$65:$C$69,MATCH(LARGE($CB$65:$CB$69,ROW(A5)),$CB$65:$CB$69,0),1) -> 3 | F82: 5 | H82: =INDEX($H$65:$H$69,MATCH(LARGE($CB$65:$CB$69,ROW(A5)),$CB$65:$CB$69,0),1) -> Ratze | T82: =INDEX($T$65:$T$69,MATCH(LARGE($CB$65:$CB$69,ROW(A5)),$CB$65:$CB$69,0),1) -> 8 | Z82: =INDEX($Z$65:$Z$69,MATCH(LARGE($CB$65:$CB$69,ROW(A5)),$CB$65:$CB$69,0),1) -> 2 | AK82: =INDEX($AK$65:$AK$69,MATCH(LARGE($CB$65:$CB$69,ROW(A5)),$CB$65:$CB$69,0),1) -> 3 | AV82: =INDEX($AV$65:$AV$69,MATCH(LARGE($CB$65:$CB$69,ROW(A5)),$CB$65:$CB$69,0),1) -> 3 | BG82: =INDEX($BG$65:$BG$69,MATCH(LARGE($CB$65:$CB$69,ROW(A5)),$CB$65:$CB$69,0),1) -> 14 | BL82: : | BN82: =INDEX($BN$65:$BN$69,MATCH(LARGE($CB$65:$CB$69,ROW(A5)),$CB$65:$CB$69,0),1) -> 14 | BS82: =INDEX($BS$65:$BS$69,MATCH(LARGE($CB$65:$CB$69,ROW(A5)),$CB$65:$CB$69,0),1) -> 0 | BX82: =INDEX($BX$65:$BX$69,MATCH(LARGE($CB$65:$CB$69,ROW(A5)),$CB$65:$CB$69,0),1) -> 9
C83: --- | F83: --- | H83: Spieler 6 | T83: 0 | Z83: 0 | AK83: 0 | AV83: 0 | BG83: 0 | BL83: : | BN83: 0 | BS83: 0 | BX83: 0
C84: --- | F84: --- | H84: Spieler 7 | T84: 0 | Z84: 0 | AK84: 0 | AV84: 0 | BG84: 0 | BL84: : | BN84: 0 | BS84: 0 | BX84: 0
C88: Tabelle (nach Alphabet)
C90: Rang | H90: Spieler | T90: Spiele | Z90: Siege | AK90: Unentschieden | AV90: Niederlagen | BG90: Tore | BS90: +/- | BX90: Punkte
C91: =IF($H$78="Basti",$F$78,IF($H$79="Basti",$F$79,IF($H$80="Basti",$F$80,IF($H$81="Basti",$F$81,IF($H$82="Basti",$F$82,IF($H$83="Basti",$F$83,IF($H$84="Basti",$F$84,0))))))) -> 0 | H91: Basti | T91: =IF($H$78="Basti",$T$78,IF($H$79="Basti",$T$79,IF($H$80="Basti",$T$80,IF($H$81="Basti",$T$81,IF($H$82="Basti",$T$82,IF($H$83="Basti",$T$83,IF($H$84="Basti",$T$84,0))))))) -> 0 | Z91: =IF($H$78="Basti",$Z$78,IF($H$79="Basti",$Z$79,IF($H$80="Basti",$Z$80,IF($H$81="Basti",$Z$81,IF($H$82="Basti",$Z$82,IF($H$83="Basti",$Z$83,IF($H$84="Basti",$Z$84,0))))))) -> 0 | AK91: =IF($H$78="Basti",$AK$78,IF($H$79="Basti",$AK$79,IF($H$80="Basti",$AK$80,IF($H$81="Basti",$AK$81,IF($H$82="Basti",$AK$82,IF($H$83="Basti",$AK$83,IF($H$84="Basti",$AK$84,0))))))) -> 0 | AV91: =IF($H$78="Basti",$AV$78,IF($H$79="Basti",$AV$79,IF($H$80="Basti",$AV$80,IF($H$81="Basti",$AV$81,IF($H$82="Basti",$AV$82,IF($H$83="Basti",$AV$83,IF($H$84="Basti",$AV$84,0))))))) -> 0 | BG91: =IF($H$78="Basti",$BG$78,IF($H$79="Basti",$BG$79,IF($H$80="Basti",$BG$80,IF($H$81="Basti",$BG$81,IF($H$82="Basti",$BG$82,IF($H$83="Basti",$BG$83,IF($H$84="Basti",$BG$84,0))))))) -> 0 | BL91: : | BN91: =IF($H$78="Basti",$BN$78,IF($H$79="Basti",$BN$79,IF($H$80="Basti",$BN$80,IF($H$81="Basti",$BN$81,IF($H$82="Basti",$BN$82,IF($H$83="Basti",$BN$83,IF($H$84="Basti",$BN$84,0))))))) -> 0 | BS91: =IF($H$78="Basti",$BS$78,IF($H$79="Basti",$BS$79,IF($H$80="Basti",$BS$80,IF($H$81="Basti",$BS$81,IF($H$82="Basti",$BS$82,IF($H$83="Basti",$BS$83,IF($H$84="Basti",$BS$84,0))))))) -> 0 | BX91: =IF($H$78="Basti",$BX$78,IF($H$79="Basti",$BX$79,IF($H$80="Basti",$BX$80,IF($H$81="Basti",$BX$81,IF($H$82="Basti",$BX$82,IF($H$83="Basti",$BX$83,IF($H$84="Basti",$BX$84,0))))))) -> 0
C92: =IF($H$78="Christoph",$F$78,IF($H$79="Christoph",$F$79,IF($H$80="Christoph",$F$80,IF($H$81="Christoph",$F$81,IF($H$82="Christoph",$F$82,IF($H$83="Christoph",$F$83,IF($H$84="Christoph",$F$84,0))))))) -> 1 | H92: Christoph | T92: =IF($H$78="Christoph",$T$78,IF($H$79="Christoph",$T$79,IF($H$80="Christoph",$T$80,IF($H$81="Christoph",$T$81,IF($H$82="Christoph",$T$82,IF($H$83="Christoph",$T$83,IF($H$84="Christoph",$T$84,0))))))) -> 8 | Z92: =IF($H$78="Christoph",$Z$78,IF($H$79="Christoph",$Z$79,IF($H$80="Christoph",$Z$80,IF($H$81="Christoph",$Z$81,IF($H$82="Christoph",$Z$82,IF($H$83="Christoph",$Z$83,IF($H$84="Christoph",$Z$84,0))))))) -> 4 | AK92: =IF($H$78="Christoph",$AK$78,IF($H$79="Christoph",$AK$79,IF($H$80="Christoph",$AK$80,IF($H$81="Christoph",$AK$81,IF($H$82="Christoph",$AK$82,IF($H$83="Christoph",$AK$83,IF($H$84="Christoph",$AK$84,0))))))) -> 3 | AV92: =IF($H$78="Christoph",$AV$78,IF($H$79="Christoph",$AV$79,IF($H$80="Christoph",$AV$80,IF($H$81="Christoph",$AV$81,IF($H$82="Christoph",$AV$82,IF($H$83="Christoph",$AV$83,IF($H$84="Christoph",$AV$84,0))))))) -> 1 | BG92: =IF($H$78="Christoph",$BG$78,IF($H$79="Christoph",$BG$79,IF($H$80="Christoph",$BG$80,IF($H$81="Christoph",$BG$81,IF($H$82="Christoph",$BG$82,IF($H$83="Christoph",$BG$83,IF($H$84="Christoph",$BG$84,0))))))) -> 16 | BL92: : | BN92: =IF($H$78="Christoph",$BN$78,IF($H$79="Christoph",$BN$79,IF($H$80="Christoph",$BN$80,IF($H$81="Christoph",$BN$81,IF($H$82="Christoph",$BN$82,IF($H$83="Christoph",$BN$83,IF($H$84="Christoph",$BN$84,0))))))) -> 11 | BS92: =IF($H$78="Christoph",$BS$78,IF($H$79="Christoph",$BS$79,IF($H$80="Christoph",$BS$80,IF($H$81="Christoph",$BS$81,IF($H$82="Christoph",$BS$82,IF($H$83="Christoph",$BS$83,IF($H$84="Christoph",$BS$84,0))))))) -> 5 | BX92: =IF($H$78="Christoph",$BX$78,IF($H$79="Christoph",$BX$79,IF($H$80="Christoph",$BX$80,IF($H$81="Christoph",$BX$81,IF($H$82="Christoph",$BX$82,IF($H$83="Christoph",$BX$83,IF($H$84="Christoph",$BX$84,0))))))) -> 15
C93: =IF($H$78="Jule",$F$78,IF($H$79="Jule",$F$79,IF($H$80="Jule",$F$80,IF($H$81="Jule",$F$81,IF($H$82="Jule",$F$82,IF($H$83="Jule",$F$83,IF($H$84="Jule",$F$84,0))))))) -> 4 | H93: Jule | T93: =IF($H$78="Jule",$T$78,IF($H$79="Jule",$T$79,IF($H$80="Jule",$T$80,IF($H$81="Jule",$T$81,IF($H$82="Jule",$T$82,IF($H$83="Jule",$T$83,IF($H$84="Jule",$T$84,0))))))) -> 8 | Z93: =IF($H$78="Jule",$Z$78,IF($H$79="Jule",$Z$79,IF($H$80="Jule",$Z$80,IF($H$81="Jule",$Z$81,IF($H$82="Jule",$Z$82,IF($H$83="Jule",$Z$83,IF($H$84="Jule",$Z$84,0))))))) -> 2 | AK93: =IF($H$78="Jule",$AK$78,IF($H$79="Jule",$AK$79,IF($H$80="Jule",$AK$80,IF($H$81="Jule",$AK$81,IF($H$82="Jule",$AK$82,IF($H$83="Jule",$AK$83,IF($H$84="Jule",$AK$84,0))))))) -> 3 | AV93: =IF($H$78="Jule",$AV$78,IF($H$79="Jule",$AV$79,IF($H$80="Jule",$AV$80,IF($H$81="Jule",$AV$81,IF($H$82="Jule",$AV$82,IF($H$83="Jule",$AV$83,IF($H$84="Jule",$AV$84,0))))))) -> 3 | BG93: =IF($H$78="Jule",$BG$78,IF($H$79="Jule",$BG$79,IF($H$80="Jule",$BG$80,IF($H$81="Jule",$BG$81,IF($H$82="Jule",$BG$82,IF($H$83="Jule",$BG$83,IF($H$84="Jule",$BG$84,0))))))) -> 19 | BL93: : | BN93: =IF($H$78="Jule",$BN$78,IF($H$79="Jule",$BN$79,IF($H$80="Jule",$BN$80,IF($H$81="Jule",$BN$81,IF($H$82="Jule",$BN$82,IF($H$83="Jule",$BN$83,IF($H$84="Jule",$BN$84,0))))))) -> 19 | BS93: =IF($H$78="Jule",$BS$78,IF($H$79="Jule",$BS$79,IF($H$80="Jule",$BS$80,IF($H$81="Jule",$BS$81,IF($H$82="Jule",$BS$82,IF($H$83="Jule",$BS$83,IF($H$84="Jule",$BS$84,0))))))) -> 0 | BX93: =IF($H$78="Jule",$BX$78,IF($H$79="Jule",$BX$79,IF($H$80="Jule",$BX$80,IF($H$81="Jule",$BX$81,IF($H$82="Jule",$BX$82,IF($H$83="Jule",$BX$83,IF($H$84="Jule",$BX$84,0))))))) -> 9
C94: =IF($H$78="Markus",$F$78,IF($H$79="Markus",$F$79,IF($H$80="Markus",$F$80,IF($H$81="Markus",$F$81,IF($H$82="Markus",$F$82,IF($H$83="Markus",$F$83,IF($H$84="Markus",$F$84,0))))))) -> 0 | H94: Markus | T94: =IF($H$78="Markus",$T$78,IF($H$79="Markus",$T$79,IF($H$80="Markus",$T$80,IF($H$81="Markus",$T$81,IF($H$82="Markus",$T$82,IF($H$83="Markus",$T$83,IF($H$84="Markus",$T$84,0))))))) -> 0 | Z94: =IF($H$78="Markus",$Z$78,IF($H$79="Markus",$Z$79,IF($H$80="Markus",$Z$80,IF($H$81="Markus",$Z$81,IF($H$82="Markus",$Z$82,IF($H$83="Markus",$Z$83,IF($H$84="Markus",$Z$84,0))))))) -> 0 | AK94: =IF($H$78="Markus",$AK$78,IF($H$79="Markus",$AK$79,IF($H$80="Markus",$AK$80,IF($H$81="Markus",$AK$81,IF($H$82="Markus",$AK$82,IF($H$83="Markus",$AK$83,IF($H$84="Markus",$AK$84,0))))))) -> 0 | AV94: =IF($H$78="Markus",$AV$78,IF($H$79="Markus",$AV$79,IF($H$80="Markus",$AV$80,IF($H$81="Markus",$AV$81,IF($H$82="Markus",$AV$82,IF($H$83="Markus",$AV$83,IF($H$84="Markus",$AV$84,0))))))) -> 0 | BG94: =IF($H$78="Markus",$BG$78,IF($H$79="Markus",$BG$79,IF($H$80="Markus",$BG$80,IF($H$81="Markus",$BG$81,IF($H$82="Markus",$BG$82,IF($H$83="Markus",$BG$83,IF($H$84="Markus",$BG$84,0))))))) -> 0 | BL94: : | BN94: =IF($H$78="Markus",$BN$78,IF($H$79="Markus",$BN$79,IF($H$80="Markus",$BN$80,IF($H$81="Markus",$BN$81,IF($H$82="Markus",$BN$82,IF($H$83="Markus",$BN$83,IF($H$84="Markus",$BN$84,0))))))) -> 0 | BS94: =IF($H$78="Markus",$BS$78,IF($H$79="Markus",$BS$79,IF($H$80="Markus",$BS$80,IF($H$81="Markus",$BS$81,IF($H$82="Markus",$BS$82,IF($H$83="Markus",$BS$83,IF($H$84="Markus",$BS$84,0))))))) -> 0 | BX94: =IF($H$78="Markus",$BX$78,IF($H$79="Markus",$BX$79,IF($H$80="Markus",$BX$80,IF($H$81="Markus",$BX$81,IF($H$82="Markus",$BX$82,IF($H$83="Markus",$BX$83,IF($H$84="Markus",$BX$84,0))))))) -> 0
C95: =IF($H$78="Patrick",$F$78,IF($H$79="Patrick",$F$79,IF($H$80="Patrick",$F$80,IF($H$81="Patrick",$F$81,IF($H$82="Patrick",$F$82,IF($H$83="Patrick",$F$83,IF($H$84="Patrick",$F$84,0))))))) -> 3 | H95: Patrick | T95: =IF($H$78="Patrick",$T$78,IF($H$79="Patrick",$T$79,IF($H$80="Patrick",$T$80,IF($H$81="Patrick",$T$81,IF($H$82="Patrick",$T$82,IF($H$83="Patrick",$T$83,IF($H$84="Patrick",$T$84,0))))))) -> 8 | Z95: =IF($H$78="Patrick",$Z$78,IF($H$79="Patrick",$Z$79,IF($H$80="Patrick",$Z$80,IF($H$81="Patrick",$Z$81,IF($H$82="Patrick",$Z$82,IF($H$83="Patrick",$Z$83,IF($H$84="Patrick",$Z$84,0))))))) -> 2 | AK95: =IF($H$78="Patrick",$AK$78,IF($H$79="Patrick",$AK$79,IF($H$80="Patrick",$AK$80,IF($H$81="Patrick",$AK$81,IF($H$82="Patrick",$AK$82,IF($H$83="Patrick",$AK$83,IF($H$84="Patrick",$AK$84,0))))))) -> 3 | AV95: =IF($H$78="Patrick",$AV$78,IF($H$79="Patrick",$AV$79,IF($H$80="Patrick",$AV$80,IF($H$81="Patrick",$AV$81,IF($H$82="Patrick",$AV$82,IF($H$83="Patrick",$AV$83,IF($H$84="Patrick",$AV$84,0))))))) -> 3 | BG95: =IF($H$78="Patrick",$BG$78,IF($H$79="Patrick",$BG$79,IF($H$80="Patrick",$BG$80,IF($H$81="Patrick",$BG$81,IF($H$82="Patrick",$BG$82,IF($H$83="Patrick",$BG$83,IF($H$84="Patrick",$BG$84,0))))))) -> 13 | BL95: : | BN95: =IF($H$78="Patrick",$BN$78,IF($H$79="Patrick",$BN$79,IF($H$80="Patrick",$BN$80,IF($H$81="Patrick",$BN$81,IF($H$82="Patrick",$BN$82,IF($H$83="Patrick",$BN$83,IF($H$84="Patrick",$BN$84,0))))))) -> 12 | BS95: =IF($H$78="Patrick",$BS$78,IF($H$79="Patrick",$BS$79,IF($H$80="Patrick",$BS$80,IF($H$81="Patrick",$BS$81,IF($H$82="Patrick",$BS$82,IF($H$83="Patrick",$BS$83,IF($H$84="Patrick",$BS$84,0))))))) -> 1 | BX95: =IF($H$78="Patrick",$BX$78,IF($H$79="Patrick",$BX$79,IF($H$80="Patrick",$BX$80,IF($H$81="Patrick",$BX$81,IF($H$82="Patrick",$BX$82,IF($H$83="Patrick",$BX$83,IF($H$84="Patrick",$BX$84,0))))))) -> 9
C96: =IF($H$78="Ratze",$F$78,IF($H$79="Ratze",$F$79,IF($H$80="Ratze",$F$80,IF($H$81="Ratze",$F$81,IF($H$82="Ratze",$F$82,IF($H$83="Ratze",$F$83,IF($H$84="Ratze",$F$84,0))))))) -> 5 | H96: Ratze | T96: =IF($H$78="Ratze",$T$78,IF($H$79="Ratze",$T$79,IF($H$80="Ratze",$T$80,IF($H$81="Ratze",$T$81,IF($H$82="Ratze",$T$82,IF($H$83="Ratze",$T$83,IF($H$84="Ratze",$T$84,0))))))) -> 8 | Z96: =IF($H$78="Ratze",$Z$78,IF($H$79="Ratze",$Z$79,IF($H$80="Ratze",$Z$80,IF($H$81="Ratze",$Z$81,IF($H$82="Ratze",$Z$82,IF($H$83="Ratze",$Z$83,IF($H$84="Ratze",$Z$84,0))))))) -> 2 | AK96: =IF($H$78="Ratze",$AK$78,IF($H$79="Ratze",$AK$79,IF($H$80="Ratze",$AK$80,IF($H$81="Ratze",$AK$81,IF($H$82="Ratze",$AK$82,IF($H$83="Ratze",$AK$83,IF($H$84="Ratze",$AK$84,0))))))) -> 3 | AV96: =IF($H$78="Ratze",$AV$78,IF($H$79="Ratze",$AV$79,IF($H$80="Ratze",$AV$80,IF($H$81="Ratze",$AV$81,IF($H$82="Ratze",$AV$82,IF($H$83="Ratze",$AV$83,IF($H$84="Ratze",$AV$84,0))))))) -> 3 | BG96: =IF($H$78="Ratze",$BG$78,IF($H$79="Ratze",$BG$79,IF($H$80="Ratze",$BG$80,IF($H$81="Ratze",$BG$81,IF($H$82="Ratze",$BG$82,IF($H$83="Ratze",$BG$83,IF($H$84="Ratze",$BG$84,0))))))) -> 14 | BL96: : | BN96: =IF($H$78="Ratze",$BN$78,IF($H$79="Ratze",$BN$79,IF($H$80="Ratze",$BN$80,IF($H$81="Ratze",$BN$81,IF($H$82="Ratze",$BN$82,IF($H$83="Ratze",$BN$83,IF($H$84="Ratze",$BN$84,0))))))) -> 14 | BS96: =IF($H$78="Ratze",$BS$78,IF($H$79="Ratze",$BS$79,IF($H$80="Ratze",$BS$80,IF($H$81="Ratze",$BS$81,IF($H$82="Ratze",$BS$82,IF($H$83="Ratze",$BS$83,IF($H$84="Ratze",$BS$84,0))))))) -> 0 | BX96: =IF($H$78="Ratze",$BX$78,IF($H$79="Ratze",$BX$79,IF($H$80="Ratze",$BX$80,IF($H$81="Ratze",$BX$81,IF($H$82="Ratze",$BX$82,IF($H$83="Ratze",$BX$83,IF($H$84="Ratze",$BX$84,0))))))) -> 9
C97: =IF($H$78="Schmiddi",$F$78,IF($H$79="Schmiddi",$F$79,IF($H$80="Schmiddi",$F$80,IF($H$81="Schmiddi",$F$81,IF($H$82="Schmiddi",$F$82,IF($H$83="Schmiddi",$F$83,IF($H$84="Schmiddi",$F$84,0))))))) -> 2 | H97: Schmiddi | T97: =IF($H$78="Schmiddi",$T$78,IF($H$79="Schmiddi",$T$79,IF($H$80="Schmiddi",$T$80,IF($H$81="Schmiddi",$T$81,IF($H$82="Schmiddi",$T$82,IF($H$83="Schmiddi",$T$83,IF($H$84="Schmiddi",$T$84,0))))))) -> 8 | Z97: =IF($H$78="Schmiddi",$Z$78,IF($H$79="Schmiddi",$Z$79,IF($H$80="Schmiddi",$Z$80,IF($H$81="Schmiddi",$Z$81,IF($H$82="Schmiddi",$Z$82,IF($H$83="Schmiddi",$Z$83,IF($H$84="Schmiddi",$Z$84,0))))))) -> 3 | AK97: =IF($H$78="Schmiddi",$AK$78,IF($H$79="Schmiddi",$AK$79,IF($H$80="Schmiddi",$AK$80,IF($H$81="Schmiddi",$AK$81,IF($H$82="Schmiddi",$AK$82,IF($H$83="Schmiddi",$AK$83,IF($H$84="Schmiddi",$AK$84,0))))))) -> 2 | AV97: =IF($H$78="Schmiddi",$AV$78,IF($H$79="Schmiddi",$AV$79,IF($H$80="Schmiddi",$AV$80,IF($H$81="Schmiddi",$AV$81,IF($H$82="Schmiddi",$AV$82,IF($H$83="Schmiddi",$AV$83,IF($H$84="Schmiddi",$AV$84,0))))))) -> 3 | BG97: =IF($H$78="Schmiddi",$BG$78,IF($H$79="Schmiddi",$BG$79,IF($H$80="Schmiddi",$BG$80,IF($H$81="Schmiddi",$BG$81,IF($H$82="Schmiddi",$BG$82,IF($H$83="Schmiddi",$BG$83,IF($H$84="Schmiddi",$BG$84,0))))))) -> 13 | BL97: : | BN97: =IF($H$78="Schmiddi",$BN$78,IF($H$79="Schmiddi",$BN$79,IF($H$80="Schmiddi",$BN$80,IF($H$81="Schmiddi",$BN$81,IF($H$82="Schmiddi",$BN$82,IF($H$83="Schmiddi",$BN$83,IF($H$84="Schmiddi",$BN$84,0))))))) -> 19 | BS97: =IF($H$78="Schmiddi",$BS$78,IF($H$79="Schmiddi",$BS$79,IF($H$80="Schmiddi",$BS$80,IF($H$81="Schmiddi",$BS$81,IF($H$82="Schmiddi",$BS$82,IF($H$83="Schmiddi",$BS$83,IF($H$84="Schmiddi",$BS$84,0))))))) -> -6 | BX97: =IF($H$78="Schmiddi",$BX$78,IF($H$79="Schmiddi",$BX$79,IF($H$80="Schmiddi",$BX$80,IF($H$81="Schmiddi",$BX$81,IF($H$82="Schmiddi",$BX$82,IF($H$83="Schmiddi",$BX$83,IF($H$84="Schmiddi",$BX$84,0))))))) -> 11

Sheet 16.12.
B2: ="Turnier am " & MID(CELL("dateiname",A1),SEARCH("]",CELL("dateiname",A1))+1,31) -> Turnier am 16.12.
C5: Spielerliste
C7: =" Spieler" -> Spieler | M7: Spieler 1 | AA7: Spieler 2 | AO7: Spieler 3 | BC7: Spieler 4 | BQ7: Spieler 5
C8: =" Name" -> Name | M8: Christoph | AA8: Schmiddi | AO8: Patrick | BC8: Markus | BQ8: Ratze
C12: Spielplan
C14: 00:12:00 | H14: Spiel | M14: Datum | S14: Uhrzeit | Y14: Austragungsort | AJ14: Paarung | BR14: Ergebnis | CG14: Spiele | CH14: SiegHeim | CI14: Unentschieden | CJ14: SiegGast
C16: Hinrunde | H16: 1 | M16: =MID(CELL("dateiname",A1),SEARCH("]",CELL("dateiname",A1))+1,31) -> 16.12. | S16: 21:00:00 | Y16: Fernseher | AJ16: =$M$8 -> Christoph | AY16: : | BB16: =$AA$8 -> Schmiddi | BR16: 2 | BW16: : | BZ16: 1 | CG16: =IF(AND(ISNUMBER(BR16),ISNUMBER(BZ16)),1,0) -> 1 | CH16: =IF(OR(ISBLANK(BR16),ISBLANK(BZ16)),0,IF(BR16>BZ16,1,0)) -> 1 | CI16: =IF(OR(ISBLANK(BR16),ISBLANK(BZ16)),0,IF(BR16=BZ16,1,0)) -> 0 | CJ16: =IF(OR(ISBLANK(BR16),ISBLANK(BZ16)),0,IF(BR16<BZ16,1,0)) -> 0
H17: =H16+1 -> 2 | M17: =$M$16 -> 16.12. | S17: =S16 -> 21:00:00 | Y17: =$Y$16 -> Fernseher | AJ17: =$AO$8 -> Patrick | AY17: : | BB17: =$BC$8 -> Markus | BR17: 2 | BW17: : | BZ17: 1 | CG17: =IF(AND(ISNUMBER(BR17),ISNUMBER(BZ17)),1,0) -> 1 | CH17: =IF(OR(ISBLANK(BR17),ISBLANK(BZ17)),0,IF(BR17>BZ17,1,0)) -> 1 | CI17: =IF(OR(ISBLANK(BR17),ISBLANK(BZ17)),0,IF(BR17=BZ17,1,0)) -> 0 | CJ17: =IF(OR(ISBLANK(BR17),ISBLANK(BZ17)),0,IF(BR17<BZ17,1,0)) -> 0
H18: =H17+1 -> 3 | M18: =$M$16 -> 16.12. | S18: =S16+$C$14 -> 21:12:00 | Y18: Fernseher | AJ18: =$BQ$8 -> Ratze | AY18: : | BB18: =$M$8 -> Christoph | BR18: 2 | BW18: : | BZ18: 2 | CG18: 1 | CH18: 0 | CI18: 1 | CJ18: 0
H19: =H18+1 -> 4 | M19: 16.12. | S19: 21:12:00 | Y19: Fernseher | AJ19: =$AA$8 -> Schmiddi | AY19: : | BB19: =$AO$8 -> Patrick | BR19: 4 | BW19: : | BZ19: 3 | CG19: 1 | CH19: 1 | CI19: 0 | CJ19: 0
H20: 5 | M20: 16.12. | S20: 21:24:00 | Y20: Fernseher | AJ20: =$BC$8 -> Markus | AY20: : | BB20: =$BQ$8 -> Ratze | BR20: 2 | BW20: : | BZ20: 0 | CG20: 1 | CH20: 1 | CI20: 0 | CJ20: 0
H21: 6 | M21: 16.12. | S21: 21:24:00 | Y21: Fernseher | AJ21: =$M$8 -> Christoph | AY21: : | BB21: =$AO$8 -> Patrick | BR21: 3 | BW21: : | BZ21: 1 | CG21: 1 | CH21: 1 | CI21: 0 | CJ21: 0
H22: 7 | M22: 16.12. | S22: 21:36:00 | Y22: Fernseher | AJ22: =$AA$8 -> Schmiddi | AY22: : | BB22: =$BC$8 -> Markus | BR22: 2 | BW22: : | BZ22: 2 | CG22: 1 | CH22: 0 | CI22: 1 | CJ22: 0
H23: 8 | M23: 16.12. | S23: 21:36:00 | Y23: Fernseher | AJ23: =$AO$8 -> Patrick | AY23: : | BB23: =$BQ$8 -> Ratze | BR23: 1 | BW23: : | BZ23: 5 | CG23: 1 | CH23: 0 | CI23: 0 | CJ23: 1
H24: 9 | M24: 16.12. | S24: 21:48:00 | Y24: Fernseher | AJ24: =$BC$8 -> Markus | AY24: : | BB24: =$M$8 -> Christoph | BR24: 5 | BW24: : | BZ24: 1 | CG24: 1 | CH24: 1 | CI24: 0 | CJ24: 0
H25: 10 | M25: 16.12. | S25: 21:48:00 | Y25: Fernseher | AJ25: =$BQ$8 -> Ratze | AY25: : | BB25: =$AA$8 -> Schmiddi | BR25: 2 | BW25: : | BZ25: 2 | CG25: 1 | CH25: 0 | CI25: 1 | CJ25: 0
C27: Rückrunde | H27: =H25+1 -> 11 | M27: =$M$16 -> 16.12. | S27: =S24+$C$14 -> 22:00:00 | Y27: =$Y$16 -> Fernseher | AJ27: =$AA$8 -> Schmiddi | AY27: : | BB27: =$M$8 -> Christoph | BR27: 2 | BW27: : | BZ27: 3 | CG27: =IF(AND(ISNUMBER(BR27),ISNUMBER(BZ27)),1,0) -> 1 | CH27: =IF(OR(ISBLANK(BR27),ISBLANK(BZ27)),0,IF(BR27>BZ27,1,0)) -> 0 | CI27: =IF(OR(ISBLANK(BR27),ISBLANK(BZ27)),0,IF(BR27=BZ27,1,0)) -> 0 | CJ27: =IF(OR(ISBLANK(BR27),ISBLANK(BZ27)),0,IF(BR27<BZ27,1,0)) -> 1
H28: =H27+1 -> 12 | M28: 16.12. | S28: =S25+$C$14 -> 22:00:00 | Y28: Fernseher | AJ28: =$BC$8 -> Markus | AY28: : | BB28: =$AO$8 -> Patrick | BR28: 2 | BW28: : | BZ28: 2 | CG28: 1 | CH28: 0 | CI28: 1 | CJ28: 0
H29: =H28+1 -> 13 | M29: 16.12. | S29: =S27+$C$14 -> 22:12:00 | Y29: Fernseher | AJ29: =$M$8 -> Christoph | AY29: : | BB29: =$BQ$8 -> Ratze | BR29: 3 | BW29: : | BZ29: 2 | CG29: 1 | CH29: 1 | CI29: 0 | CJ29: 0
H30: 14 | M30: 16.12. | S30: 22:12:00 | Y30: Fernseher | AJ30: =$AO$8 -> Patrick | AY30: : | BB30: =$AA$8 -> Schmiddi | BR30: 2 | BW30: : | BZ30: 1 | CG30: 1 | CH30: 1 | CI30: 0 | CJ30: 0
H31: 15 | M31: 16.12. | S31: 22:24:00 | Y31: Fernseher | AJ31: =$BQ$8 -> Ratze | AY31: : | BB31: =$BC$8 -> Markus | BR31: 1 | BW31: : | BZ31: 3 | CG31: 1 | CH31: 0 | CI31: 0 | CJ31: 1
H32: 16 | M32: 16.12. | S32: 22:24:00 | Y32: Fernseher | AJ32: =$AO$8 -> Patrick | AY32: : | BB32: =$M$8 -> Christoph | BR32: 3 | BW32: : | BZ32: 1 | CG32: 1 | CH32: 1 | CI32: 0 | CJ32: 0
H33: 17 | M33: 16.12. | S33: 22:36:00 | Y33: Fernseher | AJ33: =$BC$8 -> Markus | AY33: : | BB33: =$AA$8 -> Schmiddi | BR33: 3 | BW33: : | BZ33: 2 | CG33: 1 | CH33: 1 | CI33: 0 | CJ33: 0
H34: 18 | M34: 16.12. | S34: 22:36:00 | Y34: Fernseher | AJ34: =$BQ$8 -> Ratze | AY34: : | BB34: =$AO$8 -> Patrick | BR34: 1 | BW34: : | BZ34: 5 | CG34: 1 | CH34: 0 | CI34: 0 | CJ34: 1
H35: 19 | M35: 16.12. | S35: 22:48:00 | Y35: Fernseher | AJ35: =$M$8 -> Christoph | AY35: : | BB35: =$BC$8 -> Markus | BR35: 0 | BW35: : | BZ35: 2 | CG35: 1 | CH35: 0 | CI35: 0 | CJ35: 1
H36: 20 | M36: 16.12. | S36: 22:48:00 | Y36: Fernseher | AJ36: =$AA$8 -> Schmiddi | AY36: : | BB36: =$BQ$8 -> Ratze | BR36: 0 | BW36: : | BZ36: 4 | CG36: 1 | CH36: 0 | CI36: 0 | CJ36: 1
C62: Tabelle (unsortiert)
C64: Rang | H64: Spieler | T64: Spiele | Z64: Siege | AK64: Unentschieden | AV64: Niederlagen | BG64: Tore | BS64: +/- | BX64: Punkte | CB64: HS
C65: =IF(T65=0,0,RANK(BX65,$BX$65:$CA$69,0)) -> 2 | H65: =$M$8 -> Christoph | T65: =CG16+CG18+CG21+CG24+CG27+CG29+CG32+CG35 -> 8 | Z65: =CH16+CJ18+CH21+CJ24+CJ27+CH29+CJ32+CH35 -> 4 | AK65: =CI16+CI18+CI21+CI24+CI27+CI29+CI32+CI35 -> 1 | AV65: =CJ16+CH18+CJ21+CH24+CH27+CJ29+CH32+CJ35 -> 3 | BG65: =BR16+BZ18+BR21+BZ24+BZ27+BR29+BZ32+BR35 -> 15 | BL65: : | BN65: =BZ16+BR18+BZ21+BR24+BR27+BZ29+BR32+BZ35 -> 18 | BS65: =BG65-BN65 -> -3 | BX65: =(Z65*3)+AK65 -> 13 | CB65: =BX65+ROW()/1000 -> 13.065
C66: =IF(T66=0,0,RANK(BX66,$BX$65:$CA$69,0)) -> 5 | H66: =$AA$8 -> Schmiddi | T66: =CG16+CG19+CG22+CG25+CG27+CG30+CG33+CG36 -> 8 | Z66: =CJ16+CH19+CH22+CJ25+CH27+CJ30+CJ33+CH36 -> 1 | AK66: =CI16+CI19+CI22+CI25+CI27+CI30+CI33+CI36 -> 2 | AV66: =CH16+CJ19+CJ22+CH25+CJ27+CH30+CH33+CJ36 -> 5 | BG66: =BZ16+BR19+BR22+BZ25+BR27+BZ30+BZ33+BR36 -> 14 | BK66: : | BL66: : | BN66: =BR16+BZ19+BZ22+BR25+BZ27+BR30+BR33+BZ36 -> 21 | BS66: =BG66-BN66 -> -7 | BX66: =(Z66*3)+AK66 -> 5 | CB66: =BX66+ROW()/1000 -> 5.066
C67: =IF(T67=0,0,RANK(BX67,$BX$65:$CA$69,0)) -> 2 | H67: =$AO$8 -> Patrick | T67: =CG17+CG19+CG21+CG23+CG28+CG30+CG32+CG34 -> 8 | Z67: =CH17+CJ19+CJ21+CH23+CJ28+CH30+CH32+CJ34 -> 4 | AK67: =CI17+CI19+CI21+CI23+CI28+CI30+CI32+CI34 -> 1 | AV67: =CJ17+CH19+CH21+CJ23+CH28+CJ30+CJ32+CH34 -> 3 | BG67: =BR17+BZ19+BZ21+BR23+BZ28+BR30+BR32+BZ34 -> 19 | BK67: : | BL67: : | BN67: =BZ17+BR19+BR21+BZ23+BR28+BZ30+BZ32+BR34 -> 18 | BS67: =BG67-BN67 -> 1 | BX67: =(Z67*3)+AK67 -> 13 | CB67: =BX67+ROW()/1000 -> 13.067
C68: =IF(T68=0,0,RANK(BX68,$BX$65:$CA$69,0)) -> 1 | H68: =$BC$8 -> Markus | T68: =CG17+CG20+CG22+CG24+CG28+CG31+CG33+CG35 -> 8 | Z68: =CJ17+CH20+CJ22+CH24+CH28+CJ31+CH33+CJ35 -> 5 | AK68: =CI17+CI20+CI22+CI24+CI28+CI31+CI33+CI35 -> 2 | AV68: =CH17+CJ20+CH22+CJ24+CJ28+CH31+CJ33+CH35 -> 1 | BG68: =BZ17+BR20+BZ22+BR24+BR28+BZ31+BR33+BZ35 -> 20 | BK68: : | BL68: : | BN68: =BR17+BZ20+BR22+BZ24+BZ28+BR31+BZ33+BR35 -> 10 | BS68: =BG68-BN68 -> 10 | BX68: =(Z68*3)+AK68 -> 17 | CB68: =BX68+ROW()/1000 -> 17.068
C69: =IF(T69=0,0,RANK(BX69,$BX$65:$CA$69,0)) -> 4 | H69: =$BQ$8 -> Ratze | T69: =CG18+CG20+CG23+CG25+CG29+CG31+CG34+CG36 -> 8 | Z69: =CH18+CJ20+CJ23+CH25+CJ29+CH31+CH34+CJ36 -> 2 | AK69: =CI18+CI20+CI23+CI25+CI29+CI31+CI34+CI36 -> 2 | AV69: =CJ18+CH20+CH23+CJ25+CH29+CJ31+CJ34+CH36 -> 4 | BG69: =BR18+BZ20+BZ23+BR25+BZ29+BR31+BR34+BZ36 -> 17 | BK69: : | BL69: : | BN69: =BZ18+BR20+BR23+BZ25+BR29+BZ31+BZ34+BR36 -> 18 | BS69: =BG69-BN69 -> -1 | BX69: =(Z69*3)+AK69 -> 8 | CB69: =BX69+ROW()/1000 -> 8.069
H70: Spieler 6 | T70: 0 | Z70: 0 | AK70: 0 | AV70: 0 | BG70: 0 | BL70: : | BN70: 0 | BS70: 0 | BX70: 0 | CB70: 0
H71: Spieler 7 | T71: 0 | Z71: 0 | AK71: 0 | AV71: 0 | BG71: 0 | BL71: : | BN71: 0 | BS71: 0 | BX71: 0 | CB71: 0
C75: Tabelle
C77: Rang | H77: Spieler | T77: Spiele | Z77: Siege | AK77: Unentschieden | AV77: Niederlagen | BG77: Tore | BS77: +/- | BX77: Punkte
C78: =INDEX($C$65:$C$69,MATCH(LARGE($CB$65:$CB$69,ROW(A1)),$CB$65:$CB$69,0),1) -> 1 | F78: 1 | H78: =INDEX($H$65:$H$69,MATCH(LARGE($CB$65:$CB$69,ROW(A1)),$CB$65:$CB$69,0),1) -> Markus | T78: =INDEX($T$65:$T$69,MATCH(LARGE($CB$65:$CB$69,ROW(A1)),$CB$65:$CB$69,0),1) -> 8 | Z78: =INDEX($Z$65:$Z$69,MATCH(LARGE($CB$65:$CB$69,ROW(A1)),$CB$65:$CB$69,0),1) -> 5 | AK78: =INDEX($AK$65:$AK$69,MATCH(LARGE($CB$65:$CB$69,ROW(A1)),$CB$65:$CB$69,0),1) -> 2 | AV78: =INDEX($AV$65:$AV$69,MATCH(LARGE($CB$65:$CB$69,ROW(A1)),$CB$65:$CB$69,0),1) -> 1 | BG78: =INDEX($BG$65:$BG$69,MATCH(LARGE($CB$65:$CB$69,ROW(A1)),$CB$65:$CB$69,0),1) -> 20 | BL78: : | BN78: =INDEX($BN$65:$BN$69,MATCH(LARGE($CB$65:$CB$69,ROW(A1)),$CB$65:$CB$69,0),1) -> 10 | BS78: =INDEX($BS$65:$BS$69,MATCH(LARGE($CB$65:$CB$69,ROW(A1)),$CB$65:$CB$69,0),1) -> 10 | BX78: =INDEX($BX$65:$BX$69,MATCH(LARGE($CB$65:$CB$69,ROW(A1)),$CB$65:$CB$69,0),1) -> 17
C79: =INDEX($C$65:$C$69,MATCH(LARGE($CB$65:$CB$69,ROW(A2)),$CB$65:$CB$69,0),1) -> 2 | F79: 2 | H79: =INDEX($H$65:$H$69,MATCH(LARGE($CB$65:$CB$69,ROW(A2)),$CB$65:$CB$69,0),1) -> Patrick | T79: =INDEX($T$65:$T$69,MATCH(LARGE($CB$65:$CB$69,ROW(A2)),$CB$65:$CB$69,0),1) -> 8 | Z79: =INDEX($Z$65:$Z$69,MATCH(LARGE($CB$65:$CB$69,ROW(A2)),$CB$65:$CB$69,0),1) -> 4 | AK79: =INDEX($AK$65:$AK$69,MATCH(LARGE($CB$65:$CB$69,ROW(A2)),$CB$65:$CB$69,0),1) -> 1 | AV79: =INDEX($AV$65:$AV$69,MATCH(LARGE($CB$65:$CB$69,ROW(A2)),$CB$65:$CB$69,0),1) -> 3 | BG79: =INDEX($BG$65:$BG$69,MATCH(LARGE($CB$65:$CB$69,ROW(A2)),$CB$65:$CB$69,0),1) -> 19 | BL79: : | BN79: =INDEX($BN$65:$BN$69,MATCH(LARGE($CB$65:$CB$69,ROW(A2)),$CB$65:$CB$69,0),1) -> 18 | BS79: =INDEX($BS$65:$BS$69,MATCH(LARGE($CB$65:$CB$69,ROW(A2)),$CB$65:$CB$69,0),1) -> 1 | BX79: =INDEX($BX$65:$BX$69,MATCH(LARGE($CB$65:$CB$69,ROW(A2)),$CB$65:$CB$69,0),1) -> 13
C80: =INDEX($C$65:$C$69,MATCH(LARGE($CB$65:$CB$69,ROW(A3)),$CB$65:$CB$69,0),1) -> 2 | F80: 3 | H80: =INDEX($H$65:$H$69,MATCH(LARGE($CB$65:$CB$69,ROW(A3)),$CB$65:$CB$69,0),1) -> Christoph | T80: =INDEX($T$65:$T$69,MATCH(LARGE($CB$65:$CB$69,ROW(A3)),$CB$65:$CB$69,0),1) -> 8 | Z80: =INDEX($Z$65:$Z$69,MATCH(LARGE($CB$65:$CB$69,ROW(A3)),$CB$65:$CB$69,0),1) -> 4 | AK80: =INDEX($AK$65:$AK$69,MATCH(LARGE($CB$65:$CB$69,ROW(A3)),$CB$65:$CB$69,0),1) -> 1 | AV80: =INDEX($AV$65:$AV$69,MATCH(LARGE($CB$65:$CB$69,ROW(A3)),$CB$65:$CB$69,0),1) -> 3 | BG80: =INDEX($BG$65:$BG$69,MATCH(LARGE($CB$65:$CB$69,ROW(A3)),$CB$65:$CB$69,0),1) -> 15 | BL80: : | BN80: =INDEX($BN$65:$BN$69,MATCH(LARGE($CB$65:$CB$69,ROW(A3)),$CB$65:$CB$69,0),1) -> 18 | BS80: =INDEX($BS$65:$BS$69,MATCH(LARGE($CB$65:$CB$69,ROW(A3)),$CB$65:$CB$69,0),1) -> -3 | BX80: =INDEX($BX$65:$BX$69,MATCH(LARGE($CB$65:$CB$69,ROW(A3)),$CB$65:$CB$69,0),1) -> 13
C81: =INDEX($C$65:$C$69,MATCH(LARGE($CB$65:$CB$69,ROW(A4)),$CB$65:$CB$69,0),1) -> 4 | F81: 4 | H81: =INDEX($H$65:$H$69,MATCH(LARGE($CB$65:$CB$69,ROW(A4)),$CB$65:$CB$69,0),1) -> Ratze | T81: =INDEX($T$65:$T$69,MATCH(LARGE($CB$65:$CB$69,ROW(A4)),$CB$65:$CB$69,0),1) -> 8 | Z81: =INDEX($Z$65:$Z$69,MATCH(LARGE($CB$65:$CB$69,ROW(A4)),$CB$65:$CB$69,0),1) -> 2 | AK81: =INDEX($AK$65:$AK$69,MATCH(LARGE($CB$65:$CB$69,ROW(A4)),$CB$65:$CB$69,0),1) -> 2 | AV81: =INDEX($AV$65:$AV$69,MATCH(LARGE($CB$65:$CB$69,ROW(A4)),$CB$65:$CB$69,0),1) -> 4 | BG81: =INDEX($BG$65:$BG$69,MATCH(LARGE($CB$65:$CB$69,ROW(A4)),$CB$65:$CB$69,0),1) -> 17 | BL81: : | BN81: =INDEX($BN$65:$BN$69,MATCH(LARGE($CB$65:$CB$69,ROW(A4)),$CB$65:$CB$69,0),1) -> 18 | BS81: =INDEX($BS$65:$BS$69,MATCH(LARGE($CB$65:$CB$69,ROW(A4)),$CB$65:$CB$69,0),1) -> -1 | BX81: =INDEX($BX$65:$BX$69,MATCH(LARGE($CB$65:$CB$69,ROW(A4)),$CB$65:$CB$69,0),1) -> 8
C82: =INDEX($C$65:$C$69,MATCH(LARGE($CB$65:$CB$69,ROW(A5)),$CB$65:$CB$69,0),1) -> 5 | F82: 5 | H82: =INDEX($H$65:$H$69,MATCH(LARGE($CB$65:$CB$69,ROW(A5)),$CB$65:$CB$69,0),1) -> Schmiddi | T82: =INDEX($T$65:$T$69,MATCH(LARGE($CB$65:$CB$69,ROW(A5)),$CB$65:$CB$69,0),1) -> 8 | Z82: =INDEX($Z$65:$Z$69,MATCH(LARGE($CB$65:$CB$69,ROW(A4)),$CB$65:$CB$69,0),1) -> 2 | AK82: =INDEX($AK$65:$AK$69,MATCH(LARGE($CB$65:$CB$69,ROW(A5)),$CB$65:$CB$69,0),1) -> 2 | AV82: =INDEX($AV$65:$AV$69,MATCH(LARGE($CB$65:$CB$69,ROW(A5)),$CB$65:$CB$69,0),1) -> 5 | BG82: =INDEX($BG$65:$BG$69,MATCH(LARGE($CB$65:$CB$69,ROW(A5)),$CB$65:$CB$69,0),1) -> 14 | BL82: : | BN82: =INDEX($BN$65:$BN$69,MATCH(LARGE($CB$65:$CB$69,ROW(A5)),$CB$65:$CB$69,0),1) -> 21 | BS82: =INDEX($BS$65:$BS$69,MATCH(LARGE($CB$65:$CB$69,ROW(A5)),$CB$65:$CB$69,0),1) -> -7 | BX82: =INDEX($BX$65:$BX$69,MATCH(LARGE($CB$65:$CB$69,ROW(A5)),$CB$65:$CB$69,0),1) -> 5
C83: --- | F83: --- | H83: Spieler 6 | T83: 0 | Z83: 0 | AK83: 0 | AV83: 0 | BG83: 0 | BL83: : | BN83: 0 | BS83: 0 | BX83: 0
C84: --- | F84: --- | H84: Spieler 7 | T84: 0 | Z84: 0 | AK84: 0 | AV84: 0 | BG84: 0 | BL84: : | BN84: 0 | BS84: 0 | BX84: 0
C88: Tabelle (nach Alphabet)
C90: Rang | H90: Spieler | T90: Spiele | Z90: Siege | AK90: Unentschieden | AV90: Niederlagen | BG90: Tore | BS90: +/- | BX90: Punkte
C91: =IF($H$78="Basti",$F$78,IF($H$79="Basti",$F$79,IF($H$80="Basti",$F$80,IF($H$81="Basti",$F$81,IF($H$82="Basti",$F$82,IF($H$83="Basti",$F$83,IF($H$84="Basti",$F$84,0))))))) -> 0 | H91: Basti | T91: =IF($H$78="Basti",$T$78,IF($H$79="Basti",$T$79,IF($H$80="Basti",$T$80,IF($H$81="Basti",$T$81,IF($H$82="Basti",$T$82,IF($H$83="Basti",$T$83,IF($H$84="Basti",$T$84,0))))))) -> 0 | Z91: =IF($H$78="Basti",$Z$78,IF($H$79="Basti",$Z$79,IF($H$80="Basti",$Z$80,IF($H$81="Basti",$Z$81,IF($H$82="Basti",$Z$82,IF($H$83="Basti",$Z$83,IF($H$84="Basti",$Z$84,0))))))) -> 0 | AK91: =IF($H$78="Basti",$AK$78,IF($H$79="Basti",$AK$79,IF($H$80="Basti",$AK$80,IF($H$81="Basti",$AK$81,IF($H$82="Basti",$AK$82,IF($H$83="Basti",$AK$83,IF($H$84="Basti",$AK$84,0))))))) -> 0 | AV91: =IF($H$78="Basti",$AV$78,IF($H$79="Basti",$AV$79,IF($H$80="Basti",$AV$80,IF($H$81="Basti",$AV$81,IF($H$82="Basti",$AV$82,IF($H$83="Basti",$AV$83,IF($H$84="Basti",$AV$84,0))))))) -> 0 | BG91: =IF($H$78="Basti",$BG$78,IF($H$79="Basti",$BG$79,IF($H$80="Basti",$BG$80,IF($H$81="Basti",$BG$81,IF($H$82="Basti",$BG$82,IF($H$83="Basti",$BG$83,IF($H$84="Basti",$BG$84,0))))))) -> 0 | BL91: : | BN91: =IF($H$78="Basti",$BN$78,IF($H$79="Basti",$BN$79,IF($H$80="Basti",$BN$80,IF($H$81="Basti",$BN$81,IF($H$82="Basti",$BN$82,IF($H$83="Basti",$BN$83,IF($H$84="Basti",$BN$84,0))))))) -> 0 | BS91: =IF($H$78="Basti",$BS$78,IF($H$79="Basti",$BS$79,IF($H$80="Basti",$BS$80,IF($H$81="Basti",$BS$81,IF($H$82="Basti",$BS$82,IF($H$83="Basti",$BS$83,IF($H$84="Basti",$BS$84,0))))))) -> 0 | BX91: =IF($H$78="Basti",$BX$78,IF($H$79="Basti",$BX$79,IF($H$80="Basti",$BX$80,IF($H$81="Basti",$BX$81,IF($H$82="Basti",$BX$82,IF($H$83="Basti",$BX$83,IF($H$84="Basti",$BX$84,0))))))) -> 0
C92: =IF($H$78="Christoph",$F$78,IF($H$79="Christoph",$F$79,IF($H$80="Christoph",$F$80,IF($H$81="Christoph",$F$81,IF($H$82="Christoph",$F$82,IF($H$83="Christoph",$F$83,IF($H$84="Christoph",$F$84,0))))))) -> 3 | H92: Christoph | T92: =IF($H$78="Christoph",$T$78,IF($H$79="Christoph",$T$79,IF($H$80="Christoph",$T$80,IF($H$81="Christoph",$T$81,IF($H$82="Christoph",$T$82,IF($H$83="Christoph",$T$83,IF($H$84="Christoph",$T$84,0))))))) -> 8 | Z92: =IF($H$78="Christoph",$Z$78,IF($H$79="Christoph",$Z$79,IF($H$80="Christoph",$Z$80,IF($H$81="Christoph",$Z$81,IF($H$82="Christoph",$Z$82,IF($H$83="Christoph",$Z$83,IF($H$84="Christoph",$Z$84,0))))))) -> 4 | AK92: =IF($H$78="Christoph",$AK$78,IF($H$79="Christoph",$AK$79,IF($H$80="Christoph",$AK$80,IF($H$81="Christoph",$AK$81,IF($H$82="Christoph",$AK$82,IF($H$83="Christoph",$AK$83,IF($H$84="Christoph",$AK$84,0))))))) -> 1 | AV92: =IF($H$78="Christoph",$AV$78,IF($H$79="Christoph",$AV$79,IF($H$80="Christoph",$AV$80,IF($H$81="Christoph",$AV$81,IF($H$82="Christoph",$AV$82,IF($H$83="Christoph",$AV$83,IF($H$84="Christoph",$AV$84,0))))))) -> 3 | BG92: =IF($H$78="Christoph",$BG$78,IF($H$79="Christoph",$BG$79,IF($H$80="Christoph",$BG$80,IF($H$81="Christoph",$BG$81,IF($H$82="Christoph",$BG$82,IF($H$83="Christoph",$BG$83,IF($H$84="Christoph",$BG$84,0))))))) -> 15 | BL92: : | BN92: =IF($H$78="Christoph",$BN$78,IF($H$79="Christoph",$BN$79,IF($H$80="Christoph",$BN$80,IF($H$81="Christoph",$BN$81,IF($H$82="Christoph",$BN$82,IF($H$83="Christoph",$BN$83,IF($H$84="Christoph",$BN$84,0))))))) -> 18 | BS92: =IF($H$78="Christoph",$BS$78,IF($H$79="Christoph",$BS$79,IF($H$80="Christoph",$BS$80,IF($H$81="Christoph",$BS$81,IF($H$82="Christoph",$BS$82,IF($H$83="Christoph",$BS$83,IF($H$84="Christoph",$BS$84,0))))))) -> -3 | BX92: =IF($H$78="Christoph",$BX$78,IF($H$79="Christoph",$BX$79,IF($H$80="Christoph",$BX$80,IF($H$81="Christoph",$BX$81,IF($H$82="Christoph",$BX$82,IF($H$83="Christoph",$BX$83,IF($H$84="Christoph",$BX$84,0))))))) -> 13
C93: =IF($H$78="Jule",$F$78,IF($H$79="Jule",$F$79,IF($H$80="Jule",$F$80,IF($H$81="Jule",$F$81,IF($H$82="Jule",$F$82,IF($H$83="Jule",$F$83,IF($H$84="Jule",$F$84,0))))))) -> 0 | H93: Jule | T93: =IF($H$78="Jule",$T$78,IF($H$79="Jule",$T$79,IF($H$80="Jule",$T$80,IF($H$81="Jule",$T$81,IF($H$82="Jule",$T$82,IF($H$83="Jule",$T$83,IF($H$84="Jule",$T$84,0))))))) -> 0 | Z93: =IF($H$78="Jule",$Z$78,IF($H$79="Jule",$Z$79,IF($H$80="Jule",$Z$80,IF($H$81="Jule",$Z$81,IF($H$82="Jule",$Z$82,IF($H$83="Jule",$Z$83,IF($H$84="Jule",$Z$84,0))))))) -> 0 | AK93: =IF($H$78="Jule",$AK$78,IF($H$79="Jule",$AK$79,IF($H$80="Jule",$AK$80,IF($H$81="Jule",$AK$81,IF($H$82="Jule",$AK$82,IF($H$83="Jule",$AK$83,IF($H$84="Jule",$AK$84,0))))))) -> 0 | AV93: =IF($H$78="Jule",$AV$78,IF($H$79="Jule",$AV$79,IF($H$80="Jule",$AV$80,IF($H$81="Jule",$AV$81,IF($H$82="Jule",$AV$82,IF($H$83="Jule",$AV$83,IF($H$84="Jule",$AV$84,0))))))) -> 0 | BG93: =IF($H$78="Jule",$BG$78,IF($H$79="Jule",$BG$79,IF($H$80="Jule",$BG$80,IF($H$81="Jule",$BG$81,IF($H$82="Jule",$BG$82,IF($H$83="Jule",$BG$83,IF($H$84="Jule",$BG$84,0))))))) -> 0 | BL93: : | BN93: =IF($H$78="Jule",$BN$78,IF($H$79="Jule",$BN$79,IF($H$80="Jule",$BN$80,IF($H$81="Jule",$BN$81,IF($H$82="Jule",$BN$82,IF($H$83="Jule",$BN$83,IF($H$84="Jule",$BN$84,0))))))) -> 0 | BS93: =IF($H$78="Jule",$BS$78,IF($H$79="Jule",$BS$79,IF($H$80="Jule",$BS$80,IF($H$81="Jule",$BS$81,IF($H$82="Jule",$BS$82,IF($H$83="Jule",$BS$83,IF($H$84="Jule",$BS$84,0))))))) -> 0 | BX93: =IF($H$78="Jule",$BX$78,IF($H$79="Jule",$BX$79,IF($H$80="Jule",$BX$80,IF($H$81="Jule",$BX$81,IF($H$82="Jule",$BX$82,IF($H$83="Jule",$BX$83,IF($H$84="Jule",$BX$84,0))))))) -> 0
C94: =IF($H$78="Markus",$F$78,IF($H$79="Markus",$F$79,IF($H$80="Markus",$F$80,IF($H$81="Markus",$F$81,IF($H$82="Markus",$F$82,IF($H$83="Markus",$F$83,IF($H$84="Markus",$F$84,0))))))) -> 1 | H94: Markus | T94: =IF($H$78="Markus",$T$78,IF($H$79="Markus",$T$79,IF($H$80="Markus",$T$80,IF($H$81="Markus",$T$81,IF($H$82="Markus",$T$82,IF($H$83="Markus",$T$83,IF($H$84="Markus",$T$84,0))))))) -> 8 | Z94: =IF($H$78="Markus",$Z$78,IF($H$79="Markus",$Z$79,IF($H$80="Markus",$Z$80,IF($H$81="Markus",$Z$81,IF($H$82="Markus",$Z$82,IF($H$83="Markus",$Z$83,IF($H$84="Markus",$Z$84,0))))))) -> 5 | AK94: =IF($H$78="Markus",$AK$78,IF($H$79="Markus",$AK$79,IF($H$80="Markus",$AK$80,IF($H$81="Markus",$AK$81,IF($H$82="Markus",$AK$82,IF($H$83="Markus",$AK$83,IF($H$84="Markus",$AK$84,0))))))) -> 2 | AV94: =IF($H$78="Markus",$AV$78,IF($H$79="Markus",$AV$79,IF($H$80="Markus",$AV$80,IF($H$81="Markus",$AV$81,IF($H$82="Markus",$AV$82,IF($H$83="Markus",$AV$83,IF($H$84="Markus",$AV$84,0))))))) -> 1 | BG94: =IF($H$78="Markus",$BG$78,IF($H$79="Markus",$BG$79,IF($H$80="Markus",$BG$80,IF($H$81="Markus",$BG$81,IF($H$82="Markus",$BG$82,IF($H$83="Markus",$BG$83,IF($H$84="Markus",$BG$84,0))))))) -> 20 | BL94: : | BN94: =IF($H$78="Markus",$BN$78,IF($H$79="Markus",$BN$79,IF($H$80="Markus",$BN$80,IF($H$81="Markus",$BN$81,IF($H$82="Markus",$BN$82,IF($H$83="Markus",$BN$83,IF($H$84="Markus",$BN$84,0))))))) -> 10 | BS94: =IF($H$78="Markus",$BS$78,IF($H$79="Markus",$BS$79,IF($H$80="Markus",$BS$80,IF($H$81="Markus",$BS$81,IF($H$82="Markus",$BS$82,IF($H$83="Markus",$BS$83,IF($H$84="Markus",$BS$84,0))))))) -> 10 | BX94: =IF($H$78="Markus",$BX$78,IF($H$79="Markus",$BX$79,IF($H$80="Markus",$BX$80,IF($H$81="Markus",$BX$81,IF($H$82="Markus",$BX$82,IF($H$83="Markus",$BX$83,IF($H$84="Markus",$BX$84,0))))))) -> 17
C95: =IF($H$78="Patrick",$F$78,IF($H$79="Patrick",$F$79,IF($H$80="Patrick",$F$80,IF($H$81="Patrick",$F$81,IF($H$82="Patrick",$F$82,IF($H$83="Patrick",$F$83,IF($H$84="Patrick",$F$84,0))))))) -> 2 | H95: Patrick | T95: =IF($H$78="Patrick",$T$78,IF($H$79="Patrick",$T$79,IF($H$80="Patrick",$T$80,IF($H$81="Patrick",$T$81,IF($H$82="Patrick",$T$82,IF($H$83="Patrick",$T$83,IF($H$84="Patrick",$T$84,0))))))) -> 8 | Z95: =IF($H$78="Patrick",$Z$78,IF($H$79="Patrick",$Z$79,IF($H$80="Patrick",$Z$80,IF($H$81="Patrick",$Z$81,IF($H$82="Patrick",$Z$82,IF($H$83="Patrick",$Z$83,IF($H$84="Patrick",$Z$84,0))))))) -> 4 | AK95: =IF($H$78="Patrick",$AK$78,IF($H$79="Patrick",$AK$79,IF($H$80="Patrick",$AK$80,IF($H$81="Patrick",$AK$81,IF($H$82="Patrick",$AK$82,IF($H$83="Patrick",$AK$83,IF($H$84="Patrick",$AK$84,0))))))) -> 1 | AV95: =IF($H$78="Patrick",$AV$78,IF($H$79="Patrick",$AV$79,IF($H$80="Patrick",$AV$80,IF($H$81="Patrick",$AV$81,IF($H$82="Patrick",$AV$82,IF($H$83="Patrick",$AV$83,IF($H$84="Patrick",$AV$84,0))))))) -> 3 | BG95: =IF($H$78="Patrick",$BG$78,IF($H$79="Patrick",$BG$79,IF($H$80="Patrick",$BG$80,IF($H$81="Patrick",$BG$81,IF($H$82="Patrick",$BG$82,IF($H$83="Patrick",$BG$83,IF($H$84="Patrick",$BG$84,0))))))) -> 19 | BL95: : | BN95: =IF($H$78="Patrick",$BN$78,IF($H$79="Patrick",$BN$79,IF($H$80="Patrick",$BN$80,IF($H$81="Patrick",$BN$81,IF($H$82="Patrick",$BN$82,IF($H$83="Patrick",$BN$83,IF($H$84="Patrick",$BN$84,0))))))) -> 18 | BS95: =IF($H$78="Patrick",$BS$78,IF($H$79="Patrick",$BS$79,IF($H$80="Patrick",$BS$80,IF($H$81="Patrick",$BS$81,IF($H$82="Patrick",$BS$82,IF($H$83="Patrick",$BS$83,IF($H$84="Patrick",$BS$84,0))))))) -> 1 | BX95: =IF($H$78="Patrick",$BX$78,IF($H$79="Patrick",$BX$79,IF($H$80="Patrick",$BX$80,IF($H$81="Patrick",$BX$81,IF($H$82="Patrick",$BX$82,IF($H$83="Patrick",$BX$83,IF($H$84="Patrick",$BX$84,0))))))) -> 13
C96: =IF($H$78="Ratze",$F$78,IF($H$79="Ratze",$F$79,IF($H$80="Ratze",$F$80,IF($H$81="Ratze",$F$81,IF($H$82="Ratze",$F$82,IF($H$83="Ratze",$F$83,IF($H$84="Ratze",$F$84,0))))))) -> 4 | H96: Ratze | T96: =IF($H$78="Ratze",$T$78,IF($H$79="Ratze",$T$79,IF($H$80="Ratze",$T$80,IF($H$81="Ratze",$T$81,IF($H$82="Ratze",$T$82,IF($H$83="Ratze",$T$83,IF($H$84="Ratze",$T$84,0))))))) -> 8 | Z96: =IF($H$78="Ratze",$Z$78,IF($H$79="Ratze",$Z$79,IF($H$80="Ratze",$Z$80,IF($H$81="Ratze",$Z$81,IF($H$82="Ratze",$Z$82,IF($H$83="Ratze",$Z$83,IF($H$84="Ratze",$Z$84,0))))))) -> 2 | AK96: =IF($H$78="Ratze",$AK$78,IF($H$79="Ratze",$AK$79,IF($H$80="Ratze",$AK$80,IF($H$81="Ratze",$AK$81,IF($H$82="Ratze",$AK$82,IF($H$83="Ratze",$AK$83,IF($H$84="Ratze",$AK$84,0))))))) -> 2 | AV96: =IF($H$78="Ratze",$AV$78,IF($H$79="Ratze",$AV$79,IF($H$80="Ratze",$AV$80,IF($H$81="Ratze",$AV$81,IF($H$82="Ratze",$AV$82,IF($H$83="Ratze",$AV$83,IF($H$84="Ratze",$AV$84,0))))))) -> 4 | BG96: =IF($H$78="Ratze",$BG$78,IF($H$79="Ratze",$BG$79,IF($H$80="Ratze",$BG$80,IF($H$81="Ratze",$BG$81,IF($H$82="Ratze",$BG$82,IF($H$83="Ratze",$BG$83,IF($H$84="Ratze",$BG$84,0))))))) -> 17 | BL96: : | BN96: =IF($H$78="Ratze",$BN$78,IF($H$79="Ratze",$BN$79,IF($H$80="Ratze",$BN$80,IF($H$81="Ratze",$BN$81,IF($H$82="Ratze",$BN$82,IF($H$83="Ratze",$BN$83,IF($H$84="Ratze",$BN$84,0))))))) -> 18 | BS96: =IF($H$78="Ratze",$BS$78,IF($H$79="Ratze",$BS$79,IF($H$80="Ratze",$BS$80,IF($H$81="Ratze",$BS$81,IF($H$82="Ratze",$BS$82,IF($H$83="Ratze",$BS$83,IF($H$84="Ratze",$BS$84,0))))))) -> -1 | BX96: =IF($H$78="Ratze",$BX$78,IF($H$79="Ratze",$BX$79,IF($H$80="Ratze",$BX$80,IF($H$81="Ratze",$BX$81,IF($H$82="Ratze",$BX$82,IF($H$83="Ratze",$BX$83,IF($H$84="Ratze",$BX$84,0))))))) -> 8
C97: =IF($H$78="Schmiddi",$F$78,IF($H$79="Schmiddi",$F$79,IF($H$80="Schmiddi",$F$80,IF($H$81="Schmiddi",$F$81,IF($H$82="Schmiddi",$F$82,IF($H$83="Schmiddi",$F$83,IF($H$84="Schmiddi",$F$84,0))))))) -> 5 | H97: Schmiddi | T97: =IF($H$78="Schmiddi",$T$78,IF($H$79="Schmiddi",$T$79,IF($H$80="Schmiddi",$T$80,IF($H$81="Schmiddi",$T$81,IF($H$82="Schmiddi",$T$82,IF($H$83="Schmiddi",$T$83,IF($H$84="Schmiddi",$T$84,0))))))) -> 8 | Z97: =IF($H$78="Schmiddi",$Z$78,IF($H$79="Schmiddi",$Z$79,IF($H$80="Schmiddi",$Z$80,IF($H$81="Schmiddi",$Z$81,IF($H$82="Schmiddi",$Z$82,IF($H$83="Schmiddi",$Z$83,IF($H$84="Schmiddi",$Z$84,0))))))) -> 2 | AK97: =IF($H$78="Schmiddi",$AK$78,IF($H$79="Schmiddi",$AK$79,IF($H$80="Schmiddi",$AK$80,IF($H$81="Schmiddi",$AK$81,IF($H$82="Schmiddi",$AK$82,IF($H$83="Schmiddi",$AK$83,IF($H$84="Schmiddi",$AK$84,0))))))) -> 2 | AV97: =IF($H$78="Schmiddi",$AV$78,IF($H$79="Schmiddi",$AV$79,IF($H$80="Schmiddi",$AV$80,IF($H$81="Schmiddi",$AV$81,IF($H$82="Schmiddi",$AV$82,IF($H$83="Schmiddi",$AV$83,IF($H$84="Schmiddi",$AV$84,0))))))) -> 5 | BG97: =IF($H$78="Schmiddi",$BG$78,IF($H$79="Schmiddi",$BG$79,IF($H$80="Schmiddi",$BG$80,IF($H$81="Schmiddi",$BG$81,IF($H$82="Schmiddi",$BG$82,IF($H$83="Schmiddi",$BG$83,IF($H$84="Schmiddi",$BG$84,0))))))) -> 14 | BL97: : | BN97: =IF($H$78="Schmiddi",$BN$78,IF($H$79="Schmiddi",$BN$79,IF($H$80="Schmiddi",$BN$80,IF($H$81="Schmiddi",$BN$81,IF($H$82="Schmiddi",$BN$82,IF($H$83="Schmiddi",$BN$83,IF($H$84="Schmiddi",$BN$84,0))))))) -> 21 | BS97: =IF($H$78="Schmiddi",$BS$78,IF($H$79="Schmiddi",$BS$79,IF($H$80="Schmiddi",$BS$80,IF($H$81="Schmiddi",$BS$81,IF($H$82="Schmiddi",$BS$82,IF($H$83="Schmiddi",$BS$83,IF($H$84="Schmiddi",$BS$84,0))))))) -> -7 | BX97: =IF($H$78="Schmiddi",$BX$78,IF($H$79="Schmiddi",$BX$79,IF($H$80="Schmiddi",$BX$80,IF($H$81="Schmiddi",$BX$81,IF($H$82="Schmiddi",$BX$82,IF($H$83="Schmiddi",$BX$83,IF($H$84="Schmiddi",$BX$84,0))))))) -> 5

Sheet 23.12.
B2: ="Turnier am " & MID(CELL("dateiname",A1),SEARCH("]",CELL("dateiname",A1))+1,31) -> Turnier am 23.12.
C5: Spielerliste
C7: =" Spieler" -> Spieler | M7: Spieler 1 | W7: Spieler 2 | AG7: Spieler 3 | AQ7: Spieler 4 | BA7: Spieler 5 | BK7: Spieler 6 | BU7: Spieler 7
C8: =" Name" -> Name | M8: Basti | W8: Schmiddi | AG8: Ratze | AQ8: Markus | BA8: Jule | BK8: Patrick | BU8: Christoph
C12: Spielplan
C14: 00:12:00 | H14: Spiel | M14: Datum | S14: Uhrzeit | Y14: Austragungsort | AJ14: Paarung | BR14: Ergebnis | CG14: Spiele | CH14: SiegHeim | CI14: Unentschieden | CJ14: SiegGast
C16: Hinrunde | H16: 1 | M16: =MID(CELL("dateiname",A1),SEARCH("]",CELL("dateiname",A1))+1,31) -> 23.12. | S16: 21:00:00 | Y16: Fernseher | AJ16: =$M$8 -> Basti | AY16: : | BB16: =$W$8 -> Schmiddi | BR16: 1 | BW16: : | BZ16: 2 | CG16: =IF(AND(ISNUMBER(BR16),ISNUMBER(BZ16)),1,0) -> 1 | CH16: =IF(OR(ISBLANK(BR16),ISBLANK(BZ16)),0,IF(BR16>BZ16,1,0)) -> 0 | CI16: =IF(OR(ISBLANK(BR16),ISBLANK(BZ16)),0,IF(BR16=BZ16,1,0)) -> 0 | CJ16: =IF(OR(ISBLANK(BR16),ISBLANK(BZ16)),0,IF(BR16<BZ16,1,0)) -> 1
H17: =H16+1 -> 2 | M17: =$M$16 -> 23.12. | S17: =S16 -> 21:00:00 | Y17: Fernseher | AJ17: =$AG$8 -> Ratze | AY17: : | BB17: =$AQ$8 -> Markus | BR17: 2 | BW17: : | BZ17: 2 | CG17: =IF(AND(ISNUMBER(BR17),ISNUMBER(BZ17)),1,0) -> 1 | CH17: =IF(OR(ISBLANK(BR17),ISBLANK(BZ17)),0,IF(BR17>BZ17,1,0)) -> 0 | CI17: =IF(OR(ISBLANK(BR17),ISBLANK(BZ17)),0,IF(BR17=BZ17,1,0)) -> 1 | CJ17: =IF(OR(ISBLANK(BR17),ISBLANK(BZ17)),0,IF(BR17<BZ17,1,0)) -> 0
H18: =H17+1 -> 3 | M18: =$M$16 -> 23.12. | S18: =S16 -> 21:00:00 | Y18: Fernseher | AJ18: =$BA$8 -> Jule | AY18: : | BB18: =$BK$8 -> Patrick | BR18: 0 | BW18: : | BZ18: 2 | CG18: 1 | CH18: 0 | CI18: 0 | CJ18: 1
H19: 4 | M19: 23.12. | S19: =S16+$C$14 -> 21:12:00 | Y19: =$Y$16 -> Fernseher | AJ19: =$BU$8 -> Christoph | AY19: : | BB19: =$M$8 -> Basti | BR19: 4 | BW19: : | BZ19: 1 | CG19: 1 | CH19: 1 | CI19: 0 | CJ19: 0
H20: 5 | M20: 23.12. | S20: 21:12:00 | Y20: =$Y$17 -> Fernseher | AJ20: =$W$8 -> Schmiddi | AY20: : | BB20: =$AG$8 -> Ratze | BR20: 3 | BW20: : | BZ20: 4 | CG20: 1 | CH20: 0 | CI20: 0 | CJ20: 1
H21: 6 | M21: 23.12. | S21: 21:12:00 | Y21: =$Y$18 -> Fernseher | AJ21: =$AQ$8 -> Markus | AY21: : | BB21: =$BA$8 -> Jule | BR21: 5 | BW21: : | BZ21: 1 | CG21: 1 | CH21: 1 | CI21: 0 | CJ21: 0
H22: 7 | M22: 23.12. | S22: 21:24:00 | Y22: =$Y$16 -> Fernseher | AJ22: =$BK$8 -> Patrick | AY22: : | BB22: =$BU$8 -> Christoph | BR22: 3 | BW22: : | BZ22: 5 | CG22: 1 | CH22: 0 | CI22: 0 | CJ22: 1
H23: 8 | M23: 23.12. | S23: 21:24:00 | Y23: =$Y$17 -> Fernseher | AJ23: =$M$8 -> Basti | AY23: : | BB23: =$AG$8 -> Ratze | BR23: 0 | BW23: : | BZ23: 6 | CG23: 1 | CH23: 0 | CI23: 0 | CJ23: 1
H24: 9 | M24: 23.12. | S24: 21:24:00 | Y24: =$Y$18 -> Fernseher | AJ24: =$AQ$8 -> Markus | AY24: : | BB24: =$W$8 -> Schmiddi | BR24: 3 | BW24: : | BZ24: 3 | CG24: 1 | CH24: 0 | CI24: 1 | CJ24: 0
H25: 10 | M25: 23.12. | S25: 21:36:00 | Y25: =$Y$16 -> Fernseher | AJ25: =$BA$8 -> Jule | AY25: : | BB25: =$BU$8 -> Christoph | BR25: 3 | BW25: : | BZ25: 1 | CG25: 1 | CH25: 1 | CI25: 0 | CJ25: 0
H26: 11 | M26: 23.12. | S26: 21:36:00 | Y26: =$Y$17 -> Fernseher | AJ26: =$AG$8 -> Ratze | AY26: : | BB26: =$BK$8 -> Patrick | BR26: 1 | BW26: : | BZ26: 4 | CG26: 1 | CH26: 0 | CI26: 0 | CJ26: 1
H27: 12 | M27: 23.12. | S27: 21:36:00 | Y27: =$Y$18 -> Fernseher | AJ27: =$AQ$8 -> Markus | AY27: : | BB27: =$M$8 -> Basti | BR27: 2 | BW27: : | BZ27: 1 | CG27: 1 | CH27: 1 | CI27: 0 | CJ27: 0
H28: 13 | M28: 23.12. | S28: 21:48:00 | Y28: =$Y$16 -> Fernseher | AJ28: =$W$8 -> Schmiddi | AY28: : | BB28: =$BA$8 -> Jule | BR28: 2 | BW28: : | BZ28: 2 | CG28: 1 | CH28: 0 | CI28: 1 | CJ28: 0
H29: 14 | M29: 23.12. | S29: 21:48:00 | Y29: =$Y$17 -> Fernseher | AJ29: =$BU$8 -> Christoph | AY29: : | BB29: =$AQ$8 -> Markus | BR29: 4 | BW29: : | BZ29: 3 | CG29: 1 | CH29: 1 | CI29: 0 | CJ29: 0
H30: 15 | M30: 23.12. | S30: 21:48:00 | Y30: =$Y$18 -> Fernseher | AJ30: =$M$8 -> Basti | AY30: : | BB30: =$BK$8 -> Patrick | BR30: 0 | BW30: : | BZ30: 2 | CG30: 1 | CH30: 0 | CI30: 0 | CJ30: 1
H31: 16 | M31: 23.12. | S31: 22:00:00 | Y31: =$Y$16 -> Fernseher | AJ31: =$BA$8 -> Jule | AY31: : | BB31: =$AG$8 -> Ratze | BR31: 3 | BW31: : | BZ31: 5 | CG31: 1 | CH31: 0 | CI31: 0 | CJ31: 1
H32: 17 | M32: 23.12. | S32: 22:00:00 | Y32: =$Y$17 -> Fernseher | AJ32: =$BU$8 -> Christoph | AY32: : | BB32: =$W$8 -> Schmiddi | BR32: 4 | BW32: : | BZ32: 4 | CG32: 1 | CH32: 0 | CI32: 1 | CJ32: 0
H33: 18 | M33: 23.12. | S33: 22:00:00 | Y33: =$Y$18 -> Fernseher | AJ33: =$AQ$8 -> Markus | AY33: : | BB33: =$BK$8 -> Patrick | BR33: 2 | BW33: : | BZ33: 4 | CG33: 1 | CH33: 0 | CI33: 0 | CJ33: 1
H34: 19 | M34: 23.12. | S34: 22:12:00 | Y34: =$Y$16 -> Fernseher | AJ34: =$BA$8 -> Jule | AY34: : | BB34: =$M$8 -> Basti | BR34: 5 | BW34: : | BZ34: 0 | CG34: 1 | CH34: 1 | CI34: 0 | CJ34: 0
H35: 20 | M35: 23.12. | S35: 22:12:00 | Y35: =$Y$17 -> Fernseher | AJ35: =$AG$8 -> Ratze | AY35: : | BB35: =$BU$8 -> Christoph | BR35: 2 | BW35: : | BZ35: 4 | CG35: 1 | CH35: 0 | CI35: 0 | CJ35: 1
H36: 21 | M36: 23.12. | S36: 22:12:00 | Y36: =$Y$18 -> Fernseher | AJ36: =$W$8 -> Schmiddi | AY36: : | BB36: =$BK$8 -> Patrick | BR36: 2 | BW36: : | BZ36: 1 | CG36: 1 | CH36: 1 | CI36: 0 | CJ36: 0
C38: Rückrunde | H38: =H36+1 -> 22 | M38: =$M$16 -> 23.12. | S38: =S34+$C$14 -> 22:24:00 | Y38: =$Y$18 -> Fernseher | AJ38: =$W$8 -> Schmiddi | AY38: : | BB38: =$M$8 -> Basti | BR38: 2 | BW38: : | BZ38: 1 | CG38: =IF(AND(ISNUMBER(BR38),ISNUMBER(BZ38)),1,0) -> 1 | CH38: =IF(OR(ISBLANK(BR38),ISBLANK(BZ38)),0,IF(BR38>BZ38,1,0)) -> 1 | CI38: =IF(OR(ISBLANK(BR38),ISBLANK(BZ38)),0,IF(BR38=BZ38,1,0)) -> 0 | CJ38: =IF(OR(ISBLANK(BR38),ISBLANK(BZ38)),0,IF(BR38<BZ38,1,0)) -> 0
H39: =H38+1 -> 23 | M39: 23.12. | S39: =S35+$C$14 -> 22:24:00 | Y39: =$Y$16 -> Fernseher | AJ39: =$AQ$8 -> Markus | AY39: : | BB39: =$AG$8 -> Ratze | BR39: 3 | BW39: : | BZ39: 4 | CG39: 1 | CH39: 0 | CI39: 0 | CJ39: 1
H40: =H39+1 -> 24 | M40: 23.12. | S40: =S36+$C$14 -> 22:24:00 | Y40: =$Y$17 -> Fernseher | AJ40: =$BK$8 -> Patrick | AY40: : | BB40: =$BA$8 -> Jule | BR40: 0 | BW40: : | BZ40: 1 | CG40: 1 | CH40: 0 | CI40: 0 | CJ40: 1
H41: 25 | M41: 23.12. | S41: =S38+$C$14 -> 22:36:00 | Y41: =$Y$18 -> Fernseher | AJ41: =$M$8 -> Basti | AY41: : | BB41: =$BU$8 -> Christoph | BR41: 1 | BW41: : | BZ41: 3 | CG41: 1 | CH41: 0 | CI41: 0 | CJ41: 1
H42: 26 | M42: 23.12. | S42: 22:36:00 | Y42: =$Y$16 -> Fernseher | AJ42: =$AG$8 -> Ratze | AY42: : | BB42: =$W$8 -> Schmiddi | BR42: 6 | BW42: : | BZ42: 3 | CG42: 1 | CH42: 1 | CI42: 0 | CJ42: 0
H43: 27 | M43: 23.12. | S43: 22:36:00 | Y43: =$Y$17 -> Fernseher | AJ43: =$BA$8 -> Jule | AY43: : | BB43: =$AQ$8 -> Markus | BR43: 5 | BW43: : | BZ43: 2 | CG43: 1 | CH43: 1 | CI43: 0 | CJ43: 0
H44: 28 | M44: 23.12. | S44: 22:48:00 | Y44: =$Y$18 -> Fernseher | AJ44: =$BU$8 -> Christoph | AY44: : | BB44: =$BK$8 -> Patrick | BR44: 0 | BW44: : | BZ44: 2 | CG44: 1 | CH44: 0 | CI44: 0 | CJ44: 1
H45: 29 | M45: 23.12. | S45: 22:48:00 | Y45: =$Y$16 -> Fernseher | AJ45: =$AG$8 -> Ratze | AY45: : | BB45: =$M$8 -> Basti | BR45: 4 | BW45: : | BZ45: 0 | CG45: 1 | CH45: 1 | CI45: 0 | CJ45: 0
H46: 30 | M46: 23.12. | S46: 22:48:00 | Y46: =$Y$17 -> Fernseher | AJ46: =$W$8 -> Schmiddi | AY46: : | BB46: =$AQ$8 -> Markus | BR46: 4 | BW46: : | BZ46: 1 | CG46: 1 | CH46: 1 | CI46: 0 | CJ46: 0
H47: 31 | M47: 23.12. | S47: 23:00:00 | Y47: =$Y$18 -> Fernseher | AJ47: =$BU$8 -> Christoph | AY47: : | BB47: =$BA$8 -> Jule | BR47: 0 | BW47: : | BZ47: 3 | CG47: 1 | CH47: 0 | CI47: 0 | CJ47: 1
H48: 32 | M48: 23.12. | S48: 23:00:00 | Y48: =$Y$16 -> Fernseher | AJ48: =$BK$8 -> Patrick | AY48: : | BB48: =$AG$8 -> Ratze | BR48: 1 | BW48: : | BZ48: 4 | CG48: 1 | CH48: 0 | CI48: 0 | CJ48: 1
H49: 33 | M49: 23.12. | S49: 23:00:00 | Y49: =$Y$17 -> Fernseher | AJ49: =$M$8 -> Basti | AY49: : | BB49: =$AQ$8 -> Markus | BR49: 0 | BW49: : | BZ49: 8 | CG49: 1 | CH49: 0 | CI49: 0 | CJ49: 1
H50: 34 | M50: 23.12. | S50: 23:12:00 | Y50: =$Y$18 -> Fernseher | AJ50: =$BA$8 -> Jule | AY50: : | BB50: =$W$8 -> Schmiddi | BR50: 4 | BW50: : | BZ50: 3 | CG50: 1 | CH50: 1 | CI50: 0 | CJ50: 0
H51: 35 | M51: 23.12. | S51: 23:12:00 | Y51: =$Y$16 -> Fernseher | AJ51: =$AQ$8 -> Markus | AY51: : | BB51: =$BU$8 -> Christoph | BR51: 1 | BW51: : | BZ51: 2 | CG51: 1 | CH51: 0 | CI51: 0 | CJ51: 1
H52: 36 | M52: 23.12. | S52: 23:12:00 | Y52: =$Y$17 -> Fernseher | AJ52: =$BK$8 -> Patrick | AY52: : | BB52: =$M$8 -> Basti | BR52: 2 | BW52: : | BZ52: 1 | CG52: 1 | CH52: 1 | CI52: 0 | CJ52: 0
H53: 37 | M53: 23.12. | S53: 23:24:00 | Y53: =$Y$18 -> Fernseher | AJ53: =$AG$8 -> Ratze | AY53: : | BB53: =$BA$8 -> Jule | BR53: 6 | BW53: : | BZ53: 1 | CG53: 1 | CH53: 1 | CI53: 0 | CJ53: 0
H54: 38 | M54: 23.12. | S54: 23:24:00 | Y54: =$Y$16 -> Fernseher | AJ54: =$W$8 -> Schmiddi | AY54: : | BB54: =$BU$8 -> Christoph | BR54: 2 | BW54: : | BZ54: 3 | CG54: 1 | CH54: 0 | CI54: 0 | CJ54: 1
H55: 39 | M55: 23.12. | S55: 23:24:00 | Y55: =$Y$17 -> Fernseher | AJ55: =$BK$8 -> Patrick | AY55: : | BB55: =$AQ$8 -> Markus | BR55: 2 | BW55: : | BZ55: 3 | CG55: 1 | CH55: 0 | CI55: 0 | CJ55: 1
H56: 40 | M56: 23.12. | S56: 23:36:00 | Y56: =$Y$18 -> Fernseher | AJ56: =$M$8 -> Basti | AY56: : | BB56: =$BA$8 -> Jule | BR56: 0 | BW56: : | BZ56: 2 | CG56: 1 | CH56: 0 | CI56: 0 | CJ56: 1
H57: 41 | M57: 23.12. | S57: 23:36:00 | Y57: =$Y$16 -> Fernseher | AJ57: =$BU$8 -> Christoph | AY57: : | BB57: =$AG$8 -> Ratze | BR57: 3 | BW57: : | BZ57: 2 | CG57: 1 | CH57: 1 | CI57: 0 | CJ57: 0
H58: 42 | M58: 23.12. | S58: 23:36:00 | Y58: =$Y$17 -> Fernseher | AJ58: =$BK$8 -> Patrick | AY58: : | BB58: =$W$8 -> Schmiddi | BR58: 8 | BW58: : | BZ58: 3 | CG58: 1 | CH58: 1 | CI58: 0 | CJ58: 0
C62: Tabelle (unsortiert)
C64: Rang | H64: Spieler | T64: Spiele | Z64: Siege | AK64: Unentschieden | AV64: Niederlagen | BG64: Tore | BS64: +/- | BX64: Punkte | CA64: HS
C65: =IF(T65=0,0,RANK(BX65,$BX$65:$BZ$71,0)) -> 7 | H65: =$M$8 -> Basti | T65: =CG16+CG19+CG23+CG27+CG30+CG34+CG38+CG41+CG45+CG49+CG52+CG56 -> 12 | Z65: =CH16+CJ19+CH23+CJ27+CH30+CJ34+CJ38+CH41+CJ45+CH49+CJ52+CH56 -> 0 | AK65: =CI16+CI19+CI23+CI27+CI30+CI34+CI38+CI41+CI45+CI49+CI52+CI56 -> 0 | AV65: =CJ16+CH19+CJ23+CH27+CJ30+CH34+CH38+CJ41+CH45+CJ49+CH52+CJ56 -> 12 | BG65: =BR16+BZ19+BR23+BZ27+BR30+BZ34+BZ38+BR41+BZ45+BR49+BZ52+BR56 -> 6 | BL65: : | BN65: =BZ16+BR19+BZ23+BR27+BZ30+BR34+BR38+BZ41+BR45+BZ49+BR52+BZ56 -> 42 | BS65: =BG65-BN65 -> -36 | BX65: =(Z65*3)+AK65 -> 0 | CA65: =BX65+ROW()/1000 -> 0.065
C66: 5 | H66: =$W$8 -> Schmiddi | T66: =CG16+CG20+CG24+CG28+CG32+CG36+CG38+CG42+CG46+CG50+CG54+CG58 -> 12 | Z66: =CJ16+CH20+CJ24+CH28+CJ32+CH36+CH38+CJ42+CH46+CJ50+CH54+CJ58 -> 4 | AK66: =CI16+CI20+CI24+CI28+CI32+CI36+CI38+CI42+CI46+CI50+CI54+CI58 -> 3 | AV66: =CH16+CJ20+CH24+CJ28+CH32+CJ36+CJ38+CH42+CJ46+CH50+CJ54+CH58 -> 5 | BG66: =BZ16+BR20+BZ24+BR28+BZ32+BR36+BR38+BZ42+BR46+BZ50+BR54+BZ58 -> 33 | BL66: : | BN66: =BR16+BZ20+BR24+BZ28+BR32+BZ36+BZ38+BR42+BZ46+BR50+BZ54+BR58 -> 38 | BS66: -5 | BX66: =(Z66*3)+AK66 -> 15 | CA66: =BX66+ROW()/1000 -> 15.066
C67: 1 | H67: =$AG$8 -> Ratze | T67: =CG17+CG20+CG23+CG26+CG31+CG35+CG39+CG42+CG45+CG48+CG53+CG57 -> 12 | Z67: =CH17+CJ20+CJ23+CH26+CJ31+CH35++CJ39+CH42+CH45+CJ48+CH53+CJ57 -> 8 | AK67: =CI17+CI20+CI23+CI26+CI31+CI35+CI39+CI42+CI45+CI48+CI53+CI57 -> 1 | AV67: =CJ17+CH20+CH23+CJ26+CH31+CJ35+CH39+CJ42+CJ45+CH48+CJ53+CH57 -> 3 | BG67: =BR17+BZ20+BZ23+BR26+BZ31+BR35+BZ39+BR42+BR45+BZ48+BR53+BZ57 -> 46 | BL67: : | BN67: =BZ17+BR20+BR23+BZ26+BR31+BZ35+BR39+BZ42+BZ45+BR48+BZ53+BR57 -> 27 | BS67: 19 | BX67: 25 | CA67: 25.067
C68: 6 | H68: =$AQ$8 -> Markus | T68: =CG17+CG21+CG24+CG27+CG29+CG33+CG39+CG43+CG46+CG49+CG51+CG55 -> 12 | Z68: =CJ17+CH21+CH24+CH27+CJ29+CH33+CH39+CJ43+CJ46+CJ49+CH51+CJ55 -> 4 | AK68: =CI17+CI21+CI24+CI27+CI29+CI33+CI39+CI43+CI46+CI49+CI51+CI55 -> 2 | AV68: =CH17+CJ21+CJ24+CJ27+CH29+CJ33+CJ39+CH43+CH46+CH49+CJ51+CH55 -> 6 | BG68: =BZ17+BR21+BR24+BR27+BZ29+BR33+BR39+BZ43+BZ46+BZ49+BR51+BZ55 -> 35 | BL68: : | BN68: =BR17+BZ21+BZ24+BZ27+BR29+BZ33+BZ39+BR43+BR46+BR49+BZ51+BR55 -> 32 | BS68: 3 | BX68: 14 | CA68: 14.068
C69: 3 | H69: =$BA$8 -> Jule | T69: =CG18+CG21+CG25+CG28+CG31+CG34+CG40+CG43+CG47+CG50+CG53+CG56 -> 12 | Z69: =CH18+CJ21+CH25+CJ28+CH31+CH34+CJ40+CH43+CJ47+CH50+CJ53+CJ56 -> 7 | AK69: =CI18+CI21+CI25+CI28+CI31+CI34+CI40+CI43+CI47+CI50+CI53+CI56 -> 1 | AV69: =CJ18+CH21+CJ25+CH28+CJ31+CJ34+CH40+CJ43+CH47+CJ50+CH53+CH56 -> 4 | BG69: =BR18+BZ21+BR25+BZ28+BR31+BR34+BZ40+BR43+BZ47+BR50+BZ53+BZ56 -> 30 | BL69: : | BN69: =BZ18+BR21+BZ25+BR28+BZ31+BZ34+BR40+BZ43+BR47+BZ50+BR53+BR56 -> 26 | BS69: 4 | BX69: 22 | CA69: 22.069
C70: 4 | H70: =$BK$8 -> Patrick | T70: =CG18+CG22+CG26+CG30+CG33+CG36+CG40+CG44+CG48+CG52+CG55+CG58 -> 12 | Z70: =CJ18+CH22+CJ26+CJ30+CJ33+CJ36+CH40+CJ44+CH48+CH52+CH55+CH58 -> 7 | AK70: =CI18+CI22+CI26+CI30+CI33+CI36+CI40+CI44+CI48+CI52+CI55+CI58 -> 0 | AV70: =CH18+CJ22+CH26+CH30+CH33+CH36+CJ40+CH44+CJ48+CJ52+CJ55+CJ58 -> 5 | BG70: =BZ18+BR22+BZ26+BZ30+BZ33+BZ36+BR40+BZ44+BR48+BR52+BR55+BR58 -> 31 | BL70: : | BN70: =BR18+BZ22+BR26+BR30+BR33+BR36+BZ40+BR44+BZ48+BZ52+BZ55+BZ58 -> 22 | BS70: 9 | BX70: 21 | CA70: 21.07
C71: 1 | H71: =$BU$8 -> Christoph | T71: =CG19+CG22+CG25+CG29+CG32+CG35+CG41+CG44+CG47+CG51+CG54+CG57 -> 12 | Z71: =CH19+CJ22+CJ25+CH29+CH32+CJ35+CJ41+CH44+CH47+CJ51+CJ54+CH57 -> 8 | AK71: =CI19+CI22+CI25+CI29+CI32+CI35+CI41+CI44+CI47+CI51+CI54+CI57 -> 1 | AV71: =CJ19+CH22+CH25+CJ29+CJ32+CH35+CH41+CJ44+CJ47+CH51+CH54+CJ57 -> 3 | BG71: =BR19+BZ22+BZ25+BR29+BR32+BZ35+BZ41+BR44+BR47+BZ51+BZ54+BR57 -> 33 | BL71: : | BN71: =BZ19+BR22+BR25+BZ29+BZ32+BR35+BR41+BZ44+BZ47+BR51+BR54+BZ57 -> 27 | BS71: 6 | BX71: 25 | CA71: 25.071
C75: Tabelle
C77: Rang | H77: Spieler | T77: Spiele | Z77: Siege | AK77: Unentschieden | AV77: Niederlagen | BG77: Tore | BS77: +/- | BX77: Punkte
C78: =INDEX($C$65:$C$71,MATCH(LARGE($CA$65:$CA$71,ROW(A1)),$CA$65:$CA$71,0),1) -> 1 | F78: 2 | H78: =INDEX($H$65:$H$71,MATCH(LARGE($CA$65:$CA$71,ROW(A1)),$CA$65:$CA$71,0),1) -> Christoph | T78: =INDEX($T$65:$T$71,MATCH(LARGE($CA$65:$CA$71,ROW(A1)),$CA$65:$CA$71,0),1) -> 12 | Z78: =INDEX($Z$65:$Z$71,MATCH(LARGE($CA$65:$CA$71,ROW(A1)),$CA$65:$CA$71,0),1) -> 8 | AK78: =INDEX($AK$65:$AK$71,MATCH(LARGE($CA$65:$CA$71,ROW(A1)),$CA$65:$CA$71,0),1) -> 1 | AV78: =INDEX($AV$65:$AV$71,MATCH(LARGE($CA$65:$CA$71,ROW(A1)),$CA$65:$CA$71,0),1) -> 3 | BG78: =INDEX($BG$65:$BG$71,MATCH(LARGE($CA$65:$CA$71,ROW(A1)),$CA$65:$CA$71,0),1) -> 33 | BL78: : | BN78: =INDEX($BN$65:$BN$71,MATCH(LARGE($CA$65:$CA$71,ROW(A1)),$CA$65:$CA$71,0),1) -> 27 | BS78: =INDEX($BS$65:$BS$71,MATCH(LARGE($CA$65:$CA$71,ROW(A1)),$CA$65:$CA$71,0),1) -> 6 | BX78: =INDEX($BX$65:$BX$71,MATCH(LARGE($CA$65:$CA$71,ROW(A1)),$CA$65:$CA$71,0),1) -> 25
C79: =INDEX($C$65:$C$71,MATCH(LARGE($CA$65:$CA$71,ROW(A2)),$CA$65:$CA$71,0),1) -> 1 | F79: 1 | H79: Ratze | T79: 12 | Z79: 8 | AK79: 1 | AV79: 3 | BG79: 46 | BL79: : | BN79: 27 | BS79: 19 | BX79: =IF($C79="","",INDEX(BX$65:BX$71,MATCH($C79,$C$65:$C$71,0))) -> 25
C80: 3 | F80: 3 | H80: Jule | T80: 12 | Z80: 7 | AK80: 1 | AV80: 4 | BG80: 30 | BL80: : | BN80: 26 | BS80: 4 | BX80: 22
C81: 4 | F81: 4 | H81: Patrick | T81: 12 | Z81: 7 | AK81: 0 | AV81: 5 | BG81: 31 | BL81: : | BN81: 22 | BS81: 9 | BX81: 21
C82: 5 | F82: 5 | H82: Schmiddi | T82: 12 | Z82: 4 | AK82: 3 | AV82: 5 | BG82: 33 | BL82: : | BN82: 38 | BS82: -5 | BX82: 15
C83: 6 | F83: 6 | H83: Markus | T83: 12 | Z83: 4 | AK83: 2 | AV83: 6 | BG83: 35 | BL83: : | BN83: 32 | BS83: 3 | BX83: 14
C84: 7 | F84: 7 | H84: Basti | T84: 12 | Z84: 0 | AK84: 0 | AV84: 12 | BG84: 6 | BL84: : | BN84: 42 | BS84: -36 | BX84: 0
C88: Tabelle (nach Alphabet)
C90: Rang | H90: Spieler | T90: Spiele | Z90: Siege | AK90: Unentschieden | AV90: Niederlagen | BG90: Tore | BS90: +/- | BX90: Punkte
C91: =IF($H$78="Basti",$F$78,IF($H$79="Basti",$F$79,IF($H$80="Basti",$F$80,IF($H$81="Basti",$F$81,IF($H$82="Basti",$F$82,IF($H$83="Basti",$F$83,IF($H$84="Basti",$F$84,0))))))) -> 7 | H91: Basti | T91: =IF($H$78="Basti",$T$78,IF($H$79="Basti",$T$79,IF($H$80="Basti",$T$80,IF($H$81="Basti",$T$81,IF($H$82="Basti",$T$82,IF($H$83="Basti",$T$83,IF($H$84="Basti",$T$84,0))))))) -> 12 | Z91: =IF($H$78="Basti",$Z$78,IF($H$79="Basti",$Z$79,IF($H$80="Basti",$Z$80,IF($H$81="Basti",$Z$81,IF($H$82="Basti",$Z$82,IF($H$83="Basti",$Z$83,IF($H$84="Basti",$Z$84,0))))))) -> 0 | AK91: =IF($H$78="Basti",$AK$78,IF($H$79="Basti",$AK$79,IF($H$80="Basti",$AK$80,IF($H$81="Basti",$AK$81,IF($H$82="Basti",$AK$82,IF($H$83="Basti",$AK$83,IF($H$84="Basti",$AK$84,0))))))) -> 0 | AV91: =IF($H$78="Basti",$AV$78,IF($H$79="Basti",$AV$79,IF($H$80="Basti",$AV$80,IF($H$81="Basti",$AV$81,IF($H$82="Basti",$AV$82,IF($H$83="Basti",$AV$83,IF($H$84="Basti",$AV$84,0))))))) -> 12 | BG91: =IF($H$78="Basti",$BG$78,IF($H$79="Basti",$BG$79,IF($H$80="Basti",$BG$80,IF($H$81="Basti",$BG$81,IF($H$82="Basti",$BG$82,IF($H$83="Basti",$BG$83,IF($H$84="Basti",$BG$84,0))))))) -> 6 | BL91: : | BN91: =IF($H$78="Basti",$BN$78,IF($H$79="Basti",$BN$79,IF($H$80="Basti",$BN$80,IF($H$81="Basti",$BN$81,IF($H$82="Basti",$BN$82,IF($H$83="Basti",$BN$83,IF($H$84="Basti",$BN$84,0))))))) -> 42 | BS91: =IF($H$78="Basti",$BS$78,IF($H$79="Basti",$BS$79,IF($H$80="Basti",$BS$80,IF($H$81="Basti",$BS$81,IF($H$82="Basti",$BS$82,IF($H$83="Basti",$BS$83,IF($H$84="Basti",$BS$84,0))))))) -> -36 | BX91: =IF($H$78="Basti",$BX$78,IF($H$79="Basti",$BX$79,IF($H$80="Basti",$BX$80,IF($H$81="Basti",$BX$81,IF($H$82="Basti",$BX$82,IF($H$83="Basti",$BX$83,IF($H$84="Basti",$BX$84,0))))))) -> 0
C92: =IF($H$78="Christoph",$F$78,IF($H$79="Christoph",$F$79,IF($H$80="Christoph",$F$80,IF($H$81="Christoph",$F$81,IF($H$82="Christoph",$F$82,IF($H$83="Christoph",$F$83,IF($H$84="Christoph",$F$84,0))))))) -> 2 | H92: Christoph | T92: =IF($H$78="Christoph",$T$78,IF($H$79="Christoph",$T$79,IF($H$80="Christoph",$T$80,IF($H$81="Christoph",$T$81,IF($H$82="Christoph",$T$82,IF($H$83="Christoph",$T$83,IF($H$84="Christoph",$T$84,0))))))) -> 12 | Z92: =IF($H$78="Christoph",$Z$78,IF($H$79="Christoph",$Z$79,IF($H$80="Christoph",$Z$80,IF($H$81="Christoph",$Z$81,IF($H$82="Christoph",$Z$82,IF($H$83="Christoph",$Z$83,IF($H$84="Christoph",$Z$84,0))))))) -> 8 | AK92: =IF($H$78="Christoph",$AK$78,IF($H$79="Christoph",$AK$79,IF($H$80="Christoph",$AK$80,IF($H$81="Christoph",$AK$81,IF($H$82="Christoph",$AK$82,IF($H$83="Christoph",$AK$83,IF($H$84="Christoph",$AK$84,0))))))) -> 1 | AV92: =IF($H$78="Christoph",$AV$78,IF($H$79="Christoph",$AV$79,IF($H$80="Christoph",$AV$80,IF($H$81="Christoph",$AV$81,IF($H$82="Christoph",$AV$82,IF($H$83="Christoph",$AV$83,IF($H$84="Christoph",$AV$84,0))))))) -> 3 | BG92: =IF($H$78="Christoph",$BG$78,IF($H$79="Christoph",$BG$79,IF($H$80="Christoph",$BG$80,IF($H$81="Christoph",$BG$81,IF($H$82="Christoph",$BG$82,IF($H$83="Christoph",$BG$83,IF($H$84="Christoph",$BG$84,0))))))) -> 33 | BL92: : | BN92: =IF($H$78="Christoph",$BN$78,IF($H$79="Christoph",$BN$79,IF($H$80="Christoph",$BN$80,IF($H$81="Christoph",$BN$81,IF($H$82="Christoph",$BN$82,IF($H$83="Christoph",$BN$83,IF($H$84="Christoph",$BN$84,0))))))) -> 27 | BS92: =IF($H$78="Christoph",$BS$78,IF($H$79="Christoph",$BS$79,IF($H$80="Christoph",$BS$80,IF($H$81="Christoph",$BS$81,IF($H$82="Christoph",$BS$82,IF($H$83="Christoph",$BS$83,IF($H$84="Christoph",$BS$84,0))))))) -> 6 | BX92: =IF($H$78="Christoph",$BX$78,IF($H$79="Christoph",$BX$79,IF($H$80="Christoph",$BX$80,IF($H$81="Christoph",$BX$81,IF($H$82="Christoph",$BX$82,IF($H$83="Christoph",$BX$83,IF($H$84="Christoph",$BX$84,0))))))) -> 25
C93: =IF($H$78="Jule",$F$78,IF($H$79="Jule",$F$79,IF($H$80="Jule",$F$80,IF($H$81="Jule",$F$81,IF($H$82="Jule",$F$82,IF($H$83="Jule",$F$83,IF($H$84="Jule",$F$84,0))))))) -> 3 | H93: Jule | T93: =IF($H$78="Jule",$T$78,IF($H$79="Jule",$T$79,IF($H$80="Jule",$T$80,IF($H$81="Jule",$T$81,IF($H$82="Jule",$T$82,IF($H$83="Jule",$T$83,IF($H$84="Jule",$T$84,0))))))) -> 12 | Z93: =IF($H$78="Jule",$Z$78,IF($H$79="Jule",$Z$79,IF($H$80="Jule",$Z$80,IF($H$81="Jule",$Z$81,IF($H$82="Jule",$Z$82,IF($H$83="Jule",$Z$83,IF($H$84="Jule",$Z$84,0))))))) -> 7 | AK93: =IF($H$78="Jule",$AK$78,IF($H$79="Jule",$AK$79,IF($H$80="Jule",$AK$80,IF($H$81="Jule",$AK$81,IF($H$82="Jule",$AK$82,IF($H$83="Jule",$AK$83,IF($H$84="Jule",$AK$84,0))))))) -> 1 | AV93: =IF($H$78="Jule",$AV$78,IF($H$79="Jule",$AV$79,IF($H$80="Jule",$AV$80,IF($H$81="Jule",$AV$81,IF($H$82="Jule",$AV$82,IF($H$83="Jule",$AV$83,IF($H$84="Jule",$AV$84,0))))))) -> 4 | BG93: =IF($H$78="Jule",$BG$78,IF($H$79="Jule",$BG$79,IF($H$80="Jule",$BG$80,IF($H$81="Jule",$BG$81,IF($H$82="Jule",$BG$82,IF($H$83="Jule",$BG$83,IF($H$84="Jule",$BG$84,0))))))) -> 30 | BL93: : | BN93: =IF($H$78="Jule",$BN$78,IF($H$79="Jule",$BN$79,IF($H$80="Jule",$BN$80,IF($H$81="Jule",$BN$81,IF($H$82="Jule",$BN$82,IF($H$83="Jule",$BN$83,IF($H$84="Jule",$BN$84,0))))))) -> 26 | BS93: =IF($H$78="Jule",$BS$78,IF($H$79="Jule",$BS$79,IF($H$80="Jule",$BS$80,IF($H$81="Jule",$BS$81,IF($H$82="Jule",$BS$82,IF($H$83="Jule",$BS$83,IF($H$84="Jule",$BS$84,0))))))) -> 4 | BX93: =IF($H$78="Jule",$BX$78,IF($H$79="Jule",$BX$79,IF($H$80="Jule",$BX$80,IF($H$81="Jule",$BX$81,IF($H$82="Jule",$BX$82,IF($H$83="Jule",$BX$83,IF($H$84="Jule",$BX$84,0))))))) -> 22
C94: =IF($H$78="Markus",$F$78,IF($H$79="Markus",$F$79,IF($H$80="Markus",$F$80,IF($H$81="Markus",$F$81,IF($H$82="Markus",$F$82,IF($H$83="Markus",$F$83,IF($H$84="Markus",$F$84,0))))))) -> 6 | H94: Markus | T94: =IF($H$78="Markus",$T$78,IF($H$79="Markus",$T$79,IF($H$80="Markus",$T$80,IF($H$81="Markus",$T$81,IF($H$82="Markus",$T$82,IF($H$83="Markus",$T$83,IF($H$84="Markus",$T$84,0))))))) -> 12 | Z94: =IF($H$78="Markus",$Z$78,IF($H$79="Markus",$Z$79,IF($H$80="Markus",$Z$80,IF($H$81="Markus",$Z$81,IF($H$82="Markus",$Z$82,IF($H$83="Markus",$Z$83,IF($H$84="Markus",$Z$84,0))))))) -> 4 | AK94: =IF($H$78="Markus",$AK$78,IF($H$79="Markus",$AK$79,IF($H$80="Markus",$AK$80,IF($H$81="Markus",$AK$81,IF($H$82="Markus",$AK$82,IF($H$83="Markus",$AK$83,IF($H$84="Markus",$AK$84,0))))))) -> 2 | AV94: =IF($H$78="Markus",$AV$78,IF($H$79="Markus",$AV$79,IF($H$80="Markus",$AV$80,IF($H$81="Markus",$AV$81,IF($H$82="Markus",$AV$82,IF($H$83="Markus",$AV$83,IF($H$84="Markus",$AV$84,0))))))) -> 6 | BG94: =IF($H$78="Markus",$BG$78,IF($H$79="Markus",$BG$79,IF($H$80="Markus",$BG$80,IF($H$81="Markus",$BG$81,IF($H$82="Markus",$BG$82,IF($H$83="Markus",$BG$83,IF($H$84="Markus",$BG$84,0))))))) -> 35 | BL94: : | BN94: =IF($H$78="Markus",$BN$78,IF($H$79="Markus",$BN$79,IF($H$80="Markus",$BN$80,IF($H$81="Markus",$BN$81,IF($H$82="Markus",$BN$82,IF($H$83="Markus",$BN$83,IF($H$84="Markus",$BN$84,0))))))) -> 32 | BS94: =IF($H$78="Markus",$BS$78,IF($H$79="Markus",$BS$79,IF($H$80="Markus",$BS$80,IF($H$81="Markus",$BS$81,IF($H$82="Markus",$BS$82,IF($H$83="Markus",$BS$83,IF($H$84="Markus",$BS$84,0))))))) -> 3 | BX94: =IF($H$78="Markus",$BX$78,IF($H$79="Markus",$BX$79,IF($H$80="Markus",$BX$80,IF($H$81="Markus",$BX$81,IF($H$82="Markus",$BX$82,IF($H$83="Markus",$BX$83,IF($H$84="Markus",$BX$84,0))))))) -> 14
C95: =IF($H$78="Patrick",$F$78,IF($H$79="Patrick",$F$79,IF($H$80="Patrick",$F$80,IF($H$81="Patrick",$F$81,IF($H$82="Patrick",$F$82,IF($H$83="Patrick",$F$83,IF($H$84="Patrick",$F$84,0))))))) -> 4 | H95: Patrick | T95: =IF($H$78="Patrick",$T$78,IF($H$79="Patrick",$T$79,IF($H$80="Patrick",$T$80,IF($H$81="Patrick",$T$81,IF($H$82="Patrick",$T$82,IF($H$83="Patrick",$T$83,IF($H$84="Patrick",$T$84,0))))))) -> 12 | Z95: =IF($H$78="Patrick",$Z$78,IF($H$79="Patrick",$Z$79,IF($H$80="Patrick",$Z$80,IF($H$81="Patrick",$Z$81,IF($H$82="Patrick",$Z$82,IF($H$83="Patrick",$Z$83,IF($H$84="Patrick",$Z$84,0))))))) -> 7 | AK95: =IF($H$78="Patrick",$AK$78,IF($H$79="Patrick",$AK$79,IF($H$80="Patrick",$AK$80,IF($H$81="Patrick",$AK$81,IF($H$82="Patrick",$AK$82,IF($H$83="Patrick",$AK$83,IF($H$84="Patrick",$AK$84,0))))))) -> 0 | AV95: =IF($H$78="Patrick",$AV$78,IF($H$79="Patrick",$AV$79,IF($H$80="Patrick",$AV$80,IF($H$81="Patrick",$AV$81,IF($H$82="Patrick",$AV$82,IF($H$83="Patrick",$AV$83,IF($H$84="Patrick",$AV$84,0))))))) -> 5 | BG95: =IF($H$78="Patrick",$BG$78,IF($H$79="Patrick",$BG$79,IF($H$80="Patrick",$BG$80,IF($H$81="Patrick",$BG$81,IF($H$82="Patrick",$BG$82,IF($H$83="Patrick",$BG$83,IF($H$84="Patrick",$BG$84,0))))))) -> 31 | BL95: : | BN95: =IF($H$78="Patrick",$BN$78,IF($H$79="Patrick",$BN$79,IF($H$80="Patrick",$BN$80,IF($H$81="Patrick",$BN$81,IF($H$82="Patrick",$BN$82,IF($H$83="Patrick",$BN$83,IF($H$84="Patrick",$BN$84,0))))))) -> 22 | BS95: =IF($H$78="Patrick",$BS$78,IF($H$79="Patrick",$BS$79,IF($H$80="Patrick",$BS$80,IF($H$81="Patrick",$BS$81,IF($H$82="Patrick",$BS$82,IF($H$83="Patrick",$BS$83,IF($H$84="Patrick",$BS$84,0))))))) -> 9 | BX95: =IF($H$78="Patrick",$BX$78,IF($H$79="Patrick",$BX$79,IF($H$80="Patrick",$BX$80,IF($H$81="Patrick",$BX$81,IF($H$82="Patrick",$BX$82,IF($H$83="Patrick",$BX$83,IF($H$84="Patrick",$BX$84,0))))))) -> 21
C96: =IF($H$78="Ratze",$F$78,IF($H$79="Ratze",$F$79,IF($H$80="Ratze",$F$80,IF($H$81="Ratze",$F$81,IF($H$82="Ratze",$F$82,IF($H$83="Ratze",$F$83,IF($H$84="Ratze",$F$84,0))))))) -> 1 | H96: Ratze | T96: =IF($H$78="Ratze",$T$78,IF($H$79="Ratze",$T$79,IF($H$80="Ratze",$T$80,IF($H$81="Ratze",$T$81,IF($H$82="Ratze",$T$82,IF($H$83="Ratze",$T$83,IF($H$84="Ratze",$T$84,0))))))) -> 12 | Z96: =IF($H$78="Ratze",$Z$78,IF($H$79="Ratze",$Z$79,IF($H$80="Ratze",$Z$80,IF($H$81="Ratze",$Z$81,IF($H$82="Ratze",$Z$82,IF($H$83="Ratze",$Z$83,IF($H$84="Ratze",$Z$84,0))))))) -> 8 | AK96: =IF($H$78="Ratze",$AK$78,IF($H$79="Ratze",$AK$79,IF($H$80="Ratze",$AK$80,IF($H$81="Ratze",$AK$81,IF($H$82="Ratze",$AK$82,IF($H$83="Ratze",$AK$83,IF($H$84="Ratze",$AK$84,0))))))) -> 1 | AV96: =IF($H$78="Ratze",$AV$78,IF($H$79="Ratze",$AV$79,IF($H$80="Ratze",$AV$80,IF($H$81="Ratze",$AV$81,IF($H$82="Ratze",$AV$82,IF($H$83="Ratze",$AV$83,IF($H$84="Ratze",$AV$84,0))))))) -> 3 | BG96: =IF($H$78="Ratze",$BG$78,IF($H$79="Ratze",$BG$79,IF($H$80="Ratze",$BG$80,IF($H$81="Ratze",$BG$81,IF($H$82="Ratze",$BG$82,IF($H$83="Ratze",$BG$83,IF($H$84="Ratze",$BG$84,0))))))) -> 46 | BL96: : | BN96: =IF($H$78="Ratze",$BN$78,IF($H$79="Ratze",$BN$79,IF($H$80="Ratze",$BN$80,IF($H$81="Ratze",$BN$81,IF($H$82="Ratze",$BN$82,IF($H$83="Ratze",$BN$83,IF($H$84="Ratze",$BN$84,0))))))) -> 27 | BS96: =IF($H$78="Ratze",$BS$78,IF($H$79="Ratze",$BS$79,IF($H$80="Ratze",$BS$80,IF($H$81="Ratze",$BS$81,IF($H$82="Ratze",$BS$82,IF($H$83="Ratze",$BS$83,IF($H$84="Ratze",$BS$84,0))))))) -> 19 | BX96: =IF($H$78="Ratze",$BX$78,IF($H$79="Ratze",$BX$79,IF($H$80="Ratze",$BX$80,IF($H$81="Ratze",$BX$81,IF($H$82="Ratze",$BX$82,IF($H$83="Ratze",$BX$83,IF($H$84="Ratze",$BX$84,0))))))) -> 25
C97: =IF($H$78="Schmiddi",$F$78,IF($H$79="Schmiddi",$F$79,IF($H$80="Schmiddi",$F$80,IF($H$81="Schmiddi",$F$81,IF($H$82="Schmiddi",$F$82,IF($H$83="Schmiddi",$F$83,IF($H$84="Schmiddi",$F$84,0))))))) -> 5 | H97: Schmiddi | T97: =IF($H$78="Schmiddi",$T$78,IF($H$79="Schmiddi",$T$79,IF($H$80="Schmiddi",$T$80,IF($H$81="Schmiddi",$T$81,IF($H$82="Schmiddi",$T$82,IF($H$83="Schmiddi",$T$83,IF($H$84="Schmiddi",$T$84,0))))))) -> 12 | Z97: =IF($H$78="Schmiddi",$Z$78,IF($H$79="Schmiddi",$Z$79,IF($H$80="Schmiddi",$Z$80,IF($H$81="Schmiddi",$Z$81,IF($H$82="Schmiddi",$Z$82,IF($H$83="Schmiddi",$Z$83,IF($H$84="Schmiddi",$Z$84,0))))))) -> 4 | AK97: =IF($H$78="Schmiddi",$AK$78,IF($H$79="Schmiddi",$AK$79,IF($H$80="Schmiddi",$AK$80,IF($H$81="Schmiddi",$AK$81,IF($H$82="Schmiddi",$AK$82,IF($H$83="Schmiddi",$AK$83,IF($H$84="Schmiddi",$AK$84,0))))))) -> 3 | AV97: =IF($H$78="Schmiddi",$AV$78,IF($H$79="Schmiddi",$AV$79,IF($H$80="Schmiddi",$AV$80,IF($H$81="Schmiddi",$AV$81,IF($H$82="Schmiddi",$AV$82,IF($H$83="Schmiddi",$AV$83,IF($H$84="Schmiddi",$AV$84,0))))))) -> 5 | BG97: =IF($H$78="Schmiddi",$BG$78,IF($H$79="Schmiddi",$BG$79,IF($H$80="Schmiddi",$BG$80,IF($H$81="Schmiddi",$BG$81,IF($H$82="Schmiddi",$BG$82,IF($H$83="Schmiddi",$BG$83,IF($H$84="Schmiddi",$BG$84,0))))))) -> 33 | BL97: : | BN97: =IF($H$78="Schmiddi",$BN$78,IF($H$79="Schmiddi",$BN$79,IF($H$80="Schmiddi",$BN$80,IF($H$81="Schmiddi",$BN$81,IF($H$82="Schmiddi",$BN$82,IF($H$83="Schmiddi",$BN$83,IF($H$84="Schmiddi",$BN$84,0))))))) -> 38 | BS97: =IF($H$78="Schmiddi",$BS$78,IF($H$79="Schmiddi",$BS$79,IF($H$80="Schmiddi",$BS$80,IF($H$81="Schmiddi",$BS$81,IF($H$82="Schmiddi",$BS$82,IF($H$83="Schmiddi",$BS$83,IF($H$84="Schmiddi",$BS$84,0))))))) -> -5 | BX97: =IF($H$78="Schmiddi",$BX$78,IF($H$79="Schmiddi",$BX$79,IF($H$80="Schmiddi",$BX$80,IF($H$81="Schmiddi",$BX$81,IF($H$82="Schmiddi",$BX$82,IF($H$83="Schmiddi",$BX$83,IF($H$84="Schmiddi",$BX$84,0))))))) -> 15

Sheet 6.1.
B2: ="Turnier am " & MID(CELL("dateiname",A1),SEARCH("]",CELL("dateiname",A1))+1,31) -> Turnier am 6.1.
C5: Spielerliste
C7: =" Spieler" -> Spieler | M7: Spieler 1 | AA7: Spieler 2 | AO7: Spieler 3 | BC7: Spieler 4 | BQ7: Spieler 5
C8: =" Name" -> Name | M8: Markus | AA8: Christoph | AO8: Ratze | BC8: Schmiddi | BQ8: Patrick
C12: Spielplan
C14: 00:12:00 | H14: Spiel | M14: Datum | S14: Uhrzeit | Y14: Austragungsort | AJ14: Paarung | BR14: Ergebnis | CG14: Spiele | CH14: SiegHeim | CI14: Unentschieden | CJ14: SiegGast
C16: Hinrunde | H16: 1 | M16: =MID(CELL("dateiname",A1),SEARCH("]",CELL("dateiname",A1))+1,31) -> 6.1. | S16: 21:00:00 | Y16: Fernseher | AJ16: =$M$8 -> Markus | AY16: : | BB16: =$AA$8 -> Christoph | BR16: 1 | BW16: : | BZ16: 1 | CG16: =IF(AND(ISNUMBER(BR16),ISNUMBER(BZ16)),1,0) -> 1 | CH16: =IF(OR(ISBLANK(BR16),ISBLANK(BZ16)),0,IF(BR16>BZ16,1,0)) -> 0 | CI16: =IF(OR(ISBLANK(BR16),ISBLANK(BZ16)),0,IF(BR16=BZ16,1,0)) -> 1 | CJ16: =IF(OR(ISBLANK(BR16),ISBLANK(BZ16)),0,IF(BR16<BZ16,1,0)) -> 0
H17: =H16+1 -> 2 | M17: =$M$16 -> 6.1. | S17: =S16 -> 21:00:00 | Y17: Fernseher | AJ17: =$AO$8 -> Ratze | AY17: : | BB17: =$BC$8 -> Schmiddi | BR17: 5 | BW17: : | BZ17: 4 | CG17: =IF(AND(ISNUMBER(BR17),ISNUMBER(BZ17)),1,0) -> 1 | CH17: =IF(OR(ISBLANK(BR17),ISBLANK(BZ17)),0,IF(BR17>BZ17,1,0)) -> 1 | CI17: =IF(OR(ISBLANK(BR17),ISBLANK(BZ17)),0,IF(BR17=BZ17,1,0)) -> 0 | CJ17: =IF(OR(ISBLANK(BR17),ISBLANK(BZ17)),0,IF(BR17<BZ17,1,0)) -> 0
H18: =H17+1 -> 3 | M18: =$M$16 -> 6.1. | S18: =S16+$C$14 -> 21:12:00 | Y18: =$Y$16 -> Fernseher | AJ18: =$BQ$8 -> Patrick | AY18: : | BB18: =$M$8 -> Markus | BR18: 2 | BW18: : | BZ18: 6 | CG18: 1 | CH18: 0 | CI18: 0 | CJ18: 1
H19: =H18+1 -> 4 | M19: 6.1. | S19: 21:12:00 | Y19: =$Y$17 -> Fernseher | AJ19: =$AA$8 -> Christoph | AY19: : | BB19: =$AO$8 -> Ratze | BR19: 4 | BW19: : | BZ19: 3 | CG19: 1 | CH19: 1 | CI19: 0 | CJ19: 0
H20: 5 | M20: 6.1. | S20: 21:24:00 | Y20: =$Y$16 -> Fernseher | AJ20: =$BC$8 -> Schmiddi | AY20: : | BB20: =$BQ$8 -> Patrick | BR20: 0 | BW20: : | BZ20: 3 | CG20: 1 | CH20: 0 | CI20: 0 | CJ20: 1
H21: 6 | M21: 6.1. | S21: 21:24:00 | Y21: =$Y$17 -> Fernseher | AJ21: =$M$8 -> Markus | AY21: : | BB21: =$AO$8 -> Ratze | BR21: 0 | BW21: : | BZ21: 4 | CG21: 1 | CH21: 0 | CI21: 0 | CJ21: 1
H22: 7 | M22: 6.1. | S22: 21:36:00 | Y22: =$Y$16 -> Fernseher | AJ22: =$AA$8 -> Christoph | AY22: : | BB22: =$BC$8 -> Schmiddi | BR22: 4 | BW22: : | BZ22: 3 | CG22: 1 | CH22: 1 | CI22: 0 | CJ22: 0
H23: 8 | M23: 6.1. | S23: 21:36:00 | Y23: =$Y$17 -> Fernseher | AJ23: =$AO$8 -> Ratze | AY23: : | BB23: =$BQ$8 -> Patrick | BR23: 6 | BW23: : | BZ23: 2 | CG23: 1 | CH23: 1 | CI23: 0 | CJ23: 0
H24: 9 | M24: 6.1. | S24: 21:48:00 | Y24: =$Y$16 -> Fernseher | AJ24: =$BC$8 -> Schmiddi | AY24: : | BB24: =$M$8 -> Markus | BR24: 2 | BW24: : | BZ24: 1 | CG24: 1 | CH24: 1 | CI24: 0 | CJ24: 0
H25: 10 | M25: 6.1. | S25: 21:48:00 | Y25: =$Y$17 -> Fernseher | AJ25: =$BQ$8 -> Patrick | AY25: : | BB25: =$AA$8 -> Christoph | BR25: 1 | BW25: : | BZ25: 3 | CG25: 1 | CH25: 0 | CI25: 0 | CJ25: 1
C27: Rückrunde | H27: =H25+1 -> 11 | M27: =$M$16 -> 6.1. | S27: =S24+$C$14 -> 22:00:00 | Y27: =$Y$17 -> Fernseher | AJ27: =$AA$8 -> Christoph | AY27: : | BB27: =$M$8 -> Markus | BR27: 1 | BW27: : | BZ27: 1 | CG27: =IF(AND(ISNUMBER(BR27),ISNUMBER(BZ27)),1,0) -> 1 | CH27: =IF(OR(ISBLANK(BR27),ISBLANK(BZ27)),0,IF(BR27>BZ27,1,0)) -> 0 | CI27: =IF(OR(ISBLANK(BR27),ISBLANK(BZ27)),0,IF(BR27=BZ27,1,0)) -> 1 | CJ27: =IF(OR(ISBLANK(BR27),ISBLANK(BZ27)),0,IF(BR27<BZ27,1,0)) -> 0
H28: =H27+1 -> 12 | M28: 6.1. | S28: =S25+$C$14 -> 22:00:00 | Y28: =$Y$16 -> Fernseher | AJ28: =$BC$8 -> Schmiddi | AY28: : | BB28: =$AO$8 -> Ratze | BR28: 0 | BW28: : | BZ28: 5 | CG28: 1 | CH28: 0 | CI28: 0 | CJ28: 1
H29: =H28+1 -> 13 | M29: 6.1. | S29: =S27+$C$14 -> 22:12:00 | Y29: =$Y$17 -> Fernseher | AJ29: =$M$8 -> Markus | AY29: : | BB29: =$BQ$8 -> Patrick | BR29: 0 | BW29: : | BZ29: 1 | CG29: 1 | CH29: 0 | CI29: 0 | CJ29: 1
H30: 14 | M30: 6.1. | S30: 22:12:00 | Y30: =$Y$16 -> Fernseher | AJ30: =$AO$8 -> Ratze | AY30: : | BB30: =$AA$8 -> Christoph | BR30: 1 | BW30: : | BZ30: 1 | CG30: 1 | CH30: 0 | CI30: 1 | CJ30: 0
H31: 15 | M31: 6.1. | S31: 22:24:00 | Y31: =$Y$17 -> Fernseher | AJ31: =$BQ$8 -> Patrick | AY31: : | BB31: =$BC$8 -> Schmiddi | BR31: 2 | BW31: : | BZ31: 1 | CG31: 1 | CH31: 1 | CI31: 0 | CJ31: 0
H32: 16 | M32: 6.1. | S32: 22:24:00 | Y32: =$Y$16 -> Fernseher | AJ32: =$AO$8 -> Ratze | AY32: : | BB32: =$M$8 -> Markus | BR32: 5 | BW32: : | BZ32: 2 | CG32: 1 | CH32: 1 | CI32: 0 | CJ32: 0
H33: 17 | M33: 6.1. | S33: 22:36:00 | Y33: =$Y$17 -> Fernseher | AJ33: =$BC$8 -> Schmiddi | AY33: : | BB33: =$AA$8 -> Christoph | BR33: 1 | BW33: : | BZ33: 3 | CG33: 1 | CH33: 0 | CI33: 0 | CJ33: 1
H34: 18 | M34: 6.1. | S34: 22:36:00 | Y34: =$Y$16 -> Fernseher | AJ34: =$BQ$8 -> Patrick | AY34: : | BB34: =$AO$8 -> Ratze | BR34: 1 | BW34: : | BZ34: 2 | CG34: 1 | CH34: 0 | CI34: 0 | CJ34: 1
H35: 19 | M35: 6.1. | S35: 22:48:00 | Y35: =$Y$17 -> Fernseher | AJ35: =$M$8 -> Markus | AY35: : | BB35: =$BC$8 -> Schmiddi | BR35: 0 | BW35: : | BZ35: 1 | CG35: 1 | CH35: 0 | CI35: 0 | CJ35: 1
H36: 20 | M36: 6.1. | S36: 22:48:00 | Y36: =$Y$16 -> Fernseher | AJ36: =$AA$8 -> Christoph | AY36: : | BB36: =$BQ$8 -> Patrick | BR36: 1 | BW36: : | BZ36: 4 | CG36: 1 | CH36: 0 | CI36: 0 | CJ36: 1
C62: Tabelle (unsortiert)
C64: Rang | H64: Spieler | T64: Spiele | Z64: Siege | AK64: Unentschieden | AV64: Niederlagen | BG64: Tore | BS64: +/- | BX64: Punkte | CB64: HS
C65: =IF(T65=0,0,RANK(BX65,$BX$65:$CA$69,0)) -> 5 | H65: =$M$8 -> Markus | T65: =CG16+CG18+CG21+CG24+CG27+CG29+CG32+CG35 -> 8 | Z65: =CH16+CJ18+CH21+CJ24+CJ27+CH29+CJ32+CH35 -> 1 | AK65: =CI16+CI18+CI21+CI24+CI27+CI29+CI32+CI35 -> 2 | AV65: =CJ16+CH18+CJ21+CH24+CH27+CJ29+CH32+CJ35 -> 5 | BG65: =BR16+BZ18+BR21+BZ24+BZ27+BR29+BZ32+BR35 -> 11 | BL65: : | BN65: =BZ16+BR18+BZ21+BR24+BR27+BZ29+BR32+BZ35 -> 17 | BS65: =BG65-BN65 -> -6 | BX65: =(Z65*3)+AK65 -> 5 | CB65: =BX65+ROW()/1000 -> 5.065
C66: =IF(T66=0,0,RANK(BX66,$BX$65:$CA$69,0)) -> 2 | H66: =$AA$8 -> Christoph | T66: =CG16+CG19+CG22+CG25+CG27+CG30+CG33+CG36 -> 8 | Z66: =CJ16+CH19+CH22+CJ25+CH27+CJ30+CJ33+CH36 -> 4 | AK66: =CI16+CI19+CI22+CI25+CI27+CI30+CI33+CI36 -> 3 | AV66: =CH16+CJ19+CJ22+CH25+CJ27+CH30+CH33+CJ36 -> 1 | BG66: =BZ16+BR19+BR22+BZ25+BR27+BZ30+BZ33+BR36 -> 18 | BK66: : | BL66: : | BN66: =BR16+BZ19+BZ22+BR25+BZ27+BR30+BR33+BZ36 -> 15 | BS66: =BG66-BN66 -> 3 | BX66: =(Z66*3)+AK66 -> 15 | CB66: =BX66+ROW()/1000 -> 15.066
C67: =IF(T67=0,0,RANK(BX67,$BX$65:$CA$69,0)) -> 1 | H67: =$AO$8 -> Ratze | T67: =CG17+CG19+CG21+CG23+CG28+CG30+CG32+CG34 -> 8 | Z67: =CH17+CJ19+CJ21+CH23+CJ28+CH30+CH32+CJ34 -> 6 | AK67: =CI17+CI19+CI21+CI23+CI28+CI30+CI32+CI34 -> 1 | AV67: =CJ17+CH19+CH21+CJ23+CH28+CJ30+CJ32+CH34 -> 1 | BG67: =BR17+BZ19+BZ21+BR23+BZ28+BR30+BR32+BZ34 -> 31 | BK67: : | BL67: : | BN67: =BZ17+BR19+BR21+BZ23+BR28+BZ30+BZ32+BR34 -> 14 | BS67: =BG67-BN67 -> 17 | BX67: =(Z67*3)+AK67 -> 19 | CB67: =BX67+ROW()/1000 -> 19.067
C68: =IF(T68=0,0,RANK(BX68,$BX$65:$CA$69,0)) -> 4 | H68: =$BC$8 -> Schmiddi | T68: =CG17+CG20+CG22+CG24+CG28+CG31+CG33+CG35 -> 8 | Z68: =CJ17+CH20+CJ22+CH24+CH28+CJ31+CH33+CJ35 -> 2 | AK68: =CI17+CI20+CI22+CI24+CI28+CI31+CI33+CI35 -> 0 | AV68: =CH17+CJ20+CH22+CJ24+CJ28+CH31+CJ33+CH35 -> 6 | BG68: =BZ17+BR20+BZ22+BR24+BR28+BZ31+BR33+BZ35 -> 12 | BK68: : | BL68: : | BN68: =BR17+BZ20+BR22+BZ24+BZ28+BR31+BZ33+BR35 -> 23 | BS68: =BG68-BN68 -> -11 | BX68: =(Z68*3)+AK68 -> 6 | CB68: =BX68+ROW()/1000 -> 6.068
C69: =IF(T69=0,0,RANK(BX69,$BX$65:$CA$69,0)) -> 3 | H69: =$BQ$8 -> Patrick | T69: =CG18+CG20+CG23+CG25+CG29+CG31+CG34+CG36 -> 8 | Z69: =CH18+CJ20+CJ23+CH25+CJ29+CH31+CH34+CJ36 -> 4 | AK69: =CI18+CI20+CI23+CI25+CI29+CI31+CI34+CI36 -> 0 | AV69: =CJ18+CH20+CH23+CJ25+CH29+CJ31+CJ34+CH36 -> 4 | BG69: =BR18+BZ20+BZ23+BR25+BZ29+BR31+BR34+BZ36 -> 16 | BK69: : | BL69: : | BN69: =BZ18+BR20+BR23+BZ25+BR29+BZ31+BZ34+BR36 -> 19 | BS69: =BG69-BN69 -> -3 | BX69: =(Z69*3)+AK69 -> 12 | CB69: =BX69+ROW()/1000 -> 12.069
H70: Spieler 6 | T70: 0 | Z70: 0 | AK70: 0 | AV70: 0 | BG70: 0 | BL70: : | BN70: 0 | BS70: 0 | BX70: 0 | CB70: 0
H71: Spieler 7 | T71: 0 | Z71: 0 | AK71: 0 | AV71: 0 | BG71: 0 | BL71: : | BN71: 0 | BS71: 0 | BX71: 0 | CB71: 0
C75: Tabelle
C77: Rang | H77: Spieler | T77: Spiele | Z77: Siege | AK77: Unentschieden | AV77: Niederlagen | BG77: Tore | BS77: +/- | BX77: Punkte
C78: =INDEX($C$65:$C$69,MATCH(LARGE($CB$65:$CB$69,ROW(A1)),$CB$65:$CB$69,0),1) -> 1 | F78: 1 | H78: =INDEX($H$65:$H$69,MATCH(LARGE($CB$65:$CB$69,ROW(A1)),$CB$65:$CB$69,0),1) -> Ratze | T78: =INDEX($T$65:$T$69,MATCH(LARGE($CB$65:$CB$69,ROW(A1)),$CB$65:$CB$69,0),1) -> 8 | Z78: =INDEX($Z$65:$Z$69,MATCH(LARGE($CB$65:$CB$69,ROW(A1)),$CB$65:$CB$69,0),1) -> 6 | AK78: =INDEX($AK$65:$AK$69,MATCH(LARGE($CB$65:$CB$69,ROW(A1)),$CB$65:$CB$69,0),1) -> 1 | AV78: =INDEX($AV$65:$AV$69,MATCH(LARGE($CB$65:$CB$69,ROW(A1)),$CB$65:$CB$69,0),1) -> 1 | BG78: =INDEX($BG$65:$BG$69,MATCH(LARGE($CB$65:$CB$69,ROW(A1)),$CB$65:$CB$69,0),1) -> 31 | BL78: : | BN78: =INDEX($BN$65:$BN$69,MATCH(LARGE($CB$65:$CB$69,ROW(A1)),$CB$65:$CB$69,0),1) -> 14 | BS78: =INDEX($BS$65:$BS$69,MATCH(LARGE($CB$65:$CB$69,ROW(A1)),$CB$65:$CB$69,0),1) -> 17 | BX78: =INDEX($BX$65:$BX$69,MATCH(LARGE($CB$65:$CB$69,ROW(A1)),$CB$65:$CB$69,0),1) -> 19
C79: =INDEX($C$65:$C$69,MATCH(LARGE($CB$65:$CB$69,ROW(A2)),$CB$65:$CB$69,0),1) -> 2 | F79: 2 | H79: =INDEX($H$65:$H$69,MATCH(LARGE($CB$65:$CB$69,ROW(A2)),$CB$65:$CB$69,0),1) -> Christoph | T79: =INDEX($T$65:$T$69,MATCH(LARGE($CB$65:$CB$69,ROW(A2)),$CB$65:$CB$69,0),1) -> 8 | Z79: =INDEX($Z$65:$Z$69,MATCH(LARGE($CB$65:$CB$69,ROW(A2)),$CB$65:$CB$69,0),1) -> 4 | AK79: =INDEX($AK$65:$AK$69,MATCH(LARGE($CB$65:$CB$69,ROW(A2)),$CB$65:$CB$69,0),1) -> 3 | AV79: =INDEX($AV$65:$AV$69,MATCH(LARGE($CB$65:$CB$69,ROW(A2)),$CB$65:$CB$69,0),1) -> 1 | BG79: =INDEX($BG$65:$BG$69,MATCH(LARGE($CB$65:$CB$69,ROW(A2)),$CB$65:$CB$69,0),1) -> 18 | BL79: : | BN79: =INDEX($BN$65:$BN$69,MATCH(LARGE($CB$65:$CB$69,ROW(A2)),$CB$65:$CB$69,0),1) -> 15 | BS79: =INDEX($BS$65:$BS$69,MATCH(LARGE($CB$65:$CB$69,ROW(A2)),$CB$65:$CB$69,0),1) -> 3 | BX79: =INDEX($BX$65:$BX$69,MATCH(LARGE($CB$65:$CB$69,ROW(A2)),$CB$65:$CB$69,0),1) -> 15
C80: =INDEX($C$65:$C$69,MATCH(LARGE($CB$65:$CB$69,ROW(A3)),$CB$65:$CB$69,0),1) -> 3 | F80: 3 | H80: =INDEX($H$65:$H$69,MATCH(LARGE($CB$65:$CB$69,ROW(A3)),$CB$65:$CB$69,0),1) -> Patrick | T80: =INDEX($T$65:$T$69,MATCH(LARGE($CB$65:$CB$69,ROW(A3)),$CB$65:$CB$69,0),1) -> 8 | Z80: =INDEX($Z$65:$Z$69,MATCH(LARGE($CB$65:$CB$69,ROW(A3)),$CB$65:$CB$69,0),1) -> 4 | AK80: =INDEX($AK$65:$AK$69,MATCH(LARGE($CB$65:$CB$69,ROW(A3)),$CB$65:$CB$69,0),1) -> 0 | AV80: =INDEX($AV$65:$AV$69,MATCH(LARGE($CB$65:$CB$69,ROW(A3)),$CB$65:$CB$69,0),1) -> 4 | BG80: =INDEX($BG$65:$BG$69,MATCH(LARGE($CB$65:$CB$69,ROW(A3)),$CB$65:$CB$69,0),1) -> 16 | BL80: : | BN80: =INDEX($BN$65:$BN$69,MATCH(LARGE($CB$65:$CB$69,ROW(A3)),$CB$65:$CB$69,0),1) -> 19 | BS80: =INDEX($BS$65:$BS$69,MATCH(LARGE($CB$65:$CB$69,ROW(A3)),$CB$65:$CB$69,0),1) -> -3 | BX80: =INDEX($BX$65:$BX$69,MATCH(LARGE($CB$65:$CB$69,ROW(A3)),$CB$65:$CB$69,0),1) -> 12
C81: =INDEX($C$65:$C$69,MATCH(LARGE($CB$65:$CB$69,ROW(A4)),$CB$65:$CB$69,0),1) -> 4 | F81: 4 | H81: =INDEX($H$65:$H$69,MATCH(LARGE($CB$65:$CB$69,ROW(A4)),$CB$65:$CB$69,0),1) -> Schmiddi | T81: =INDEX($T$65:$T$69,MATCH(LARGE($CB$65:$CB$69,ROW(A4)),$CB$65:$CB$69,0),1) -> 8 | Z81: =INDEX($Z$65:$Z$69,MATCH(LARGE($CB$65:$CB$69,ROW(A4)),$CB$65:$CB$69,0),1) -> 2 | AK81: =INDEX($AK$65:$AK$69,MATCH(LARGE($CB$65:$CB$69,ROW(A4)),$CB$65:$CB$69,0),1) -> 0 | AV81: =INDEX($AV$65:$AV$69,MATCH(LARGE($CB$65:$CB$69,ROW(A4)),$CB$65:$CB$69,0),1) -> 6 | BG81: =INDEX($BG$65:$BG$69,MATCH(LARGE($CB$65:$CB$69,ROW(A4)),$CB$65:$CB$69,0),1) -> 12 | BL81: : | BN81: =INDEX($BN$65:$BN$69,MATCH(LARGE($CB$65:$CB$69,ROW(A4)),$CB$65:$CB$69,0),1) -> 23 | BS81: =INDEX($BS$65:$BS$69,MATCH(LARGE($CB$65:$CB$69,ROW(A4)),$CB$65:$CB$69,0),1) -> -11 | BX81: =INDEX($BX$65:$BX$69,MATCH(LARGE($CB$65:$CB$69,ROW(A4)),$CB$65:$CB$69,0),1) -> 6
C82: =INDEX($C$65:$C$69,MATCH(LARGE($CB$65:$CB$69,ROW(A5)),$CB$65:$CB$69,0),1) -> 5 | F82: 5 | H82: =INDEX($H$65:$H$69,MATCH(LARGE($CB$65:$CB$69,ROW(A5)),$CB$65:$CB$69,0),1) -> Markus | T82: =INDEX($T$65:$T$69,MATCH(LARGE($CB$65:$CB$69,ROW(A5)),$CB$65:$CB$69,0),1) -> 8 | Z82: =INDEX($Z$65:$Z$69,MATCH(LARGE($CB$65:$CB$69,ROW(A5)),$CB$65:$CB$69,0),1) -> 1 | AK82: =INDEX($AK$65:$AK$69,MATCH(LARGE($CB$65:$CB$69,ROW(A5)),$CB$65:$CB$69,0),1) -> 2 | AV82: =INDEX($AV$65:$AV$69,MATCH(LARGE($CB$65:$CB$69,ROW(A5)),$CB$65:$CB$69,0),1) -> 5 | BG82: =INDEX($BG$65:$BG$69,MATCH(LARGE($CB$65:$CB$69,ROW(A5)),$CB$65:$CB$69,0),1) -> 11 | BL82: : | BN82: =INDEX($BN$65:$BN$69,MATCH(LARGE($CB$65:$CB$69,ROW(A5)),$CB$65:$CB$69,0),1) -> 17 | BS82: =INDEX($BS$65:$BS$69,MATCH(LARGE($CB$65:$CB$69,ROW(A5)),$CB$65:$CB$69,0),1) -> -6 | BX82: =INDEX($BX$65:$BX$69,MATCH(LARGE($CB$65:$CB$69,ROW(A5)),$CB$65:$CB$69,0),1) -> 5
C83: --- | F83: --- | H83: Spieler 6 | T83: 0 | Z83: 0 | AK83: 0 | AV83: 0 | BG83: 0 | BL83: : | BN83: 0 | BS83: 0 | BX83: 0
C84: --- | F84: --- | H84: Spieler 7 | T84: 0 | Z84: 0 | AK84: 0 | AV84: 0 | BG84: 0 | BL84: : | BN84: 0 | BS84: 0 | BX84: 0
C88: Tabelle (nach Alphabet)
C90: Rang | H90: Spieler | T90: Spiele | Z90: Siege | AK90: Unentschieden | AV90: Niederlagen | BG90: Tore | BS90: +/- | BX90: Punkte
C91: =IF($H$78="Basti",$F$78,IF($H$79="Basti",$F$79,IF($H$80="Basti",$F$80,IF($H$81="Basti",$F$81,IF($H$82="Basti",$F$82,IF($H$83="Basti",$F$83,IF($H$84="Basti",$F$84,0))))))) -> 0 | H91: Basti | T91: =IF($H$78="Basti",$T$78,IF($H$79="Basti",$T$79,IF($H$80="Basti",$T$80,IF($H$81="Basti",$T$81,IF($H$82="Basti",$T$82,IF($H$83="Basti",$T$83,IF($H$84="Basti",$T$84,0))))))) -> 0 | Z91: =IF($H$78="Basti",$Z$78,IF($H$79="Basti",$Z$79,IF($H$80="Basti",$Z$80,IF($H$81="Basti",$Z$81,IF($H$82="Basti",$Z$82,IF($H$83="Basti",$Z$83,IF($H$84="Basti",$Z$84,0))))))) -> 0 | AK91: =IF($H$78="Basti",$AK$78,IF($H$79="Basti",$AK$79,IF($H$80="Basti",$AK$80,IF($H$81="Basti",$AK$81,IF($H$82="Basti",$AK$82,IF($H$83="Basti",$AK$83,IF($H$84="Basti",$AK$84,0))))))) -> 0 | AV91: =IF($H$78="Basti",$AV$78,IF($H$79="Basti",$AV$79,IF($H$80="Basti",$AV$80,IF($H$81="Basti",$AV$81,IF($H$82="Basti",$AV$82,IF($H$83="Basti",$AV$83,IF($H$84="Basti",$AV$84,0))))))) -> 0 | BG91: =IF($H$78="Basti",$BG$78,IF($H$79="Basti",$BG$79,IF($H$80="Basti",$BG$80,IF($H$81="Basti",$BG$81,IF($H$82="Basti",$BG$82,IF($H$83="Basti",$BG$83,IF($H$84="Basti",$BG$84,0))))))) -> 0 | BL91: : | BN91: =IF($H$78="Basti",$BN$78,IF($H$79="Basti",$BN$79,IF($H$80="Basti",$BN$80,IF($H$81="Basti",$BN$81,IF($H$82="Basti",$BN$82,IF($H$83="Basti",$BN$83,IF($H$84="Basti",$BN$84,0))))))) -> 0 | BS91: =IF($H$78="Basti",$BS$78,IF($H$79="Basti",$BS$79,IF($H$80="Basti",$BS$80,IF($H$81="Basti",$BS$81,IF($H$82="Basti",$BS$82,IF($H$83="Basti",$BS$83,IF($H$84="Basti",$BS$84,0))))))) -> 0 | BX91: =IF($H$78="Basti",$BX$78,IF($H$79="Basti",$BX$79,IF($H$80="Basti",$BX$80,IF($H$81="Basti",$BX$81,IF($H$82="Basti",$BX$82,IF($H$83="Basti",$BX$83,IF($H$84="Basti",$BX$84,0))))))) -> 0
C92: =IF($H$78="Christoph",$F$78,IF($H$79="Christoph",$F$79,IF($H$80="Christoph",$F$80,IF($H$81="Christoph",$F$81,IF($H$82="Christoph",$F$82,IF($H$83="Christoph",$F$83,IF($H$84="Christoph",$F$84,0))))))) -> 2 | H92: Christoph | T92: =IF($H$78="Christoph",$T$78,IF($H$79="Christoph",$T$79,IF($H$80="Christoph",$T$80,IF($H$81="Christoph",$T$81,IF($H$82="Christoph",$T$82,IF($H$83="Christoph",$T$83,IF($H$84="Christoph",$T$84,0))))))) -> 8 | Z92: =IF($H$78="Christoph",$Z$78,IF($H$79="Christoph",$Z$79,IF($H$80="Christoph",$Z$80,IF($H$81="Christoph",$Z$81,IF($H$82="Christoph",$Z$82,IF($H$83="Christoph",$Z$83,IF($H$84="Christoph",$Z$84,0))))))) -> 4 | AK92: =IF($H$78="Christoph",$AK$78,IF($H$79="Christoph",$AK$79,IF($H$80="Christoph",$AK$80,IF($H$81="Christoph",$AK$81,IF($H$82="Christoph",$AK$82,IF($H$83="Christoph",$AK$83,IF($H$84="Christoph",$AK$84,0))))))) -> 3 | AV92: =IF($H$78="Christoph",$AV$78,IF($H$79="Christoph",$AV$79,IF($H$80="Christoph",$AV$80,IF($H$81="Christoph",$AV$81,IF($H$82="Christoph",$AV$82,IF($H$83="Christoph",$AV$83,IF($H$84="Christoph",$AV$84,0))))))) -> 1 | BG92: =IF($H$78="Christoph",$BG$78,IF($H$79="Christoph",$BG$79,IF($H$80="Christoph",$BG$80,IF($H$81="Christoph",$BG$81,IF($H$82="Christoph",$BG$82,IF($H$83="Christoph",$BG$83,IF($H$84="Christoph",$BG$84,0))))))) -> 18 | BL92: : | BN92: =IF($H$78="Christoph",$BN$78,IF($H$79="Christoph",$BN$79,IF($H$80="Christoph",$BN$80,IF($H$81="Christoph",$BN$81,IF($H$82="Christoph",$BN$82,IF($H$83="Christoph",$BN$83,IF($H$84="Christoph",$BN$84,0))))))) -> 15 | BS92: =IF($H$78="Christoph",$BS$78,IF($H$79="Christoph",$BS$79,IF($H$80="Christoph",$BS$80,IF($H$81="Christoph",$BS$81,IF($H$82="Christoph",$BS$82,IF($H$83="Christoph",$BS$83,IF($H$84="Christoph",$BS$84,0))))))) -> 3 | BX92: =IF($H$78="Christoph",$BX$78,IF($H$79="Christoph",$BX$79,IF($H$80="Christoph",$BX$80,IF($H$81="Christoph",$BX$81,IF($H$82="Christoph",$BX$82,IF($H$83="Christoph",$BX$83,IF($H$84="Christoph",$BX$84,0))))))) -> 15
C93: =IF($H$78="Jule",$F$78,IF($H$79="Jule",$F$79,IF($H$80="Jule",$F$80,IF($H$81="Jule",$F$81,IF($H$82="Jule",$F$82,IF($H$83="Jule",$F$83,IF($H$84="Jule",$F$84,0))))))) -> 0 | H93: Jule | T93: =IF($H$78="Jule",$T$78,IF($H$79="Jule",$T$79,IF($H$80="Jule",$T$80,IF($H$81="Jule",$T$81,IF($H$82="Jule",$T$82,IF($H$83="Jule",$T$83,IF($H$84="Jule",$T$84,0))))))) -> 0 | Z93: =IF($H$78="Jule",$Z$78,IF($H$79="Jule",$Z$79,IF($H$80="Jule",$Z$80,IF($H$81="Jule",$Z$81,IF($H$82="Jule",$Z$82,IF($H$83="Jule",$Z$83,IF($H$84="Jule",$Z$84,0))))))) -> 0 | AK93: =IF($H$78="Jule",$AK$78,IF($H$79="Jule",$AK$79,IF($H$80="Jule",$AK$80,IF($H$81="Jule",$AK$81,IF($H$82="Jule",$AK$82,IF($H$83="Jule",$AK$83,IF($H$84="Jule",$AK$84,0))))))) -> 0 | AV93: =IF($H$78="Jule",$AV$78,IF($H$79="Jule",$AV$79,IF($H$80="Jule",$AV$80,IF($H$81="Jule",$AV$81,IF($H$82="Jule",$AV$82,IF($H$83="Jule",$AV$83,IF($H$84="Jule",$AV$84,0))))))) -> 0 | BG93: =IF($H$78="Jule",$BG$78,IF($H$79="Jule",$BG$79,IF($H$80="Jule",$BG$80,IF($H$81="Jule",$BG$81,IF($H$82="Jule",$BG$82,IF($H$83="Jule",$BG$83,IF($H$84="Jule",$BG$84,0))))))) -> 0 | BL93: : | BN93: =IF($H$78="Jule",$BN$78,IF($H$79="Jule",$BN$79,IF($H$80="Jule",$BN$80,IF($H$81="Jule",$BN$81,IF($H$82="Jule",$BN$82,IF($H$83="Jule",$BN$83,IF($H$84="Jule",$BN$84,0))))))) -> 0 | BS93: =IF($H$78="Jule",$BS$78,IF($H$79="Jule",$BS$79,IF($H$80="Jule",$BS$80,IF($H$81="Jule",$BS$81,IF($H$82="Jule",$BS$82,IF($H$83="Jule",$BS$83,IF($H$84="Jule",$BS$84,0))))))) -> 0 | BX93: =IF($H$78="Jule",$BX$78,IF($H$79="Jule",$BX$79,IF($H$80="Jule",$BX$80,IF($H$81="Jule",$BX$81,IF($H$82="Jule",$BX$82,IF($H$83="Jule",$BX$83,IF($H$84="Jule",$BX$84,0))))))) -> 0
C94: =IF($H$78="Markus",$F$78,IF($H$79="Markus",$F$79,IF($H$80="Markus",$F$80,IF($H$81="Markus",$F$81,IF($H$82="Markus",$F$82,IF($H$83="Markus",$F$83,IF($H$84="Markus",$F$84,0))))))) -> 5 | H94: Markus | T94: =IF($H$78="Markus",$T$78,IF($H$79="Markus",$T$79,IF($H$80="Markus",$T$80,IF($H$81="Markus",$T$81,IF($H$82="Markus",$T$82,IF($H$83="Markus",$T$83,IF($H$84="Markus",$T$84,0))))))) -> 8 | Z94: =IF($H$78="Markus",$Z$78,IF($H$79="Markus",$Z$79,IF($H$80="Markus",$Z$80,IF($H$81="Markus",$Z$81,IF($H$82="Markus",$Z$82,IF($H$83="Markus",$Z$83,IF($H$84="Markus",$Z$84,0))))))) -> 1 | AK94: =IF($H$78="Markus",$AK$78,IF($H$79="Markus",$AK$79,IF($H$80="Markus",$AK$80,IF($H$81="Markus",$AK$81,IF($H$82="Markus",$AK$82,IF($H$83="Markus",$AK$83,IF($H$84="Markus",$AK$84,0))))))) -> 2 | AV94: =IF($H$78="Markus",$AV$78,IF($H$79="Markus",$AV$79,IF($H$80="Markus",$AV$80,IF($H$81="Markus",$AV$81,IF($H$82="Markus",$AV$82,IF($H$83="Markus",$AV$83,IF($H$84="Markus",$AV$84,0))))))) -> 5 | BG94: =IF($H$78="Markus",$BG$78,IF($H$79="Markus",$BG$79,IF($H$80="Markus",$BG$80,IF($H$81="Markus",$BG$81,IF($H$82="Markus",$BG$82,IF($H$83="Markus",$BG$83,IF($H$84="Markus",$BG$84,0))))))) -> 11 | BL94: : | BN94: =IF($H$78="Markus",$BN$78,IF($H$79="Markus",$BN$79,IF($H$80="Markus",$BN$80,IF($H$81="Markus",$BN$81,IF($H$82="Markus",$BN$82,IF($H$83="Markus",$BN$83,IF($H$84="Markus",$BN$84,0))))))) -> 17 | BS94: =IF($H$78="Markus",$BS$78,IF($H$79="Markus",$BS$79,IF($H$80="Markus",$BS$80,IF($H$81="Markus",$BS$81,IF($H$82="Markus",$BS$82,IF($H$83="Markus",$BS$83,IF($H$84="Markus",$BS$84,0))))))) -> -6 | BX94: =IF($H$78="Markus",$BX$78,IF($H$79="Markus",$BX$79,IF($H$80="Markus",$BX$80,IF($H$81="Markus",$BX$81,IF($H$82="Markus",$BX$82,IF($H$83="Markus",$BX$83,IF($H$84="Markus",$BX$84,0))))))) -> 5
C95: =IF($H$78="Patrick",$F$78,IF($H$79="Patrick",$F$79,IF($H$80="Patrick",$F$80,IF($H$81="Patrick",$F$81,IF($H$82="Patrick",$F$82,IF($H$83="Patrick",$F$83,IF($H$84="Patrick",$F$84,0))))))) -> 3 | H95: Patrick | T95: =IF($H$78="Patrick",$T$78,IF($H$79="Patrick",$T$79,IF($H$80="Patrick",$T$80,IF($H$81="Patrick",$T$81,IF($H$82="Patrick",$T$82,IF($H$83="Patrick",$T$83,IF($H$84="Patrick",$T$84,0))))))) -> 8 | Z95: =IF($H$78="Patrick",$Z$78,IF($H$79="Patrick",$Z$79,IF($H$80="Patrick",$Z$80,IF($H$81="Patrick",$Z$81,IF($H$82="Patrick",$Z$82,IF($H$83="Patrick",$Z$83,IF($H$84="Patrick",$Z$84,0))))))) -> 4 | AK95: =IF($H$78="Patrick",$AK$78,IF($H$79="Patrick",$AK$79,IF($H$80="Patrick",$AK$80,IF($H$81="Patrick",$AK$81,IF($H$82="Patrick",$AK$82,IF($H$83="Patrick",$AK$83,IF($H$84="Patrick",$AK$84,0))))))) -> 0 | AV95: =IF($H$78="Patrick",$AV$78,IF($H$79="Patrick",$AV$79,IF($H$80="Patrick",$AV$80,IF($H$81="Patrick",$AV$81,IF($H$82="Patrick",$AV$82,IF($H$83="Patrick",$AV$83,IF($H$84="Patrick",$AV$84,0))))))) -> 4 | BG95: =IF($H$78="Patrick",$BG$78,IF($H$79="Patrick",$BG$79,IF($H$80="Patrick",$BG$80,IF($H$81="Patrick",$BG$81,IF($H$82="Patrick",$BG$82,IF($H$83="Patrick",$BG$83,IF($H$84="Patrick",$BG$84,0))))))) -> 16 | BL95: : | BN95: =IF($H$78="Patrick",$BN$78,IF($H$79="Patrick",$BN$79,IF($H$80="Patrick",$BN$80,IF($H$81="Patrick",$BN$81,IF($H$82="Patrick",$BN$82,IF($H$83="Patrick",$BN$83,IF($H$84="Patrick",$BN$84,0))))))) -> 19 | BS95: =IF($H$78="Patrick",$BS$78,IF($H$79="Patrick",$BS$79,IF($H$80="Patrick",$BS$80,IF($H$81="Patrick",$BS$81,IF($H$82="Patrick",$BS$82,IF($H$83="Patrick",$BS$83,IF($H$84="Patrick",$BS$84,0))))))) -> -3 | BX95: =IF($H$78="Patrick",$BX$78,IF($H$79="Patrick",$BX$79,IF($H$80="Patrick",$BX$80,IF($H$81="Patrick",$BX$81,IF($H$82="Patrick",$BX$82,IF($H$83="Patrick",$BX$83,IF($H$84="Patrick",$BX$84,0))))))) -> 12
C96: =IF($H$78="Ratze",$F$78,IF($H$79="Ratze",$F$79,IF($H$80="Ratze",$F$80,IF($H$81="Ratze",$F$81,IF($H$82="Ratze",$F$82,IF($H$83="Ratze",$F$83,IF($H$84="Ratze",$F$84,0))))))) -> 1 | H96: Ratze | T96: =IF($H$78="Ratze",$T$78,IF($H$79="Ratze",$T$79,IF($H$80="Ratze",$T$80,IF($H$81="Ratze",$T$81,IF($H$82="Ratze",$T$82,IF($H$83="Ratze",$T$83,IF($H$84="Ratze",$T$84,0))))))) -> 8 | Z96: =IF($H$78="Ratze",$Z$78,IF($H$79="Ratze",$Z$79,IF($H$80="Ratze",$Z$80,IF($H$81="Ratze",$Z$81,IF($H$82="Ratze",$Z$82,IF($H$83="Ratze",$Z$83,IF($H$84="Ratze",$Z$84,0))))))) -> 6 | AK96: =IF($H$78="Ratze",$AK$78,IF($H$79="Ratze",$AK$79,IF($H$80="Ratze",$AK$80,IF($H$81="Ratze",$AK$81,IF($H$82="Ratze",$AK$82,IF($H$83="Ratze",$AK$83,IF($H$84="Ratze",$AK$84,0))))))) -> 1 | AV96: =IF($H$78="Ratze",$AV$78,IF($H$79="Ratze",$AV$79,IF($H$80="Ratze",$AV$80,IF($H$81="Ratze",$AV$81,IF($H$82="Ratze",$AV$82,IF($H$83="Ratze",$AV$83,IF($H$84="Ratze",$AV$84,0))))))) -> 1 | BG96: =IF($H$78="Ratze",$BG$78,IF($H$79="Ratze",$BG$79,IF($H$80="Ratze",$BG$80,IF($H$81="Ratze",$BG$81,IF($H$82="Ratze",$BG$82,IF($H$83="Ratze",$BG$83,IF($H$84="Ratze",$BG$84,0))))))) -> 31 | BL96: : | BN96: =IF($H$78="Ratze",$BN$78,IF($H$79="Ratze",$BN$79,IF($H$80="Ratze",$BN$80,IF($H$81="Ratze",$BN$81,IF($H$82="Ratze",$BN$82,IF($H$83="Ratze",$BN$83,IF($H$84="Ratze",$BN$84,0))))))) -> 14 | BS96: =IF($H$78="Ratze",$BS$78,IF($H$79="Ratze",$BS$79,IF($H$80="Ratze",$BS$80,IF($H$81="Ratze",$BS$81,IF($H$82="Ratze",$BS$82,IF($H$83="Ratze",$BS$83,IF($H$84="Ratze",$BS$84,0))))))) -> 17 | BX96: =IF($H$78="Ratze",$BX$78,IF($H$79="Ratze",$BX$79,IF($H$80="Ratze",$BX$80,IF($H$81="Ratze",$BX$81,IF($H$82="Ratze",$BX$82,IF($H$83="Ratze",$BX$83,IF($H$84="Ratze",$BX$84,0))))))) -> 19
C97: =IF($H$78="Schmiddi",$F$78,IF($H$79="Schmiddi",$F$79,IF($H$80="Schmiddi",$F$80,IF($H$81="Schmiddi",$F$81,IF($H$82="Schmiddi",$F$82,IF($H$83="Schmiddi",$F$83,IF($H$84="Schmiddi",$F$84,0))))))) -> 4 | H97: Schmiddi | T97: =IF($H$78="Schmiddi",$T$78,IF($H$79="Schmiddi",$T$79,IF($H$80="Schmiddi",$T$80,IF($H$81="Schmiddi",$T$81,IF($H$82="Schmiddi",$T$82,IF($H$83="Schmiddi",$T$83,IF($H$84="Schmiddi",$T$84,0))))))) -> 8 | Z97: =IF($H$78="Schmiddi",$Z$78,IF($H$79="Schmiddi",$Z$79,IF($H$80="Schmiddi",$Z$80,IF($H$81="Schmiddi",$Z$81,IF($H$82="Schmiddi",$Z$82,IF($H$83="Schmiddi",$Z$83,IF($H$84="Schmiddi",$Z$84,0))))))) -> 2 | AK97: =IF($H$78="Schmiddi",$AK$78,IF($H$79="Schmiddi",$AK$79,IF($H$80="Schmiddi",$AK$80,IF($H$81="Schmiddi",$AK$81,IF($H$82="Schmiddi",$AK$82,IF($H$83="Schmiddi",$AK$83,IF($H$84="Schmiddi",$AK$84,0))))))) -> 0 | AV97: =IF($H$78="Schmiddi",$AV$78,IF($H$79="Schmiddi",$AV$79,IF($H$80="Schmiddi",$AV$80,IF($H$81="Schmiddi",$AV$81,IF($H$82="Schmiddi",$AV$82,IF($H$83="Schmiddi",$AV$83,IF($H$84="Schmiddi",$AV$84,0))))))) -> 6 | BG97: =IF($H$78="Schmiddi",$BG$78,IF($H$79="Schmiddi",$BG$79,IF($H$80="Schmiddi",$BG$80,IF($H$81="Schmiddi",$BG$81,IF($H$82="Schmiddi",$BG$82,IF($H$83="Schmiddi",$BG$83,IF($H$84="Schmiddi",$BG$84,0))))))) -> 12 | BL97: : | BN97: =IF($H$78="Schmiddi",$BN$78,IF($H$79="Schmiddi",$BN$79,IF($H$80="Schmiddi",$BN$80,IF($H$81="Schmiddi",$BN$81,IF($H$82="Schmiddi",$BN$82,IF($H$83="Schmiddi",$BN$83,IF($H$84="Schmiddi",$BN$84,0))))))) -> 23 | BS97: =IF($H$78="Schmiddi",$BS$78,IF($H$79="Schmiddi",$BS$79,IF($H$80="Schmiddi",$BS$80,IF($H$81="Schmiddi",$BS$81,IF($H$82="Schmiddi",$BS$82,IF($H$83="Schmiddi",$BS$83,IF($H$84="Schmiddi",$BS$84,0))))))) -> -11 | BX97: =IF($H$78="Schmiddi",$BX$78,IF($H$79="Schmiddi",$BX$79,IF($H$80="Schmiddi",$BX$80,IF($H$81="Schmiddi",$BX$81,IF($H$82="Schmiddi",$BX$82,IF($H$83="Schmiddi",$BX$83,IF($H$84="Schmiddi",$BX$84,0))))))) -> 6

Sheet 13.1
B2: ="Turnier am " & MID(CELL("dateiname",A1),SEARCH("]",CELL("dateiname",A1))+1,31) -> Turnier am 13.1
C5: Spielerliste
C7: =" Spieler" -> Spieler | M7: Spieler 1 | AA7: Spieler 2 | AO7: Spieler 3 | BC7: Spieler 4 | BQ7: Spieler 5
C8: =" Name" -> Name | M8: Ratze | AA8: Christoph | AO8: Markus | BC8: Jule | BQ8: Patrick
C12: Spielplan
C14: 00:12:00 | H14: Spiel | M14: Datum | S14: Uhrzeit | Y14: Austragungsort | AJ14: Paarung | BR14: Ergebnis | CG14: Spiele | CH14: SiegHeim | CI14: Unentschieden | CJ14: SiegGast
C16: Hinrunde | H16: 1 | M16: =MID(CELL("dateiname",A1),SEARCH("]",CELL("dateiname",A1))+1,31) -> 13.1 | S16: 21:00:00 | Y16: Fernseher | AJ16: =$M$8 -> Ratze | AY16: : | BB16: =$AA$8 -> Christoph | BR16: 0 | BW16: : | BZ16: 0 | CG16: =IF(AND(ISNUMBER(BR16),ISNUMBER(BZ16)),1,0) -> 1 | CH16: =IF(OR(ISBLANK(BR16),ISBLANK(BZ16)),0,IF(BR16>BZ16,1,0)) -> 0 | CI16: =IF(OR(ISBLANK(BR16),ISBLANK(BZ16)),0,IF(BR16=BZ16,1,0)) -> 1 | CJ16: =IF(OR(ISBLANK(BR16),ISBLANK(BZ16)),0,IF(BR16<BZ16,1,0)) -> 0
H17: =H16+1 -> 2 | M17: =$M$16 -> 13.1 | S17: =S16 -> 21:00:00 | Y17: Fernseher | AJ17: =$AO$8 -> Markus | AY17: : | BB17: =$BC$8 -> Jule | BR17: 2 | BW17: : | BZ17: 2 | CG17: =IF(AND(ISNUMBER(BR17),ISNUMBER(BZ17)),1,0) -> 1 | CH17: =IF(OR(ISBLANK(BR17),ISBLANK(BZ17)),0,IF(BR17>BZ17,1,0)) -> 0 | CI17: =IF(OR(ISBLANK(BR17),ISBLANK(BZ17)),0,IF(BR17=BZ17,1,0)) -> 1 | CJ17: =IF(OR(ISBLANK(BR17),ISBLANK(BZ17)),0,IF(BR17<BZ17,1,0)) -> 0
H18: =H17+1 -> 3 | M18: =$M$16 -> 13.1 | S18: =S16+$C$14 -> 21:12:00 | Y18: =$Y$16 -> Fernseher | AJ18: =$BQ$8 -> Patrick | AY18: : | BB18: =$M$8 -> Ratze | BR18: 0 | BW18: : | BZ18: 2 | CG18: 1 | CH18: 0 | CI18: 0 | CJ18: 1
H19: =H18+1 -> 4 | M19: 13.1 | S19: 21:12:00 | Y19: =$Y$17 -> Fernseher | AJ19: =$AA$8 -> Christoph | AY19: : | BB19: =$AO$8 -> Markus | BR19: 0 | BW19: : | BZ19: 2 | CG19: 1 | CH19: 0 | CI19: 0 | CJ19: 1
H20: 5 | M20: 13.1 | S20: 21:24:00 | Y20: =$Y$16 -> Fernseher | AJ20: =$BC$8 -> Jule | AY20: : | BB20: =$BQ$8 -> Patrick | BR20: 3 | BW20: : | BZ20: 2 | CG20: 1 | CH20: 1 | CI20: 0 | CJ20: 0
H21: 6 | M21: 13.1 | S21: 21:24:00 | Y21: =$Y$17 -> Fernseher | AJ21: =$M$8 -> Ratze | AY21: : | BB21: =$AO$8 -> Markus | BR21: 4 | BW21: : | BZ21: 0 | CG21: 1 | CH21: 1 | CI21: 0 | CJ21: 0
H22: 7 | M22: 13.1 | S22: 21:36:00 | Y22: =$Y$16 -> Fernseher | AJ22: =$AA$8 -> Christoph | AY22: : | BB22: =$BC$8 -> Jule | BR22: 2 | BW22: : | BZ22: 0 | CG22: 1 | CH22: 1 | CI22: 0 | CJ22: 0
H23: 8 | M23: 13.1 | S23: 21:36:00 | Y23: =$Y$17 -> Fernseher | AJ23: =$AO$8 -> Markus | AY23: : | BB23: =$BQ$8 -> Patrick | BR23: 3 | BW23: : | BZ23: 2 | CG23: 1 | CH23: 1 | CI23: 0 | CJ23: 0
H24: 9 | M24: 13.1 | S24: 21:48:00 | Y24: =$Y$16 -> Fernseher | AJ24: =$BC$8 -> Jule | AY24: : | BB24: =$M$8 -> Ratze | BR24: 2 | BW24: : | BZ24: 1 | CG24: 1 | CH24: 1 | CI24: 0 | CJ24: 0
H25: 10 | M25: 13.1 | S25: 21:48:00 | Y25: =$Y$17 -> Fernseher | AJ25: =$BQ$8 -> Patrick | AY25: : | BB25: =$AA$8 -> Christoph | BR25: 1 | BW25: : | BZ25: 2 | CG25: 1 | CH25: 0 | CI25: 0 | CJ25: 1
C27: Rückrunde | H27: =H25+1 -> 11 | M27: =$M$16 -> 13.1 | S27: =S24+$C$14 -> 22:00:00 | Y27: =$Y$17 -> Fernseher | AJ27: =$AA$8 -> Christoph | AY27: : | BB27: =$M$8 -> Ratze | BR27: 3 | BW27: : | BZ27: 2 | CG27: =IF(AND(ISNUMBER(BR27),ISNUMBER(BZ27)),1,0) -> 1 | CH27: =IF(OR(ISBLANK(BR27),ISBLANK(BZ27)),0,IF(BR27>BZ27,1,0)) -> 1 | CI27: =IF(OR(ISBLANK(BR27),ISBLANK(BZ27)),0,IF(BR27=BZ27,1,0)) -> 0 | CJ27: =IF(OR(ISBLANK(BR27),ISBLANK(BZ27)),0,IF(BR27<BZ27,1,0)) -> 0
H28: =H27+1 -> 12 | M28: 13.1 | S28: =S25+$C$14 -> 22:00:00 | Y28: =$Y$16 -> Fernseher | AJ28: =$BC$8 -> Jule | AY28: : | BB28: =$AO$8 -> Markus | BR28: 1 | BW28: : | BZ28: 4 | CG28: 1 | CH28: 0 | CI28: 0 | CJ28: 1
H29: =H28+1 -> 13 | M29: 13.1 | S29: =S27+$C$14 -> 22:12:00 | Y29: =$Y$17 -> Fernseher | AJ29: =$M$8 -> Ratze | AY29: : | BB29: =$BQ$8 -> Patrick | BR29: 0 | BW29: : | BZ29: 0 | CG29: 1 | CH29: 0 | CI29: 1 | CJ29: 0
H30: 14 | M30: 13.1 | S30: 22:12:00 | Y30: =$Y$16 -> Fernseher | AJ30: =$AO$8 -> Markus | AY30: : | BB30: =$AA$8 -> Christoph | BR30: 2 | BW30: : | BZ30: 2 | CG30: 1 | CH30: 0 | CI30: 1 | CJ30: 0
H31: 15 | M31: 13.1 | S31: 22:24:00 | Y31: =$Y$17 -> Fernseher | AJ31: =$BQ$8 -> Patrick | AY31: : | BB31: =$BC$8 -> Jule | BR31: 1 | BW31: : | BZ31: 1 | CG31: 1 | CH31: 0 | CI31: 1 | CJ31: 0
H32: 16 | M32: 13.1 | S32: 22:24:00 | Y32: =$Y$16 -> Fernseher | AJ32: =$AO$8 -> Markus | AY32: : | BB32: =$M$8 -> Ratze | BR32: 3 | BW32: : | BZ32: 2 | CG32: 1 | CH32: 1 | CI32: 0 | CJ32: 0
H33: 17 | M33: 13.1 | S33: 22:36:00 | Y33: =$Y$17 -> Fernseher | AJ33: =$BC$8 -> Jule | AY33: : | BB33: =$AA$8 -> Christoph | BR33: 1 | BW33: : | BZ33: 2 | CG33: 1 | CH33: 0 | CI33: 0 | CJ33: 1
H34: 18 | M34: 13.1 | S34: 22:36:00 | Y34: =$Y$16 -> Fernseher | AJ34: =$BQ$8 -> Patrick | AY34: : | BB34: =$AO$8 -> Markus | BR34: 1 | BW34: : | BZ34: 1 | CG34: 1 | CH34: 0 | CI34: 1 | CJ34: 0
H35: 19 | M35: 13.1 | S35: 22:48:00 | Y35: =$Y$17 -> Fernseher | AJ35: =$M$8 -> Ratze | AY35: : | BB35: =$BC$8 -> Jule | BR35: 2 | BW35: : | BZ35: 3 | CG35: 1 | CH35: 0 | CI35: 0 | CJ35: 1
H36: 20 | M36: 13.1 | S36: 22:48:00 | Y36: =$Y$16 -> Fernseher | AJ36: =$AA$8 -> Christoph | AY36: : | BB36: =$BQ$8 -> Patrick | BR36: 1 | BW36: : | BZ36: 1 | CG36: 1 | CH36: 0 | CI36: 1 | CJ36: 0
C62: Tabelle (unsortiert)
C64: Rang | H64: Spieler | T64: Spiele | Z64: Siege | AK64: Unentschieden | AV64: Niederlagen | BG64: Tore | BS64: +/- | BX64: Punkte | CB64: HS
C65: =IF(T65=0,0,RANK(BX65,$BX$65:$CA$69,0)) -> 4 | H65: =$M$8 -> Ratze | T65: =CG16+CG18+CG21+CG24+CG27+CG29+CG32+CG35 -> 8 | Z65: =CH16+CJ18+CH21+CJ24+CJ27+CH29+CJ32+CH35 -> 2 | AK65: =CI16+CI18+CI21+CI24+CI27+CI29+CI32+CI35 -> 2 | AV65: =CJ16+CH18+CJ21+CH24+CH27+CJ29+CH32+CJ35 -> 4 | BG65: =BR16+BZ18+BR21+BZ24+BZ27+BR29+BZ32+BR35 -> 13 | BL65: : | BN65: =BZ16+BR18+BZ21+BR24+BR27+BZ29+BR32+BZ35 -> 11 | BS65: =BG65-BN65 -> 2 | BX65: =(Z65*3)+AK65 -> 8 | CB65: =BX65+ROW()/1000 -> 8.065
C66: =IF(T66=0,0,RANK(BX66,$BX$65:$CA$69,0)) -> 1 | H66: =$AA$8 -> Christoph | T66: =CG16+CG19+CG22+CG25+CG27+CG30+CG33+CG36 -> 8 | Z66: =CJ16+CH19+CH22+CJ25+CH27+CJ30+CJ33+CH36 -> 4 | AK66: =CI16+CI19+CI22+CI25+CI27+CI30+CI33+CI36 -> 3 | AV66: =CH16+CJ19+CJ22+CH25+CJ27+CH30+CH33+CJ36 -> 1 | BG66: =BZ16+BR19+BR22+BZ25+BR27+BZ30+BZ33+BR36 -> 12 | BK66: : | BL66: : | BN66: =BR16+BZ19+BZ22+BR25+BZ27+BR30+BR33+BZ36 -> 9 | BS66: =BG66-BN66 -> 3 | BX66: =(Z66*3)+AK66 -> 15 | CB66: =BX66+ROW()/1000 -> 15.066
C67: =IF(T67=0,0,RANK(BX67,$BX$65:$CA$69,0)) -> 1 | H67: =$AO$8 -> Markus | T67: =CG17+CG19+CG21+CG23+CG28+CG30+CG32+CG34 -> 8 | Z67: =CH17+CJ19+CJ21+CH23+CJ28+CH30+CH32+CJ34 -> 4 | AK67: =CI17+CI19+CI21+CI23+CI28+CI30+CI32+CI34 -> 3 | AV67: =CJ17+CH19+CH21+CJ23+CH28+CJ30+CJ32+CH34 -> 1 | BG67: =BR17+BZ19+BZ21+BR23+BZ28+BR30+BR32+BZ34 -> 17 | BK67: : | BL67: : | BN67: =BZ17+BR19+BR21+BZ23+BR28+BZ30+BZ32+BR34 -> 14 | BS67: =BG67-BN67 -> 3 | BX67: =(Z67*3)+AK67 -> 15 | CB67: =BX67+ROW()/1000 -> 15.067
C68: =IF(T68=0,0,RANK(BX68,$BX$65:$CA$69,0)) -> 3 | H68: =$BC$8 -> Jule | T68: =CG17+CG20+CG22+CG24+CG28+CG31+CG33+CG35 -> 8 | Z68: =CJ17+CH20+CJ22+CH24+CH28+CJ31+CH33+CJ35 -> 3 | AK68: =CI17+CI20+CI22+CI24+CI28+CI31+CI33+CI35 -> 2 | AV68: =CH17+CJ20+CH22+CJ24+CJ28+CH31+CJ33+CH35 -> 3 | BG68: =BZ17+BR20+BZ22+BR24+BR28+BZ31+BR33+BZ35 -> 13 | BK68: : | BL68: : | BN68: =BR17+BZ20+BR22+BZ24+BZ28+BR31+BZ33+BR35 -> 16 | BS68: =BG68-BN68 -> -3 | BX68: =(Z68*3)+AK68 -> 11 | CB68: =BX68+ROW()/1000 -> 11.068
C69: =IF(T69=0,0,RANK(BX69,$BX$65:$CA$69,0)) -> 5 | H69: =$BQ$8 -> Patrick | T69: =CG18+CG20+CG23+CG25+CG29+CG31+CG34+CG36 -> 8 | Z69: =CH18+CJ20+CJ23+CH25+CJ29+CH31+CH34+CJ36 -> 0 | AK69: =CI18+CI20+CI23+CI25+CI29+CI31+CI34+CI36 -> 4 | AV69: =CJ18+CH20+CH23+CJ25+CH29+CJ31+CJ34+CH36 -> 4 | BG69: =BR18+BZ20+BZ23+BR25+BZ29+BR31+BR34+BZ36 -> 8 | BK69: : | BL69: : | BN69: =BZ18+BR20+BR23+BZ25+BR29+BZ31+BZ34+BR36 -> 13 | BS69: =BG69-BN69 -> -5 | BX69: =(Z69*3)+AK69 -> 4 | CB69: =BX69+ROW()/1000 -> 4.069
H70: Spieler 6 | T70: 0 | Z70: 0 | AK70: 0 | AV70: 0 | BG70: 0 | BL70: : | BN70: 0 | BS70: 0 | BX70: 0 | CB70: 0
H71: Spieler 7 | T71: 0 | Z71: 0 | AK71: 0 | AV71: 0 | BG71: 0 | BL71: : | BN71: 0 | BS71: 0 | BX71: 0 | CB71: 0
C75: Tabelle
C77: Rang | H77: Spieler | T77: Spiele | Z77: Siege | AK77: Unentschieden | AV77: Niederlagen | BG77: Tore | BS77: +/- | BX77: Punkte
C78: =INDEX($C$65:$C$69,MATCH(LARGE($CB$65:$CB$69,ROW(A1)),$CB$65:$CB$69,0),1) -> 1 | F78: 1 | H78: =INDEX($H$65:$H$69,MATCH(LARGE($CB$65:$CB$69,ROW(A1)),$CB$65:$CB$69,0),1) -> Markus | T78: =INDEX($T$65:$T$69,MATCH(LARGE($CB$65:$CB$69,ROW(A1)),$CB$65:$CB$69,0),1) -> 8 | Z78: =INDEX($Z$65:$Z$69,MATCH(LARGE($CB$65:$CB$69,ROW(A1)),$CB$65:$CB$69,0),1) -> 4 | AK78: =INDEX($AK$65:$AK$69,MATCH(LARGE($CB$65:$CB$69,ROW(A1)),$CB$65:$CB$69,0),1) -> 3 | AV78: =INDEX($AV$65:$AV$69,MATCH(LARGE($CB$65:$CB$69,ROW(A1)),$CB$65:$CB$69,0),1) -> 1 | BG78: =INDEX($BG$65:$BG$69,MATCH(LARGE($CB$65:$CB$69,ROW(A1)),$CB$65:$CB$69,0),1) -> 17 | BL78: : | BN78: =INDEX($BN$65:$BN$69,MATCH(LARGE($CB$65:$CB$69,ROW(A1)),$CB$65:$CB$69,0),1) -> 14 | BS78: =INDEX($BS$65:$BS$69,MATCH(LARGE($CB$65:$CB$69,ROW(A1)),$CB$65:$CB$69,0),1) -> 3 | BX78: =INDEX($BX$65:$BX$69,MATCH(LARGE($CB$65:$CB$69,ROW(A1)),$CB$65:$CB$69,0),1) -> 15
C79: =INDEX($C$65:$C$69,MATCH(LARGE($CB$65:$CB$69,ROW(A2)),$CB$65:$CB$69,0),1) -> 1 | F79: 2 | H79: =INDEX($H$65:$H$69,MATCH(LARGE($CB$65:$CB$69,ROW(A2)),$CB$65:$CB$69,0),1) -> Christoph | T79: =INDEX($T$65:$T$69,MATCH(LARGE($CB$65:$CB$69,ROW(A2)),$CB$65:$CB$69,0),1) -> 8 | Z79: =INDEX($Z$65:$Z$69,MATCH(LARGE($CB$65:$CB$69,ROW(A2)),$CB$65:$CB$69,0),1) -> 4 | AK79: =INDEX($AK$65:$AK$69,MATCH(LARGE($CB$65:$CB$69,ROW(A2)),$CB$65:$CB$69,0),1) -> 3 | AV79: =INDEX($AV$65:$AV$69,MATCH(LARGE($CB$65:$CB$69,ROW(A2)),$CB$65:$CB$69,0),1) -> 1 | BG79: =INDEX($BG$65:$BG$69,MATCH(LARGE($CB$65:$CB$69,ROW(A2)),$CB$65:$CB$69,0),1) -> 12 | BL79: : | BN79: =INDEX($BN$65:$BN$69,MATCH(LARGE($CB$65:$CB$69,ROW(A2)),$CB$65:$CB$69,0),1) -> 9 | BS79: =INDEX($BS$65:$BS$69,MATCH(LARGE($CB$65:$CB$69,ROW(A2)),$CB$65:$CB$69,0),1) -> 3 | BX79: =INDEX($BX$65:$BX$69,MATCH(LARGE($CB$65:$CB$69,ROW(A2)),$CB$65:$CB$69,0),1) -> 15
C80: =INDEX($C$65:$C$69,MATCH(LARGE($CB$65:$CB$69,ROW(A3)),$CB$65:$CB$69,0),1) -> 3 | F80: 3 | H80: =INDEX($H$65:$H$69,MATCH(LARGE($CB$65:$CB$69,ROW(A3)),$CB$65:$CB$69,0),1) -> Jule | T80: =INDEX($T$65:$T$69,MATCH(LARGE($CB$65:$CB$69,ROW(A3)),$CB$65:$CB$69,0),1) -> 8 | Z80: =INDEX($Z$65:$Z$69,MATCH(LARGE($CB$65:$CB$69,ROW(A3)),$CB$65:$CB$69,0),1) -> 3 | AK80: =INDEX($AK$65:$AK$69,MATCH(LARGE($CB$65:$CB$69,ROW(A3)),$CB$65:$CB$69,0),1) -> 2 | AV80: =INDEX($AV$65:$AV$69,MATCH(LARGE($CB$65:$CB$69,ROW(A3)),$CB$65:$CB$69,0),1) -> 3 | BG80: =INDEX($BG$65:$BG$69,MATCH(LARGE($CB$65:$CB$69,ROW(A3)),$CB$65:$CB$69,0),1) -> 13 | BL80: : | BN80: =INDEX($BN$65:$BN$69,MATCH(LARGE($CB$65:$CB$69,ROW(A3)),$CB$65:$CB$69,0),1) -> 16 | BS80: =INDEX($BS$65:$BS$69,MATCH(LARGE($CB$65:$CB$69,ROW(A3)),$CB$65:$CB$69,0),1) -> -3 | BX80: =INDEX($BX$65:$BX$69,MATCH(LARGE($CB$65:$CB$69,ROW(A3)),$CB$65:$CB$69,0),1) -> 11
C81: =INDEX($C$65:$C$69,MATCH(LARGE($CB$65:$CB$69,ROW(A4)),$CB$65:$CB$69,0),1) -> 4 | F81: 4 | H81: =INDEX($H$65:$H$69,MATCH(LARGE($CB$65:$CB$69,ROW(A4)),$CB$65:$CB$69,0),1) -> Ratze | T81: =INDEX($T$65:$T$69,MATCH(LARGE($CB$65:$CB$69,ROW(A4)),$CB$65:$CB$69,0),1) -> 8 | Z81: =INDEX($Z$65:$Z$69,MATCH(LARGE($CB$65:$CB$69,ROW(A4)),$CB$65:$CB$69,0),1) -> 2 | AK81: =INDEX($AK$65:$AK$69,MATCH(LARGE($CB$65:$CB$69,ROW(A4)),$CB$65:$CB$69,0),1) -> 2 | AV81: =INDEX($AV$65:$AV$69,MATCH(LARGE($CB$65:$CB$69,ROW(A4)),$CB$65:$CB$69,0),1) -> 4 | BG81: =INDEX($BG$65:$BG$69,MATCH(LARGE($CB$65:$CB$69,ROW(A4)),$CB$65:$CB$69,0),1) -> 13 | BL81: : | BN81: =INDEX($BN$65:$BN$69,MATCH(LARGE($CB$65:$CB$69,ROW(A4)),$CB$65:$CB$69,0),1) -> 11 | BS81: =INDEX($BS$65:$BS$69,MATCH(LARGE($CB$65:$CB$69,ROW(A4)),$CB$65:$CB$69,0),1) -> 2 | BX81: =INDEX($BX$65:$BX$69,MATCH(LARGE($CB$65:$CB$69,ROW(A4)),$CB$65:$CB$69,0),1) -> 8
C82: =INDEX($C$65:$C$69,MATCH(LARGE($CB$65:$CB$69,ROW(A5)),$CB$65:$CB$69,0),1) -> 5 | F82: 5 | H82: =INDEX($H$65:$H$69,MATCH(LARGE($CB$65:$CB$69,ROW(A5)),$CB$65:$CB$69,0),1) -> Patrick | T82: =INDEX($T$65:$T$69,MATCH(LARGE($CB$65:$CB$69,ROW(A5)),$CB$65:$CB$69,0),1) -> 8 | Z82: =INDEX($Z$65:$Z$69,MATCH(LARGE($CB$65:$CB$69,ROW(A5)),$CB$65:$CB$69,0),1) -> 0 | AK82: =INDEX($AK$65:$AK$69,MATCH(LARGE($CB$65:$CB$69,ROW(A5)),$CB$65:$CB$69,0),1) -> 4 | AV82: =INDEX($AV$65:$AV$69,MATCH(LARGE($CB$65:$CB$69,ROW(A5)),$CB$65:$CB$69,0),1) -> 4 | BG82: =INDEX($BG$65:$BG$69,MATCH(LARGE($CB$65:$CB$69,ROW(A5)),$CB$65:$CB$69,0),1) -> 8 | BL82: : | BN82: =INDEX($BN$65:$BN$69,MATCH(LARGE($CB$65:$CB$69,ROW(A5)),$CB$65:$CB$69,0),1) -> 13 | BS82: =INDEX($BS$65:$BS$69,MATCH(LARGE($CB$65:$CB$69,ROW(A5)),$CB$65:$CB$69,0),1) -> -5 | BX82: =INDEX($BX$65:$BX$69,MATCH(LARGE($CB$65:$CB$69,ROW(A5)),$CB$65:$CB$69,0),1) -> 4
C83: --- | F83: --- | H83: Spieler 6 | T83: 0 | Z83: 0 | AK83: 0 | AV83: 0 | BG83: 0 | BL83: : | BN83: 0 | BS83: 0 | BX83: 0
C84: --- | F84: --- | H84: Spieler 7 | T84: 0 | Z84: 0 | AK84: 0 | AV84: 0 | BG84: 0 | BL84: : | BN84: 0 | BS84: 0 | BX84: 0
C88: Tabelle (nach Alphabet)
C90: Rang | H90: Spieler | T90: Spiele | Z90: Siege | AK90: Unentschieden | AV90: Niederlagen | BG90: Tore | BS90: +/- | BX90: Punkte
C91: =IF($H$78="Basti",$F$78,IF($H$79="Basti",$F$79,IF($H$80="Basti",$F$80,IF($H$81="Basti",$F$81,IF($H$82="Basti",$F$82,IF($H$83="Basti",$F$83,IF($H$84="Basti",$F$84,0))))))) -> 0 | H91: Basti | T91: =IF($H$78="Basti",$T$78,IF($H$79="Basti",$T$79,IF($H$80="Basti",$T$80,IF($H$81="Basti",$T$81,IF($H$82="Basti",$T$82,IF($H$83="Basti",$T$83,IF($H$84="Basti",$T$84,0))))))) -> 0 | Z91: =IF($H$78="Basti",$Z$78,IF($H$79="Basti",$Z$79,IF($H$80="Basti",$Z$80,IF($H$81="Basti",$Z$81,IF($H$82="Basti",$Z$82,IF($H$83="Basti",$Z$83,IF($H$84="Basti",$Z$84,0))))))) -> 0 | AK91: =IF($H$78="Basti",$AK$78,IF($H$79="Basti",$AK$79,IF($H$80="Basti",$AK$80,IF($H$81="Basti",$AK$81,IF($H$82="Basti",$AK$82,IF($H$83="Basti",$AK$83,IF($H$84="Basti",$AK$84,0))))))) -> 0 | AV91: =IF($H$78="Basti",$AV$78,IF($H$79="Basti",$AV$79,IF($H$80="Basti",$AV$80,IF($H$81="Basti",$AV$81,IF($H$82="Basti",$AV$82,IF($H$83="Basti",$AV$83,IF($H$84="Basti",$AV$84,0))))))) -> 0 | BG91: =IF($H$78="Basti",$BG$78,IF($H$79="Basti",$BG$79,IF($H$80="Basti",$BG$80,IF($H$81="Basti",$BG$81,IF($H$82="Basti",$BG$82,IF($H$83="Basti",$BG$83,IF($H$84="Basti",$BG$84,0))))))) -> 0 | BL91: : | BN91: =IF($H$78="Basti",$BN$78,IF($H$79="Basti",$BN$79,IF($H$80="Basti",$BN$80,IF($H$81="Basti",$BN$81,IF($H$82="Basti",$BN$82,IF($H$83="Basti",$BN$83,IF($H$84="Basti",$BN$84,0))))))) -> 0 | BS91: =IF($H$78="Basti",$BS$78,IF($H$79="Basti",$BS$79,IF($H$80="Basti",$BS$80,IF($H$81="Basti",$BS$81,IF($H$82="Basti",$BS$82,IF($H$83="Basti",$BS$83,IF($H$84="Basti",$BS$84,0))))))) -> 0 | BX91: =IF($H$78="Basti",$BX$78,IF($H$79="Basti",$BX$79,IF($H$80="Basti",$BX$80,IF($H$81="Basti",$BX$81,IF($H$82="Basti",$BX$82,IF($H$83="Basti",$BX$83,IF($H$84="Basti",$BX$84,0))))))) -> 0
C92: =IF($H$78="Christoph",$F$78,IF($H$79="Christoph",$F$79,IF($H$80="Christoph",$F$80,IF($H$81="Christoph",$F$81,IF($H$82="Christoph",$F$82,IF($H$83="Christoph",$F$83,IF($H$84="Christoph",$F$84,0))))))) -> 2 | H92: Christoph | T92: =IF($H$78="Christoph",$T$78,IF($H$79="Christoph",$T$79,IF($H$80="Christoph",$T$80,IF($H$81="Christoph",$T$81,IF($H$82="Christoph",$T$82,IF($H$83="Christoph",$T$83,IF($H$84="Christoph",$T$84,0))))))) -> 8 | Z92: =IF($H$78="Christoph",$Z$78,IF($H$79="Christoph",$Z$79,IF($H$80="Christoph",$Z$80,IF($H$81="Christoph",$Z$81,IF($H$82="Christoph",$Z$82,IF($H$83="Christoph",$Z$83,IF($H$84="Christoph",$Z$84,0))))))) -> 4 | AK92: =IF($H$78="Christoph",$AK$78,IF($H$79="Christoph",$AK$79,IF($H$80="Christoph",$AK$80,IF($H$81="Christoph",$AK$81,IF($H$82="Christoph",$AK$82,IF($H$83="Christoph",$AK$83,IF($H$84="Christoph",$AK$84,0))))))) -> 3 | AV92: =IF($H$78="Christoph",$AV$78,IF($H$79="Christoph",$AV$79,IF($H$80="Christoph",$AV$80,IF($H$81="Christoph",$AV$81,IF($H$82="Christoph",$AV$82,IF($H$83="Christoph",$AV$83,IF($H$84="Christoph",$AV$84,0))))))) -> 1 | BG92: =IF($H$78="Christoph",$BG$78,IF($H$79="Christoph",$BG$79,IF($H$80="Christoph",$BG$80,IF($H$81="Christoph",$BG$81,IF($H$82="Christoph",$BG$82,IF($H$83="Christoph",$BG$83,IF($H$84="Christoph",$BG$84,0))))))) -> 12 | BL92: : | BN92: =IF($H$78="Christoph",$BN$78,IF($H$79="Christoph",$BN$79,IF($H$80="Christoph",$BN$80,IF($H$81="Christoph",$BN$81,IF($H$82="Christoph",$BN$82,IF($H$83="Christoph",$BN$83,IF($H$84="Christoph",$BN$84,0))))))) -> 9 | BS92: =IF($H$78="Christoph",$BS$78,IF($H$79="Christoph",$BS$79,IF($H$80="Christoph",$BS$80,IF($H$81="Christoph",$BS$81,IF($H$82="Christoph",$BS$82,IF($H$83="Christoph",$BS$83,IF($H$84="Christoph",$BS$84,0))))))) -> 3 | BX92: =IF($H$78="Christoph",$BX$78,IF($H$79="Christoph",$BX$79,IF($H$80="Christoph",$BX$80,IF($H$81="Christoph",$BX$81,IF($H$82="Christoph",$BX$82,IF($H$83="Christoph",$BX$83,IF($H$84="Christoph",$BX$84,0))))))) -> 15
C93: =IF($H$78="Jule",$F$78,IF($H$79="Jule",$F$79,IF($H$80="Jule",$F$80,IF($H$81="Jule",$F$81,IF($H$82="Jule",$F$82,IF($H$83="Jule",$F$83,IF($H$84="Jule",$F$84,0))))))) -> 3 | H93: Jule | T93: =IF($H$78="Jule",$T$78,IF($H$79="Jule",$T$79,IF($H$80="Jule",$T$80,IF($H$81="Jule",$T$81,IF($H$82="Jule",$T$82,IF($H$83="Jule",$T$83,IF($H$84="Jule",$T$84,0))))))) -> 8 | Z93: =IF($H$78="Jule",$Z$78,IF($H$79="Jule",$Z$79,IF($H$80="Jule",$Z$80,IF($H$81="Jule",$Z$81,IF($H$82="Jule",$Z$82,IF($H$83="Jule",$Z$83,IF($H$84="Jule",$Z$84,0))))))) -> 3 | AK93: =IF($H$78="Jule",$AK$78,IF($H$79="Jule",$AK$79,IF($H$80="Jule",$AK$80,IF($H$81="Jule",$AK$81,IF($H$82="Jule",$AK$82,IF($H$83="Jule",$AK$83,IF($H$84="Jule",$AK$84,0))))))) -> 2 | AV93: =IF($H$78="Jule",$AV$78,IF($H$79="Jule",$AV$79,IF($H$80="Jule",$AV$80,IF($H$81="Jule",$AV$81,IF($H$82="Jule",$AV$82,IF($H$83="Jule",$AV$83,IF($H$84="Jule",$AV$84,0))))))) -> 3 | BG93: =IF($H$78="Jule",$BG$78,IF($H$79="Jule",$BG$79,IF($H$80="Jule",$BG$80,IF($H$81="Jule",$BG$81,IF($H$82="Jule",$BG$82,IF($H$83="Jule",$BG$83,IF($H$84="Jule",$BG$84,0))))))) -> 13 | BL93: : | BN93: =IF($H$78="Jule",$BN$78,IF($H$79="Jule",$BN$79,IF($H$80="Jule",$BN$80,IF($H$81="Jule",$BN$81,IF($H$82="Jule",$BN$82,IF($H$83="Jule",$BN$83,IF($H$84="Jule",$BN$84,0))))))) -> 16 | BS93: =IF($H$78="Jule",$BS$78,IF($H$79="Jule",$BS$79,IF($H$80="Jule",$BS$80,IF($H$81="Jule",$BS$81,IF($H$82="Jule",$BS$82,IF($H$83="Jule",$BS$83,IF($H$84="Jule",$BS$84,0))))))) -> -3 | BX93: =IF($H$78="Jule",$BX$78,IF($H$79="Jule",$BX$79,IF($H$80="Jule",$BX$80,IF($H$81="Jule",$BX$81,IF($H$82="Jule",$BX$82,IF($H$83="Jule",$BX$83,IF($H$84="Jule",$BX$84,0))))))) -> 11
C94: =IF($H$78="Markus",$F$78,IF($H$79="Markus",$F$79,IF($H$80="Markus",$F$80,IF($H$81="Markus",$F$81,IF($H$82="Markus",$F$82,IF($H$83="Markus",$F$83,IF($H$84="Markus",$F$84,0))))))) -> 1 | H94: Markus | T94: =IF($H$78="Markus",$T$78,IF($H$79="Markus",$T$79,IF($H$80="Markus",$T$80,IF($H$81="Markus",$T$81,IF($H$82="Markus",$T$82,IF($H$83="Markus",$T$83,IF($H$84="Markus",$T$84,0))))))) -> 8 | Z94: =IF($H$78="Markus",$Z$78,IF($H$79="Markus",$Z$79,IF($H$80="Markus",$Z$80,IF($H$81="Markus",$Z$81,IF($H$82="Markus",$Z$82,IF($H$83="Markus",$Z$83,IF($H$84="Markus",$Z$84,0))))))) -> 4 | AK94: =IF($H$78="Markus",$AK$78,IF($H$79="Markus",$AK$79,IF($H$80="Markus",$AK$80,IF($H$81="Markus",$AK$81,IF($H$82="Markus",$AK$82,IF($H$83="Markus",$AK$83,IF($H$84="Markus",$AK$84,0))))))) -> 3 | AV94: =IF($H$78="Markus",$AV$78,IF($H$79="Markus",$AV$79,IF($H$80="Markus",$AV$80,IF($H$81="Markus",$AV$81,IF($H$82="Markus",$AV$82,IF($H$83="Markus",$AV$83,IF($H$84="Markus",$AV$84,0))))))) -> 1 | BG94: =IF($H$78="Markus",$BG$78,IF($H$79="Markus",$BG$79,IF($H$80="Markus",$BG$80,IF($H$81="Markus",$BG$81,IF($H$82="Markus",$BG$82,IF($H$83="Markus",$BG$83,IF($H$84="Markus",$BG$84,0))))))) -> 17 | BL94: : | BN94: =IF($H$78="Markus",$BN$78,IF($H$79="Markus",$BN$79,IF($H$80="Markus",$BN$80,IF($H$81="Markus",$BN$81,IF($H$82="Markus",$BN$82,IF($H$83="Markus",$BN$83,IF($H$84="Markus",$BN$84,0))))))) -> 14 | BS94: =IF($H$78="Markus",$BS$78,IF($H$79="Markus",$BS$79,IF($H$80="Markus",$BS$80,IF($H$81="Markus",$BS$81,IF($H$82="Markus",$BS$82,IF($H$83="Markus",$BS$83,IF($H$84="Markus",$BS$84,0))))))) -> 3 | BX94: =IF($H$78="Markus",$BX$78,IF($H$79="Markus",$BX$79,IF($H$80="Markus",$BX$80,IF($H$81="Markus",$BX$81,IF($H$82="Markus",$BX$82,IF($H$83="Markus",$BX$83,IF($H$84="Markus",$BX$84,0))))))) -> 15
C95: =IF($H$78="Patrick",$F$78,IF($H$79="Patrick",$F$79,IF($H$80="Patrick",$F$80,IF($H$81="Patrick",$F$81,IF($H$82="Patrick",$F$82,IF($H$83="Patrick",$F$83,IF($H$84="Patrick",$F$84,0))))))) -> 5 | H95: Patrick | T95: =IF($H$78="Patrick",$T$78,IF($H$79="Patrick",$T$79,IF($H$80="Patrick",$T$80,IF($H$81="Patrick",$T$81,IF($H$82="Patrick",$T$82,IF($H$83="Patrick",$T$83,IF($H$84="Patrick",$T$84,0))))))) -> 8 | Z95: =IF($H$78="Patrick",$Z$78,IF($H$79="Patrick",$Z$79,IF($H$80="Patrick",$Z$80,IF($H$81="Patrick",$Z$81,IF($H$82="Patrick",$Z$82,IF($H$83="Patrick",$Z$83,IF($H$84="Patrick",$Z$84,0))))))) -> 0 | AK95: =IF($H$78="Patrick",$AK$78,IF($H$79="Patrick",$AK$79,IF($H$80="Patrick",$AK$80,IF($H$81="Patrick",$AK$81,IF($H$82="Patrick",$AK$82,IF($H$83="Patrick",$AK$83,IF($H$84="Patrick",$AK$84,0))))))) -> 4 | AV95: =IF($H$78="Patrick",$AV$78,IF($H$79="Patrick",$AV$79,IF($H$80="Patrick",$AV$80,IF($H$81="Patrick",$AV$81,IF($H$82="Patrick",$AV$82,IF($H$83="Patrick",$AV$83,IF($H$84="Patrick",$AV$84,0))))))) -> 4 | BG95: =IF($H$78="Patrick",$BG$78,IF($H$79="Patrick",$BG$79,IF($H$80="Patrick",$BG$80,IF($H$81="Patrick",$BG$81,IF($H$82="Patrick",$BG$82,IF($H$83="Patrick",$BG$83,IF($H$84="Patrick",$BG$84,0))))))) -> 8 | BL95: : | BN95: =IF($H$78="Patrick",$BN$78,IF($H$79="Patrick",$BN$79,IF($H$80="Patrick",$BN$80,IF($H$81="Patrick",$BN$81,IF($H$82="Patrick",$BN$82,IF($H$83="Patrick",$BN$83,IF($H$84="Patrick",$BN$84,0))))))) -> 13 | BS95: =IF($H$78="Patrick",$BS$78,IF($H$79="Patrick",$BS$79,IF($H$80="Patrick",$BS$80,IF($H$81="Patrick",$BS$81,IF($H$82="Patrick",$BS$82,IF($H$83="Patrick",$BS$83,IF($H$84="Patrick",$BS$84,0))))))) -> -5 | BX95: =IF($H$78="Patrick",$BX$78,IF($H$79="Patrick",$BX$79,IF($H$80="Patrick",$BX$80,IF($H$81="Patrick",$BX$81,IF($H$82="Patrick",$BX$82,IF($H$83="Patrick",$BX$83,IF($H$84="Patrick",$BX$84,0))))))) -> 4
